Workbook

Sheet LCOE Comparison
E1: Code Number | G1: 1
F2: 1 | G2: 2 | H2: 3 | I2: 4 | J2: 5 | K2: 6 | L2: 7 | M2: 8 | N2: 9 | O2: 10
E3: =INDEX(F3:O3,$G$1) -> Solar No Tracking | F3: Solar No Tracking | G3: Solar w/ Tracking | H3: On-shore Wind | I3: Off-shore Wind | J3: Hydro | K3: Geothermal | L3: Biomass | M3: Coal | N3: Natural Gas | O3: Diesel
A4: Cost Parameters
C5: Cost/kW | D5: USD/kW | E5: 750 | F5: 700 | G5: 900 | O5: 1000
C7: Fixed O&M - Real | D7: USD/kW-year | E7: =INDEX(F7:O7,$G$1) -> 8 | F7: 8 | G7: 11 | O7: 15
C8: Nominal Level O&M | D8: USD/kW-year | E8: ='Very Simple Financial Model'!G48 -> 0 | F8: ='Very Simple Financial Model'!H48 -> 0 | G8: ='Very Simple Financial Model'!H48 -> 0
C10: Variable Cost | D10: USD/MWh | E10: =INDEX(F10:O10,$G$1) -> 0 | O10: 20
C11: Fuel Price | D11: USD/MMbtu | E11: =INDEX(F11:O11,$G$1) -> 0 | O11: ='Diesel vs Solar'!E6 -> 0
C12: Heat Rate | D12: Btu/MWh | E12: =INDEX(F12:O12,$G$1) -> 0 | O12: ='Diesel vs Solar'!H19 -> 10326.77333
C13: Fuel Cost | D13: USD/MWh | E13: =E12/1000*E11 -> 0 | O13: =O11*O12/1000 -> 0
C15: Capacity Factor | D15: % | E15: =INDEX(F15:O15,$G$1) -> 0.22 | F15: 0.22 | G15: 0.26 | O15: 0.7
A17: Carrying Charges
C18: Project Life | D18: Years | E18: =INDEX(F18:O18,$G$1) -> 25 | F18: 25 | G18: 25 | O18: 25
C20: Nominal Discount Rate | D20: Nominal PIRR | E20: 0.055 | F20: 0.055 | G20: 0.055 | O20: 0.1
C21: Inflation Rate | D21: Assumed | E21: 0.025 | F21: 0.02 | G21: 0 | O21: 0.02
C22: Real Rate | D22: % | E22: =(1+E20)/(1+E21)-1 -> 0.02926829268 | F22: =(1+F20)/(1+F21)-1 -> 0.03431372549 | G22: =(1+G20)/(1+G21)-1 -> 0.055
C24: Nominal Carrying Charge | D24: % with PMT Function | E24: =PMT(E20,E18,-1) -> 0.07454935295 | F24: =PMT(F20,F18,-1) -> 0.07454935295 | G24: =PMT(G20,G18,-1) -> 0.07454935295
C25: Real Carrying Charge | D25: % with PMT Function | E25: =PMT(E22,E18,-1) -> 0.05696066908 | F25: =PMT(F22,F18,-1) -> 0.06022299339 | G25: =PMT(G22,G18,-1) -> 0.07454935295
A27: LCOE Calculations
C28: Capacity Charge - Nominal | D28: USD/kW-year
C29: Total Fixed Cost - Nominal | D29: USD/kW-year
C30: Total Fixed Cost - Nominal | D30: USD/MWh
C31: Total Variable Cost - Nominal | D31: USD/MWh
C33: Total LCOE - Nominal | D33: USD/MWh
C35: Capacity Charge - Real | D35: USD/kW-year
C36: Total Fixed Cost - Real | D36: USD/kW-year
C37: Total Fixed Cost - Real | D37: USD/MWh
C38: Total Variable Cost - Real | D38: USD/MWh
C40: Total LCOE - Real | D40: USD/MWh

Sheet Diesel vs Solar
C1: Inflation | E1: 0.04
C2: Exchange Rate | E2: 1
E3: 2018 | F3: 2019 | G3: 2020 | H3: 2021 | I3: 2022 | J3: 2023 | K3: 2024 | L3: 2025 | M3: 2026 | N3: 2027 | O3: 2028 | P3: 2029 | Q3: 2030 | R3: 2031 | S3: 2032 | T3: 2033 | U3: 2034 | V3: 2035 | W3: 2036 | X3: 2037 | Y3: 2038 | Z3: 2039 | AA3: 2040 | AB3: 2041 | AC3: 2042 | AD3: 2043 | AE3: 2044 | AF3: 2045 | AG3: 2046 | AH3: 2047 | AI3: 2048 | AJ3: 2049 | AK3: 2050
C5: Diesel Price | D5: USD/Gallon | E5: 2 | F5: =E5*(1+$E$1) -> 2.08 | G5: =F5*(1+$E$1) -> 2.1632 | H5: 2.249728 | I5: 2.33971712 | J5: 2.433305805 | K5: 2.530638037 | L5: 2.631863558 | M5: 2.737138101 | N5: 2.846623625 | O5: 2.96048857 | P5: 3.078908113 | Q5: 3.202064437 | R5: 3.330147015 | S5: 3.463352895 | T5: 3.601887011 | U5: 3.745962491 | V5: 3.895800991 | W5: 4.051633031 | X5: 4.213698352 | Y5: 4.382246286 | Z5: 4.557536138 | AA5: 4.739837583 | AB5: 4.929431086 | AC5: 5.12660833 | AD5: 5.331672663 | AE5: 5.544939569 | AF5: 5.766737152 | AG5: 5.997406638 | AH5: 6.237302904 | AI5: 6.48679502 | AJ5: 6.746266821 | AK5: 7.016117494
C6: Diesel Price | D6: USD/MMBTU | F6: =F5*$I$14 -> 14.16238438 | G6: 14.72887975 | H6: 15.31803494 | I6: 15.93075634 | J6: 16.56798659 | K6: 17.23070606 | L6: 17.9199343 | M6: 18.63673167 | N6: 19.38220094 | O6: 20.15748898 | P6: 20.96378854 | Q6: 21.80234008 | R6: 22.67443368 | S6: 23.58141103 | T6: 24.52466747 | U6: 25.50565417 | V6: 26.52588034 | W6: 27.58691555 | X6: 28.69039217 | Y6: 29.83800786 | Z6: 31.03152817 | AA6: 32.2727893 | AB6: 33.56370087 | AC6: 34.90624891 | AD6: 36.30249886 | AE6: 37.75459882 | AF6: 39.26478277 | AG6: 40.83537408 | AH6: 42.46878904 | AI6: 44.1675406 | AJ6: 45.93424223 | AK6: 47.77161192
C7: Diesel Efficiency | D7: Gallon/MW | F7: =E7 -> 0 | G7: =F7 -> 0 | H7: 0 | I7: 0 | J7: 0 | K7: 0 | L7: 0 | M7: 0 | N7: 0 | O7: 0 | P7: 0 | Q7: 0 | R7: 0 | S7: 0 | T7: 0 | U7: 0 | V7: 0 | W7: 0 | X7: 0 | Y7: 0 | Z7: 0 | AA7: 0 | AB7: 0 | AC7: 0 | AD7: 0 | AE7: 0 | AF7: 0 | AG7: 0 | AH7: 0 | AI7: 0 | AJ7: 0 | AK7: 0
C8: Diesel Fuel Cost | D8: USD/MWh | F8: =F5*F7 -> 0 | G8: 0 | H8: 0 | I8: 0 | J8: 0 | K8: 0 | L8: 0 | M8: 0 | N8: 0 | O8: 0 | P8: 0 | Q8: 0 | R8: 0 | S8: 0 | T8: 0 | U8: 0 | V8: 0 | W8: 0 | X8: 0 | Y8: 0 | Z8: 0 | AA8: 0 | AB8: 0 | AC8: 0 | AD8: 0 | AE8: 0 | AF8: 0 | AG8: 0 | AH8: 0 | AI8: 0 | AJ8: 0 | AK8: 0
C9: Diesel Variable Cost | D9: USD/MWh | E9: 30 | F9: =E9*(1+$E$1) -> 31.2 | G9: =F9*(1+$E$1) -> 32.448 | H9: 33.74592 | I9: 35.0957568 | J9: 36.49958707 | K9: 37.95957055 | L9: 39.47795338 | M9: 41.05707151 | N9: 42.69935437 | O9: 44.40732855 | P9: 46.18362169 | Q9: 48.03096656 | R9: 49.95220522 | S9: 51.95029343 | T9: 54.02830517 | U9: 56.18943737 | V9: 58.43701487 | W9: 60.77449546 | X9: 63.20547528 | Y9: 65.73369429 | Z9: 68.36304206 | AA9: 71.09756375 | AB9: 73.94146629 | AC9: 76.89912495 | AD9: 79.97508994 | AE9: 83.17409354 | AF9: 86.50105728 | AG9: 89.96109958 | AH9: 93.55954356 | AI9: 97.3019253 | AJ9: 101.1940023 | AK9: 105.2417624
C10: Diesel Short-run Marginal Cost | D10: USD/MWh | E10: =SUM(E8:E9) -> 30 | F10: =SUM(F8:F9) -> 31.2 | G10: =SUM(G8:G9) -> 32.448 | H10: =SUM(H8:H9) -> 33.74592 | I10: =SUM(I8:I9) -> 35.0957568 | J10: =SUM(J8:J9) -> 36.49958707 | K10: =SUM(K8:K9) -> 37.95957055 | L10: =SUM(L8:L9) -> 39.47795338 | M10: =SUM(M8:M9) -> 41.05707151 | N10: =SUM(N8:N9) -> 42.69935437 | O10: =SUM(O8:O9) -> 44.40732855 | P10: =SUM(P8:P9) -> 46.18362169 | Q10: =SUM(Q8:Q9) -> 48.03096656 | R10: =SUM(R8:R9) -> 49.95220522 | S10: =SUM(S8:S9) -> 51.95029343 | T10: =SUM(T8:T9) -> 54.02830517 | U10: =SUM(U8:U9) -> 56.18943737 | V10: =SUM(V8:V9) -> 58.43701487 | W10: =SUM(W8:W9) -> 60.77449546 | X10: =SUM(X8:X9) -> 63.20547528 | Y10: =SUM(Y8:Y9) -> 65.73369429 | Z10: =SUM(Z8:Z9) -> 68.36304206 | AA10: =SUM(AA8:AA9) -> 71.09756375 | AB10: =SUM(AB8:AB9) -> 73.94146629 | AC10: =SUM(AC8:AC9) -> 76.89912495 | AD10: =SUM(AD8:AD9) -> 79.97508994 | AE10: =SUM(AE8:AE9) -> 83.17409354 | AF10: =SUM(AF8:AF9) -> 86.50105728 | AG10: =SUM(AG8:AG9) -> 89.96109958 | AH10: =SUM(AH8:AH9) -> 93.55954356 | AI10: =SUM(AI8:AI9) -> 97.3019253 | AJ10: =SUM(AJ8:AJ9) -> 101.1940023 | AK10: =SUM(AK8:AK9) -> 105.2417624
A13: Diesel Heat Rate | D13: L/kW | E13: Gallon/L | F13: Gallon/kW | G13: BTU/L | H13: BTU/kW | I13: Gallon/MMBTU
C14: Full Load (L/kW) | D14: =107/400 -> 0.2675 | E14: 0.265 | F14: =D14*E14 -> 0.0708875 | G14: 38920 | H14: =G14*D14 -> 10411.1 | I14: 6.808838643
C15: 3/4 Load | D15: =79.6/300 -> 0.2653333333 | E15: 0.265 | F15: =D15*E15 -> 0.07031333333 | G15: 38920 | H15: =G15*D15 -> 10326.77333 | I15: 6.808838643
C16: 1/2 Load | D16: =55.6/200 -> 0.278 | E16: 0.265 | F16: 0.07367 | G16: 38920 | H16: 10819.76 | I16: 6.808838643
C17: 1/4 Load | D17: =33.3/100 -> 0.333 | E17: 0.265 | F17: 0.088245 | G17: 38920 | H17: 12960.36 | I17: 6.808838643
C19: =INDEX(C14:C17,$D$22) -> 3/4 Load | D19: =INDEX(D14:D17,$D$22) -> 0.2653333333 | E19: =INDEX(E14:E17,$D$22) -> 0.265 | F19: 0.07031333333 | G19: 38920 | H19: 10326.77333 | I19: 6.808838643
C22: Code | D22: 2

Sheet Very Simple Financial Model
B2: Year | G2: 0 | H2: 1 | I2: 2 | J2: 3 | K2: 4 | L2: 5 | M2: 6 | N2: 7 | O2: 8 | P2: 9 | Q2: 10 | R2: 11 | S2: 12 | T2: 13 | U2: 14 | V2: 15 | W2: 16 | X2: 17 | Y2: 18 | Z2: 19 | AA2: 20 | AB2: 21 | AC2: 22 | AD2: 23 | AE2: 24 | AF2: 25 | AG2: 26 | AH2: 27 | AI2: 28 | AJ2: 29 | AK2: 30 | AL2: 31 | AM2: 32 | AN2: 33 | AO2: 34 | AP2: 35 | AQ2: 36 | AR2: 37 | AS2: 38 | AT2: 39 | AU2: 40 | AV2: 41 | AW2: 42 | AX2: 43 | AY2: 44 | AZ2: 45
B3: Operation Switch
A5: Key Assumptions
B6: Project Size | E6: kW | F6: 1
B7: Project Life | E7: years | F7: =F3 -> 0
B8: Capital Cost | E8: USD/kWp | F8: ='LCOE Comparison'!E5 -> 750 | I8: EBITDA | J8: =H33 -> 0
B9: O&M Cost | E9: USD/kW-year | F9: ='LCOE Comparison'!E7 -> 8 | I9: Investement | J9: =G35 -> 0
B10: Capacity Factor | E10: % | F10: ='LCOE Comparison'!E15 -> 0.22 | I10: Carrying Charge | J10: =J8/J9 -> 
B11: Finance Cost | I11: Inflation Rate | J11: ='LCOE Comparison'!E21 -> 0.025
I12: Adjusted Rate | J12: =J10/(1+J11) -> 
B13: Target IRR | E13: % | F13: ='LCOE Comparison'!E20 -> 0.055
B14: Price of Electricity | E14: USD/MWhr | F14: ='LCOE Comparison'!E33 -> 0 | G14: Price | I14: IRR | J14: =G37 -> 0
A16: Operating Analysis
B17: Capacity | E17: kW
B18: Capacity Factor | E18: %
B19: Hours | E19: hr
B20: Generation | E20: MWhr
A22: Revenue, Expense, Capex
B23: Inflation Index | E23: Index | F23: ='LCOE Comparison'!E21 -> 0.025 | G23: 1 | H23: =G23*(1+$F$23) -> 1.025 | I23: =H23*(1+$F$23) -> 1.050625 | J23: 1.076890625 | K23: 1.103812891 | L23: 1.131408213 | M23: 1.159693418 | N23: 1.188685754 | O23: 1.218402898 | P23: 1.24886297 | Q23: 1.280084544 | R23: 1.312086658 | S23: 1.344888824 | T23: 1.378511045 | U23: 1.412973821 | V23: 1.448298166 | W23: 1.484505621 | X23: 1.521618261 | Y23: 1.559658718 | Z23: 1.598650186 | AA23: 1.63861644 | AB23: 1.679581851 | AC23: 1.721571398 | AD23: 1.764610683 | AE23: 1.80872595 | AF23: 1.853944098 | AG23: 1.900292701 | AH23: 1.947800018 | AI23: 1.996495019 | AJ23: 2.046407394 | AK23: 2.097567579 | AL23: 2.150006769 | AM23: 2.203756938 | AN23: 2.258850861 | AO23: 2.315322133 | AP23: 2.373205186 | AQ23: 2.432535316 | AR23: 2.493348699 | AS23: 2.555682416 | AT23: 2.619574476 | AU23: 2.685063838 | AV23: 2.752190434 | AW23: 2.820995195 | AX23: 2.891520075
B24: Real Price of Electricity | E24: USD/MWhr
B25: Inflated Price of Electricity | E25: USD/MWhr
B26: Revenues | E26: USD
B28: Inflation Index | E28: Index | F28: ='LCOE Comparison'!E21 -> 0.025 | G28: 1 | H28: =H23 -> 1.025 | I28: =I23 -> 1.050625 | J28: 1.076890625 | K28: 1.103812891 | L28: 1.131408213 | M28: 1.159693418 | N28: 1.188685754 | O28: 1.218402898 | P28: 1.24886297 | Q28: 1.280084544 | R28: 1.312086658 | S28: 1.344888824 | T28: 1.378511045 | U28: 1.412973821 | V28: 1.448298166 | W28: 1.484505621 | X28: 1.521618261 | Y28: 1.559658718 | Z28: 1.598650186 | AA28: 1.63861644 | AB28: 1.679581851 | AC28: 1.721571398 | AD28: 1.764610683 | AE28: 1.80872595 | AF28: 1.853944098 | AG28: 1.900292701 | AH28: 1.947800018 | AI28: 1.996495019 | AJ28: 2.046407394 | AK28: 2.097567579 | AL28: 2.150006769 | AM28: 2.203756938 | AN28: 2.258850861 | AO28: 2.315322133 | AP28: 2.373205186 | AQ28: 2.432535316 | AR28: 2.493348699 | AS28: 2.555682416 | AT28: 2.619574476 | AU28: 2.685063838 | AV28: 2.752190434 | AW28: 2.820995195 | AX28: 2.891520075
B29: Real O&M Expense | E29: USD/kW-year | F29: ='LCOE Comparison'!E7 -> 8 | H29: =$F$29*H3 -> 0 | I29: =$F$29*I3 -> 0 | J29: =$F$29*J3 -> 0 | K29: =$F$29*K3 -> 0 | L29: =$F$29*L3 -> 0 | M29: =$F$29*M3 -> 0 | N29: =$F$29*N3 -> 0 | O29: =$F$29*O3 -> 0 | P29: =$F$29*P3 -> 0 | Q29: =$F$29*Q3 -> 0 | R29: =$F$29*R3 -> 0 | S29: =$F$29*S3 -> 0 | T29: =$F$29*T3 -> 0 | U29: =$F$29*U3 -> 0 | V29: =$F$29*V3 -> 0 | W29: =$F$29*W3 -> 0 | X29: =$F$29*X3 -> 0 | Y29: =$F$29*Y3 -> 0 | Z29: =$F$29*Z3 -> 0 | AA29: =$F$29*AA3 -> 0 | AB29: =$F$29*AB3 -> 0 | AC29: =$F$29*AC3 -> 0 | AD29: =$F$29*AD3 -> 0 | AE29: =$F$29*AE3 -> 0 | AF29: =$F$29*AF3 -> 0 | AG29: =$F$29*AG3 -> 0 | AH29: =$F$29*AH3 -> 0 | AI29: =$F$29*AI3 -> 0 | AJ29: =$F$29*AJ3 -> 0 | AK29: =$F$29*AK3 -> 0 | AL29: =$F$29*AL3 -> 0 | AM29: =$F$29*AM3 -> 0 | AN29: =$F$29*AN3 -> 0 | AO29: =$F$29*AO3 -> 0 | AP29: =$F$29*AP3 -> 0 | AQ29: =$F$29*AQ3 -> 0 | AR29: =$F$29*AR3 -> 0 | AS29: =$F$29*AS3 -> 0 | AT29: =$F$29*AT3 -> 0 | AU29: =$F$29*AU3 -> 0 | AV29: =$F$29*AV3 -> 0 | AW29: =$F$29*AW3 -> 0 | AX29: =$F$29*AX3 -> 0
B30: Operating Cost/kW | E30: USD/kW-year | F30: =F9 -> 8 | G30: ='LCOE Comparison'!E21 -> 0.025 | H30: =$F$30*H28*H3 -> 0 | I30: =$F$30*I28*I3 -> 0 | J30: =$F$30*J28*J3 -> 0 | K30: =$F$30*K28*K3 -> 0 | L30: =$F$30*L28*L3 -> 0 | M30: =$F$30*M28*M3 -> 0 | N30: =$F$30*N28*N3 -> 0 | O30: =$F$30*O28*O3 -> 0 | P30: =$F$30*P28*P3 -> 0 | Q30: =$F$30*Q28*Q3 -> 0 | R30: =$F$30*R28*R3 -> 0 | S30: =$F$30*S28*S3 -> 0 | T30: =$F$30*T28*T3 -> 0 | U30: =$F$30*U28*U3 -> 0 | V30: =$F$30*V28*V3 -> 0 | W30: =$F$30*W28*W3 -> 0 | X30: =$F$30*X28*X3 -> 0 | Y30: =$F$30*Y28*Y3 -> 0 | Z30: =$F$30*Z28*Z3 -> 0 | AA30: =$F$30*AA28*AA3 -> 0 | AB30: =$F$30*AB28*AB3 -> 0 | AC30: =$F$30*AC28*AC3 -> 0 | AD30: =$F$30*AD28*AD3 -> 0 | AE30: =$F$30*AE28*AE3 -> 0 | AF30: =$F$30*AF28*AF3 -> 0 | AG30: =$F$30*AG28*AG3 -> 0 | AH30: =$F$30*AH28*AH3 -> 0 | AI30: =$F$30*AI28*AI3 -> 0 | AJ30: =$F$30*AJ28*AJ3 -> 0 | AK30: =$F$30*AK28*AK3 -> 0 | AL30: =$F$30*AL28*AL3 -> 0 | AM30: =$F$30*AM28*AM3 -> 0 | AN30: =$F$30*AN28*AN3 -> 0 | AO30: =$F$30*AO28*AO3 -> 0 | AP30: =$F$30*AP28*AP3 -> 0 | AQ30: =$F$30*AQ28*AQ3 -> 0 | AR30: =$F$30*AR28*AR3 -> 0 | AS30: =$F$30*AS28*AS3 -> 0 | AT30: =$F$30*AT28*AT3 -> 0 | AU30: =$F$30*AU28*AU3 -> 0 | AV30: =$F$30*AV28*AV3 -> 0 | AW30: =$F$30*AW28*AW3 -> 0 | AX30: =$F$30*AX28*AX3 -> 0
B31: Total Operating Cost | E31: USD | H31: =H30*1000*H3 -> 0 | I31: =I30*1000*I3 -> 0 | J31: 0 | K31: 0 | L31: 0 | M31: 0 | N31: 0 | O31: 0 | P31: 0 | Q31: 0 | R31: 0 | S31: 0 | T31: 0 | U31: 0 | V31: 0 | W31: 0 | X31: 0 | Y31: 0 | Z31: 0 | AA31: 0 | AB31: 0 | AC31: 0 | AD31: 0 | AE31: 0 | AF31: 0 | AG31: 0 | AH31: 0 | AI31: 0 | AJ31: 0 | AK31: 0 | AL31: 0 | AM31: 0 | AN31: 0 | AO31: 0 | AP31: 0 | AQ31: 0 | AR31: 0 | AS31: 0 | AT31: 0 | AU31: 0 | AV31: 0 | AW31: 0 | AX31: 0
B33: EBITDA | H33: =H26-H31 -> 0 | I33: =I26-I31 -> 0 | J33: 0 | K33: 0 | L33: 0 | M33: 0 | N33: 0 | O33: 0 | P33: 0 | Q33: 0 | R33: 0 | S33: 0 | T33: 0 | U33: 0 | V33: 0 | W33: 0 | X33: 0 | Y33: 0 | Z33: 0 | AA33: 0 | AB33: 0 | AC33: 0 | AD33: 0 | AE33: 0 | AF33: 0 | AG33: 0 | AH33: 0 | AI33: 0 | AJ33: 0 | AK33: 0 | AL33: 0 | AM33: 0 | AN33: 0 | AO33: 0 | AP33: 0 | AQ33: 0 | AR33: 0 | AS33: 0 | AT33: 0 | AU33: 0 | AV33: 0 | AW33: 0 | AX33: 0
B34: Capex/kW | E34: USD/kW | F34: =F8 -> 750
B35: Total Capex | E35: USD | G35: =F34*F17*1000 -> 0
B36: Free Project Cash Flow | E36: USD | G36: =G26-G31-G35 -> 0 | H36: =H26-H31-H35 -> 0 | I36: =I26-I31-I35 -> 0 | J36: =J26-J31-J35 -> 0 | K36: =K26-K31-K35 -> 0 | L36: =L26-L31-L35 -> 0 | M36: =M26-M31-M35 -> 0 | N36: =N26-N31-N35 -> 0 | O36: =O26-O31-O35 -> 0 | P36: =P26-P31-P35 -> 0 | Q36: =Q26-Q31-Q35 -> 0 | R36: =R26-R31-R35 -> 0 | S36: =S26-S31-S35 -> 0 | T36: =T26-T31-T35 -> 0 | U36: =U26-U31-U35 -> 0 | V36: =V26-V31-V35 -> 0 | W36: =W26-W31-W35 -> 0 | X36: =X26-X31-X35 -> 0 | Y36: =Y26-Y31-Y35 -> 0 | Z36: =Z26-Z31-Z35 -> 0 | AA36: =AA26-AA31-AA35 -> 0 | AB36: =AB26-AB31-AB35 -> 0 | AC36: =AC26-AC31-AC35 -> 0 | AD36: =AD26-AD31-AD35 -> 0 | AE36: =AE26-AE31-AE35 -> 0 | AF36: =AF26-AF31-AF35 -> 0 | AG36: =AG26-AG31-AG35 -> 0 | AH36: =AH26-AH31-AH35 -> 0 | AI36: =AI26-AI31-AI35 -> 0 | AJ36: =AJ26-AJ31-AJ35 -> 0 | AK36: =AK26-AK31-AK35 -> 0 | AL36: =AL26-AL31-AL35 -> 0 | AM36: =AM26-AM31-AM35 -> 0 | AN36: =AN26-AN31-AN35 -> 0 | AO36: =AO26-AO31-AO35 -> 0 | AP36: =AP26-AP31-AP35 -> 0 | AQ36: =AQ26-AQ31-AQ35 -> 0 | AR36: =AR26-AR31-AR35 -> 0 | AS36: =AS26-AS31-AS35 -> 0 | AT36: =AT26-AT31-AT35 -> 0 | AU36: =AU26-AU31-AU35 -> 0 | AV36: =AV26-AV31-AV35 -> 0 | AW36: =AW26-AW31-AW35 -> 0 | AX36: =AX26-AX31-AX35 -> 0
B37: Project IRR | E37: %
B39: Nominal Revenues | E39: USD
B40: Generation | E40: MWH
B42: NPV Revenues at Discount Rate | E42: USD | F42: ='LCOE Comparison'!E20 -> 0.055
B43: NPV Generation at Nominal | E43: MWH | F43: ='LCOE Comparison'!E20 -> 0.055
B44: LCOE - NPV Revenues/NPV Generation | E44: USD/MWH
B46: NPV of O&M at Discount Rate | E46: USD | F46: =F42 -> 0.055
B47: NPV of Capacity at Real Rate | E47: USD | F47: =F46 -> 0.055
C48: Levelised Nominal O&M | E48: USD/kW-yr
B50: NPV of Generation at Real Rate | E50: MWH | F50: ='LCOE Comparison'!$E$22 -> 0.02926829268
C51: Real Levelised Rate | E51: USD/MWH

Sheet Solar Carrying Charge
A1: Summary | E1: Carrying Charge | F1: =F164 -> 0.0632261291 | G1: IRR | H1: =E150 -> 0.0699528724 | I1: WACC | J1: =M55 -> 0.07 | K1: Equity IRR | L1: =F262 -> 0.0699528724 | M1: Equity Cost | N1: =F25 -> 0.07
B3: Period (Long Enough for Nuclear Plant) | H3: 0 | I3: =H3+1 -> 1 | J3: =I3+1 -> 2 | K3: 3 | L3: 4 | M3: 5 | N3: 6 | O3: 7 | P3: 8 | Q3: 9 | R3: 10 | S3: 11 | T3: 12 | U3: 13 | V3: 14 | W3: 15 | X3: 16 | Y3: 17 | Z3: 18 | AA3: 19 | AB3: 20 | AC3: 21 | AD3: 22 | AE3: 23 | AF3: 24 | AG3: 25 | AH3: 26 | AI3: 27 | AJ3: 28 | AK3: 29 | AL3: 30 | AM3: 31 | AN3: 32 | AO3: 33 | AP3: 34 | AQ3: 35 | AR3: 36 | AS3: 37 | AT3: 38 | AU3: 39 | AV3: 40 | AW3: 41 | AX3: 42 | AY3: 43 | AZ3: 44 | BA3: 45 | BB3: 46 | BC3: 47 | BD3: 48 | BE3: 49 | BF3: 50 | BG3: 51 | BH3: 52 | BI3: 53 | BJ3: 54 | BK3: 55 | BL3: 56 | BM3: 57 | BN3: 58 | BO3: 59 | BP3: 60 | BQ3: 61 | BR3: 62 | BS3: 63 | BT3: 64 | BU3: 65 | BV3: =BU3+1 -> 66 | BW3: 67 | BX3: 68 | BY3: 69 | BZ3: 70 | CA3: 71 | CB3: 72 | CC3: 73 | CD3: 74 | CE3: 75 | CF3: 76 | CG3: 77 | CH3: 78 | CI3: 79 | CJ3: 80 | CK3: 81 | CL3: 82 | CM3: 83 | CN3: 84 | CO3: 85 | CP3: 86 | CQ3: 87 | CR3: 88 | CS3: 89 | CT3: 90 | CU3: 91 | CV3: 92 | CW3: 93 | CX3: 94 | CY3: 95 | CZ3: 96 | DA3: 97 | DB3: 98 | DC3: 99 | DD3: 100 | DE3: 101 | DF3: 102 | DG3: 103 | DH3: 104 | DI3: 105 | DJ3: 106 | DK3: 107 | DL3: 108 | DM3: 109 | DN3: 110 | DO3: 111 | DP3: 112 | DQ3: 113 | DR3: 114 | DS3: 115 | DT3: 116 | DU3: 117 | DV3: 118 | DW3: 119 | DX3: 120 | DY3: 121 | DZ3: 122 | EA3: 123 | EB3: 124 | EC3: 125 | ED3: 126 | EE3: 127 | EF3: 128 | EG3: 129 | EH3: =EG3+1 -> 130 | EI3: 131 | EJ3: 132 | EK3: 133 | EL3: 134 | EM3: 135 | EN3: 136 | EO3: 137 | EP3: 138 | EQ3: 139 | ER3: 140 | ES3: 141 | ET3: 142 | EU3: 143 | EV3: 144 | EW3: 145 | EX3: 146 | EY3: 147 | EZ3: 148 | FA3: 149 | FB3: 150 | FC3: 151 | FD3: 152 | FE3: 153 | FF3: 154 | FG3: 155 | FH3: 156 | FI3: 157 | FJ3: 158 | FK3: 159 | FL3: 160 | FM3: 161 | FN3: 162 | FO3: 163 | FP3: 164 | FQ3: 165 | FR3: 166 | FS3: 167 | FT3: 168 | FU3: 169 | FV3: 170 | FW3: 171 | FX3: 172 | FY3: 173 | FZ3: 174 | GA3: 175 | GB3: 176 | GC3: 177 | GD3: 178 | GE3: 179 | GF3: 180 | GG3: 181 | GH3: 182 | GI3: 183 | GJ3: 184 | GK3: 185 | GL3: 186 | GM3: 187 | GN3: 188 | GO3: 189 | GP3: 190 | GQ3: 191 | GR3: 192 | GS3: 193 | GT3: =GS3+1 -> 194 | GU3: 195 | GV3: 196 | GW3: 197 | GX3: 198 | GY3: 199 | GZ3: 200 | HA3: 201 | HB3: 202 | HC3: 203 | HD3: 204 | HE3: 205 | HF3: 206 | HG3: 207 | HH3: 208 | HI3: 209 | HJ3: 210 | HK3: 211 | HL3: 212 | HM3: 213 | HN3: 214 | HO3: 215 | HP3: 216 | HQ3: 217 | HR3: 218 | HS3: 219 | HT3: 220 | HU3: 221 | HV3: 222 | HW3: 223 | HX3: 224 | HY3: 225 | HZ3: 226 | IA3: 227 | IB3: 228 | IC3: 229 | ID3: 230 | IE3: 231 | IF3: 232 | IG3: 233 | IH3: 234 | II3: 235 | IJ3: 236 | IK3: 237 | IL3: 238 | IM3: 239 | IN3: 240 | IO3: 241 | IP3: 242 | IQ3: 243 | IR3: 244 | IS3: 245 | IT3: 246 | IU3: 247 | IV3: 248 | IW3: 249 | IX3: 250 | IY3: 251 | IZ3: 252 | JA3: 253 | JB3: 254 | JC3: 255 | JD3: 256 | JE3: 257 | JF3: =JE3+1 -> 258 | JG3: 259 | JH3: 260 | JI3: 261 | JJ3: 262 | JK3: 263 | JL3: 264 | JM3: 265 | JN3: 266 | JO3: 267 | JP3: 268 | JQ3: 269 | JR3: 270 | JS3: 271 | JT3: 272 | JU3: 273 | JV3: 274 | JW3: 275 | JX3: 276 | JY3: 277 | JZ3: 278 | KA3: 279 | KB3: 280 | KC3: 281 | KD3: 282 | KE3: 283 | KF3: 284 | KG3: 285 | KH3: 286 | KI3: 287 | KJ3: 288 | KK3: 289 | KL3: 290 | KM3: 291 | KN3: 292 | KO3: 293 | KP3: 294 | KQ3: 295 | KR3: 296 | KS3: 297 | KT3: 298 | KU3: 299 | KV3: 300 | KW3: 301 | KX3: 302 | KY3: 303 | KZ3: 304 | LA3: 305 | LB3: 306 | LC3: 307 | LD3: 308 | LE3: 309 | LF3: 310 | LG3: 311 | LH3: 312 | LI3: 313 | LJ3: 314 | LK3: 315 | LL3: 316 | LM3: 317 | LN3: 318 | LO3: 319 | LP3: 320 | LQ3: 321 | LR3: =LQ3+1 -> 322 | LS3: 323 | LT3: 324 | LU3: 325 | LV3: 326 | LW3: 327 | LX3: 328 | LY3: 329 | LZ3: 330 | MA3: 331 | MB3: 332 | MC3: 333 | MD3: 334 | ME3: 335 | MF3: 336 | MG3: 337 | MH3: 338 | MI3: 339 | MJ3: 340 | MK3: 341 | ML3: 342 | MM3: 343 | MN3: 344 | MO3: 345 | MP3: 346 | MQ3: 347 | MR3: 348 | MS3: 349 | MT3: 350 | MU3: 351 | MV3: 352 | MW3: 353 | MX3: 354 | MY3: 355 | MZ3: 356 | NA3: 357 | NB3: 358 | NC3: 359 | ND3: 360 | NE3: 361 | NF3: 362 | NG3: 363 | NH3: 364 | NI3: 365 | NJ3: 366 | NK3: 367 | NL3: 368 | NM3: 369 | NN3: 370 | NO3: 371 | NP3: 372 | NQ3: 373 | NR3: 374 | NS3: 375 | NT3: 376 | NU3: 377 | NV3: 378 | NW3: 379 | NX3: 380 | NY3: 381 | NZ3: 382 | OA3: 383 | OB3: 384 | OC3: 385 | OD3: =OC3+1 -> 386 | OE3: 387 | OF3: 388 | OG3: 389 | OH3: 390 | OI3: 391 | OJ3: 392 | OK3: 393 | OL3: 394 | OM3: 395 | ON3: 396 | OO3: 397 | OP3: 398 | OQ3: 399 | OR3: 400 | OS3: 401 | OT3: 402 | OU3: 403 | OV3: 404 | OW3: 405 | OX3: 406 | OY3: 407 | OZ3: 408 | PA3: 409 | PB3: 410 | PC3: 411 | PD3: 412 | PE3: 413 | PF3: 414 | PG3: 415 | PH3: 416 | PI3: 417 | PJ3: 418 | PK3: 419 | PL3: 420 | PM3: 421 | PN3: 422 | PO3: 423 | PP3: 424 | PQ3: 425 | PR3: 426 | PS3: 427 | PT3: 428 | PU3: 429 | PV3: 430 | PW3: 431 | PX3: 432 | PY3: 433 | PZ3: 434 | QA3: 435 | QB3: 436 | QC3: 437 | QD3: 438 | QE3: 439 | QF3: 440 | QG3: 441 | QH3: 442 | QI3: 443 | QJ3: 444 | QK3: 445 | QL3: 446 | QM3: 447 | QN3: 448 | QO3: 449 | QP3: =QO3+1 -> 450 | QQ3: 451 | QR3: 452 | QS3: 453 | QT3: 454 | QU3: 455 | QV3: 456 | QW3: 457 | QX3: 458 | QY3: 459 | QZ3: 460 | RA3: 461 | RB3: 462 | RC3: 463 | RD3: 464 | RE3: 465 | RF3: 466 | RG3: 467 | RH3: 468 | RI3: 469 | RJ3: 470 | RK3: 471 | RL3: 472 | RM3: 473 | RN3: 474 | RO3: 475 | RP3: 476 | RQ3: 477 | RR3: 478 | RS3: 479 | RT3: 480 | RU3: 481 | RV3: 482 | RW3: 483 | RX3: 484 | RY3: 485 | RZ3: 486 | SA3: 487 | SB3: 488 | SC3: 489 | SD3: 490 | SE3: 491 | SF3: 492 | SG3: 493 | SH3: 494 | SI3: 495 | SJ3: 496 | SK3: 497 | SL3: 498 | SM3: 499 | SN3: 500 | SO3: 501 | SP3: 502 | SQ3: 503 | SR3: 504 | SS3: 505 | ST3: 506 | SU3: 507 | SV3: 508 | SW3: 509 | SX3: 510 | SY3: 511 | SZ3: 512 | TA3: 513 | TB3: =TA3+1 -> 514 | TC3: 515 | TD3: 516 | TE3: 517 | TF3: 518 | TG3: 519 | TH3: 520 | TI3: 521 | TJ3: 522 | TK3: 523 | TL3: 524 | TM3: 525 | TN3: 526 | TO3: 527 | TP3: 528 | TQ3: 529 | TR3: 530 | TS3: 531 | TT3: 532 | TU3: 533 | TV3: 534 | TW3: 535 | TX3: 536 | TY3: 537 | TZ3: 538 | UA3: 539 | UB3: 540 | UC3: 541 | UD3: 542 | UE3: 543 | UF3: 544 | UG3: 545 | UH3: 546 | UI3: 547 | UJ3: 548 | UK3: 549 | UL3: 550 | UM3: 551 | UN3: 552 | UO3: 553 | UP3: 554 | UQ3: 555 | UR3: 556 | US3: =UR3+1 -> 557 | UT3: =US3+1 -> 558 | UU3: =UT3+1 -> 559 | UV3: =UU3+1 -> 560 | UW3: 561 | UX3: 562 | UY3: 563 | UZ3: 564 | VA3: 565 | VB3: 566 | VC3: 567 | VD3: 568 | VE3: 569 | VF3: 570 | VG3: 571 | VH3: 572 | VI3: 573 | VJ3: 574 | VK3: 575 | VL3: 576 | VM3: 577 | VN3: 578 | VO3: 579 | VP3: 580 | VQ3: 581 | VR3: 582 | VS3: 583 | VT3: 584 | VU3: 585 | VV3: 586 | VW3: 587 | VX3: 588 | VY3: 589 | VZ3: 590 | WA3: 591 | WB3: 592 | WC3: 593 | WD3: 594 | WE3: 595 | WF3: 596 | WG3: 597 | WH3: 598 | WI3: 599 | WJ3: 600 | WK3: 601 | WL3: 602 | WM3: 603 | WN3: 604 | WO3: 605 | WP3: 606 | WQ3: 607 | WR3: 608 | WS3: 609 | WT3: 610 | WU3: 611 | WV3: 612 | WW3: 613 | WX3: 614 | WY3: 615 | WZ3: 616 | XA3: 617 | XB3: 618 | XC3: 619 | XD3: 620 | XE3: 621 | XF3: 622 | XG3: 623 | XH3: =XG3+1 -> 624 | XI3: 625 | XJ3: 626 | XK3: 627 | XL3: 628 | XM3: 629 | XN3: 630 | XO3: 631 | XP3: 632 | XQ3: 633 | XR3: 634 | XS3: 635 | XT3: 636 | XU3: 637 | XV3: 638 | XW3: 639 | XX3: 640 | XY3: 641 | XZ3: 642 | YA3: 643 | YB3: 644 | YC3: 645 | YD3: 646 | YE3: 647 | YF3: 648 | YG3: 649 | YH3: 650 | YI3: 651 | YJ3: 652 | YK3: 653 | YL3: 654 | YM3: 655 | YN3: 656 | YO3: 657 | YP3: 658 | YQ3: 659 | YR3: 660 | YS3: 661 | YT3: 662 | YU3: 663 | YV3: 664 | YW3: 665 | YX3: 666 | YY3: 667 | YZ3: 668 | ZA3: 669 | ZB3: 670 | ZC3: 671 | ZD3: 672 | ZE3: 673 | ZF3: 674 | ZG3: 675 | ZH3: 676 | ZI3: 677 | ZJ3: 678 | ZK3: 679 | ZL3: 680 | ZM3: 681 | ZN3: 682 | ZO3: 683 | ZP3: 684 | ZQ3: 685 | ZR3: 686 | ZS3: 687 | ZT3: =ZS3+1 -> 688 | ZU3: =ZT3+1 -> 689 | ZV3: =ZU3+1 -> 690 | ZW3: =ZV3+1 -> 691 | ZX3: =ZW3+1 -> 692 | ZY3: 693 | ZZ3: 694 | AAA3: 695 | AAB3: 696 | AAC3: 697 | AAD3: 698 | AAE3: 699 | AAF3: 700 | AAG3: 701 | AAH3: 702 | AAI3: 703 | AAJ3: 704 | AAK3: 705 | AAL3: 706 | AAM3: 707 | AAN3: 708 | AAO3: 709 | AAP3: 710 | AAQ3: 711 | AAR3: 712 | AAS3: 713 | AAT3: 714 | AAU3: 715 | AAV3: 716 | AAW3: 717 | AAX3: 718 | AAY3: 719 | AAZ3: 720 | ABA3: 721 | ABB3: 722 | ABC3: 723 | ABD3: 724 | ABE3: 725 | ABF3: 726 | ABG3: 727 | ABH3: 728 | ABI3: 729 | ABJ3: 730 | ABK3: 731 | ABL3: 732 | ABM3: 733 | ABN3: 734 | ABO3: 735 | ABP3: 736 | ABQ3: 737 | ABR3: 738 | ABS3: 739 | ABT3: 740 | ABU3: 741 | ABV3: 742 | ABW3: 743 | ABX3: 744 | ABY3: 745 | ABZ3: 746 | ACA3: 747 | ACB3: 748 | ACC3: 749 | ACD3: 750 | ACE3: 751 | ACF3: 752 | ACG3: 753 | ACH3: 754 | ACI3: 755 | ACJ3: =ACI3+1 -> 756 | ACK3: 757 | ACL3: 758 | ACM3: 759 | ACN3: 760 | ACO3: 761 | ACP3: 762 | ACQ3: 763 | ACR3: 764 | ACS3: 765 | ACT3: 766 | ACU3: 767 | ACV3: 768 | ACW3: 769 | ACX3: 770 | ACY3: 771 | ACZ3: 772 | ADA3: 773 | ADB3: 774 | ADC3: 775 | ADD3: 776 | ADE3: 777 | ADF3: 778 | ADG3: 779 | ADH3: 780 | ADI3: 781 | ADJ3: 782 | ADK3: 783 | ADL3: 784 | ADM3: 785 | ADN3: 786 | ADO3: 787 | ADP3: 788 | ADQ3: 789 | ADR3: 790 | ADS3: 791 | ADT3: 792 | ADU3: 793 | ADV3: 794 | ADW3: 795 | ADX3: 796 | ADY3: 797 | ADZ3: 798 | AEA3: 799 | AEB3: 800 | AEC3: 801 | AED3: 802 | AEE3: 803 | AEF3: 804 | AEG3: 805 | AEH3: 806 | AEI3: 807 | AEJ3: 808 | AEK3: 809 | AEL3: 810 | AEM3: 811 | AEN3: 812 | AEO3: 813 | AEP3: 814 | AEQ3: 815 | AER3: 816 | AES3: 817 | AET3: 818 | AEU3: 819 | AEV3: =AEU3+1 -> 820 | AEW3: 821 | AEX3: 822 | AEY3: 823 | AEZ3: 824 | AFA3: 825 | AFB3: 826 | AFC3: 827 | AFD3: 828 | AFE3: 829 | AFF3: 830 | AFG3: 831 | AFH3: 832 | AFI3: 833 | AFJ3: 834 | AFK3: 835 | AFL3: 836 | AFM3: 837 | AFN3: 838 | AFO3: 839 | AFP3: 840 | AFQ3: 841 | AFR3: 842 | AFS3: 843 | AFT3: 844 | AFU3: 845 | AFV3: 846 | AFW3: 847 | AFX3: 848 | AFY3: 849 | AFZ3: 850 | AGA3: 851 | AGB3: 852 | AGC3: 853 | AGD3: 854 | AGE3: 855 | AGF3: 856 | AGG3: 857 | AGH3: 858 | AGI3: 859 | AGJ3: 860 | AGK3: 861
B4: Construction Period | E4: ='Solar Carrying Charge'!F33 -> 1 | I4: =I3<=$E$4 -> TRUE | J4: FALSE | K4: FALSE | L4: FALSE | M4: FALSE | N4: FALSE | O4: FALSE | P4: FALSE | Q4: FALSE | R4: FALSE | S4: FALSE | T4: FALSE | U4: FALSE | V4: FALSE | W4: FALSE | X4: FALSE | Y4: FALSE | Z4: FALSE | AA4: FALSE | AB4: FALSE | AC4: FALSE | AD4: FALSE | AE4: FALSE | AF4: FALSE | AG4: FALSE | AH4: FALSE | AI4: FALSE | AJ4: FALSE | AK4: FALSE | AL4: FALSE | AM4: FALSE | AN4: FALSE | AO4: FALSE | AP4: FALSE | AQ4: FALSE | AR4: FALSE | AS4: FALSE | AT4: FALSE | AU4: FALSE | AV4: FALSE | AW4: FALSE | AX4: FALSE | AY4: FALSE | AZ4: FALSE | BA4: FALSE | BB4: FALSE | BC4: FALSE | BD4: FALSE | BE4: FALSE | BF4: FALSE | BG4: FALSE | BH4: FALSE | BI4: FALSE | BJ4: FALSE | BK4: FALSE | BL4: FALSE | BM4: FALSE | BN4: FALSE | BO4: FALSE | BP4: FALSE | BQ4: FALSE | BR4: FALSE | BS4: FALSE | BT4: FALSE | BU4: =BU3<=$E$4 -> FALSE | BV4: FALSE | BW4: FALSE | BX4: FALSE | BY4: FALSE | BZ4: FALSE | CA4: FALSE | CB4: FALSE | CC4: FALSE | CD4: FALSE | CE4: FALSE | CF4: FALSE | CG4: FALSE | CH4: FALSE | CI4: FALSE | CJ4: FALSE | CK4: FALSE | CL4: FALSE | CM4: FALSE | CN4: FALSE | CO4: FALSE | CP4: FALSE | CQ4: FALSE | CR4: FALSE | CS4: FALSE | CT4: FALSE | CU4: FALSE | CV4: FALSE | CW4: FALSE | CX4: FALSE | CY4: FALSE | CZ4: FALSE | DA4: FALSE | DB4: FALSE | DC4: FALSE | DD4: FALSE | DE4: FALSE | DF4: FALSE | DG4: FALSE | DH4: FALSE | DI4: FALSE | DJ4: FALSE | DK4: FALSE | DL4: FALSE | DM4: FALSE | DN4: FALSE | DO4: FALSE | DP4: FALSE | DQ4: FALSE | DR4: FALSE | DS4: FALSE | DT4: FALSE | DU4: FALSE | DV4: FALSE | DW4: FALSE | DX4: FALSE | DY4: FALSE | DZ4: FALSE | EA4: FALSE | EB4: FALSE | EC4: FALSE | ED4: FALSE | EE4: FALSE | EF4: FALSE | EG4: =EG3<=$E$4 -> FALSE | EH4: FALSE | EI4: FALSE | EJ4: FALSE | EK4: FALSE | EL4: FALSE | EM4: FALSE | EN4: FALSE | EO4: FALSE | EP4: FALSE | EQ4: FALSE | ER4: FALSE | ES4: FALSE | ET4: FALSE | EU4: FALSE | EV4: FALSE | EW4: FALSE | EX4: FALSE | EY4: FALSE | EZ4: FALSE | FA4: FALSE | FB4: FALSE | FC4: FALSE | FD4: FALSE | FE4: FALSE | FF4: FALSE | FG4: FALSE | FH4: FALSE | FI4: FALSE | FJ4: FALSE | FK4: FALSE | FL4: FALSE | FM4: FALSE | FN4: FALSE | FO4: FALSE | FP4: FALSE | FQ4: FALSE | FR4: FALSE | FS4: FALSE | FT4: FALSE | FU4: FALSE | FV4: FALSE | FW4: FALSE | FX4: FALSE | FY4: FALSE | FZ4: FALSE | GA4: FALSE | GB4: FALSE | GC4: FALSE | GD4: FALSE | GE4: FALSE | GF4: FALSE | GG4: FALSE | GH4: FALSE | GI4: FALSE | GJ4: FALSE | GK4: FALSE | GL4: FALSE | GM4: FALSE | GN4: FALSE | GO4: FALSE | GP4: FALSE | GQ4: FALSE | GR4: FALSE | GS4: =GS3<=$E$4 -> FALSE | GT4: FALSE | GU4: FALSE | GV4: FALSE | GW4: FALSE | GX4: FALSE | GY4: FALSE | GZ4: FALSE | HA4: FALSE | HB4: FALSE | HC4: FALSE | HD4: FALSE | HE4: FALSE | HF4: FALSE | HG4: FALSE | HH4: FALSE | HI4: FALSE | HJ4: FALSE | HK4: FALSE | HL4: FALSE | HM4: FALSE | HN4: FALSE | HO4: FALSE | HP4: FALSE | HQ4: FALSE | HR4: FALSE | HS4: FALSE | HT4: FALSE | HU4: FALSE | HV4: FALSE | HW4: FALSE | HX4: FALSE | HY4: FALSE | HZ4: FALSE | IA4: FALSE | IB4: FALSE | IC4: FALSE | ID4: FALSE | IE4: FALSE | IF4: FALSE | IG4: FALSE | IH4: FALSE | II4: FALSE | IJ4: FALSE | IK4: FALSE | IL4: FALSE | IM4: FALSE | IN4: FALSE | IO4: FALSE | IP4: FALSE | IQ4: FALSE | IR4: FALSE | IS4: FALSE | IT4: FALSE | IU4: FALSE | IV4: FALSE | IW4: FALSE | IX4: FALSE | IY4: FALSE | IZ4: FALSE | JA4: FALSE | JB4: FALSE | JC4: FALSE | JD4: FALSE | JE4: =JE3<=$E$4 -> FALSE | JF4: FALSE | JG4: FALSE | JH4: FALSE | JI4: FALSE | JJ4: FALSE | JK4: FALSE | JL4: FALSE | JM4: FALSE | JN4: FALSE | JO4: FALSE | JP4: FALSE | JQ4: FALSE | JR4: FALSE | JS4: FALSE | JT4: FALSE | JU4: FALSE | JV4: FALSE | JW4: FALSE | JX4: FALSE | JY4: FALSE | JZ4: FALSE | KA4: FALSE | KB4: FALSE | KC4: FALSE | KD4: FALSE | KE4: FALSE | KF4: FALSE | KG4: FALSE | KH4: FALSE | KI4: FALSE | KJ4: FALSE | KK4: FALSE | KL4: FALSE | KM4: FALSE | KN4: FALSE | KO4: FALSE | KP4: FALSE | KQ4: FALSE | KR4: FALSE | KS4: FALSE | KT4: FALSE | KU4: FALSE | KV4: FALSE | KW4: FALSE | KX4: FALSE | KY4: FALSE | KZ4: FALSE | LA4: FALSE | LB4: FALSE | LC4: FALSE | LD4: FALSE | LE4: FALSE | LF4: FALSE | LG4: FALSE | LH4: FALSE | LI4: FALSE | LJ4: FALSE | LK4: FALSE | LL4: FALSE | LM4: FALSE | LN4: FALSE | LO4: FALSE | LP4: FALSE | LQ4: =LQ3<=$E$4 -> FALSE | LR4: FALSE | LS4: FALSE | LT4: FALSE | LU4: FALSE | LV4: FALSE | LW4: FALSE | LX4: FALSE | LY4: FALSE | LZ4: FALSE | MA4: FALSE | MB4: FALSE | MC4: FALSE | MD4: FALSE | ME4: FALSE | MF4: FALSE | MG4: FALSE | MH4: FALSE | MI4: FALSE | MJ4: FALSE | MK4: FALSE | ML4: FALSE | MM4: FALSE | MN4: FALSE | MO4: FALSE | MP4: FALSE | MQ4: FALSE | MR4: FALSE | MS4: FALSE | MT4: FALSE | MU4: FALSE | MV4: FALSE | MW4: FALSE | MX4: FALSE | MY4: FALSE | MZ4: FALSE | NA4: FALSE | NB4: FALSE | NC4: FALSE | ND4: FALSE | NE4: FALSE | NF4: FALSE | NG4: FALSE | NH4: FALSE | NI4: FALSE | NJ4: FALSE | NK4: FALSE | NL4: FALSE | NM4: FALSE | NN4: FALSE | NO4: FALSE | NP4: FALSE | NQ4: FALSE | NR4: FALSE | NS4: FALSE | NT4: FALSE | NU4: FALSE | NV4: FALSE | NW4: FALSE | NX4: FALSE | NY4: FALSE | NZ4: FALSE | OA4: FALSE | OB4: FALSE | OC4: =OC3<=$E$4 -> FALSE | OD4: FALSE | OE4: FALSE | OF4: FALSE | OG4: FALSE | OH4: FALSE | OI4: FALSE | OJ4: FALSE | OK4: FALSE | OL4: FALSE | OM4: FALSE | ON4: FALSE | OO4: FALSE | OP4: FALSE | OQ4: FALSE | OR4: FALSE | OS4: FALSE | OT4: FALSE | OU4: FALSE | OV4: FALSE | OW4: FALSE | OX4: FALSE | OY4: FALSE | OZ4: FALSE | PA4: FALSE | PB4: FALSE | PC4: FALSE | PD4: FALSE | PE4: FALSE | PF4: FALSE | PG4: FALSE | PH4: FALSE | PI4: FALSE | PJ4: FALSE | PK4: FALSE | PL4: FALSE | PM4: FALSE | PN4: FALSE | PO4: FALSE | PP4: FALSE | PQ4: FALSE | PR4: FALSE | PS4: FALSE | PT4: FALSE | PU4: FALSE | PV4: FALSE | PW4: FALSE | PX4: FALSE | PY4: FALSE | PZ4: FALSE | QA4: FALSE | QB4: FALSE | QC4: FALSE | QD4: FALSE | QE4: FALSE | QF4: FALSE | QG4: FALSE | QH4: FALSE | QI4: FALSE | QJ4: FALSE | QK4: FALSE | QL4: FALSE | QM4: FALSE | QN4: FALSE | QO4: =QO3<=$E$4 -> FALSE | QP4: FALSE | QQ4: FALSE | QR4: FALSE | QS4: FALSE | QT4: FALSE | QU4: FALSE | QV4: FALSE | QW4: FALSE | QX4: FALSE | QY4: FALSE | QZ4: FALSE | RA4: FALSE | RB4: FALSE | RC4: FALSE | RD4: FALSE | RE4: FALSE | RF4: FALSE | RG4: FALSE | RH4: FALSE | RI4: FALSE | RJ4: FALSE | RK4: FALSE | RL4: FALSE | RM4: FALSE | RN4: FALSE | RO4: FALSE | RP4: FALSE | RQ4: FALSE | RR4: FALSE | RS4: FALSE | RT4: FALSE | RU4: FALSE | RV4: FALSE | RW4: FALSE | RX4: FALSE | RY4: FALSE | RZ4: FALSE | SA4: FALSE | SB4: FALSE | SC4: FALSE | SD4: FALSE | SE4: FALSE | SF4: FALSE | SG4: FALSE | SH4: FALSE | SI4: FALSE | SJ4: FALSE | SK4: FALSE | SL4: FALSE | SM4: FALSE | SN4: FALSE | SO4: FALSE | SP4: FALSE | SQ4: FALSE | SR4: FALSE | SS4: FALSE | ST4: FALSE | SU4: FALSE | SV4: FALSE | SW4: FALSE | SX4: FALSE | SY4: FALSE | SZ4: FALSE | TA4: =TA3<=$E$4 -> FALSE | TB4: FALSE | TC4: FALSE | TD4: FALSE | TE4: FALSE | TF4: FALSE | TG4: FALSE | TH4: FALSE | TI4: FALSE | TJ4: FALSE | TK4: FALSE | TL4: FALSE | TM4: FALSE | TN4: FALSE | TO4: FALSE | TP4: FALSE | TQ4: FALSE | TR4: FALSE | TS4: FALSE | TT4: FALSE | TU4: FALSE | TV4: FALSE | TW4: FALSE | TX4: FALSE | TY4: FALSE | TZ4: FALSE | UA4: FALSE | UB4: FALSE | UC4: FALSE | UD4: FALSE | UE4: FALSE | UF4: FALSE | UG4: FALSE | UH4: FALSE | UI4: FALSE | UJ4: FALSE | UK4: FALSE | UL4: FALSE | UM4: FALSE | UN4: FALSE | UO4: FALSE | UP4: FALSE | UQ4: FALSE | UR4: FALSE | US4: FALSE | UT4: FALSE | UU4: FALSE | UV4: FALSE | UW4: FALSE | UX4: FALSE | UY4: FALSE | UZ4: FALSE | VA4: FALSE | VB4: FALSE | VC4: FALSE | VD4: FALSE | VE4: FALSE | VF4: FALSE | VG4: FALSE | VH4: FALSE | VI4: FALSE | VJ4: FALSE | VK4: FALSE | VL4: FALSE | VM4: =VM3<=$E$4 -> FALSE | VN4: FALSE | VO4: FALSE | VP4: FALSE | VQ4: FALSE | VR4: FALSE | VS4: FALSE | VT4: FALSE | VU4: FALSE | VV4: FALSE | VW4: FALSE | VX4: FALSE | VY4: FALSE | VZ4: FALSE | WA4: FALSE | WB4: FALSE | WC4: FALSE | WD4: FALSE | WE4: FALSE | WF4: FALSE | WG4: FALSE | WH4: FALSE | WI4: FALSE | WJ4: FALSE | WK4: FALSE | WL4: FALSE | WM4: FALSE | WN4: FALSE | WO4: FALSE | WP4: FALSE | WQ4: FALSE | WR4: FALSE | WS4: FALSE | WT4: FALSE | WU4: FALSE | WV4: FALSE | WW4: FALSE | WX4: FALSE | WY4: FALSE | WZ4: FALSE | XA4: FALSE | XB4: FALSE | XC4: FALSE | XD4: FALSE | XE4: FALSE | XF4: FALSE | XG4: FALSE | XH4: FALSE | XI4: FALSE | XJ4: FALSE | XK4: FALSE | XL4: FALSE | XM4: FALSE | XN4: FALSE | XO4: FALSE | XP4: FALSE | XQ4: FALSE | XR4: FALSE | XS4: FALSE | XT4: FALSE | XU4: FALSE | XV4: FALSE | XW4: FALSE | XX4: FALSE | XY4: =XY3<=$E$4 -> FALSE | XZ4: FALSE | YA4: FALSE | YB4: FALSE | YC4: FALSE | YD4: FALSE | YE4: FALSE | YF4: FALSE | YG4: FALSE | YH4: FALSE | YI4: FALSE | YJ4: FALSE | YK4: FALSE | YL4: FALSE | YM4: FALSE | YN4: FALSE | YO4: FALSE | YP4: FALSE | YQ4: FALSE | YR4: FALSE | YS4: FALSE | YT4: FALSE | YU4: FALSE | YV4: FALSE | YW4: FALSE | YX4: FALSE | YY4: FALSE | YZ4: FALSE | ZA4: FALSE | ZB4: FALSE | ZC4: FALSE | ZD4: FALSE | ZE4: FALSE | ZF4: FALSE | ZG4: FALSE | ZH4: FALSE | ZI4: FALSE | ZJ4: FALSE | ZK4: FALSE | ZL4: FALSE | ZM4: FALSE | ZN4: FALSE | ZO4: FALSE | ZP4: FALSE | ZQ4: FALSE | ZR4: FALSE | ZS4: FALSE | ZT4: FALSE | ZU4: FALSE | ZV4: FALSE | ZW4: FALSE | ZX4: FALSE | ZY4: FALSE | ZZ4: FALSE | AAA4: FALSE | AAB4: FALSE | AAC4: FALSE | AAD4: FALSE | AAE4: FALSE | AAF4: FALSE | AAG4: FALSE | AAH4: FALSE | AAI4: FALSE | AAJ4: FALSE | AAK4: =AAK3<=$E$4 -> FALSE | AAL4: FALSE | AAM4: FALSE | AAN4: FALSE | AAO4: FALSE | AAP4: FALSE | AAQ4: FALSE | AAR4: FALSE | AAS4: FALSE | AAT4: FALSE | AAU4: FALSE | AAV4: FALSE | AAW4: FALSE | AAX4: FALSE | AAY4: FALSE | AAZ4: FALSE | ABA4: FALSE | ABB4: FALSE | ABC4: FALSE | ABD4: FALSE | ABE4: FALSE | ABF4: FALSE | ABG4: FALSE | ABH4: FALSE | ABI4: FALSE | ABJ4: FALSE | ABK4: FALSE | ABL4: FALSE | ABM4: FALSE | ABN4: FALSE | ABO4: FALSE | ABP4: FALSE | ABQ4: FALSE | ABR4: FALSE | ABS4: FALSE | ABT4: FALSE | ABU4: FALSE | ABV4: FALSE | ABW4: FALSE | ABX4: FALSE | ABY4: FALSE | ABZ4: FALSE | ACA4: FALSE | ACB4: FALSE | ACC4: FALSE | ACD4: FALSE | ACE4: FALSE | ACF4: FALSE | ACG4: FALSE | ACH4: FALSE | ACI4: FALSE | ACJ4: FALSE | ACK4: FALSE | ACL4: FALSE | ACM4: FALSE | ACN4: FALSE | ACO4: FALSE | ACP4: FALSE | ACQ4: FALSE | ACR4: FALSE | ACS4: FALSE | ACT4: FALSE | ACU4: FALSE | ACV4: FALSE | ACW4: =ACW3<=$E$4 -> FALSE | ACX4: FALSE | ACY4: FALSE | ACZ4: FALSE | ADA4: FALSE | ADB4: FALSE | ADC4: FALSE | ADD4: FALSE | ADE4: FALSE | ADF4: FALSE | ADG4: FALSE | ADH4: FALSE | ADI4: FALSE | ADJ4: FALSE | ADK4: FALSE | ADL4: FALSE | ADM4: FALSE | ADN4: FALSE | ADO4: FALSE | ADP4: FALSE | ADQ4: FALSE | ADR4: FALSE | ADS4: FALSE | ADT4: FALSE | ADU4: FALSE | ADV4: FALSE | ADW4: FALSE | ADX4: FALSE | ADY4: FALSE | ADZ4: FALSE | AEA4: FALSE | AEB4: FALSE | AEC4: FALSE | AED4: FALSE | AEE4: FALSE | AEF4: FALSE | AEG4: FALSE | AEH4: FALSE | AEI4: FALSE | AEJ4: FALSE | AEK4: FALSE | AEL4: FALSE | AEM4: FALSE | AEN4: FALSE | AEO4: FALSE | AEP4: FALSE | AEQ4: FALSE | AER4: FALSE | AES4: FALSE | AET4: FALSE | AEU4: FALSE | AEV4: FALSE | AEW4: FALSE | AEX4: FALSE | AEY4: FALSE | AEZ4: FALSE | AFA4: FALSE | AFB4: FALSE | AFC4: FALSE | AFD4: FALSE | AFE4: FALSE | AFF4: FALSE | AFG4: FALSE | AFH4: FALSE | AFI4: =AFI3<=$E$4 -> FALSE | AFJ4: FALSE | AFK4: FALSE | AFL4: FALSE | AFM4: FALSE | AFN4: FALSE | AFO4: FALSE | AFP4: FALSE | AFQ4: FALSE | AFR4: FALSE | AFS4: FALSE | AFT4: FALSE | AFU4: FALSE | AFV4: FALSE | AFW4: FALSE | AFX4: FALSE | AFY4: FALSE | AFZ4: FALSE | AGA4: FALSE | AGB4: FALSE | AGC4: FALSE | AGD4: FALSE | AGE4: FALSE | AGF4: FALSE | AGG4: FALSE | AGH4: FALSE | AGI4: FALSE | AGJ4: FALSE | AGK4: FALSE
B5: Months per Period/Construction and Operation | E5: ='Solar Carrying Charge'!F14 -> 1 | F5: ='Solar Carrying Charge'!F15 -> 12 | H5: 1 | I5: =IF(I4,$E$5,$F$5) -> 1 | J5: 12 | K5: 12 | L5: 12 | M5: 12 | N5: 12 | O5: 12 | P5: 12 | Q5: 12 | R5: 12 | S5: 12 | T5: 12 | U5: 12 | V5: 12 | W5: 12 | X5: 12 | Y5: 12 | Z5: 12 | AA5: 12 | AB5: 12 | AC5: 12 | AD5: 12 | AE5: 12 | AF5: 12 | AG5: 12 | AH5: 12 | AI5: 12 | AJ5: 12 | AK5: 12 | AL5: 12 | AM5: 12 | AN5: 12 | AO5: 12 | AP5: 12 | AQ5: 12 | AR5: 12 | AS5: 12 | AT5: 12 | AU5: 12 | AV5: 12 | AW5: 12 | AX5: 12 | AY5: 12 | AZ5: 12 | BA5: 12 | BB5: 12 | BC5: 12 | BD5: 12 | BE5: 12 | BF5: 12 | BG5: 12 | BH5: 12 | BI5: 12 | BJ5: 12 | BK5: 12 | BL5: 12 | BM5: 12 | BN5: 12 | BO5: 12 | BP5: 12 | BQ5: 12 | BR5: 12 | BS5: 12 | BT5: 12 | BU5: =IF(BU4,$E$5,$F$5) -> 12 | BV5: 12 | BW5: 12 | BX5: 12 | BY5: 12 | BZ5: 12 | CA5: 12 | CB5: 12 | CC5: 12 | CD5: 12 | CE5: 12 | CF5: 12 | CG5: 12 | CH5: 12 | CI5: 12 | CJ5: 12 | CK5: 12 | CL5: 12 | CM5: 12 | CN5: 12 | CO5: 12 | CP5: 12 | CQ5: 12 | CR5: 12 | CS5: 12 | CT5: 12 | CU5: 12 | CV5: 12 | CW5: 12 | CX5: 12 | CY5: 12 | CZ5: 12 | DA5: 12 | DB5: 12 | DC5: 12 | DD5: 12 | DE5: 12 | DF5: 12 | DG5: 12 | DH5: 12 | DI5: 12 | DJ5: 12 | DK5: 12 | DL5: 12 | DM5: 12 | DN5: 12 | DO5: 12 | DP5: 12 | DQ5: 12 | DR5: 12 | DS5: 12 | DT5: 12 | DU5: 12 | DV5: 12 | DW5: 12 | DX5: 12 | DY5: 12 | DZ5: 12 | EA5: 12 | EB5: 12 | EC5: 12 | ED5: 12 | EE5: 12 | EF5: 12 | EG5: =IF(EG4,$E$5,$F$5) -> 12 | EH5: 12 | EI5: 12 | EJ5: 12 | EK5: 12 | EL5: 12 | EM5: 12 | EN5: 12 | EO5: 12 | EP5: 12 | EQ5: 12 | ER5: 12 | ES5: 12 | ET5: 12 | EU5: 12 | EV5: 12 | EW5: 12 | EX5: 12 | EY5: 12 | EZ5: 12 | FA5: 12 | FB5: 12 | FC5: 12 | FD5: 12 | FE5: 12 | FF5: 12 | FG5: 12 | FH5: 12 | FI5: 12 | FJ5: 12 | FK5: 12 | FL5: 12 | FM5: 12 | FN5: 12 | FO5: 12 | FP5: 12 | FQ5: 12 | FR5: 12 | FS5: 12 | FT5: 12 | FU5: 12 | FV5: 12 | FW5: 12 | FX5: 12 | FY5: 12 | FZ5: 12 | GA5: 12 | GB5: 12 | GC5: 12 | GD5: 12 | GE5: 12 | GF5: 12 | GG5: 12 | GH5: 12 | GI5: 12 | GJ5: 12 | GK5: 12 | GL5: 12 | GM5: 12 | GN5: 12 | GO5: 12 | GP5: 12 | GQ5: 12 | GR5: 12 | GS5: =IF(GS4,$E$5,$F$5) -> 12 | GT5: 12 | GU5: 12 | GV5: 12 | GW5: 12 | GX5: 12 | GY5: 12 | GZ5: 12 | HA5: 12 | HB5: 12 | HC5: 12 | HD5: 12 | HE5: 12 | HF5: 12 | HG5: 12 | HH5: 12 | HI5: 12 | HJ5: 12 | HK5: 12 | HL5: 12 | HM5: 12 | HN5: 12 | HO5: 12 | HP5: 12 | HQ5: 12 | HR5: 12 | HS5: 12 | HT5: 12 | HU5: 12 | HV5: 12 | HW5: 12 | HX5: 12 | HY5: 12 | HZ5: 12 | IA5: 12 | IB5: 12 | IC5: 12 | ID5: 12 | IE5: 12 | IF5: 12 | IG5: 12 | IH5: 12 | II5: 12 | IJ5: 12 | IK5: 12 | IL5: 12 | IM5: 12 | IN5: 12 | IO5: 12 | IP5: 12 | IQ5: 12 | IR5: 12 | IS5: 12 | IT5: 12 | IU5: 12 | IV5: 12 | IW5: 12 | IX5: 12 | IY5: 12 | IZ5: 12 | JA5: 12 | JB5: 12 | JC5: 12 | JD5: 12 | JE5: =IF(JE4,$E$5,$F$5) -> 12 | JF5: 12 | JG5: 12 | JH5: 12 | JI5: 12 | JJ5: 12 | JK5: 12 | JL5: 12 | JM5: 12 | JN5: 12 | JO5: 12 | JP5: 12 | JQ5: 12 | JR5: 12 | JS5: 12 | JT5: 12 | JU5: 12 | JV5: 12 | JW5: 12 | JX5: 12 | JY5: 12 | JZ5: 12 | KA5: 12 | KB5: 12 | KC5: 12 | KD5: 12 | KE5: 12 | KF5: 12 | KG5: 12 | KH5: 12 | KI5: 12 | KJ5: 12 | KK5: 12 | KL5: 12 | KM5: 12 | KN5: 12 | KO5: 12 | KP5: 12 | KQ5: 12 | KR5: 12 | KS5: 12 | KT5: 12 | KU5: 12 | KV5: 12 | KW5: 12 | KX5: 12 | KY5: 12 | KZ5: 12 | LA5: 12 | LB5: 12 | LC5: 12 | LD5: 12 | LE5: 12 | LF5: 12 | LG5: 12 | LH5: 12 | LI5: 12 | LJ5: 12 | LK5: 12 | LL5: 12 | LM5: 12 | LN5: 12 | LO5: 12 | LP5: 12 | LQ5: =IF(LQ4,$E$5,$F$5) -> 12 | LR5: 12 | LS5: 12 | LT5: 12 | LU5: 12 | LV5: 12 | LW5: 12 | LX5: 12 | LY5: 12 | LZ5: 12 | MA5: 12 | MB5: 12 | MC5: 12 | MD5: 12 | ME5: 12 | MF5: 12 | MG5: 12 | MH5: 12 | MI5: 12 | MJ5: 12 | MK5: 12 | ML5: 12 | MM5: 12 | MN5: 12 | MO5: 12 | MP5: 12 | MQ5: 12 | MR5: 12 | MS5: 12 | MT5: 12 | MU5: 12 | MV5: 12 | MW5: 12 | MX5: 12 | MY5: 12 | MZ5: 12 | NA5: 12 | NB5: 12 | NC5: 12 | ND5: 12 | NE5: 12 | NF5: 12 | NG5: 12 | NH5: 12 | NI5: 12 | NJ5: 12 | NK5: 12 | NL5: 12 | NM5: 12 | NN5: 12 | NO5: 12 | NP5: 12 | NQ5: 12 | NR5: 12 | NS5: 12 | NT5: 12 | NU5: 12 | NV5: 12 | NW5: 12 | NX5: 12 | NY5: 12 | NZ5: 12 | OA5: 12 | OB5: 12 | OC5: =IF(OC4,$E$5,$F$5) -> 12 | OD5: 12 | OE5: 12 | OF5: 12 | OG5: 12 | OH5: 12 | OI5: 12 | OJ5: 12 | OK5: 12 | OL5: 12 | OM5: 12 | ON5: 12 | OO5: 12 | OP5: 12 | OQ5: 12 | OR5: 12 | OS5: 12 | OT5: 12 | OU5: 12 | OV5: 12 | OW5: 12 | OX5: 12 | OY5: 12 | OZ5: 12 | PA5: 12 | PB5: 12 | PC5: 12 | PD5: 12 | PE5: 12 | PF5: 12 | PG5: 12 | PH5: 12 | PI5: 12 | PJ5: 12 | PK5: 12 | PL5: 12 | PM5: 12 | PN5: 12 | PO5: 12 | PP5: 12 | PQ5: 12 | PR5: 12 | PS5: 12 | PT5: 12 | PU5: 12 | PV5: 12 | PW5: 12 | PX5: 12 | PY5: 12 | PZ5: 12 | QA5: 12 | QB5: 12 | QC5: 12 | QD5: 12 | QE5: 12 | QF5: 12 | QG5: 12 | QH5: 12 | QI5: 12 | QJ5: 12 | QK5: 12 | QL5: 12 | QM5: 12 | QN5: 12 | QO5: =IF(QO4,$E$5,$F$5) -> 12 | QP5: 12 | QQ5: 12 | QR5: 12 | QS5: 12 | QT5: 12 | QU5: 12 | QV5: 12 | QW5: 12 | QX5: 12 | QY5: 12 | QZ5: 12 | RA5: 12 | RB5: 12 | RC5: 12 | RD5: 12 | RE5: 12 | RF5: 12 | RG5: 12 | RH5: 12 | RI5: 12 | RJ5: 12 | RK5: 12 | RL5: 12 | RM5: 12 | RN5: 12 | RO5: 12 | RP5: 12 | RQ5: 12 | RR5: 12 | RS5: 12 | RT5: 12 | RU5: 12 | RV5: 12 | RW5: 12 | RX5: 12 | RY5: 12 | RZ5: 12 | SA5: 12 | SB5: 12 | SC5: 12 | SD5: 12 | SE5: 12 | SF5: 12 | SG5: 12 | SH5: 12 | SI5: 12 | SJ5: 12 | SK5: 12 | SL5: 12 | SM5: 12 | SN5: 12 | SO5: 12 | SP5: 12 | SQ5: 12 | SR5: 12 | SS5: 12 | ST5: 12 | SU5: 12 | SV5: 12 | SW5: 12 | SX5: 12 | SY5: 12 | SZ5: 12 | TA5: =IF(TA4,$E$5,$F$5) -> 12 | TB5: 12 | TC5: 12 | TD5: 12 | TE5: 12 | TF5: 12 | TG5: 12 | TH5: 12 | TI5: 12 | TJ5: 12 | TK5: 12 | TL5: 12 | TM5: 12 | TN5: 12 | TO5: 12 | TP5: 12 | TQ5: 12 | TR5: 12 | TS5: 12 | TT5: 12 | TU5: 12 | TV5: 12 | TW5: 12 | TX5: 12 | TY5: 12 | TZ5: 12 | UA5: 12 | UB5: 12 | UC5: 12 | UD5: 12 | UE5: 12 | UF5: 12 | UG5: 12 | UH5: 12 | UI5: 12 | UJ5: 12 | UK5: 12 | UL5: 12 | UM5: 12 | UN5: 12 | UO5: 12 | UP5: 12 | UQ5: 12 | UR5: 12 | US5: 12 | UT5: 12 | UU5: 12 | UV5: 12 | UW5: 12 | UX5: 12 | UY5: 12 | UZ5: 12 | VA5: 12 | VB5: 12 | VC5: 12 | VD5: 12 | VE5: 12 | VF5: 12 | VG5: 12 | VH5: 12 | VI5: 12 | VJ5: 12 | VK5: 12 | VL5: 12 | VM5: =IF(VM4,$E$5,$F$5) -> 12 | VN5: 12 | VO5: 12 | VP5: 12 | VQ5: 12 | VR5: 12 | VS5: 12 | VT5: 12 | VU5: 12 | VV5: 12 | VW5: 12 | VX5: 12 | VY5: 12 | VZ5: 12 | WA5: 12 | WB5: 12 | WC5: 12 | WD5: 12 | WE5: 12 | WF5: 12 | WG5: 12 | WH5: 12 | WI5: 12 | WJ5: 12 | WK5: 12 | WL5: 12 | WM5: 12 | WN5: 12 | WO5: 12 | WP5: 12 | WQ5: 12 | WR5: 12 | WS5: 12 | WT5: 12 | WU5: 12 | WV5: 12 | WW5: 12 | WX5: 12 | WY5: 12 | WZ5: 12 | XA5: 12 | XB5: 12 | XC5: 12 | XD5: 12 | XE5: 12 | XF5: 12 | XG5: 12 | XH5: 12 | XI5: 12 | XJ5: 12 | XK5: 12 | XL5: 12 | XM5: 12 | XN5: 12 | XO5: 12 | XP5: 12 | XQ5: 12 | XR5: 12 | XS5: 12 | XT5: 12 | XU5: 12 | XV5: 12 | XW5: 12 | XX5: 12 | XY5: =IF(XY4,$E$5,$F$5) -> 12 | XZ5: 12 | YA5: 12 | YB5: 12 | YC5: 12 | YD5: 12 | YE5: 12 | YF5: 12 | YG5: 12 | YH5: 12 | YI5: 12 | YJ5: 12 | YK5: 12 | YL5: 12 | YM5: 12 | YN5: 12 | YO5: 12 | YP5: 12 | YQ5: 12 | YR5: 12 | YS5: 12 | YT5: 12 | YU5: 12 | YV5: 12 | YW5: 12 | YX5: 12 | YY5: 12 | YZ5: 12 | ZA5: 12 | ZB5: 12 | ZC5: 12 | ZD5: 12 | ZE5: 12 | ZF5: 12 | ZG5: 12 | ZH5: 12 | ZI5: 12 | ZJ5: 12 | ZK5: 12 | ZL5: 12 | ZM5: 12 | ZN5: 12 | ZO5: 12 | ZP5: 12 | ZQ5: 12 | ZR5: 12 | ZS5: 12 | ZT5: 12 | ZU5: 12 | ZV5: 12 | ZW5: 12 | ZX5: 12 | ZY5: 12 | ZZ5: 12 | AAA5: 12 | AAB5: 12 | AAC5: 12 | AAD5: 12 | AAE5: 12 | AAF5: 12 | AAG5: 12 | AAH5: 12 | AAI5: 12 | AAJ5: 12 | AAK5: =IF(AAK4,$E$5,$F$5) -> 12 | AAL5: 12 | AAM5: 12 | AAN5: 12 | AAO5: 12 | AAP5: 12 | AAQ5: 12 | AAR5: 12 | AAS5: 12 | AAT5: 12 | AAU5: 12 | AAV5: 12 | AAW5: 12 | AAX5: 12 | AAY5: 12 | AAZ5: 12 | ABA5: 12 | ABB5: 12 | ABC5: 12 | ABD5: 12 | ABE5: 12 | ABF5: 12 | ABG5: 12 | ABH5: 12 | ABI5: 12 | ABJ5: 12 | ABK5: 12 | ABL5: 12 | ABM5: 12 | ABN5: 12 | ABO5: 12 | ABP5: 12 | ABQ5: 12 | ABR5: 12 | ABS5: 12 | ABT5: 12 | ABU5: 12 | ABV5: 12 | ABW5: 12 | ABX5: 12 | ABY5: 12 | ABZ5: 12 | ACA5: 12 | ACB5: 12 | ACC5: 12 | ACD5: 12 | ACE5: 12 | ACF5: 12 | ACG5: 12 | ACH5: 12 | ACI5: 12 | ACJ5: 12 | ACK5: 12 | ACL5: 12 | ACM5: 12 | ACN5: 12 | ACO5: 12 | ACP5: 12 | ACQ5: 12 | ACR5: 12 | ACS5: 12 | ACT5: 12 | ACU5: 12 | ACV5: 12 | ACW5: =IF(ACW4,$E$5,$F$5) -> 12 | ACX5: 12 | ACY5: 12 | ACZ5: 12 | ADA5: 12 | ADB5: 12 | ADC5: 12 | ADD5: 12 | ADE5: 12 | ADF5: 12 | ADG5: 12 | ADH5: 12 | ADI5: 12 | ADJ5: 12 | ADK5: 12 | ADL5: 12 | ADM5: 12 | ADN5: 12 | ADO5: 12 | ADP5: 12 | ADQ5: 12 | ADR5: 12 | ADS5: 12 | ADT5: 12 | ADU5: 12 | ADV5: 12 | ADW5: 12 | ADX5: 12 | ADY5: 12 | ADZ5: 12 | AEA5: 12 | AEB5: 12 | AEC5: 12 | AED5: 12 | AEE5: 12 | AEF5: 12 | AEG5: 12 | AEH5: 12 | AEI5: 12 | AEJ5: 12 | AEK5: 12 | AEL5: 12 | AEM5: 12 | AEN5: 12 | AEO5: 12 | AEP5: 12 | AEQ5: 12 | AER5: 12 | AES5: 12 | AET5: 12 | AEU5: 12 | AEV5: 12 | AEW5: 12 | AEX5: 12 | AEY5: 12 | AEZ5: 12 | AFA5: 12 | AFB5: 12 | AFC5: 12 | AFD5: 12 | AFE5: 12 | AFF5: 12 | AFG5: 12 | AFH5: 12 | AFI5: =IF(AFI4,$E$5,$F$5) -> 12 | AFJ5: 12 | AFK5: 12 | AFL5: 12 | AFM5: 12 | AFN5: 12 | AFO5: 12 | AFP5: 12 | AFQ5: 12 | AFR5: 12 | AFS5: 12 | AFT5: 12 | AFU5: 12 | AFV5: 12 | AFW5: 12 | AFX5: 12 | AFY5: 12 | AFZ5: 12 | AGA5: 12 | AGB5: 12 | AGC5: 12 | AGD5: 12 | AGE5: 12 | AGF5: 12 | AGG5: 12 | AGH5: 12 | AGI5: 12 | AGJ5: 12 | AGK5: 12
B6: Start of Period (Need for XIRR and XNPV) | E6: ='Solar Carrying Charge'!F13 -> 2001-01-01 | H6: =E6 -> 2001-01-01 | I6: =H7+1 -> 2001-02-01 | J6: =I7+1 -> 2001-03-01 | K6: 2002-03-01 | L6: 2003-03-01 | M6: 2004-03-01 | N6: 2005-03-01 | O6: 2006-03-01 | P6: 2007-03-01 | Q6: 2008-03-01 | R6: 2009-03-01 | S6: 2010-03-01 | T6: 2011-03-01 | U6: 2012-03-01 | V6: 2013-03-01 | W6: 2014-03-01 | X6: 2015-03-01 | Y6: 2016-03-01 | Z6: 2017-03-01 | AA6: 2018-03-01 | AB6: 2019-03-01 | AC6: 2020-03-01 | AD6: 2021-03-01 | AE6: 2022-03-01 | AF6: 2023-03-01 | AG6: 2024-03-01 | AH6: 2025-03-01 | AI6: 2026-03-01 | AJ6: 2027-03-01 | AK6: 2028-03-01 | AL6: 2029-03-01 | AM6: 2030-03-01 | AN6: 2031-03-01 | AO6: 2032-03-01 | AP6: 2033-03-01 | AQ6: 2034-03-01 | AR6: 2035-03-01 | AS6: 2036-03-01 | AT6: 2037-03-01 | AU6: 2038-03-01 | AV6: 2039-03-01 | AW6: 2040-03-01 | AX6: 2041-03-01 | AY6: 2042-03-01 | AZ6: 2043-03-01 | BA6: 2044-03-01 | BB6: 2045-03-01 | BC6: 2046-03-01 | BD6: 2047-03-01 | BE6: 2048-03-01 | BF6: 2049-03-01 | BG6: 2050-03-01 | BH6: 2051-03-01 | BI6: 2052-03-01 | BJ6: 2053-03-01 | BK6: 2054-03-01 | BL6: 2055-03-01 | BM6: 2056-03-01 | BN6: 2057-03-01 | BO6: 2058-03-01 | BP6: 2059-03-01 | BQ6: 2060-03-01 | BR6: 2061-03-01 | BS6: 2062-03-01 | BT6: 2063-03-01 | BU6: 2064-03-01 | BV6: =BU7+1 -> 2065-03-01 | BW6: 2066-03-01 | BX6: 2067-03-01 | BY6: 2068-03-01 | BZ6: 2069-03-01 | CA6: 2070-03-01 | CB6: 2071-03-01 | CC6: 2072-03-01 | CD6: 2073-03-01 | CE6: 2074-03-01 | CF6: 2075-03-01 | CG6: 2076-03-01 | CH6: 2077-03-01 | CI6: 2078-03-01 | CJ6: 2079-03-01 | CK6: 2080-03-01 | CL6: 2081-03-01 | CM6: 2082-03-01 | CN6: 2083-03-01 | CO6: 2084-03-01 | CP6: 2085-03-01 | CQ6: 2086-03-01 | CR6: 2087-03-01 | CS6: 2088-03-01 | CT6: 2089-03-01 | CU6: 2090-03-01 | CV6: 2091-03-01 | CW6: 2092-03-01 | CX6: 2093-03-01 | CY6: 2094-03-01 | CZ6: 2095-03-01 | DA6: 2096-03-01 | DB6: 2097-03-01 | DC6: 2098-03-01 | DD6: 2099-03-01 | DE6: 2100-03-01 | DF6: 2101-03-01 | DG6: 2102-03-01 | DH6: 2103-03-01 | DI6: 2104-03-01 | DJ6: 2105-03-01 | DK6: 2106-03-01 | DL6: 2107-03-01 | DM6: 2108-03-01 | DN6: 2109-03-01 | DO6: 2110-03-01 | DP6: 2111-03-01 | DQ6: 2112-03-01 | DR6: 2113-03-01 | DS6: 2114-03-01 | DT6: 2115-03-01 | DU6: 2116-03-01 | DV6: 2117-03-01 | DW6: 2118-03-01 | DX6: 2119-03-01 | DY6: 2120-03-01 | DZ6: 2121-03-01 | EA6: 2122-03-01 | EB6: 2123-03-01 | EC6: 2124-03-01 | ED6: 2125-03-01 | EE6: 2126-03-01 | EF6: 2127-03-01 | EG6: 2128-03-01 | EH6: =EG7+1 -> 2129-03-01 | EI6: 2130-03-01 | EJ6: 2131-03-01 | EK6: 2132-03-01 | EL6: 2133-03-01 | EM6: 2134-03-01 | EN6: 2135-03-01 | EO6: 2136-03-01 | EP6: 2137-03-01 | EQ6: 2138-03-01 | ER6: 2139-03-01 | ES6: 2140-03-01 | ET6: 2141-03-01 | EU6: 2142-03-01 | EV6: 2143-03-01 | EW6: 2144-03-01 | EX6: 2145-03-01 | EY6: 2146-03-01 | EZ6: 2147-03-01 | FA6: 2148-03-01 | FB6: 2149-03-01 | FC6: 2150-03-01 | FD6: 2151-03-01 | FE6: 2152-03-01 | FF6: 2153-03-01 | FG6: 2154-03-01 | FH6: 2155-03-01 | FI6: 2156-03-01 | FJ6: 2157-03-01 | FK6: 2158-03-01 | FL6: 2159-03-01 | FM6: 2160-03-01 | FN6: 2161-03-01 | FO6: 2162-03-01 | FP6: 2163-03-01 | FQ6: 2164-03-01 | FR6: 2165-03-01 | FS6: 2166-03-01 | FT6: 2167-03-01 | FU6: 2168-03-01 | FV6: 2169-03-01 | FW6: 2170-03-01 | FX6: 2171-03-01 | FY6: 2172-03-01 | FZ6: 2173-03-01 | GA6: 2174-03-01 | GB6: 2175-03-01 | GC6: 2176-03-01 | GD6: 2177-03-01 | GE6: 2178-03-01 | GF6: 2179-03-01 | GG6: 2180-03-01 | GH6: 2181-03-01 | GI6: 2182-03-01 | GJ6: 2183-03-01 | GK6: 2184-03-01 | GL6: 2185-03-01 | GM6: 2186-03-01 | GN6: 2187-03-01 | GO6: 2188-03-01 | GP6: 2189-03-01 | GQ6: 2190-03-01 | GR6: 2191-03-01 | GS6: 2192-03-01 | GT6: =GS7+1 -> 2193-03-01 | GU6: 2194-03-01 | GV6: 2195-03-01 | GW6: 2196-03-01 | GX6: 2197-03-01 | GY6: 2198-03-01 | GZ6: 2199-03-01 | HA6: 2200-03-01 | HB6: 2201-03-01 | HC6: 2202-03-01 | HD6: 2203-03-01 | HE6: 2204-03-01 | HF6: 2205-03-01 | HG6: 2206-03-01 | HH6: 2207-03-01 | HI6: 2208-03-01 | HJ6: 2209-03-01 | HK6: 2210-03-01 | HL6: 2211-03-01 | HM6: 2212-03-01 | HN6: 2213-03-01 | HO6: 2214-03-01 | HP6: 2215-03-01 | HQ6: 2216-03-01 | HR6: 2217-03-01 | HS6: 2218-03-01 | HT6: 2219-03-01 | HU6: 2220-03-01 | HV6: 2221-03-01 | HW6: 2222-03-01 | HX6: 2223-03-01 | HY6: 2224-03-01 | HZ6: 2225-03-01 | IA6: 2226-03-01 | IB6: 2227-03-01 | IC6: 2228-03-01 | ID6: 2229-03-01 | IE6: 2230-03-01 | IF6: 2231-03-01 | IG6: 2232-03-01 | IH6: 2233-03-01 | II6: 2234-03-01 | IJ6: 2235-03-01 | IK6: 2236-03-01 | IL6: 2237-03-01 | IM6: 2238-03-01 | IN6: 2239-03-01 | IO6: 2240-03-01 | IP6: 2241-03-01 | IQ6: 2242-03-01 | IR6: 2243-03-01 | IS6: 2244-03-01 | IT6: 2245-03-01 | IU6: 2246-03-01 | IV6: 2247-03-01 | IW6: 2248-03-01 | IX6: 2249-03-01 | IY6: 2250-03-01 | IZ6: 2251-03-01 | JA6: 2252-03-01 | JB6: 2253-03-01 | JC6: 2254-03-01 | JD6: 2255-03-01 | JE6: 2256-03-01 | JF6: =JE7+1 -> 2257-03-01 | JG6: 2258-03-01 | JH6: 2259-03-01 | JI6: 2260-03-01 | JJ6: 2261-03-01 | JK6: 2262-03-01 | JL6: 2263-03-01 | JM6: 2264-03-01 | JN6: 2265-03-01 | JO6: 2266-03-01 | JP6: 2267-03-01 | JQ6: 2268-03-01 | JR6: 2269-03-01 | JS6: 2270-03-01 | JT6: 2271-03-01 | JU6: 2272-03-01 | JV6: 2273-03-01 | JW6: 2274-03-01 | JX6: 2275-03-01 | JY6: 2276-03-01 | JZ6: 2277-03-01 | KA6: 2278-03-01 | KB6: 2279-03-01 | KC6: 2280-03-01 | KD6: 2281-03-01 | KE6: 2282-03-01 | KF6: 2283-03-01 | KG6: 2284-03-01 | KH6: 2285-03-01 | KI6: 2286-03-01 | KJ6: 2287-03-01 | KK6: 2288-03-01 | KL6: 2289-03-01 | KM6: 2290-03-01 | KN6: 2291-03-01 | KO6: 2292-03-01 | KP6: 2293-03-01 | KQ6: 2294-03-01 | KR6: 2295-03-01 | KS6: 2296-03-01 | KT6: 2297-03-01 | KU6: 2298-03-01 | KV6: 2299-03-01 | KW6: 2300-03-01 | KX6: 2301-03-01 | KY6: 2302-03-01 | KZ6: 2303-03-01 | LA6: 2304-03-01 | LB6: 2305-03-01 | LC6: 2306-03-01 | LD6: 2307-03-01 | LE6: 2308-03-01 | LF6: 2309-03-01 | LG6: 2310-03-01 | LH6: 2311-03-01 | LI6: 2312-03-01 | LJ6: 2313-03-01 | LK6: 2314-03-01 | LL6: 2315-03-01 | LM6: 2316-03-01 | LN6: 2317-03-01 | LO6: 2318-03-01 | LP6: 2319-03-01 | LQ6: 2320-03-01 | LR6: =LQ7+1 -> 2321-03-01 | LS6: 2322-03-01 | LT6: 2323-03-01 | LU6: 2324-03-01 | LV6: 2325-03-01 | LW6: 2326-03-01 | LX6: 2327-03-01 | LY6: 2328-03-01 | LZ6: 2329-03-01 | MA6: 2330-03-01 | MB6: 2331-03-01 | MC6: 2332-03-01 | MD6: 2333-03-01 | ME6: 2334-03-01 | MF6: 2335-03-01 | MG6: 2336-03-01 | MH6: 2337-03-01 | MI6: 2338-03-01 | MJ6: 2339-03-01 | MK6: 2340-03-01 | ML6: 2341-03-01 | MM6: 2342-03-01 | MN6: 2343-03-01 | MO6: 2344-03-01 | MP6: 2345-03-01 | MQ6: 2346-03-01 | MR6: 2347-03-01 | MS6: 2348-03-01 | MT6: 2349-03-01 | MU6: 2350-03-01 | MV6: 2351-03-01 | MW6: 2352-03-01 | MX6: 2353-03-01 | MY6: 2354-03-01 | MZ6: 2355-03-01 | NA6: 2356-03-01 | NB6: 2357-03-01 | NC6: 2358-03-01 | ND6: 2359-03-01 | NE6: 2360-03-01 | NF6: 2361-03-01 | NG6: 2362-03-01 | NH6: 2363-03-01 | NI6: 2364-03-01 | NJ6: 2365-03-01 | NK6: 2366-03-01 | NL6: 2367-03-01 | NM6: 2368-03-01 | NN6: 2369-03-01 | NO6: 2370-03-01 | NP6: 2371-03-01 | NQ6: 2372-03-01 | NR6: 2373-03-01 | NS6: 2374-03-01 | NT6: 2375-03-01 | NU6: 2376-03-01 | NV6: 2377-03-01 | NW6: 2378-03-01 | NX6: 2379-03-01 | NY6: 2380-03-01 | NZ6: 2381-03-01 | OA6: 2382-03-01 | OB6: 2383-03-01 | OC6: 2384-03-01 | OD6: =OC7+1 -> 2385-03-01 | OE6: 2386-03-01 | OF6: 2387-03-01 | OG6: 2388-03-01 | OH6: 2389-03-01 | OI6: 2390-03-01 | OJ6: 2391-03-01 | OK6: 2392-03-01 | OL6: 2393-03-01 | OM6: 2394-03-01 | ON6: 2395-03-01 | OO6: 2396-03-01 | OP6: 2397-03-01 | OQ6: 2398-03-01 | OR6: 2399-03-01 | OS6: 2400-03-01 | OT6: 2401-03-01 | OU6: 2402-03-01 | OV6: 2403-03-01 | OW6: 2404-03-01 | OX6: 2405-03-01 | OY6: 2406-03-01 | OZ6: 2407-03-01 | PA6: 2408-03-01 | PB6: 2409-03-01 | PC6: 2410-03-01 | PD6: 2411-03-01 | PE6: 2412-03-01 | PF6: 2413-03-01 | PG6: 2414-03-01 | PH6: 2415-03-01 | PI6: 2416-03-01 | PJ6: 2417-03-01 | PK6: 2418-03-01 | PL6: 2419-03-01 | PM6: 2420-03-01 | PN6: 2421-03-01 | PO6: 2422-03-01 | PP6: 2423-03-01 | PQ6: 2424-03-01 | PR6: 2425-03-01 | PS6: 2426-03-01 | PT6: 2427-03-01 | PU6: 2428-03-01 | PV6: 2429-03-01 | PW6: 2430-03-01 | PX6: 2431-03-01 | PY6: 2432-03-01 | PZ6: 2433-03-01 | QA6: 2434-03-01 | QB6: 2435-03-01 | QC6: 2436-03-01 | QD6: 2437-03-01 | QE6: 2438-03-01 | QF6: 2439-03-01 | QG6: 2440-03-01 | QH6: 2441-03-01 | QI6: 2442-03-01 | QJ6: 2443-03-01 | QK6: 2444-03-01 | QL6: 2445-03-01 | QM6: 2446-03-01 | QN6: 2447-03-01 | QO6: 2448-03-01 | QP6: =QO7+1 -> 2449-03-01 | QQ6: 2450-03-01 | QR6: 2451-03-01 | QS6: 2452-03-01 | QT6: 2453-03-01 | QU6: 2454-03-01 | QV6: 2455-03-01 | QW6: 2456-03-01 | QX6: 2457-03-01 | QY6: 2458-03-01 | QZ6: 2459-03-01 | RA6: 2460-03-01 | RB6: 2461-03-01 | RC6: 2462-03-01 | RD6: 2463-03-01 | RE6: 2464-03-01 | RF6: 2465-03-01 | RG6: 2466-03-01 | RH6: 2467-03-01 | RI6: 2468-03-01 | RJ6: 2469-03-01 | RK6: 2470-03-01 | RL6: 2471-03-01 | RM6: 2472-03-01 | RN6: 2473-03-01 | RO6: 2474-03-01 | RP6: 2475-03-01 | RQ6: 2476-03-01 | RR6: 2477-03-01 | RS6: 2478-03-01 | RT6: 2479-03-01 | RU6: 2480-03-01 | RV6: 2481-03-01 | RW6: 2482-03-01 | RX6: 2483-03-01 | RY6: 2484-03-01 | RZ6: 2485-03-01 | SA6: 2486-03-01 | SB6: 2487-03-01 | SC6: 2488-03-01 | SD6: 2489-03-01 | SE6: 2490-03-01 | SF6: 2491-03-01 | SG6: 2492-03-01 | SH6: 2493-03-01 | SI6: 2494-03-01 | SJ6: 2495-03-01 | SK6: 2496-03-01 | SL6: 2497-03-01 | SM6: 2498-03-01 | SN6: 2499-03-01 | SO6: 2500-03-01 | SP6: 2501-03-01 | SQ6: 2502-03-01 | SR6: 2503-03-01 | SS6: 2504-03-01 | ST6: 2505-03-01 | SU6: 2506-03-01 | SV6: 2507-03-01 | SW6: 2508-03-01 | SX6: 2509-03-01 | SY6: 2510-03-01 | SZ6: 2511-03-01 | TA6: 2512-03-01 | TB6: =TA7+1 -> 2513-03-01 | TC6: 2514-03-01 | TD6: 2515-03-01 | TE6: 2516-03-01 | TF6: 2517-03-01 | TG6: 2518-03-01 | TH6: 2519-03-01 | TI6: 2520-03-01 | TJ6: 2521-03-01 | TK6: 2522-03-01 | TL6: 2523-03-01 | TM6: 2524-03-01 | TN6: 2525-03-01 | TO6: 2526-03-01 | TP6: 2527-03-01 | TQ6: 2528-03-01 | TR6: 2529-03-01 | TS6: 2530-03-01 | TT6: 2531-03-01 | TU6: 2532-03-01 | TV6: 2533-03-01 | TW6: 2534-03-01 | TX6: 2535-03-01 | TY6: 2536-03-01 | TZ6: 2537-03-01 | UA6: 2538-03-01 | UB6: 2539-03-01 | UC6: 2540-03-01 | UD6: 2541-03-01 | UE6: 2542-03-01 | UF6: 2543-03-01 | UG6: 2544-03-01 | UH6: 2545-03-01 | UI6: 2546-03-01 | UJ6: 2547-03-01 | UK6: 2548-03-01 | UL6: 2549-03-01 | UM6: 2550-03-01 | UN6: 2551-03-01 | UO6: 2552-03-01 | UP6: 2553-03-01 | UQ6: 2554-03-01 | UR6: 2555-03-01 | US6: 2556-03-01 | UT6: 2557-03-01 | UU6: 2558-03-01 | UV6: 2559-03-01 | UW6: 2560-03-01 | UX6: 2561-03-01 | UY6: 2562-03-01 | UZ6: 2563-03-01 | VA6: 2564-03-01 | VB6: 2565-03-01 | VC6: 2566-03-01 | VD6: 2567-03-01 | VE6: 2568-03-01 | VF6: 2569-03-01 | VG6: 2570-03-01 | VH6: 2571-03-01 | VI6: 2572-03-01 | VJ6: 2573-03-01 | VK6: 2574-03-01 | VL6: 2575-03-01 | VM6: 2576-03-01 | VN6: =VM7+1 -> 2577-03-01 | VO6: 2578-03-01 | VP6: 2579-03-01 | VQ6: 2580-03-01 | VR6: 2581-03-01 | VS6: 2582-03-01 | VT6: 2583-03-01 | VU6: 2584-03-01 | VV6: 2585-03-01 | VW6: 2586-03-01 | VX6: 2587-03-01 | VY6: 2588-03-01 | VZ6: 2589-03-01 | WA6: 2590-03-01 | WB6: 2591-03-01 | WC6: 2592-03-01 | WD6: 2593-03-01 | WE6: 2594-03-01 | WF6: 2595-03-01 | WG6: 2596-03-01 | WH6: 2597-03-01 | WI6: 2598-03-01 | WJ6: 2599-03-01 | WK6: 2600-03-01 | WL6: 2601-03-01 | WM6: 2602-03-01 | WN6: 2603-03-01 | WO6: 2604-03-01 | WP6: 2605-03-01 | WQ6: 2606-03-01 | WR6: 2607-03-01 | WS6: 2608-03-01 | WT6: 2609-03-01 | WU6: 2610-03-01 | WV6: 2611-03-01 | WW6: 2612-03-01 | WX6: 2613-03-01 | WY6: 2614-03-01 | WZ6: 2615-03-01 | XA6: 2616-03-01 | XB6: 2617-03-01 | XC6: 2618-03-01 | XD6: 2619-03-01 | XE6: 2620-03-01 | XF6: 2621-03-01 | XG6: 2622-03-01 | XH6: 2623-03-01 | XI6: 2624-03-01 | XJ6: 2625-03-01 | XK6: 2626-03-01 | XL6: 2627-03-01 | XM6: 2628-03-01 | XN6: 2629-03-01 | XO6: 2630-03-01 | XP6: 2631-03-01 | XQ6: 2632-03-01 | XR6: 2633-03-01 | XS6: 2634-03-01 | XT6: 2635-03-01 | XU6: 2636-03-01 | XV6: 2637-03-01 | XW6: 2638-03-01 | XX6: 2639-03-01 | XY6: 2640-03-01 | XZ6: =XY7+1 -> 2641-03-01 | YA6: 2642-03-01 | YB6: 2643-03-01 | YC6: 2644-03-01 | YD6: 2645-03-01 | YE6: 2646-03-01 | YF6: 2647-03-01 | YG6: 2648-03-01 | YH6: 2649-03-01 | YI6: 2650-03-01 | YJ6: 2651-03-01 | YK6: 2652-03-01 | YL6: 2653-03-01 | YM6: 2654-03-01 | YN6: 2655-03-01 | YO6: 2656-03-01 | YP6: 2657-03-01 | YQ6: 2658-03-01 | YR6: 2659-03-01 | YS6: 2660-03-01 | YT6: 2661-03-01 | YU6: 2662-03-01 | YV6: 2663-03-01 | YW6: 2664-03-01 | YX6: 2665-03-01 | YY6: 2666-03-01 | YZ6: 2667-03-01 | ZA6: 2668-03-01 | ZB6: 2669-03-01 | ZC6: 2670-03-01 | ZD6: 2671-03-01 | ZE6: 2672-03-01 | ZF6: 2673-03-01 | ZG6: 2674-03-01 | ZH6: 2675-03-01 | ZI6: 2676-03-01 | ZJ6: 2677-03-01 | ZK6: 2678-03-01 | ZL6: 2679-03-01 | ZM6: 2680-03-01 | ZN6: 2681-03-01 | ZO6: 2682-03-01 | ZP6: 2683-03-01 | ZQ6: 2684-03-01 | ZR6: 2685-03-01 | ZS6: 2686-03-01 | ZT6: 2687-03-01 | ZU6: 2688-03-01 | ZV6: 2689-03-01 | ZW6: 2690-03-01 | ZX6: 2691-03-01 | ZY6: 2692-03-01 | ZZ6: 2693-03-01 | AAA6: 2694-03-01 | AAB6: 2695-03-01 | AAC6: 2696-03-01 | AAD6: 2697-03-01 | AAE6: 2698-03-01 | AAF6: 2699-03-01 | AAG6: 2700-03-01 | AAH6: 2701-03-01 | AAI6: 2702-03-01 | AAJ6: 2703-03-01 | AAK6: 2704-03-01 | AAL6: =AAK7+1 -> 2705-03-01 | AAM6: 2706-03-01 | AAN6: 2707-03-01 | AAO6: 2708-03-01 | AAP6: 2709-03-01 | AAQ6: 2710-03-01 | AAR6: 2711-03-01 | AAS6: 2712-03-01 | AAT6: 2713-03-01 | AAU6: 2714-03-01 | AAV6: 2715-03-01 | AAW6: 2716-03-01 | AAX6: 2717-03-01 | AAY6: 2718-03-01 | AAZ6: 2719-03-01 | ABA6: 2720-03-01 | ABB6: 2721-03-01 | ABC6: 2722-03-01 | ABD6: 2723-03-01 | ABE6: 2724-03-01 | ABF6: 2725-03-01 | ABG6: 2726-03-01 | ABH6: 2727-03-01 | ABI6: 2728-03-01 | ABJ6: 2729-03-01 | ABK6: 2730-03-01 | ABL6: 2731-03-01 | ABM6: 2732-03-01 | ABN6: 2733-03-01 | ABO6: 2734-03-01 | ABP6: 2735-03-01 | ABQ6: 2736-03-01 | ABR6: 2737-03-01 | ABS6: 2738-03-01 | ABT6: 2739-03-01 | ABU6: 2740-03-01 | ABV6: 2741-03-01 | ABW6: 2742-03-01 | ABX6: 2743-03-01 | ABY6: 2744-03-01 | ABZ6: 2745-03-01 | ACA6: 2746-03-01 | ACB6: 2747-03-01 | ACC6: 2748-03-01 | ACD6: 2749-03-01 | ACE6: 2750-03-01 | ACF6: 2751-03-01 | ACG6: 2752-03-01 | ACH6: 2753-03-01 | ACI6: 2754-03-01 | ACJ6: 2755-03-01 | ACK6: 2756-03-01 | ACL6: 2757-03-01 | ACM6: 2758-03-01 | ACN6: 2759-03-01 | ACO6: 2760-03-01 | ACP6: 2761-03-01 | ACQ6: 2762-03-01 | ACR6: 2763-03-01 | ACS6: 2764-03-01 | ACT6: 2765-03-01 | ACU6: 2766-03-01 | ACV6: 2767-03-01 | ACW6: 2768-03-01 | ACX6: =ACW7+1 -> 2769-03-01 | ACY6: 2770-03-01 | ACZ6: 2771-03-01 | ADA6: 2772-03-01 | ADB6: 2773-03-01 | ADC6: 2774-03-01 | ADD6: 2775-03-01 | ADE6: 2776-03-01 | ADF6: 2777-03-01 | ADG6: 2778-03-01 | ADH6: 2779-03-01 | ADI6: 2780-03-01 | ADJ6: 2781-03-01 | ADK6: 2782-03-01 | ADL6: 2783-03-01 | ADM6: 2784-03-01 | ADN6: 2785-03-01 | ADO6: 2786-03-01 | ADP6: 2787-03-01 | ADQ6: 2788-03-01 | ADR6: 2789-03-01 | ADS6: 2790-03-01 | ADT6: 2791-03-01 | ADU6: 2792-03-01 | ADV6: 2793-03-01 | ADW6: 2794-03-01 | ADX6: 2795-03-01 | ADY6: 2796-03-01 | ADZ6: 2797-03-01 | AEA6: 2798-03-01 | AEB6: 2799-03-01 | AEC6: 2800-03-01 | AED6: 2801-03-01 | AEE6: 2802-03-01 | AEF6: 2803-03-01 | AEG6: 2804-03-01 | AEH6: 2805-03-01 | AEI6: 2806-03-01 | AEJ6: 2807-03-01 | AEK6: 2808-03-01 | AEL6: 2809-03-01 | AEM6: 2810-03-01 | AEN6: 2811-03-01 | AEO6: 2812-03-01 | AEP6: 2813-03-01 | AEQ6: 2814-03-01 | AER6: 2815-03-01 | AES6: 2816-03-01 | AET6: 2817-03-01 | AEU6: 2818-03-01 | AEV6: 2819-03-01 | AEW6: 2820-03-01 | AEX6: 2821-03-01 | AEY6: 2822-03-01 | AEZ6: 2823-03-01 | AFA6: 2824-03-01 | AFB6: 2825-03-01 | AFC6: 2826-03-01 | AFD6: 2827-03-01 | AFE6: 2828-03-01 | AFF6: 2829-03-01 | AFG6: 2830-03-01 | AFH6: 2831-03-01 | AFI6: 2832-03-01 | AFJ6: =AFI7+1 -> 2833-03-01 | AFK6: 2834-03-01 | AFL6: 2835-03-01 | AFM6: 2836-03-01 | AFN6: 2837-03-01 | AFO6: 2838-03-01 | AFP6: 2839-03-01 | AFQ6: 2840-03-01 | AFR6: 2841-03-01 | AFS6: 2842-03-01 | AFT6: 2843-03-01 | AFU6: 2844-03-01 | AFV6: 2845-03-01 | AFW6: 2846-03-01 | AFX6: 2847-03-01 | AFY6: 2848-03-01 | AFZ6: 2849-03-01 | AGA6: 2850-03-01 | AGB6: 2851-03-01 | AGC6: 2852-03-01 | AGD6: 2853-03-01 | AGE6: 2854-03-01 | AGF6: 2855-03-01 | AGG6: 2856-03-01 | AGH6: 2857-03-01 | AGI6: 2858-03-01 | AGJ6: 2859-03-01 | AGK6: 2860-03-01
B7: End of Period (Makes Presentation clearer) | H7: =EOMONTH(H6,H5-1) -> 2001-01-31 | I7: =EOMONTH(I6,I5-1) -> 2001-02-28 | J7: =EOMONTH(J6,J5-1) -> 2002-02-28 | K7: 2003-02-28 | L7: 2004-02-29 | M7: 2005-02-28 | N7: 2006-02-28 | O7: 2007-02-28 | P7: 2008-02-29 | Q7: 2009-02-28 | R7: 2010-02-28 | S7: 2011-02-28 | T7: 2012-02-29 | U7: 2013-02-28 | V7: 2014-02-28 | W7: 2015-02-28 | X7: 2016-02-29 | Y7: 2017-02-28 | Z7: 2018-02-28 | AA7: 2019-02-28 | AB7: 2020-02-29 | AC7: 2021-02-28 | AD7: 2022-02-28 | AE7: 2023-02-28 | AF7: 2024-02-29 | AG7: 2025-02-28 | AH7: 2026-02-28 | AI7: 2027-02-28 | AJ7: 2028-02-29 | AK7: 2029-02-28 | AL7: 2030-02-28 | AM7: 2031-02-28 | AN7: 2032-02-29 | AO7: 2033-02-28 | AP7: 2034-02-28 | AQ7: 2035-02-28 | AR7: 2036-02-29 | AS7: 2037-02-28 | AT7: 2038-02-28 | AU7: 2039-02-28 | AV7: 2040-02-29 | AW7: 2041-02-28 | AX7: 2042-02-28 | AY7: 2043-02-28 | AZ7: 2044-02-29 | BA7: 2045-02-28 | BB7: 2046-02-28 | BC7: 2047-02-28 | BD7: 2048-02-29 | BE7: 2049-02-28 | BF7: 2050-02-28 | BG7: 2051-02-28 | BH7: 2052-02-29 | BI7: 2053-02-28 | BJ7: 2054-02-28 | BK7: 2055-02-28 | BL7: 2056-02-29 | BM7: 2057-02-28 | BN7: 2058-02-28 | BO7: 2059-02-28 | BP7: 2060-02-29 | BQ7: 2061-02-28 | BR7: 2062-02-28 | BS7: 2063-02-28 | BT7: 2064-02-29 | BU7: 2065-02-28 | BV7: =EOMONTH(BV6,BV5-1) -> 2066-02-28 | BW7: 2067-02-28 | BX7: 2068-02-29 | BY7: 2069-02-28 | BZ7: 2070-02-28 | CA7: 2071-02-28 | CB7: 2072-02-29 | CC7: 2073-02-28 | CD7: 2074-02-28 | CE7: 2075-02-28 | CF7: 2076-02-29 | CG7: 2077-02-28 | CH7: 2078-02-28 | CI7: 2079-02-28 | CJ7: 2080-02-29 | CK7: 2081-02-28 | CL7: 2082-02-28 | CM7: 2083-02-28 | CN7: 2084-02-29 | CO7: 2085-02-28 | CP7: 2086-02-28 | CQ7: 2087-02-28 | CR7: 2088-02-29 | CS7: 2089-02-28 | CT7: 2090-02-28 | CU7: 2091-02-28 | CV7: 2092-02-29 | CW7: 2093-02-28 | CX7: 2094-02-28 | CY7: 2095-02-28 | CZ7: 2096-02-29 | DA7: 2097-02-28 | DB7: 2098-02-28 | DC7: 2099-02-28 | DD7: 2100-02-28 | DE7: 2101-02-28 | DF7: 2102-02-28 | DG7: 2103-02-28 | DH7: 2104-02-29 | DI7: 2105-02-28 | DJ7: 2106-02-28 | DK7: 2107-02-28 | DL7: 2108-02-29 | DM7: 2109-02-28 | DN7: 2110-02-28 | DO7: 2111-02-28 | DP7: 2112-02-29 | DQ7: 2113-02-28 | DR7: 2114-02-28 | DS7: 2115-02-28 | DT7: 2116-02-29 | DU7: 2117-02-28 | DV7: 2118-02-28 | DW7: 2119-02-28 | DX7: 2120-02-29 | DY7: 2121-02-28 | DZ7: 2122-02-28 | EA7: 2123-02-28 | EB7: 2124-02-29 | EC7: 2125-02-28 | ED7: 2126-02-28 | EE7: 2127-02-28 | EF7: 2128-02-29 | EG7: 2129-02-28 | EH7: =EOMONTH(EH6,EH5-1) -> 2130-02-28 | EI7: 2131-02-28 | EJ7: 2132-02-29 | EK7: 2133-02-28 | EL7: 2134-02-28 | EM7: 2135-02-28 | EN7: 2136-02-29 | EO7: 2137-02-28 | EP7: 2138-02-28 | EQ7: 2139-02-28 | ER7: 2140-02-29 | ES7: 2141-02-28 | ET7: 2142-02-28 | EU7: 2143-02-28 | EV7: 2144-02-29 | EW7: 2145-02-28 | EX7: 2146-02-28 | EY7: 2147-02-28 | EZ7: 2148-02-29 | FA7: 2149-02-28 | FB7: 2150-02-28 | FC7: 2151-02-28 | FD7: 2152-02-29 | FE7: 2153-02-28 | FF7: 2154-02-28 | FG7: 2155-02-28 | FH7: 2156-02-29 | FI7: 2157-02-28 | FJ7: 2158-02-28 | FK7: 2159-02-28 | FL7: 2160-02-29 | FM7: 2161-02-28 | FN7: 2162-02-28 | FO7: 2163-02-28 | FP7: 2164-02-29 | FQ7: 2165-02-28 | FR7: 2166-02-28 | FS7: 2167-02-28 | FT7: 2168-02-29 | FU7: 2169-02-28 | FV7: 2170-02-28 | FW7: 2171-02-28 | FX7: 2172-02-29 | FY7: 2173-02-28 | FZ7: 2174-02-28 | GA7: 2175-02-28 | GB7: 2176-02-29 | GC7: 2177-02-28 | GD7: 2178-02-28 | GE7: 2179-02-28 | GF7: 2180-02-29 | GG7: 2181-02-28 | GH7: 2182-02-28 | GI7: 2183-02-28 | GJ7: 2184-02-29 | GK7: 2185-02-28 | GL7: 2186-02-28 | GM7: 2187-02-28 | GN7: 2188-02-29 | GO7: 2189-02-28 | GP7: 2190-02-28 | GQ7: 2191-02-28 | GR7: 2192-02-29 | GS7: 2193-02-28 | GT7: =EOMONTH(GT6,GT5-1) -> 2194-02-28 | GU7: 2195-02-28 | GV7: 2196-02-29 | GW7: 2197-02-28 | GX7: 2198-02-28 | GY7: 2199-02-28 | GZ7: 2200-02-28 | HA7: 2201-02-28 | HB7: 2202-02-28 | HC7: 2203-02-28 | HD7: 2204-02-29 | HE7: 2205-02-28 | HF7: 2206-02-28 | HG7: 2207-02-28 | HH7: 2208-02-29 | HI7: 2209-02-28 | HJ7: 2210-02-28 | HK7: 2211-02-28 | HL7: 2212-02-29 | HM7: 2213-02-28 | HN7: 2214-02-28 | HO7: 2215-02-28 | HP7: 2216-02-29 | HQ7: 2217-02-28 | HR7: 2218-02-28 | HS7: 2219-02-28 | HT7: 2220-02-29 | HU7: 2221-02-28 | HV7: 2222-02-28 | HW7: 2223-02-28 | HX7: 2224-02-29 | HY7: 2225-02-28 | HZ7: 2226-02-28 | IA7: 2227-02-28 | IB7: 2228-02-29 | IC7: 2229-02-28 | ID7: 2230-02-28 | IE7: 2231-02-28 | IF7: 2232-02-29 | IG7: 2233-02-28 | IH7: 2234-02-28 | II7: 2235-02-28 | IJ7: 2236-02-29 | IK7: 2237-02-28 | IL7: 2238-02-28 | IM7: 2239-02-28 | IN7: 2240-02-29 | IO7: 2241-02-28 | IP7: 2242-02-28 | IQ7: 2243-02-28 | IR7: 2244-02-29 | IS7: 2245-02-28 | IT7: 2246-02-28 | IU7: 2247-02-28 | IV7: 2248-02-29 | IW7: 2249-02-28 | IX7: 2250-02-28 | IY7: 2251-02-28 | IZ7: 2252-02-29 | JA7: 2253-02-28 | JB7: 2254-02-28 | JC7: 2255-02-28 | JD7: 2256-02-29 | JE7: 2257-02-28 | JF7: =EOMONTH(JF6,JF5-1) -> 2258-02-28 | JG7: 2259-02-28 | JH7: 2260-02-29 | JI7: 2261-02-28 | JJ7: 2262-02-28 | JK7: 2263-02-28 | JL7: 2264-02-29 | JM7: 2265-02-28 | JN7: 2266-02-28 | JO7: 2267-02-28 | JP7: 2268-02-29 | JQ7: 2269-02-28 | JR7: 2270-02-28 | JS7: 2271-02-28 | JT7: 2272-02-29 | JU7: 2273-02-28 | JV7: 2274-02-28 | JW7: 2275-02-28 | JX7: 2276-02-29 | JY7: 2277-02-28 | JZ7: 2278-02-28 | KA7: 2279-02-28 | KB7: 2280-02-29 | KC7: 2281-02-28 | KD7: 2282-02-28 | KE7: 2283-02-28 | KF7: 2284-02-29 | KG7: 2285-02-28 | KH7: 2286-02-28 | KI7: 2287-02-28 | KJ7: 2288-02-29 | KK7: 2289-02-28 | KL7: 2290-02-28 | KM7: 2291-02-28 | KN7: 2292-02-29 | KO7: 2293-02-28 | KP7: 2294-02-28 | KQ7: 2295-02-28 | KR7: 2296-02-29 | KS7: 2297-02-28 | KT7: 2298-02-28 | KU7: 2299-02-28 | KV7: 2300-02-28 | KW7: 2301-02-28 | KX7: 2302-02-28 | KY7: 2303-02-28 | KZ7: 2304-02-29 | LA7: 2305-02-28 | LB7: 2306-02-28 | LC7: 2307-02-28 | LD7: 2308-02-29 | LE7: 2309-02-28 | LF7: 2310-02-28 | LG7: 2311-02-28 | LH7: 2312-02-29 | LI7: 2313-02-28 | LJ7: 2314-02-28 | LK7: 2315-02-28 | LL7: 2316-02-29 | LM7: 2317-02-28 | LN7: 2318-02-28 | LO7: 2319-02-28 | LP7: 2320-02-29 | LQ7: 2321-02-28 | LR7: =EOMONTH(LR6,LR5-1) -> 2322-02-28 | LS7: 2323-02-28 | LT7: 2324-02-29 | LU7: 2325-02-28 | LV7: 2326-02-28 | LW7: 2327-02-28 | LX7: 2328-02-29 | LY7: 2329-02-28 | LZ7: 2330-02-28 | MA7: 2331-02-28 | MB7: 2332-02-29 | MC7: 2333-02-28 | MD7: 2334-02-28 | ME7: 2335-02-28 | MF7: 2336-02-29 | MG7: 2337-02-28 | MH7: 2338-02-28 | MI7: 2339-02-28 | MJ7: 2340-02-29 | MK7: 2341-02-28 | ML7: 2342-02-28 | MM7: 2343-02-28 | MN7: 2344-02-29 | MO7: 2345-02-28 | MP7: 2346-02-28 | MQ7: 2347-02-28 | MR7: 2348-02-29 | MS7: 2349-02-28 | MT7: 2350-02-28 | MU7: 2351-02-28 | MV7: 2352-02-29 | MW7: 2353-02-28 | MX7: 2354-02-28 | MY7: 2355-02-28 | MZ7: 2356-02-29 | NA7: 2357-02-28 | NB7: 2358-02-28 | NC7: 2359-02-28 | ND7: 2360-02-29 | NE7: 2361-02-28 | NF7: 2362-02-28 | NG7: 2363-02-28 | NH7: 2364-02-29 | NI7: 2365-02-28 | NJ7: 2366-02-28 | NK7: 2367-02-28 | NL7: 2368-02-29 | NM7: 2369-02-28 | NN7: 2370-02-28 | NO7: 2371-02-28 | NP7: 2372-02-29 | NQ7: 2373-02-28 | NR7: 2374-02-28 | NS7: 2375-02-28 | NT7: 2376-02-29 | NU7: 2377-02-28 | NV7: 2378-02-28 | NW7: 2379-02-28 | NX7: 2380-02-29 | NY7: 2381-02-28 | NZ7: 2382-02-28 | OA7: 2383-02-28 | OB7: 2384-02-29 | OC7: 2385-02-28 | OD7: =EOMONTH(OD6,OD5-1) -> 2386-02-28 | OE7: 2387-02-28 | OF7: 2388-02-29 | OG7: 2389-02-28 | OH7: 2390-02-28 | OI7: 2391-02-28 | OJ7: 2392-02-29 | OK7: 2393-02-28 | OL7: 2394-02-28 | OM7: 2395-02-28 | ON7: 2396-02-29 | OO7: 2397-02-28 | OP7: 2398-02-28 | OQ7: 2399-02-28 | OR7: 2400-02-29 | OS7: 2401-02-28 | OT7: 2402-02-28 | OU7: 2403-02-28 | OV7: 2404-02-29 | OW7: 2405-02-28 | OX7: 2406-02-28 | OY7: 2407-02-28 | OZ7: 2408-02-29 | PA7: 2409-02-28 | PB7: 2410-02-28 | PC7: 2411-02-28 | PD7: 2412-02-29 | PE7: 2413-02-28 | PF7: 2414-02-28 | PG7: 2415-02-28 | PH7: 2416-02-29 | PI7: 2417-02-28 | PJ7: 2418-02-28 | PK7: 2419-02-28 | PL7: 2420-02-29 | PM7: 2421-02-28 | PN7: 2422-02-28 | PO7: 2423-02-28 | PP7: 2424-02-29 | PQ7: 2425-02-28 | PR7: 2426-02-28 | PS7: 2427-02-28 | PT7: 2428-02-29 | PU7: 2429-02-28 | PV7: 2430-02-28 | PW7: 2431-02-28 | PX7: 2432-02-29 | PY7: 2433-02-28 | PZ7: 2434-02-28 | QA7: 2435-02-28 | QB7: 2436-02-29 | QC7: 2437-02-28 | QD7: 2438-02-28 | QE7: 2439-02-28 | QF7: 2440-02-29 | QG7: 2441-02-28 | QH7: 2442-02-28 | QI7: 2443-02-28 | QJ7: 2444-02-29 | QK7: 2445-02-28 | QL7: 2446-02-28 | QM7: 2447-02-28 | QN7: 2448-02-29 | QO7: 2449-02-28 | QP7: =EOMONTH(QP6,QP5-1) -> 2450-02-28 | QQ7: 2451-02-28 | QR7: 2452-02-29 | QS7: 2453-02-28 | QT7: 2454-02-28 | QU7: 2455-02-28 | QV7: 2456-02-29 | QW7: 2457-02-28 | QX7: 2458-02-28 | QY7: 2459-02-28 | QZ7: 2460-02-29 | RA7: 2461-02-28 | RB7: 2462-02-28 | RC7: 2463-02-28 | RD7: 2464-02-29 | RE7: 2465-02-28 | RF7: 2466-02-28 | RG7: 2467-02-28 | RH7: 2468-02-29 | RI7: 2469-02-28 | RJ7: 2470-02-28 | RK7: 2471-02-28 | RL7: 2472-02-29 | RM7: 2473-02-28 | RN7: 2474-02-28 | RO7: 2475-02-28 | RP7: 2476-02-29 | RQ7: 2477-02-28 | RR7: 2478-02-28 | RS7: 2479-02-28 | RT7: 2480-02-29 | RU7: 2481-02-28 | RV7: 2482-02-28 | RW7: 2483-02-28 | RX7: 2484-02-29 | RY7: 2485-02-28 | RZ7: 2486-02-28 | SA7: 2487-02-28 | SB7: 2488-02-29 | SC7: 2489-02-28 | SD7: 2490-02-28 | SE7: 2491-02-28 | SF7: 2492-02-29 | SG7: 2493-02-28 | SH7: 2494-02-28 | SI7: 2495-02-28 | SJ7: 2496-02-29 | SK7: 2497-02-28 | SL7: 2498-02-28 | SM7: 2499-02-28 | SN7: 2500-02-28 | SO7: 2501-02-28 | SP7: 2502-02-28 | SQ7: 2503-02-28 | SR7: 2504-02-29 | SS7: 2505-02-28 | ST7: 2506-02-28 | SU7: 2507-02-28 | SV7: 2508-02-29 | SW7: 2509-02-28 | SX7: 2510-02-28 | SY7: 2511-02-28 | SZ7: 2512-02-29 | TA7: 2513-02-28 | TB7: =EOMONTH(TB6,TB5-1) -> 2514-02-28 | TC7: 2515-02-28 | TD7: 2516-02-29 | TE7: 2517-02-28 | TF7: 2518-02-28 | TG7: 2519-02-28 | TH7: 2520-02-29 | TI7: 2521-02-28 | TJ7: 2522-02-28 | TK7: 2523-02-28 | TL7: 2524-02-29 | TM7: 2525-02-28 | TN7: 2526-02-28 | TO7: 2527-02-28 | TP7: 2528-02-29 | TQ7: 2529-02-28 | TR7: 2530-02-28 | TS7: 2531-02-28 | TT7: 2532-02-29 | TU7: 2533-02-28 | TV7: 2534-02-28 | TW7: 2535-02-28 | TX7: 2536-02-29 | TY7: 2537-02-28 | TZ7: 2538-02-28 | UA7: 2539-02-28 | UB7: 2540-02-29 | UC7: 2541-02-28 | UD7: 2542-02-28 | UE7: 2543-02-28 | UF7: 2544-02-29 | UG7: 2545-02-28 | UH7: 2546-02-28 | UI7: 2547-02-28 | UJ7: 2548-02-29 | UK7: 2549-02-28 | UL7: 2550-02-28 | UM7: 2551-02-28 | UN7: 2552-02-29 | UO7: 2553-02-28 | UP7: 2554-02-28 | UQ7: 2555-02-28 | UR7: 2556-02-29 | US7: 2557-02-28 | UT7: 2558-02-28 | UU7: 2559-02-28 | UV7: 2560-02-29 | UW7: 2561-02-28 | UX7: 2562-02-28 | UY7: 2563-02-28 | UZ7: 2564-02-29 | VA7: 2565-02-28 | VB7: 2566-02-28 | VC7: 2567-02-28 | VD7: 2568-02-29 | VE7: 2569-02-28 | VF7: 2570-02-28 | VG7: 2571-02-28 | VH7: 2572-02-29 | VI7: 2573-02-28 | VJ7: 2574-02-28 | VK7: 2575-02-28 | VL7: 2576-02-29 | VM7: 2577-02-28 | VN7: =EOMONTH(VN6,VN5-1) -> 2578-02-28 | VO7: 2579-02-28 | VP7: 2580-02-29 | VQ7: 2581-02-28 | VR7: 2582-02-28 | VS7: 2583-02-28 | VT7: 2584-02-29 | VU7: 2585-02-28 | VV7: 2586-02-28 | VW7: 2587-02-28 | VX7: 2588-02-29 | VY7: 2589-02-28 | VZ7: 2590-02-28 | WA7: 2591-02-28 | WB7: 2592-02-29 | WC7: 2593-02-28 | WD7: 2594-02-28 | WE7: 2595-02-28 | WF7: 2596-02-29 | WG7: 2597-02-28 | WH7: 2598-02-28 | WI7: 2599-02-28 | WJ7: 2600-02-28 | WK7: 2601-02-28 | WL7: 2602-02-28 | WM7: 2603-02-28 | WN7: 2604-02-29 | WO7: 2605-02-28 | WP7: 2606-02-28 | WQ7: 2607-02-28 | WR7: 2608-02-29 | WS7: 2609-02-28 | WT7: 2610-02-28 | WU7: 2611-02-28 | WV7: 2612-02-29 | WW7: 2613-02-28 | WX7: 2614-02-28 | WY7: 2615-02-28 | WZ7: 2616-02-29 | XA7: 2617-02-28 | XB7: 2618-02-28 | XC7: 2619-02-28 | XD7: 2620-02-29 | XE7: 2621-02-28 | XF7: 2622-02-28 | XG7: 2623-02-28 | XH7: 2624-02-29 | XI7: 2625-02-28 | XJ7: 2626-02-28 | XK7: 2627-02-28 | XL7: 2628-02-29 | XM7: 2629-02-28 | XN7: 2630-02-28 | XO7: 2631-02-28 | XP7: 2632-02-29 | XQ7: 2633-02-28 | XR7: 2634-02-28 | XS7: 2635-02-28 | XT7: 2636-02-29 | XU7: 2637-02-28 | XV7: 2638-02-28 | XW7: 2639-02-28 | XX7: 2640-02-29 | XY7: 2641-02-28 | XZ7: =EOMONTH(XZ6,XZ5-1) -> 2642-02-28 | YA7: 2643-02-28 | YB7: 2644-02-29 | YC7: 2645-02-28 | YD7: 2646-02-28 | YE7: 2647-02-28 | YF7: 2648-02-29 | YG7: 2649-02-28 | YH7: 2650-02-28 | YI7: 2651-02-28 | YJ7: 2652-02-29 | YK7: 2653-02-28 | YL7: 2654-02-28 | YM7: 2655-02-28 | YN7: 2656-02-29 | YO7: 2657-02-28 | YP7: 2658-02-28 | YQ7: 2659-02-28 | YR7: 2660-02-29 | YS7: 2661-02-28 | YT7: 2662-02-28 | YU7: 2663-02-28 | YV7: 2664-02-29 | YW7: 2665-02-28 | YX7: 2666-02-28 | YY7: 2667-02-28 | YZ7: 2668-02-29 | ZA7: 2669-02-28 | ZB7: 2670-02-28 | ZC7: 2671-02-28 | ZD7: 2672-02-29 | ZE7: 2673-02-28 | ZF7: 2674-02-28 | ZG7: 2675-02-28 | ZH7: 2676-02-29 | ZI7: 2677-02-28 | ZJ7: 2678-02-28 | ZK7: 2679-02-28 | ZL7: 2680-02-29 | ZM7: 2681-02-28 | ZN7: 2682-02-28 | ZO7: 2683-02-28 | ZP7: 2684-02-29 | ZQ7: 2685-02-28 | ZR7: 2686-02-28 | ZS7: 2687-02-28 | ZT7: 2688-02-29 | ZU7: 2689-02-28 | ZV7: 2690-02-28 | ZW7: 2691-02-28 | ZX7: 2692-02-29 | ZY7: 2693-02-28 | ZZ7: 2694-02-28 | AAA7: 2695-02-28 | AAB7: 2696-02-29 | AAC7: 2697-02-28 | AAD7: 2698-02-28 | AAE7: 2699-02-28 | AAF7: 2700-02-28 | AAG7: 2701-02-28 | AAH7: 2702-02-28 | AAI7: 2703-02-28 | AAJ7: 2704-02-29 | AAK7: 2705-02-28 | AAL7: =EOMONTH(AAL6,AAL5-1) -> 2706-02-28 | AAM7: 2707-02-28 | AAN7: 2708-02-29 | AAO7: 2709-02-28 | AAP7: 2710-02-28 | AAQ7: 2711-02-28 | AAR7: 2712-02-29 | AAS7: 2713-02-28 | AAT7: 2714-02-28 | AAU7: 2715-02-28 | AAV7: 2716-02-29 | AAW7: 2717-02-28 | AAX7: 2718-02-28 | AAY7: 2719-02-28 | AAZ7: 2720-02-29 | ABA7: 2721-02-28 | ABB7: 2722-02-28 | ABC7: 2723-02-28 | ABD7: 2724-02-29 | ABE7: 2725-02-28 | ABF7: 2726-02-28 | ABG7: 2727-02-28 | ABH7: 2728-02-29 | ABI7: 2729-02-28 | ABJ7: 2730-02-28 | ABK7: 2731-02-28 | ABL7: 2732-02-29 | ABM7: 2733-02-28 | ABN7: 2734-02-28 | ABO7: 2735-02-28 | ABP7: 2736-02-29 | ABQ7: 2737-02-28 | ABR7: 2738-02-28 | ABS7: 2739-02-28 | ABT7: 2740-02-29 | ABU7: 2741-02-28 | ABV7: 2742-02-28 | ABW7: 2743-02-28 | ABX7: 2744-02-29 | ABY7: 2745-02-28 | ABZ7: 2746-02-28 | ACA7: 2747-02-28 | ACB7: 2748-02-29 | ACC7: 2749-02-28 | ACD7: 2750-02-28 | ACE7: 2751-02-28 | ACF7: 2752-02-29 | ACG7: 2753-02-28 | ACH7: 2754-02-28 | ACI7: 2755-02-28 | ACJ7: 2756-02-29 | ACK7: 2757-02-28 | ACL7: 2758-02-28 | ACM7: 2759-02-28 | ACN7: 2760-02-29 | ACO7: 2761-02-28 | ACP7: 2762-02-28 | ACQ7: 2763-02-28 | ACR7: 2764-02-29 | ACS7: 2765-02-28 | ACT7: 2766-02-28 | ACU7: 2767-02-28 | ACV7: 2768-02-29 | ACW7: 2769-02-28 | ACX7: =EOMONTH(ACX6,ACX5-1) -> 2770-02-28 | ACY7: 2771-02-28 | ACZ7: 2772-02-29 | ADA7: 2773-02-28 | ADB7: 2774-02-28 | ADC7: 2775-02-28 | ADD7: 2776-02-29 | ADE7: 2777-02-28 | ADF7: 2778-02-28 | ADG7: 2779-02-28 | ADH7: 2780-02-29 | ADI7: 2781-02-28 | ADJ7: 2782-02-28 | ADK7: 2783-02-28 | ADL7: 2784-02-29 | ADM7: 2785-02-28 | ADN7: 2786-02-28 | ADO7: 2787-02-28 | ADP7: 2788-02-29 | ADQ7: 2789-02-28 | ADR7: 2790-02-28 | ADS7: 2791-02-28 | ADT7: 2792-02-29 | ADU7: 2793-02-28 | ADV7: 2794-02-28 | ADW7: 2795-02-28 | ADX7: 2796-02-29 | ADY7: 2797-02-28 | ADZ7: 2798-02-28 | AEA7: 2799-02-28 | AEB7: 2800-02-29 | AEC7: 2801-02-28 | AED7: 2802-02-28 | AEE7: 2803-02-28 | AEF7: 2804-02-29 | AEG7: 2805-02-28 | AEH7: 2806-02-28 | AEI7: 2807-02-28 | AEJ7: 2808-02-29 | AEK7: 2809-02-28 | AEL7: 2810-02-28 | AEM7: 2811-02-28 | AEN7: 2812-02-29 | AEO7: 2813-02-28 | AEP7: 2814-02-28 | AEQ7: 2815-02-28 | AER7: 2816-02-29 | AES7: 2817-02-28 | AET7: 2818-02-28 | AEU7: 2819-02-28 | AEV7: 2820-02-29 | AEW7: 2821-02-28 | AEX7: 2822-02-28 | AEY7: 2823-02-28 | AEZ7: 2824-02-29 | AFA7: 2825-02-28 | AFB7: 2826-02-28 | AFC7: 2827-02-28 | AFD7: 2828-02-29 | AFE7: 2829-02-28 | AFF7: 2830-02-28 | AFG7: 2831-02-28 | AFH7: 2832-02-29 | AFI7: 2833-02-28 | AFJ7: =EOMONTH(AFJ6,AFJ5-1) -> 2834-02-28 | AFK7: 2835-02-28 | AFL7: 2836-02-29 | AFM7: 2837-02-28 | AFN7: 2838-02-28 | AFO7: 2839-02-28 | AFP7: 2840-02-29 | AFQ7: 2841-02-28 | AFR7: 2842-02-28 | AFS7: 2843-02-28 | AFT7: 2844-02-29 | AFU7: 2845-02-28 | AFV7: 2846-02-28 | AFW7: 2847-02-28 | AFX7: 2848-02-29 | AFY7: 2849-02-28 | AFZ7: 2850-02-28 | AGA7: 2851-02-28 | AGB7: 2852-02-29 | AGC7: 2853-02-28 | AGD7: 2854-02-28 | AGE7: 2855-02-28 | AGF7: 2856-02-29 | AGG7: 2857-02-28 | AGH7: 2858-02-28 | AGI7: 2859-02-28 | AGJ7: 2860-02-29 | AGK7: 2861-02-28
B8: Operating Period (COD) | E8: =EDATE(E6,E4+E5) -> 2001-03-01 | F8: ='Solar Carrying Charge'!F45 -> 2026-03-01 | G8: =COUNTIF(H8:AGK8,TRUE) -> 25 | I8: =AND(I6>=$E$8,I6<$F$8) -> FALSE | J8: =AND(J6>=$E$8,J6<$F$8) -> TRUE | K8: TRUE | L8: TRUE | M8: TRUE | N8: TRUE | O8: TRUE | P8: TRUE | Q8: TRUE | R8: TRUE | S8: TRUE | T8: TRUE | U8: TRUE | V8: TRUE | W8: TRUE | X8: TRUE | Y8: TRUE | Z8: TRUE | AA8: TRUE | AB8: TRUE | AC8: TRUE | AD8: TRUE | AE8: TRUE | AF8: TRUE | AG8: TRUE | AH8: TRUE | AI8: FALSE | AJ8: FALSE | AK8: FALSE | AL8: FALSE | AM8: FALSE | AN8: FALSE | AO8: FALSE | AP8: FALSE | AQ8: FALSE | AR8: FALSE | AS8: FALSE | AT8: FALSE | AU8: FALSE | AV8: FALSE | AW8: FALSE | AX8: FALSE | AY8: FALSE | AZ8: FALSE | BA8: FALSE | BB8: FALSE | BC8: FALSE | BD8: FALSE | BE8: FALSE | BF8: FALSE | BG8: FALSE | BH8: FALSE | BI8: FALSE | BJ8: FALSE | BK8: FALSE | BL8: FALSE | BM8: FALSE | BN8: FALSE | BO8: FALSE | BP8: FALSE | BQ8: FALSE | BR8: FALSE | BS8: FALSE | BT8: FALSE | BU8: FALSE | BV8: =AND(BV6>=$E$8,BV6<$F$8) -> FALSE | BW8: FALSE | BX8: FALSE | BY8: FALSE | BZ8: FALSE | CA8: FALSE | CB8: FALSE | CC8: FALSE | CD8: FALSE | CE8: FALSE | CF8: FALSE | CG8: FALSE | CH8: FALSE | CI8: FALSE | CJ8: FALSE | CK8: FALSE | CL8: FALSE | CM8: FALSE | CN8: FALSE | CO8: FALSE | CP8: FALSE | CQ8: FALSE | CR8: FALSE | CS8: FALSE | CT8: FALSE | CU8: FALSE | CV8: FALSE | CW8: FALSE | CX8: FALSE | CY8: FALSE | CZ8: FALSE | DA8: FALSE | DB8: FALSE | DC8: FALSE | DD8: FALSE | DE8: FALSE | DF8: FALSE | DG8: FALSE | DH8: FALSE | DI8: FALSE | DJ8: FALSE | DK8: FALSE | DL8: FALSE | DM8: FALSE | DN8: FALSE | DO8: FALSE | DP8: FALSE | DQ8: FALSE | DR8: FALSE | DS8: FALSE | DT8: FALSE | DU8: FALSE | DV8: FALSE | DW8: FALSE | DX8: FALSE | DY8: FALSE | DZ8: FALSE | EA8: FALSE | EB8: FALSE | EC8: FALSE | ED8: FALSE | EE8: FALSE | EF8: FALSE | EG8: FALSE | EH8: =AND(EH6>=$E$8,EH6<$F$8) -> FALSE | EI8: FALSE | EJ8: FALSE | EK8: FALSE | EL8: FALSE | EM8: FALSE | EN8: FALSE | EO8: FALSE | EP8: FALSE | EQ8: FALSE | ER8: FALSE | ES8: FALSE | ET8: FALSE | EU8: FALSE | EV8: FALSE | EW8: FALSE | EX8: FALSE | EY8: FALSE | EZ8: FALSE | FA8: FALSE | FB8: FALSE | FC8: FALSE | FD8: FALSE | FE8: FALSE | FF8: FALSE | FG8: FALSE | FH8: FALSE | FI8: FALSE | FJ8: FALSE | FK8: FALSE | FL8: FALSE | FM8: FALSE | FN8: FALSE | FO8: FALSE | FP8: FALSE | FQ8: FALSE | FR8: FALSE | FS8: FALSE | FT8: FALSE | FU8: FALSE | FV8: FALSE | FW8: FALSE | FX8: FALSE | FY8: FALSE | FZ8: FALSE | GA8: FALSE | GB8: FALSE | GC8: FALSE | GD8: FALSE | GE8: FALSE | GF8: FALSE | GG8: FALSE | GH8: FALSE | GI8: FALSE | GJ8: FALSE | GK8: FALSE | GL8: FALSE | GM8: FALSE | GN8: FALSE | GO8: FALSE | GP8: FALSE | GQ8: FALSE | GR8: FALSE | GS8: FALSE | GT8: =AND(GT6>=$E$8,GT6<$F$8) -> FALSE | GU8: FALSE | GV8: FALSE | GW8: FALSE | GX8: FALSE | GY8: FALSE | GZ8: FALSE | HA8: FALSE | HB8: FALSE | HC8: FALSE | HD8: FALSE | HE8: FALSE | HF8: FALSE | HG8: FALSE | HH8: FALSE | HI8: FALSE | HJ8: FALSE | HK8: FALSE | HL8: FALSE | HM8: FALSE | HN8: FALSE | HO8: FALSE | HP8: FALSE | HQ8: FALSE | HR8: FALSE | HS8: FALSE | HT8: FALSE | HU8: FALSE | HV8: FALSE | HW8: FALSE | HX8: FALSE | HY8: FALSE | HZ8: FALSE | IA8: FALSE | IB8: FALSE | IC8: FALSE | ID8: FALSE | IE8: FALSE | IF8: FALSE | IG8: FALSE | IH8: FALSE | II8: FALSE | IJ8: FALSE | IK8: FALSE | IL8: FALSE | IM8: FALSE | IN8: FALSE | IO8: FALSE | IP8: FALSE | IQ8: FALSE | IR8: FALSE | IS8: FALSE | IT8: FALSE | IU8: FALSE | IV8: FALSE | IW8: FALSE | IX8: FALSE | IY8: FALSE | IZ8: FALSE | JA8: FALSE | JB8: FALSE | JC8: FALSE | JD8: FALSE | JE8: FALSE | JF8: =AND(JF6>=$E$8,JF6<$F$8) -> FALSE | JG8: FALSE | JH8: FALSE | JI8: FALSE | JJ8: FALSE | JK8: FALSE | JL8: FALSE | JM8: FALSE | JN8: FALSE | JO8: FALSE | JP8: FALSE | JQ8: FALSE | JR8: FALSE | JS8: FALSE | JT8: FALSE | JU8: FALSE | JV8: FALSE | JW8: FALSE | JX8: FALSE | JY8: FALSE | JZ8: FALSE | KA8: FALSE | KB8: FALSE | KC8: FALSE | KD8: FALSE | KE8: FALSE | KF8: FALSE | KG8: FALSE | KH8: FALSE | KI8: FALSE | KJ8: FALSE | KK8: FALSE | KL8: FALSE | KM8: FALSE | KN8: FALSE | KO8: FALSE | KP8: FALSE | KQ8: FALSE | KR8: FALSE | KS8: FALSE | KT8: FALSE | KU8: FALSE | KV8: FALSE | KW8: FALSE | KX8: FALSE | KY8: FALSE | KZ8: FALSE | LA8: FALSE | LB8: FALSE | LC8: FALSE | LD8: FALSE | LE8: FALSE | LF8: FALSE | LG8: FALSE | LH8: FALSE | LI8: FALSE | LJ8: FALSE | LK8: FALSE | LL8: FALSE | LM8: FALSE | LN8: FALSE | LO8: FALSE | LP8: FALSE | LQ8: FALSE | LR8: =AND(LR6>=$E$8,LR6<$F$8) -> FALSE | LS8: FALSE | LT8: FALSE | LU8: FALSE | LV8: FALSE | LW8: FALSE | LX8: FALSE | LY8: FALSE | LZ8: FALSE | MA8: FALSE | MB8: FALSE | MC8: FALSE | MD8: FALSE | ME8: FALSE | MF8: FALSE | MG8: FALSE | MH8: FALSE | MI8: FALSE | MJ8: FALSE | MK8: FALSE | ML8: FALSE | MM8: FALSE | MN8: FALSE | MO8: FALSE | MP8: FALSE | MQ8: FALSE | MR8: FALSE | MS8: FALSE | MT8: FALSE | MU8: FALSE | MV8: FALSE | MW8: FALSE | MX8: FALSE | MY8: FALSE | MZ8: FALSE | NA8: FALSE | NB8: FALSE | NC8: FALSE | ND8: FALSE | NE8: FALSE | NF8: FALSE | NG8: FALSE | NH8: FALSE | NI8: FALSE | NJ8: FALSE | NK8: FALSE | NL8: FALSE | NM8: FALSE | NN8: FALSE | NO8: FALSE | NP8: FALSE | NQ8: FALSE | NR8: FALSE | NS8: FALSE | NT8: FALSE | NU8: FALSE | NV8: FALSE | NW8: FALSE | NX8: FALSE | NY8: FALSE | NZ8: FALSE | OA8: FALSE | OB8: FALSE | OC8: FALSE | OD8: =AND(OD6>=$E$8,OD6<$F$8) -> FALSE | OE8: FALSE | OF8: FALSE | OG8: FALSE | OH8: FALSE | OI8: FALSE | OJ8: FALSE | OK8: FALSE | OL8: FALSE | OM8: FALSE | ON8: FALSE | OO8: FALSE | OP8: FALSE | OQ8: FALSE | OR8: FALSE | OS8: FALSE | OT8: FALSE | OU8: FALSE | OV8: FALSE | OW8: FALSE | OX8: FALSE | OY8: FALSE | OZ8: FALSE | PA8: FALSE | PB8: FALSE | PC8: FALSE | PD8: FALSE | PE8: FALSE | PF8: FALSE | PG8: FALSE | PH8: FALSE | PI8: FALSE | PJ8: FALSE | PK8: FALSE | PL8: FALSE | PM8: FALSE | PN8: FALSE | PO8: FALSE | PP8: FALSE | PQ8: FALSE | PR8: FALSE | PS8: FALSE | PT8: FALSE | PU8: FALSE | PV8: FALSE | PW8: FALSE | PX8: FALSE | PY8: FALSE | PZ8: FALSE | QA8: FALSE | QB8: FALSE | QC8: FALSE | QD8: FALSE | QE8: FALSE | QF8: FALSE | QG8: FALSE | QH8: FALSE | QI8: FALSE | QJ8: FALSE | QK8: FALSE | QL8: FALSE | QM8: FALSE | QN8: FALSE | QO8: FALSE | QP8: =AND(QP6>=$E$8,QP6<$F$8) -> FALSE | QQ8: FALSE | QR8: FALSE | QS8: FALSE | QT8: FALSE | QU8: FALSE | QV8: FALSE | QW8: FALSE | QX8: FALSE | QY8: FALSE | QZ8: FALSE | RA8: FALSE | RB8: FALSE | RC8: FALSE | RD8: FALSE | RE8: FALSE | RF8: FALSE | RG8: FALSE | RH8: FALSE | RI8: FALSE | RJ8: FALSE | RK8: FALSE | RL8: FALSE | RM8: FALSE | RN8: FALSE | RO8: FALSE | RP8: FALSE | RQ8: FALSE | RR8: FALSE | RS8: FALSE | RT8: FALSE | RU8: FALSE | RV8: FALSE | RW8: FALSE | RX8: FALSE | RY8: FALSE | RZ8: FALSE | SA8: FALSE | SB8: FALSE | SC8: FALSE | SD8: FALSE | SE8: FALSE | SF8: FALSE | SG8: FALSE | SH8: FALSE | SI8: FALSE | SJ8: FALSE | SK8: FALSE | SL8: FALSE | SM8: FALSE | SN8: FALSE | SO8: FALSE | SP8: FALSE | SQ8: FALSE | SR8: FALSE | SS8: FALSE | ST8: FALSE | SU8: FALSE | SV8: FALSE | SW8: FALSE | SX8: FALSE | SY8: FALSE | SZ8: FALSE | TA8: FALSE | TB8: =AND(TB6>=$E$8,TB6<$F$8) -> FALSE | TC8: FALSE | TD8: FALSE | TE8: FALSE | TF8: FALSE | TG8: FALSE | TH8: FALSE | TI8: FALSE | TJ8: FALSE | TK8: FALSE | TL8: FALSE | TM8: FALSE | TN8: FALSE | TO8: FALSE | TP8: FALSE | TQ8: FALSE | TR8: FALSE | TS8: FALSE | TT8: FALSE | TU8: FALSE | TV8: FALSE | TW8: FALSE | TX8: FALSE | TY8: FALSE | TZ8: FALSE | UA8: FALSE | UB8: FALSE | UC8: FALSE | UD8: FALSE | UE8: FALSE | UF8: FALSE | UG8: FALSE | UH8: FALSE | UI8: FALSE | UJ8: FALSE | UK8: FALSE | UL8: FALSE | UM8: FALSE | UN8: FALSE | UO8: FALSE | UP8: FALSE | UQ8: FALSE | UR8: FALSE | US8: FALSE | UT8: FALSE | UU8: FALSE | UV8: FALSE | UW8: FALSE | UX8: FALSE | UY8: FALSE | UZ8: FALSE | VA8: FALSE | VB8: FALSE | VC8: FALSE | VD8: FALSE | VE8: FALSE | VF8: FALSE | VG8: FALSE | VH8: FALSE | VI8: FALSE | VJ8: FALSE | VK8: FALSE | VL8: FALSE | VM8: FALSE | VN8: =AND(VN6>=$E$8,VN6<$F$8) -> FALSE | VO8: FALSE | VP8: FALSE | VQ8: FALSE | VR8: FALSE | VS8: FALSE | VT8: FALSE | VU8: FALSE | VV8: FALSE | VW8: FALSE | VX8: FALSE | VY8: FALSE | VZ8: FALSE | WA8: FALSE | WB8: FALSE | WC8: FALSE | WD8: FALSE | WE8: FALSE | WF8: FALSE | WG8: FALSE | WH8: FALSE | WI8: FALSE | WJ8: FALSE | WK8: FALSE | WL8: FALSE | WM8: FALSE | WN8: FALSE | WO8: FALSE | WP8: FALSE | WQ8: FALSE | WR8: FALSE | WS8: FALSE | WT8: FALSE | WU8: FALSE | WV8: FALSE | WW8: FALSE | WX8: FALSE | WY8: FALSE | WZ8: FALSE | XA8: FALSE | XB8: FALSE | XC8: FALSE | XD8: FALSE | XE8: FALSE | XF8: FALSE | XG8: FALSE | XH8: FALSE | XI8: FALSE | XJ8: FALSE | XK8: FALSE | XL8: FALSE | XM8: FALSE | XN8: FALSE | XO8: FALSE | XP8: FALSE | XQ8: FALSE | XR8: FALSE | XS8: FALSE | XT8: FALSE | XU8: FALSE | XV8: FALSE | XW8: FALSE | XX8: FALSE | XY8: FALSE | XZ8: =AND(XZ6>=$E$8,XZ6<$F$8) -> FALSE | YA8: FALSE | YB8: FALSE | YC8: FALSE | YD8: FALSE | YE8: FALSE | YF8: FALSE | YG8: FALSE | YH8: FALSE | YI8: FALSE | YJ8: FALSE | YK8: FALSE | YL8: FALSE | YM8: FALSE | YN8: FALSE | YO8: FALSE | YP8: FALSE | YQ8: FALSE | YR8: FALSE | YS8: FALSE | YT8: FALSE | YU8: FALSE | YV8: FALSE | YW8: FALSE | YX8: FALSE | YY8: FALSE | YZ8: FALSE | ZA8: FALSE | ZB8: FALSE | ZC8: FALSE | ZD8: FALSE | ZE8: FALSE | ZF8: FALSE | ZG8: FALSE | ZH8: FALSE | ZI8: FALSE | ZJ8: FALSE | ZK8: FALSE | ZL8: FALSE | ZM8: FALSE | ZN8: FALSE | ZO8: FALSE | ZP8: FALSE | ZQ8: FALSE | ZR8: FALSE | ZS8: FALSE | ZT8: FALSE | ZU8: FALSE | ZV8: FALSE | ZW8: FALSE | ZX8: FALSE | ZY8: FALSE | ZZ8: FALSE | AAA8: FALSE | AAB8: FALSE | AAC8: FALSE | AAD8: FALSE | AAE8: FALSE | AAF8: FALSE | AAG8: FALSE | AAH8: FALSE | AAI8: FALSE | AAJ8: FALSE | AAK8: FALSE | AAL8: =AND(AAL6>=$E$8,AAL6<$F$8) -> FALSE | AAM8: FALSE | AAN8: FALSE | AAO8: FALSE | AAP8: FALSE | AAQ8: FALSE | AAR8: FALSE | AAS8: FALSE | AAT8: FALSE | AAU8: FALSE | AAV8: FALSE | AAW8: FALSE | AAX8: FALSE | AAY8: FALSE | AAZ8: FALSE | ABA8: FALSE | ABB8: FALSE | ABC8: FALSE | ABD8: FALSE | ABE8: FALSE | ABF8: FALSE | ABG8: FALSE | ABH8: FALSE | ABI8: FALSE | ABJ8: FALSE | ABK8: FALSE | ABL8: FALSE | ABM8: FALSE | ABN8: FALSE | ABO8: FALSE | ABP8: FALSE | ABQ8: FALSE | ABR8: FALSE | ABS8: FALSE | ABT8: FALSE | ABU8: FALSE | ABV8: FALSE | ABW8: FALSE | ABX8: FALSE | ABY8: FALSE | ABZ8: FALSE | ACA8: FALSE | ACB8: FALSE | ACC8: FALSE | ACD8: FALSE | ACE8: FALSE | ACF8: FALSE | ACG8: FALSE | ACH8: FALSE | ACI8: FALSE | ACJ8: FALSE | ACK8: FALSE | ACL8: FALSE | ACM8: FALSE | ACN8: FALSE | ACO8: FALSE | ACP8: FALSE | ACQ8: FALSE | ACR8: FALSE | ACS8: FALSE | ACT8: FALSE | ACU8: FALSE | ACV8: FALSE | ACW8: FALSE | ACX8: =AND(ACX6>=$E$8,ACX6<$F$8) -> FALSE | ACY8: FALSE | ACZ8: FALSE | ADA8: FALSE | ADB8: FALSE | ADC8: FALSE | ADD8: FALSE | ADE8: FALSE | ADF8: FALSE | ADG8: FALSE | ADH8: FALSE | ADI8: FALSE | ADJ8: FALSE | ADK8: FALSE | ADL8: FALSE | ADM8: FALSE | ADN8: FALSE | ADO8: FALSE | ADP8: FALSE | ADQ8: FALSE | ADR8: FALSE | ADS8: FALSE | ADT8: FALSE | ADU8: FALSE | ADV8: FALSE | ADW8: FALSE | ADX8: FALSE | ADY8: FALSE | ADZ8: FALSE | AEA8: FALSE | AEB8: FALSE | AEC8: FALSE | AED8: FALSE | AEE8: FALSE | AEF8: FALSE | AEG8: FALSE | AEH8: FALSE | AEI8: FALSE | AEJ8: FALSE | AEK8: FALSE | AEL8: FALSE | AEM8: FALSE | AEN8: FALSE | AEO8: FALSE | AEP8: FALSE | AEQ8: FALSE | AER8: FALSE | AES8: FALSE | AET8: FALSE | AEU8: FALSE | AEV8: FALSE | AEW8: FALSE | AEX8: FALSE | AEY8: FALSE | AEZ8: FALSE | AFA8: FALSE | AFB8: FALSE | AFC8: FALSE | AFD8: FALSE | AFE8: FALSE | AFF8: FALSE | AFG8: FALSE | AFH8: FALSE | AFI8: FALSE | AFJ8: =AND(AFJ6>=$E$8,AFJ6<$F$8) -> FALSE | AFK8: FALSE | AFL8: FALSE | AFM8: FALSE | AFN8: FALSE | AFO8: FALSE | AFP8: FALSE | AFQ8: FALSE | AFR8: FALSE | AFS8: FALSE | AFT8: FALSE | AFU8: FALSE | AFV8: FALSE | AFW8: FALSE | AFX8: FALSE | AFY8: FALSE | AFZ8: FALSE | AGA8: FALSE | AGB8: FALSE | AGC8: FALSE | AGD8: FALSE | AGE8: FALSE | AGF8: FALSE | AGG8: FALSE | AGH8: FALSE | AGI8: FALSE | AGJ8: FALSE | AGK8: FALSE
B9: Plant Age | I9: =H9+I8 -> 0 | J9: 1 | K9: 2 | L9: 3 | M9: 4 | N9: 5 | O9: 6 | P9: 7 | Q9: 8 | R9: 9 | S9: 10 | T9: 11 | U9: 12 | V9: 13 | W9: 14 | X9: 15 | Y9: 16 | Z9: 17 | AA9: 18 | AB9: 19 | AC9: 20 | AD9: 21 | AE9: 22 | AF9: 23 | AG9: 24 | AH9: 25 | AI9: 25 | AJ9: 25 | AK9: 25 | AL9: 25 | AM9: 25 | AN9: 25 | AO9: 25 | AP9: 25 | AQ9: 25 | AR9: 25 | AS9: 25 | AT9: 25 | AU9: 25 | AV9: 25 | AW9: 25 | AX9: 25 | AY9: 25 | AZ9: 25 | BA9: 25 | BB9: 25 | BC9: 25 | BD9: 25 | BE9: 25 | BF9: 25 | BG9: 25 | BH9: 25 | BI9: 25 | BJ9: 25 | BK9: 25 | BL9: 25 | BM9: 25 | BN9: 25 | BO9: 25 | BP9: 25 | BQ9: 25 | BR9: 25 | BS9: 25 | BT9: 25 | BU9: =BT9+BU8 -> 25 | BV9: 25 | BW9: 25 | BX9: 25 | BY9: 25 | BZ9: 25 | CA9: 25 | CB9: 25 | CC9: 25 | CD9: 25 | CE9: 25 | CF9: 25 | CG9: 25 | CH9: 25 | CI9: 25 | CJ9: 25 | CK9: 25 | CL9: 25 | CM9: 25 | CN9: 25 | CO9: 25 | CP9: 25 | CQ9: 25 | CR9: 25 | CS9: 25 | CT9: 25 | CU9: 25 | CV9: 25 | CW9: 25 | CX9: 25 | CY9: 25 | CZ9: 25 | DA9: 25 | DB9: 25 | DC9: 25 | DD9: 25 | DE9: 25 | DF9: 25 | DG9: 25 | DH9: 25 | DI9: 25 | DJ9: 25 | DK9: 25 | DL9: 25 | DM9: 25 | DN9: 25 | DO9: 25 | DP9: 25 | DQ9: 25 | DR9: 25 | DS9: 25 | DT9: 25 | DU9: 25 | DV9: 25 | DW9: 25 | DX9: 25 | DY9: 25 | DZ9: 25 | EA9: 25 | EB9: 25 | EC9: 25 | ED9: 25 | EE9: 25 | EF9: 25 | EG9: =EF9+EG8 -> 25 | EH9: 25 | EI9: 25 | EJ9: 25 | EK9: 25 | EL9: 25 | EM9: 25 | EN9: 25 | EO9: 25 | EP9: 25 | EQ9: 25 | ER9: 25 | ES9: 25 | ET9: 25 | EU9: 25 | EV9: 25 | EW9: 25 | EX9: 25 | EY9: 25 | EZ9: 25 | FA9: 25 | FB9: 25 | FC9: 25 | FD9: 25 | FE9: 25 | FF9: 25 | FG9: 25 | FH9: 25 | FI9: 25 | FJ9: 25 | FK9: 25 | FL9: 25 | FM9: 25 | FN9: 25 | FO9: 25 | FP9: 25 | FQ9: 25 | FR9: 25 | FS9: 25 | FT9: 25 | FU9: 25 | FV9: 25 | FW9: 25 | FX9: 25 | FY9: 25 | FZ9: 25 | GA9: 25 | GB9: 25 | GC9: 25 | GD9: 25 | GE9: 25 | GF9: 25 | GG9: 25 | GH9: 25 | GI9: 25 | GJ9: 25 | GK9: 25 | GL9: 25 | GM9: 25 | GN9: 25 | GO9: 25 | GP9: 25 | GQ9: 25 | GR9: 25 | GS9: =GR9+GS8 -> 25 | GT9: 25 | GU9: 25 | GV9: 25 | GW9: 25 | GX9: 25 | GY9: 25 | GZ9: 25 | HA9: 25 | HB9: 25 | HC9: 25 | HD9: 25 | HE9: 25 | HF9: 25 | HG9: 25 | HH9: 25 | HI9: 25 | HJ9: 25 | HK9: 25 | HL9: 25 | HM9: 25 | HN9: 25 | HO9: 25 | HP9: 25 | HQ9: 25 | HR9: 25 | HS9: 25 | HT9: 25 | HU9: 25 | HV9: 25 | HW9: 25 | HX9: 25 | HY9: 25 | HZ9: 25 | IA9: 25 | IB9: 25 | IC9: 25 | ID9: 25 | IE9: 25 | IF9: 25 | IG9: 25 | IH9: 25 | II9: 25 | IJ9: 25 | IK9: 25 | IL9: 25 | IM9: 25 | IN9: 25 | IO9: 25 | IP9: 25 | IQ9: 25 | IR9: 25 | IS9: 25 | IT9: 25 | IU9: 25 | IV9: 25 | IW9: 25 | IX9: 25 | IY9: 25 | IZ9: 25 | JA9: 25 | JB9: 25 | JC9: 25 | JD9: 25 | JE9: =JD9+JE8 -> 25 | JF9: 25 | JG9: 25 | JH9: 25 | JI9: 25 | JJ9: 25 | JK9: 25 | JL9: 25 | JM9: 25 | JN9: 25 | JO9: 25 | JP9: 25 | JQ9: 25 | JR9: 25 | JS9: 25 | JT9: 25 | JU9: 25 | JV9: 25 | JW9: 25 | JX9: 25 | JY9: 25 | JZ9: 25 | KA9: 25 | KB9: 25 | KC9: 25 | KD9: 25 | KE9: 25 | KF9: 25 | KG9: 25 | KH9: 25 | KI9: 25 | KJ9: 25 | KK9: 25 | KL9: 25 | KM9: 25 | KN9: 25 | KO9: 25 | KP9: 25 | KQ9: 25 | KR9: 25 | KS9: 25 | KT9: 25 | KU9: 25 | KV9: 25 | KW9: 25 | KX9: 25 | KY9: 25 | KZ9: 25 | LA9: 25 | LB9: 25 | LC9: 25 | LD9: 25 | LE9: 25 | LF9: 25 | LG9: 25 | LH9: 25 | LI9: 25 | LJ9: 25 | LK9: 25 | LL9: 25 | LM9: 25 | LN9: 25 | LO9: 25 | LP9: 25 | LQ9: =LP9+LQ8 -> 25 | LR9: 25 | LS9: 25 | LT9: 25 | LU9: 25 | LV9: 25 | LW9: 25 | LX9: 25 | LY9: 25 | LZ9: 25 | MA9: 25 | MB9: 25 | MC9: 25 | MD9: 25 | ME9: 25 | MF9: 25 | MG9: 25 | MH9: 25 | MI9: 25 | MJ9: 25 | MK9: 25 | ML9: 25 | MM9: 25 | MN9: 25 | MO9: 25 | MP9: 25 | MQ9: 25 | MR9: 25 | MS9: 25 | MT9: 25 | MU9: 25 | MV9: 25 | MW9: 25 | MX9: 25 | MY9: 25 | MZ9: 25 | NA9: 25 | NB9: 25 | NC9: 25 | ND9: 25 | NE9: 25 | NF9: 25 | NG9: 25 | NH9: 25 | NI9: 25 | NJ9: 25 | NK9: 25 | NL9: 25 | NM9: 25 | NN9: 25 | NO9: 25 | NP9: 25 | NQ9: 25 | NR9: 25 | NS9: 25 | NT9: 25 | NU9: 25 | NV9: 25 | NW9: 25 | NX9: 25 | NY9: 25 | NZ9: 25 | OA9: 25 | OB9: 25 | OC9: =OB9+OC8 -> 25 | OD9: 25 | OE9: 25 | OF9: 25 | OG9: 25 | OH9: 25 | OI9: 25 | OJ9: 25 | OK9: 25 | OL9: 25 | OM9: 25 | ON9: 25 | OO9: 25 | OP9: 25 | OQ9: 25 | OR9: 25 | OS9: 25 | OT9: 25 | OU9: 25 | OV9: 25 | OW9: 25 | OX9: 25 | OY9: 25 | OZ9: 25 | PA9: 25 | PB9: 25 | PC9: 25 | PD9: 25 | PE9: 25 | PF9: 25 | PG9: 25 | PH9: 25 | PI9: 25 | PJ9: 25 | PK9: 25 | PL9: 25 | PM9: 25 | PN9: 25 | PO9: 25 | PP9: 25 | PQ9: 25 | PR9: 25 | PS9: 25 | PT9: 25 | PU9: 25 | PV9: 25 | PW9: 25 | PX9: 25 | PY9: 25 | PZ9: 25 | QA9: 25 | QB9: 25 | QC9: 25 | QD9: 25 | QE9: 25 | QF9: 25 | QG9: 25 | QH9: 25 | QI9: 25 | QJ9: 25 | QK9: 25 | QL9: 25 | QM9: 25 | QN9: 25 | QO9: =QN9+QO8 -> 25 | QP9: 25 | QQ9: 25 | QR9: 25 | QS9: 25 | QT9: 25 | QU9: 25 | QV9: 25 | QW9: 25 | QX9: 25 | QY9: 25 | QZ9: 25 | RA9: 25 | RB9: 25 | RC9: 25 | RD9: 25 | RE9: 25 | RF9: 25 | RG9: 25 | RH9: 25 | RI9: 25 | RJ9: 25 | RK9: 25 | RL9: 25 | RM9: 25 | RN9: 25 | RO9: 25 | RP9: 25 | RQ9: 25 | RR9: 25 | RS9: 25 | RT9: 25 | RU9: 25 | RV9: 25 | RW9: 25 | RX9: 25 | RY9: 25 | RZ9: 25 | SA9: 25 | SB9: 25 | SC9: 25 | SD9: 25 | SE9: 25 | SF9: 25 | SG9: 25 | SH9: 25 | SI9: 25 | SJ9: 25 | SK9: 25 | SL9: 25 | SM9: 25 | SN9: 25 | SO9: 25 | SP9: 25 | SQ9: 25 | SR9: 25 | SS9: 25 | ST9: 25 | SU9: 25 | SV9: 25 | SW9: 25 | SX9: 25 | SY9: 25 | SZ9: 25 | TA9: =SZ9+TA8 -> 25 | TB9: 25 | TC9: 25 | TD9: 25 | TE9: 25 | TF9: 25 | TG9: 25 | TH9: 25 | TI9: 25 | TJ9: 25 | TK9: 25 | TL9: 25 | TM9: 25 | TN9: 25 | TO9: 25 | TP9: 25 | TQ9: 25 | TR9: 25 | TS9: 25 | TT9: 25 | TU9: 25 | TV9: 25 | TW9: 25 | TX9: 25 | TY9: 25 | TZ9: 25 | UA9: 25 | UB9: 25 | UC9: 25 | UD9: 25 | UE9: 25 | UF9: 25 | UG9: 25 | UH9: 25 | UI9: 25 | UJ9: 25 | UK9: 25 | UL9: 25 | UM9: 25 | UN9: 25 | UO9: 25 | UP9: 25 | UQ9: 25 | UR9: 25 | US9: 25 | UT9: 25 | UU9: 25 | UV9: 25 | UW9: 25 | UX9: 25 | UY9: 25 | UZ9: 25 | VA9: 25 | VB9: 25 | VC9: 25 | VD9: 25 | VE9: 25 | VF9: 25 | VG9: 25 | VH9: 25 | VI9: 25 | VJ9: 25 | VK9: 25 | VL9: 25 | VM9: =VL9+VM8 -> 25 | VN9: 25 | VO9: 25 | VP9: 25 | VQ9: 25 | VR9: 25 | VS9: 25 | VT9: 25 | VU9: 25 | VV9: 25 | VW9: 25 | VX9: 25 | VY9: 25 | VZ9: 25 | WA9: 25 | WB9: 25 | WC9: 25 | WD9: 25 | WE9: 25 | WF9: 25 | WG9: 25 | WH9: 25 | WI9: 25 | WJ9: 25 | WK9: 25 | WL9: 25 | WM9: 25 | WN9: 25 | WO9: 25 | WP9: 25 | WQ9: 25 | WR9: 25 | WS9: 25 | WT9: 25 | WU9: 25 | WV9: 25 | WW9: 25 | WX9: 25 | WY9: 25 | WZ9: 25 | XA9: 25 | XB9: 25 | XC9: 25 | XD9: 25 | XE9: 25 | XF9: 25 | XG9: 25 | XH9: 25 | XI9: 25 | XJ9: 25 | XK9: 25 | XL9: 25 | XM9: 25 | XN9: 25 | XO9: 25 | XP9: 25 | XQ9: 25 | XR9: 25 | XS9: 25 | XT9: 25 | XU9: 25 | XV9: 25 | XW9: 25 | XX9: 25 | XY9: =XX9+XY8 -> 25 | XZ9: 25 | YA9: 25 | YB9: 25 | YC9: 25 | YD9: 25 | YE9: 25 | YF9: 25 | YG9: 25 | YH9: 25 | YI9: 25 | YJ9: 25 | YK9: 25 | YL9: 25 | YM9: 25 | YN9: 25 | YO9: 25 | YP9: 25 | YQ9: 25 | YR9: 25 | YS9: 25 | YT9: 25 | YU9: 25 | YV9: 25 | YW9: 25 | YX9: 25 | YY9: 25 | YZ9: 25 | ZA9: 25 | ZB9: 25 | ZC9: 25 | ZD9: 25 | ZE9: 25 | ZF9: 25 | ZG9: 25 | ZH9: 25 | ZI9: 25 | ZJ9: 25 | ZK9: 25 | ZL9: 25 | ZM9: 25 | ZN9: 25 | ZO9: 25 | ZP9: 25 | ZQ9: 25 | ZR9: 25 | ZS9: 25 | ZT9: 25 | ZU9: 25 | ZV9: 25 | ZW9: 25 | ZX9: 25 | ZY9: 25 | ZZ9: 25 | AAA9: 25 | AAB9: 25 | AAC9: 25 | AAD9: 25 | AAE9: 25 | AAF9: 25 | AAG9: 25 | AAH9: 25 | AAI9: 25 | AAJ9: 25 | AAK9: =AAJ9+AAK8 -> 25 | AAL9: 25 | AAM9: 25 | AAN9: 25 | AAO9: 25 | AAP9: 25 | AAQ9: 25 | AAR9: 25 | AAS9: 25 | AAT9: 25 | AAU9: 25 | AAV9: 25 | AAW9: 25 | AAX9: 25 | AAY9: 25 | AAZ9: 25 | ABA9: 25 | ABB9: 25 | ABC9: 25 | ABD9: 25 | ABE9: 25 | ABF9: 25 | ABG9: 25 | ABH9: 25 | ABI9: 25 | ABJ9: 25 | ABK9: 25 | ABL9: 25 | ABM9: 25 | ABN9: 25 | ABO9: 25 | ABP9: 25 | ABQ9: 25 | ABR9: 25 | ABS9: 25 | ABT9: 25 | ABU9: 25 | ABV9: 25 | ABW9: 25 | ABX9: 25 | ABY9: 25 | ABZ9: 25 | ACA9: 25 | ACB9: 25 | ACC9: 25 | ACD9: 25 | ACE9: 25 | ACF9: 25 | ACG9: 25 | ACH9: 25 | ACI9: 25 | ACJ9: 25 | ACK9: 25 | ACL9: 25 | ACM9: 25 | ACN9: 25 | ACO9: 25 | ACP9: 25 | ACQ9: 25 | ACR9: 25 | ACS9: 25 | ACT9: 25 | ACU9: 25 | ACV9: 25 | ACW9: =ACV9+ACW8 -> 25 | ACX9: 25 | ACY9: 25 | ACZ9: 25 | ADA9: 25 | ADB9: 25 | ADC9: 25 | ADD9: 25 | ADE9: 25 | ADF9: 25 | ADG9: 25 | ADH9: 25 | ADI9: 25 | ADJ9: 25 | ADK9: 25 | ADL9: 25 | ADM9: 25 | ADN9: 25 | ADO9: 25 | ADP9: 25 | ADQ9: 25 | ADR9: 25 | ADS9: 25 | ADT9: 25 | ADU9: 25 | ADV9: 25 | ADW9: 25 | ADX9: 25 | ADY9: 25 | ADZ9: 25 | AEA9: 25 | AEB9: 25 | AEC9: 25 | AED9: 25 | AEE9: 25 | AEF9: 25 | AEG9: 25 | AEH9: 25 | AEI9: 25 | AEJ9: 25 | AEK9: 25 | AEL9: 25 | AEM9: 25 | AEN9: 25 | AEO9: 25 | AEP9: 25 | AEQ9: 25 | AER9: 25 | AES9: 25 | AET9: 25 | AEU9: 25 | AEV9: 25 | AEW9: 25 | AEX9: 25 | AEY9: 25 | AEZ9: 25 | AFA9: 25 | AFB9: 25 | AFC9: 25 | AFD9: 25 | AFE9: 25 | AFF9: 25 | AFG9: 25 | AFH9: 25 | AFI9: =AFH9+AFI8 -> 25 | AFJ9: 25 | AFK9: 25 | AFL9: 25 | AFM9: 25 | AFN9: 25 | AFO9: 25 | AFP9: 25 | AFQ9: 25 | AFR9: 25 | AFS9: 25 | AFT9: 25 | AFU9: 25 | AFV9: 25 | AFW9: 25 | AFX9: 25 | AFY9: 25 | AFZ9: 25 | AGA9: 25 | AGB9: 25 | AGC9: 25 | AGD9: 25 | AGE9: 25 | AGF9: 25 | AGG9: 25 | AGH9: 25 | AGI9: 25 | AGJ9: 25 | AGK9: 25
A11: Assumptions for Computing Carrying Charge Rates | O11: Amount | P11: Percent
B12: Timing Assumptions | I12: Initial Required Payment | K12: =F159 -> 65.12291298 | M12: Premium to Equity
C13: Start Date | E13: Date | F13: 2001-01-01 | I13: Overnight Cost | K13: =F32 -> 1000 | M13: Premium to Debt
C14: Months in Period for Construction Period | E14: Months | F14: 1 | I14: Level Payment with Inflation | K14: =K12/K13 -> 0.06512291298 | M14: Total Premium
C15: Months in Period for Operating Period | E15: Months | F15: 12
B17: Inflation Rate
C18: Inflation Rate | E18: % p.a. | F18: 0.03
C19: Degradation Rate | E19: % p.a. | F19: 0
C20: Net Inflation Rate | F20: =(1+F18)*(1-F19)-1 -> 0.03
C21: Periodic Inflation Rate - Construction | E21: % p.p. | F21: =IF(F14=1,0,(1+F20)^(F14/12)-1) -> 0
C22: Periodic Inflation Rate - Operation | E22: % p.p. | F22: =(1+F20)^(F15/12)-1 -> 0.03
B24: Returns and Capital Structure
C25: Equity Return | E25: % p.a. | F25: 0.07
C26: Base Rate (e.g. LIBOR) | E26: % p.a. | F26: 0
C27: Credit Spread | E27: % p.a. | F27: 0
C28: Total Interest Rate | E28: % p.a. | F28: 0
C29: Debt Percent | E29: % | F29: 0
B31: Construction
C32: Overnight Construction Cost | E32: Currency | F32: 1000
C33: Construction Months | E33: Months | F33: 1
C34: End of Construction Period | E34: Date | F34: =EDATE(F13,F33) -> 2001-02-01
C35: Mean for S-Curve (Multiplied by Construction Months) | E35: % | F35: 0.5
C36: Mean Month of Construction for S-Curve Analysis | E36: Month | F36: =F35*F33 -> 0.5
C37: Standard Deviation for S-Curve (Multiply by Mean) | E37: % | F37: 7
C38: Standard Deviation of S-Curve | E38: Months | F38: =F36/F37 -> 0.07142857143
B40: Operating Period
C41: Operating Years | E41: Years | F41: 25
C42: Operating Months | E42: Months | F42: =F41*12 -> 300
C43: Operating Periods | E43: Periods | F43: =F41*12/F15 -> 25
C44: COD | E44: Date | F44: =EDATE(F13,F33+F14) -> 2001-03-01
C45: Decomissioning | E45: Date | F45: =EDATE(F44,F42) -> 2026-03-01
B47: Replacement Capital Expenditures and Decomissioning
C48: Replacement Cost | E48: Currency | F48: 0
C49: Replacement Percent | E49: % | F49: =IF(F32,F48/F32) -> 0
C50: Replacement Year | E50: Year | F50: 15
C51: Replacement Period | E51: Month | F51: =F50*12 -> 180 | L51: =F58 -> 0
C52: Replacement Date | E52: Date | F52: =EDATE(F44,F51) -> 2016-03-01 | J52: Percent | K52: Pre-tax Cost | L52: After-tax | M52: WACC | N52: Debt Cost | O52: Risk Free | P52: Equity
I53: Debt | J53: =F29 -> 0 | K53: =F28 -> 0 | L53: =K53*(1-L51) -> 0 | M53: =L53*J53 -> 0
C54: Decomissioning Cost (Residual as Negative) | E54: Currency | F54: 0 | I54: Equity | J54: =1-J53 -> 1 | K54: =F25 -> 0.07 | L54: =K54 -> 0.07 | M54: =L54*J54 -> 0.07
C55: Decommissioning Percent | E55: % | F55: =IF(F32,F54/F32) -> 0 | I55: Total | J55: =SUM(J53:J54) -> 1 | M55: =SUM(M53:M54) -> 0.07 | O55: =F26 -> 0 | P55: =K54 -> 0.07
I56: Periodic WACC - Construction | M56: =(1+M55)^($F$14/12)-1 -> 0.005654145387 | N56: =(1+K53)^($F$14/12)-1 -> 0 | O56: =(1+O55)^($F$14/12)-1 -> 0 | P56: =(1+P55)^($F$14/12)-1 -> 0.005654145387
B57: Taxes | I57: Periodic WACC - Operation | M57: =(1+M55)^($F$15/12)-1 -> 0.07 | N57: =(1+K53)^($F$15/12)-1 -> 0 | O57: =(1+O55)^($F$14/12)-1 -> 0 | P57: =(1+P55)^($F$15/12)-1 -> 0.07
C58: Income Tax Rate | E58: % | F58: =G58/100 -> 0 | G58: 0 | I58: Real WACC - Construction | M58: =(1+M56)/(1+F21)-1 -> 0.005654145387
C59: Tax Depreciation Life - Base Plant | E59: Years | F59: 25 | I59: Real WACC - Operation | M59: =(1+M57)/(1+F22)-1 -> 0.03883495146
C60: Tax Depreciation Factor | E60: VDB | F60: 1
C61: Apply Depreciation | E61: Switch | F61: TRUE
C62: Year | E62: Year | I62: 0 | J62: 1 | K62: 2 | L62: 3 | M62: 4 | N62: 5 | O62: 6 | P62: 7 | Q62: 8 | R62: 9 | S62: 10 | T62: 11 | U62: 12 | V62: 13 | W62: 14 | X62: 15 | Y62: 16 | Z62: 17 | AA62: 18 | AB62: 19 | AC62: 20 | AD62: 21 | AE62: 22 | AF62: 23 | AG62: 24 | AH62: 25 | AI62: 26 | AJ62: 27 | AK62: 28 | AL62: 29 | AM62: 30 | AN62: 31 | AO62: 32 | AP62: 33 | AQ62: 34 | AR62: 35 | AS62: 36 | AT62: 37 | AU62: 38 | AV62: 39 | AW62: 40 | AX62: 41 | AY62: 42 | AZ62: 43 | BA62: 44 | BB62: 45 | BC62: 46 | BD62: 47 | BE62: 48 | BF62: 49 | BG62: 50 | BH62: 51
C63: Annual Depreciation Rate - Base Plant | E63: % p.a. | H63: =F61 -> TRUE | J63: =IFERROR(VDB(1,0,$F$59,I62,J62,$F$60),0)*$H$63 -> 0.04 | K63: =IFERROR(VDB(1,0,$F$59,J62,K62,$F$60),0)*$H$63 -> 0.04 | L63: 0.04 | M63: 0.04 | N63: 0.04 | O63: 0.04 | P63: 0.04 | Q63: 0.04 | R63: 0.04 | S63: 0.04 | T63: 0.04 | U63: 0.04 | V63: 0.04 | W63: 0.04 | X63: 0.04 | Y63: 0.04 | Z63: 0.04 | AA63: 0.04 | AB63: 0.04 | AC63: 0.04 | AD63: 0.04 | AE63: 0.04 | AF63: 0.04 | AG63: 0.04 | AH63: 0.04 | AI63: 0 | AJ63: 0 | AK63: 0 | AL63: 0 | AM63: 0 | AN63: 0 | AO63: 0 | AP63: 0 | AQ63: 0 | AR63: 0 | AS63: 0 | AT63: 0 | AU63: 0 | AV63: 0 | AW63: 0 | AX63: 0 | AY63: 0 | AZ63: 0 | BA63: 0 | BB63: 0 | BC63: 0 | BD63: 0 | BE63: 0 | BF63: 0 | BG63: 0 | BH63: 0
C64: Periodic Depreciation - Base Plant | E64: % p.p. | F64: ='Solar Carrying Charge'!F15 -> 12 | J64: =J63/12*$F$64 -> 0.04 | K64: 0.04 | L64: 0.04 | M64: 0.04 | N64: 0.04 | O64: 0.04 | P64: 0.04 | Q64: 0.04 | R64: 0.04 | S64: 0.04 | T64: 0.04 | U64: 0.04 | V64: 0.04 | W64: 0.04 | X64: 0.04 | Y64: 0.04 | Z64: 0.04 | AA64: 0.04 | AB64: 0.04 | AC64: 0.04 | AD64: 0.04 | AE64: 0.04 | AF64: 0.04 | AG64: 0.04 | AH64: 0.04 | AI64: 0 | AJ64: 0 | AK64: 0 | AL64: 0 | AM64: 0 | AN64: 0 | AO64: 0 | AP64: 0 | AQ64: 0 | AR64: 0 | AS64: 0 | AT64: 0 | AU64: 0 | AV64: 0 | AW64: 0 | AX64: 0 | AY64: 0 | AZ64: 0 | BA64: 0 | BB64: 0 | BC64: 0 | BD64: 0 | BE64: 0 | BF64: 0 | BG64: 0 | BH64: 0
C65: Replacement Remaining Life | E65: Years | F65: =F41-F50 -> 10
C66: Replacement Depreciation Life | E66: Years | F66: =MIN(F65,F59) -> 10
C67: Annual Depreciation Rate - Base Plant | E67: % p.a. | H67: =F61 -> TRUE | J67: =IFERROR(VDB(1,0,$F$66,I62,J62,$F$60),0)*$H$67 -> 0.1 | K67: =IFERROR(VDB(1,0,$F$66,J62,K62,$F$60),0)*$H$67 -> 0.1 | L67: 0.1 | M67: 0.1 | N67: 0.1 | O67: 0.1 | P67: 0.1 | Q67: 0.1 | R67: 0.1 | S67: 0.1 | T67: 0 | U67: 0 | V67: 0 | W67: 0 | X67: 0 | Y67: 0 | Z67: 0 | AA67: 0 | AB67: 0 | AC67: 0 | AD67: 0 | AE67: 0 | AF67: 0 | AG67: 0 | AH67: 0 | AI67: 0 | AJ67: 0 | AK67: 0 | AL67: 0 | AM67: 0 | AN67: 0 | AO67: 0 | AP67: 0 | AQ67: 0 | AR67: 0 | AS67: 0 | AT67: 0 | AU67: 0 | AV67: 0 | AW67: 0 | AX67: 0 | AY67: 0 | AZ67: 0 | BA67: 0 | BB67: 0 | BC67: 0 | BD67: 0 | BE67: 0 | BF67: 0 | BG67: 0 | BH67: 0
C68: Periodic Depreciation - Base Plant | E68: % p.p. | F68: ='Solar Carrying Charge'!F64 -> 12 | J68: =J67/12*$F$68 -> 0.1 | K68: =K67/12*$F$68 -> 0.1 | L68: 0.1 | M68: 0.1 | N68: 0.1 | O68: 0.1 | P68: 0.1 | Q68: 0.1 | R68: 0.1 | S68: 0.1 | T68: 0 | U68: 0 | V68: 0 | W68: 0 | X68: 0 | Y68: 0 | Z68: 0 | AA68: 0 | AB68: 0 | AC68: 0 | AD68: 0 | AE68: 0 | AF68: 0 | AG68: 0 | AH68: 0 | AI68: 0 | AJ68: 0 | AK68: 0 | AL68: 0 | AM68: 0 | AN68: 0 | AO68: 0 | AP68: 0 | AQ68: 0 | AR68: 0 | AS68: 0 | AT68: 0 | AU68: 0 | AV68: 0 | AW68: 0 | AX68: 0 | AY68: 0 | AZ68: 0 | BA68: 0 | BB68: 0 | BC68: 0 | BD68: 0 | BE68: 0 | BF68: 0 | BG68: 0 | BH68: 0
A70: Construction Analyisis - Monthly Periods with S-Curve and Allocate the Total Construction Cost
B71: Normal on Construction Period | E71: % | F71: ='Solar Carrying Charge'!F36 -> 0.5 | G71: ='Solar Carrying Charge'!F38 -> 0.07142857143 | I71: =IFERROR(_xlfn.NORM.DIST(I3,$F$71,$G$71,0)*I4,0) -> 1.278860857e-10 | J71: =IFERROR(_xlfn.NORM.DIST(J3,$F$71,$G$71,0)*J4,0) -> 0 | K71: 0 | L71: 0 | M71: 0 | N71: 0 | O71: 0 | P71: 0 | Q71: 0 | R71: 0 | S71: 0 | T71: 0 | U71: 0 | V71: 0 | W71: 0 | X71: 0 | Y71: 0 | Z71: 0 | AA71: 0 | AB71: 0 | AC71: 0 | AD71: 0 | AE71: 0 | AF71: 0 | AG71: 0 | AH71: 0 | AI71: 0 | AJ71: 0 | AK71: 0 | AL71: 0 | AM71: 0 | AN71: 0 | AO71: 0 | AP71: 0 | AQ71: 0 | AR71: 0 | AS71: 0 | AT71: 0 | AU71: 0 | AV71: 0 | AW71: 0 | AX71: 0 | AY71: 0 | AZ71: 0 | BA71: 0 | BB71: 0 | BC71: 0 | BD71: 0 | BE71: 0 | BF71: 0 | BG71: 0 | BH71: 0 | BI71: 0 | BJ71: 0 | BK71: 0 | BL71: 0 | BM71: 0 | BN71: 0 | BO71: 0 | BP71: 0 | BQ71: 0 | BR71: 0 | BS71: 0 | BT71: 0 | BU71: 0 | BV71: =IFERROR(_xlfn.NORM.DIST(BV3,$F$71,$G$71,0)*BV4,0) -> 0 | BW71: 0 | BX71: 0 | BY71: 0 | BZ71: 0 | CA71: 0 | CB71: 0 | CC71: 0 | CD71: 0 | CE71: 0 | CF71: 0 | CG71: 0 | CH71: 0 | CI71: 0 | CJ71: 0 | CK71: 0 | CL71: 0 | CM71: 0 | CN71: 0 | CO71: 0 | CP71: 0 | CQ71: 0 | CR71: 0 | CS71: 0 | CT71: 0 | CU71: 0 | CV71: 0 | CW71: 0 | CX71: 0 | CY71: 0 | CZ71: 0 | DA71: 0 | DB71: 0 | DC71: 0 | DD71: 0 | DE71: 0 | DF71: 0 | DG71: 0 | DH71: 0 | DI71: 0 | DJ71: 0 | DK71: 0 | DL71: 0 | DM71: 0 | DN71: 0 | DO71: 0 | DP71: 0 | DQ71: 0 | DR71: 0 | DS71: 0 | DT71: 0 | DU71: 0 | DV71: 0 | DW71: 0 | DX71: 0 | DY71: 0 | DZ71: 0 | EA71: 0 | EB71: 0 | EC71: 0 | ED71: 0 | EE71: 0 | EF71: 0 | EG71: 0 | EH71: =IFERROR(_xlfn.NORM.DIST(EH3,$F$71,$G$71,0)*EH4,0) -> 0 | EI71: 0 | EJ71: 0 | EK71: 0 | EL71: 0 | EM71: 0 | EN71: 0 | EO71: 0 | EP71: 0 | EQ71: 0 | ER71: 0 | ES71: 0 | ET71: 0 | EU71: 0 | EV71: 0 | EW71: 0 | EX71: 0 | EY71: 0 | EZ71: 0 | FA71: 0 | FB71: 0 | FC71: 0 | FD71: 0 | FE71: 0 | FF71: 0 | FG71: 0 | FH71: 0 | FI71: 0 | FJ71: 0 | FK71: 0 | FL71: 0 | FM71: 0 | FN71: 0 | FO71: 0 | FP71: 0 | FQ71: 0 | FR71: 0 | FS71: 0 | FT71: 0 | FU71: 0 | FV71: 0 | FW71: 0 | FX71: 0 | FY71: 0 | FZ71: 0 | GA71: 0 | GB71: 0 | GC71: 0 | GD71: 0 | GE71: 0 | GF71: 0 | GG71: 0 | GH71: 0 | GI71: 0 | GJ71: 0 | GK71: 0 | GL71: 0 | GM71: 0 | GN71: 0 | GO71: 0 | GP71: 0 | GQ71: 0 | GR71: 0 | GS71: 0 | GT71: =IFERROR(_xlfn.NORM.DIST(GT3,$F$71,$G$71,0)*GT4,0) -> 0 | GU71: 0 | GV71: 0 | GW71: 0 | GX71: 0 | GY71: 0 | GZ71: 0 | HA71: 0 | HB71: 0 | HC71: 0 | HD71: 0 | HE71: 0 | HF71: 0 | HG71: 0 | HH71: 0 | HI71: 0 | HJ71: 0 | HK71: 0 | HL71: 0 | HM71: 0 | HN71: 0 | HO71: 0 | HP71: 0 | HQ71: 0 | HR71: 0 | HS71: 0 | HT71: 0 | HU71: 0 | HV71: 0 | HW71: 0 | HX71: 0 | HY71: 0 | HZ71: 0 | IA71: 0 | IB71: 0 | IC71: 0 | ID71: 0 | IE71: 0 | IF71: 0 | IG71: 0 | IH71: 0 | II71: 0 | IJ71: 0 | IK71: 0 | IL71: 0 | IM71: 0 | IN71: 0 | IO71: 0 | IP71: 0 | IQ71: 0 | IR71: 0 | IS71: 0 | IT71: 0 | IU71: 0 | IV71: 0 | IW71: 0 | IX71: 0 | IY71: 0 | IZ71: 0 | JA71: 0 | JB71: 0 | JC71: 0 | JD71: 0 | JE71: 0 | JF71: =IFERROR(_xlfn.NORM.DIST(JF3,$F$71,$G$71,0)*JF4,0) -> 0 | JG71: 0 | JH71: 0 | JI71: 0 | JJ71: 0 | JK71: 0 | JL71: 0 | JM71: 0 | JN71: 0 | JO71: 0 | JP71: 0 | JQ71: 0 | JR71: 0 | JS71: 0 | JT71: 0 | JU71: 0 | JV71: 0 | JW71: 0 | JX71: 0 | JY71: 0 | JZ71: 0 | KA71: 0 | KB71: 0 | KC71: 0 | KD71: 0 | KE71: 0 | KF71: 0 | KG71: 0 | KH71: 0 | KI71: 0 | KJ71: 0 | KK71: 0 | KL71: 0 | KM71: 0 | KN71: 0 | KO71: 0 | KP71: 0 | KQ71: 0 | KR71: 0 | KS71: 0 | KT71: 0 | KU71: 0 | KV71: 0 | KW71: 0 | KX71: 0 | KY71: 0 | KZ71: 0 | LA71: 0 | LB71: 0 | LC71: 0 | LD71: 0 | LE71: 0 | LF71: 0 | LG71: 0 | LH71: 0 | LI71: 0 | LJ71: 0 | LK71: 0 | LL71: 0 | LM71: 0 | LN71: 0 | LO71: 0 | LP71: 0 | LQ71: 0 | LR71: =IFERROR(_xlfn.NORM.DIST(LR3,$F$71,$G$71,0)*LR4,0) -> 0 | LS71: 0 | LT71: 0 | LU71: 0 | LV71: 0 | LW71: 0 | LX71: 0 | LY71: 0 | LZ71: 0 | MA71: 0 | MB71: 0 | MC71: 0 | MD71: 0 | ME71: 0 | MF71: 0 | MG71: 0 | MH71: 0 | MI71: 0 | MJ71: 0 | MK71: 0 | ML71: 0 | MM71: 0 | MN71: 0 | MO71: 0 | MP71: 0 | MQ71: 0 | MR71: 0 | MS71: 0 | MT71: 0 | MU71: 0 | MV71: 0 | MW71: 0 | MX71: 0 | MY71: 0 | MZ71: 0 | NA71: 0 | NB71: 0 | NC71: 0 | ND71: 0 | NE71: 0 | NF71: 0 | NG71: 0 | NH71: 0 | NI71: 0 | NJ71: 0 | NK71: 0 | NL71: 0 | NM71: 0 | NN71: 0 | NO71: 0 | NP71: 0 | NQ71: 0 | NR71: 0 | NS71: 0 | NT71: 0 | NU71: 0 | NV71: 0 | NW71: 0 | NX71: 0 | NY71: 0 | NZ71: 0 | OA71: 0 | OB71: 0 | OC71: 0 | OD71: =IFERROR(_xlfn.NORM.DIST(OD3,$F$71,$G$71,0)*OD4,0) -> 0 | OE71: 0 | OF71: 0 | OG71: 0 | OH71: 0 | OI71: 0 | OJ71: 0 | OK71: 0 | OL71: 0 | OM71: 0 | ON71: 0 | OO71: 0 | OP71: 0 | OQ71: 0 | OR71: 0 | OS71: 0 | OT71: 0 | OU71: 0 | OV71: 0 | OW71: 0 | OX71: 0 | OY71: 0 | OZ71: 0 | PA71: 0 | PB71: 0 | PC71: 0 | PD71: 0 | PE71: 0 | PF71: 0 | PG71: 0 | PH71: 0 | PI71: 0 | PJ71: 0 | PK71: 0 | PL71: 0 | PM71: 0 | PN71: 0 | PO71: 0 | PP71: 0 | PQ71: 0 | PR71: 0 | PS71: 0 | PT71: 0 | PU71: 0 | PV71: 0 | PW71: 0 | PX71: 0 | PY71: 0 | PZ71: 0 | QA71: 0 | QB71: 0 | QC71: 0 | QD71: 0 | QE71: 0 | QF71: 0 | QG71: 0 | QH71: 0 | QI71: 0 | QJ71: 0 | QK71: 0 | QL71: 0 | QM71: 0 | QN71: 0 | QO71: 0 | QP71: =IFERROR(_xlfn.NORM.DIST(QP3,$F$71,$G$71,0)*QP4,0) -> 0 | QQ71: 0 | QR71: 0 | QS71: 0 | QT71: 0 | QU71: 0 | QV71: 0 | QW71: 0 | QX71: 0 | QY71: 0 | QZ71: 0 | RA71: 0 | RB71: 0 | RC71: 0 | RD71: 0 | RE71: 0 | RF71: 0 | RG71: 0 | RH71: 0 | RI71: 0 | RJ71: 0 | RK71: 0 | RL71: 0 | RM71: 0 | RN71: 0 | RO71: 0 | RP71: 0 | RQ71: 0 | RR71: 0 | RS71: 0 | RT71: 0 | RU71: 0 | RV71: 0 | RW71: 0 | RX71: 0 | RY71: 0 | RZ71: 0 | SA71: 0 | SB71: 0 | SC71: 0 | SD71: 0 | SE71: 0 | SF71: 0 | SG71: 0 | SH71: 0 | SI71: 0 | SJ71: 0 | SK71: 0 | SL71: 0 | SM71: 0 | SN71: 0 | SO71: 0 | SP71: 0 | SQ71: 0 | SR71: 0 | SS71: 0 | ST71: 0 | SU71: 0 | SV71: 0 | SW71: 0 | SX71: 0 | SY71: 0 | SZ71: 0 | TA71: 0 | TB71: =IFERROR(_xlfn.NORM.DIST(TB3,$F$71,$G$71,0)*TB4,0) -> 0 | TC71: 0 | TD71: 0 | TE71: 0 | TF71: 0 | TG71: 0 | TH71: 0 | TI71: 0 | TJ71: 0 | TK71: 0 | TL71: 0 | TM71: 0 | TN71: 0 | TO71: 0 | TP71: 0 | TQ71: 0 | TR71: 0 | TS71: 0 | TT71: 0 | TU71: 0 | TV71: 0 | TW71: 0 | TX71: 0 | TY71: 0 | TZ71: 0 | UA71: 0 | UB71: 0 | UC71: 0 | UD71: 0 | UE71: 0 | UF71: 0 | UG71: 0 | UH71: 0 | UI71: 0 | UJ71: 0 | UK71: 0 | UL71: 0 | UM71: 0 | UN71: 0 | UO71: 0 | UP71: 0 | UQ71: 0 | UR71: 0 | US71: 0 | UT71: 0 | UU71: 0 | UV71: 0 | UW71: 0 | UX71: 0 | UY71: 0 | UZ71: 0 | VA71: 0 | VB71: 0 | VC71: 0 | VD71: 0 | VE71: 0 | VF71: 0 | VG71: 0 | VH71: 0 | VI71: 0 | VJ71: 0 | VK71: 0 | VL71: 0 | VM71: 0 | VN71: =IFERROR(_xlfn.NORM.DIST(VN3,$F$71,$G$71,0)*VN4,0) -> 0 | VO71: 0 | VP71: 0 | VQ71: 0 | VR71: 0 | VS71: 0 | VT71: 0 | VU71: 0 | VV71: 0 | VW71: 0 | VX71: 0 | VY71: 0 | VZ71: 0 | WA71: 0 | WB71: 0 | WC71: 0 | WD71: 0 | WE71: 0 | WF71: 0 | WG71: 0 | WH71: 0 | WI71: 0 | WJ71: 0 | WK71: 0 | WL71: 0 | WM71: 0 | WN71: 0 | WO71: 0 | WP71: 0 | WQ71: 0 | WR71: 0 | WS71: 0 | WT71: 0 | WU71: 0 | WV71: 0 | WW71: 0 | WX71: 0 | WY71: 0 | WZ71: 0 | XA71: 0 | XB71: 0 | XC71: 0 | XD71: 0 | XE71: 0 | XF71: 0 | XG71: 0 | XH71: 0 | XI71: 0 | XJ71: 0 | XK71: 0 | XL71: 0 | XM71: 0 | XN71: 0 | XO71: 0 | XP71: 0 | XQ71: 0 | XR71: 0 | XS71: 0 | XT71: 0 | XU71: 0 | XV71: 0 | XW71: 0 | XX71: 0 | XY71: 0 | XZ71: =IFERROR(_xlfn.NORM.DIST(XZ3,$F$71,$G$71,0)*XZ4,0) -> 0 | YA71: 0 | YB71: 0 | YC71: 0 | YD71: 0 | YE71: 0 | YF71: 0 | YG71: 0 | YH71: 0 | YI71: 0 | YJ71: 0 | YK71: 0 | YL71: 0 | YM71: 0 | YN71: 0 | YO71: 0 | YP71: 0 | YQ71: 0 | YR71: 0 | YS71: 0 | YT71: 0 | YU71: 0 | YV71: 0 | YW71: 0 | YX71: 0 | YY71: 0 | YZ71: 0 | ZA71: 0 | ZB71: 0 | ZC71: 0 | ZD71: 0 | ZE71: 0 | ZF71: 0 | ZG71: 0 | ZH71: 0 | ZI71: 0 | ZJ71: 0 | ZK71: 0 | ZL71: 0 | ZM71: 0 | ZN71: 0 | ZO71: 0 | ZP71: 0 | ZQ71: 0 | ZR71: 0 | ZS71: 0 | ZT71: 0 | ZU71: 0 | ZV71: 0 | ZW71: 0 | ZX71: 0 | ZY71: 0 | ZZ71: 0 | AAA71: 0 | AAB71: 0 | AAC71: 0 | AAD71: 0 | AAE71: 0 | AAF71: 0 | AAG71: 0 | AAH71: 0 | AAI71: 0 | AAJ71: 0 | AAK71: 0 | AAL71: =IFERROR(_xlfn.NORM.DIST(AAL3,$F$71,$G$71,0)*AAL4,0) -> 0 | AAM71: 0 | AAN71: 0 | AAO71: 0 | AAP71: 0 | AAQ71: 0 | AAR71: 0 | AAS71: 0 | AAT71: 0 | AAU71: 0 | AAV71: 0 | AAW71: 0 | AAX71: 0 | AAY71: 0 | AAZ71: 0 | ABA71: 0 | ABB71: 0 | ABC71: 0 | ABD71: 0 | ABE71: 0 | ABF71: 0 | ABG71: 0 | ABH71: 0 | ABI71: 0 | ABJ71: 0 | ABK71: 0 | ABL71: 0 | ABM71: 0 | ABN71: 0 | ABO71: 0 | ABP71: 0 | ABQ71: 0 | ABR71: 0 | ABS71: 0 | ABT71: 0 | ABU71: 0 | ABV71: 0 | ABW71: 0 | ABX71: 0 | ABY71: 0 | ABZ71: 0 | ACA71: 0 | ACB71: 0 | ACC71: 0 | ACD71: 0 | ACE71: 0 | ACF71: 0 | ACG71: 0 | ACH71: 0 | ACI71: 0 | ACJ71: 0 | ACK71: 0 | ACL71: 0 | ACM71: 0 | ACN71: 0 | ACO71: 0 | ACP71: 0 | ACQ71: 0 | ACR71: 0 | ACS71: 0 | ACT71: 0 | ACU71: 0 | ACV71: 0 | ACW71: 0 | ACX71: =IFERROR(_xlfn.NORM.DIST(ACX3,$F$71,$G$71,0)*ACX4,0) -> 0 | ACY71: 0 | ACZ71: 0 | ADA71: 0 | ADB71: 0 | ADC71: 0 | ADD71: 0 | ADE71: 0 | ADF71: 0 | ADG71: 0 | ADH71: 0 | ADI71: 0 | ADJ71: 0 | ADK71: 0 | ADL71: 0 | ADM71: 0 | ADN71: 0 | ADO71: 0 | ADP71: 0 | ADQ71: 0 | ADR71: 0 | ADS71: 0 | ADT71: 0 | ADU71: 0 | ADV71: 0 | ADW71: 0 | ADX71: 0 | ADY71: 0 | ADZ71: 0 | AEA71: 0 | AEB71: 0 | AEC71: 0 | AED71: 0 | AEE71: 0 | AEF71: 0 | AEG71: 0 | AEH71: 0 | AEI71: 0 | AEJ71: 0 | AEK71: 0 | AEL71: 0 | AEM71: 0 | AEN71: 0 | AEO71: 0 | AEP71: 0 | AEQ71: 0 | AER71: 0 | AES71: 0 | AET71: 0 | AEU71: 0 | AEV71: 0 | AEW71: 0 | AEX71: 0 | AEY71: 0 | AEZ71: 0 | AFA71: 0 | AFB71: 0 | AFC71: 0 | AFD71: 0 | AFE71: 0 | AFF71: 0 | AFG71: 0 | AFH71: 0 | AFI71: 0 | AFJ71: =IFERROR(_xlfn.NORM.DIST(AFJ3,$F$71,$G$71,0)*AFJ4,0) -> 0 | AFK71: 0 | AFL71: 0 | AFM71: 0 | AFN71: 0 | AFO71: 0 | AFP71: 0 | AFQ71: 0 | AFR71: 0 | AFS71: 0 | AFT71: 0 | AFU71: 0 | AFV71: 0 | AFW71: 0 | AFX71: 0 | AFY71: 0 | AFZ71: 0 | AGA71: 0 | AGB71: 0 | AGC71: 0 | AGD71: 0 | AGE71: 0 | AGF71: 0 | AGG71: 0 | AGH71: 0 | AGI71: 0 | AGJ71: 0 | AGK71: 0
B72: S-Curve from Normalised | E72: % | F72: =SUM(I71:KV71) -> 1.278860857e-10 | I72: =I71/$F$72 -> 1 | J72: 0 | K72: 0 | L72: 0 | M72: 0 | N72: 0 | O72: 0 | P72: 0 | Q72: 0 | R72: 0 | S72: 0 | T72: 0 | U72: 0 | V72: 0 | W72: 0 | X72: 0 | Y72: 0 | Z72: 0 | AA72: 0 | AB72: 0 | AC72: 0 | AD72: 0 | AE72: 0 | AF72: 0 | AG72: 0 | AH72: 0 | AI72: 0 | AJ72: 0 | AK72: 0 | AL72: 0 | AM72: 0 | AN72: 0 | AO72: 0 | AP72: 0 | AQ72: 0 | AR72: 0 | AS72: 0 | AT72: 0 | AU72: 0 | AV72: 0 | AW72: 0 | AX72: 0 | AY72: 0 | AZ72: 0 | BA72: 0 | BB72: 0 | BC72: 0 | BD72: 0 | BE72: 0 | BF72: 0 | BG72: 0 | BH72: 0 | BI72: 0 | BJ72: 0 | BK72: 0 | BL72: 0 | BM72: 0 | BN72: 0 | BO72: 0 | BP72: 0 | BQ72: 0 | BR72: 0 | BS72: 0 | BT72: 0 | BU72: =BU71/$F$72 -> 0 | BV72: 0 | BW72: 0 | BX72: 0 | BY72: 0 | BZ72: 0 | CA72: 0 | CB72: 0 | CC72: 0 | CD72: 0 | CE72: 0 | CF72: 0 | CG72: 0 | CH72: 0 | CI72: 0 | CJ72: 0 | CK72: 0 | CL72: 0 | CM72: 0 | CN72: 0 | CO72: 0 | CP72: 0 | CQ72: 0 | CR72: 0 | CS72: 0 | CT72: 0 | CU72: 0 | CV72: 0 | CW72: 0 | CX72: 0 | CY72: 0 | CZ72: 0 | DA72: 0 | DB72: 0 | DC72: 0 | DD72: 0 | DE72: 0 | DF72: 0 | DG72: 0 | DH72: 0 | DI72: 0 | DJ72: 0 | DK72: 0 | DL72: 0 | DM72: 0 | DN72: 0 | DO72: 0 | DP72: 0 | DQ72: 0 | DR72: 0 | DS72: 0 | DT72: 0 | DU72: 0 | DV72: 0 | DW72: 0 | DX72: 0 | DY72: 0 | DZ72: 0 | EA72: 0 | EB72: 0 | EC72: 0 | ED72: 0 | EE72: 0 | EF72: 0 | EG72: =EG71/$F$72 -> 0 | EH72: 0 | EI72: 0 | EJ72: 0 | EK72: 0 | EL72: 0 | EM72: 0 | EN72: 0 | EO72: 0 | EP72: 0 | EQ72: 0 | ER72: 0 | ES72: 0 | ET72: 0 | EU72: 0 | EV72: 0 | EW72: 0 | EX72: 0 | EY72: 0 | EZ72: 0 | FA72: 0 | FB72: 0 | FC72: 0 | FD72: 0 | FE72: 0 | FF72: 0 | FG72: 0 | FH72: 0 | FI72: 0 | FJ72: 0 | FK72: 0 | FL72: 0 | FM72: 0 | FN72: 0 | FO72: 0 | FP72: 0 | FQ72: 0 | FR72: 0 | FS72: 0 | FT72: 0 | FU72: 0 | FV72: 0 | FW72: 0 | FX72: 0 | FY72: 0 | FZ72: 0 | GA72: 0 | GB72: 0 | GC72: 0 | GD72: 0 | GE72: 0 | GF72: 0 | GG72: 0 | GH72: 0 | GI72: 0 | GJ72: 0 | GK72: 0 | GL72: 0 | GM72: 0 | GN72: 0 | GO72: 0 | GP72: 0 | GQ72: 0 | GR72: 0 | GS72: =GS71/$F$72 -> 0 | GT72: 0 | GU72: 0 | GV72: 0 | GW72: 0 | GX72: 0 | GY72: 0 | GZ72: 0 | HA72: 0 | HB72: 0 | HC72: 0 | HD72: 0 | HE72: 0 | HF72: 0 | HG72: 0 | HH72: 0 | HI72: 0 | HJ72: 0 | HK72: 0 | HL72: 0 | HM72: 0 | HN72: 0 | HO72: 0 | HP72: 0 | HQ72: 0 | HR72: 0 | HS72: 0 | HT72: 0 | HU72: 0 | HV72: 0 | HW72: 0 | HX72: 0 | HY72: 0 | HZ72: 0 | IA72: 0 | IB72: 0 | IC72: 0 | ID72: 0 | IE72: 0 | IF72: 0 | IG72: 0 | IH72: 0 | II72: 0 | IJ72: 0 | IK72: 0 | IL72: 0 | IM72: 0 | IN72: 0 | IO72: 0 | IP72: 0 | IQ72: 0 | IR72: 0 | IS72: 0 | IT72: 0 | IU72: 0 | IV72: 0 | IW72: 0 | IX72: 0 | IY72: 0 | IZ72: 0 | JA72: 0 | JB72: 0 | JC72: 0 | JD72: 0 | JE72: =JE71/$F$72 -> 0 | JF72: 0 | JG72: 0 | JH72: 0 | JI72: 0 | JJ72: 0 | JK72: 0 | JL72: 0 | JM72: 0 | JN72: 0 | JO72: 0 | JP72: 0 | JQ72: 0 | JR72: 0 | JS72: 0 | JT72: 0 | JU72: 0 | JV72: 0 | JW72: 0 | JX72: 0 | JY72: 0 | JZ72: 0 | KA72: 0 | KB72: 0 | KC72: 0 | KD72: 0 | KE72: 0 | KF72: 0 | KG72: 0 | KH72: 0 | KI72: 0 | KJ72: 0 | KK72: 0 | KL72: 0 | KM72: 0 | KN72: 0 | KO72: 0 | KP72: 0 | KQ72: 0 | KR72: 0 | KS72: 0 | KT72: 0 | KU72: 0 | KV72: 0 | KW72: 0 | KX72: 0 | KY72: 0 | KZ72: 0 | LA72: 0 | LB72: 0 | LC72: 0 | LD72: 0 | LE72: 0 | LF72: 0 | LG72: 0 | LH72: 0 | LI72: 0 | LJ72: 0 | LK72: 0 | LL72: 0 | LM72: 0 | LN72: 0 | LO72: 0 | LP72: 0 | LQ72: =LQ71/$F$72 -> 0 | LR72: 0 | LS72: 0 | LT72: 0 | LU72: 0 | LV72: 0 | LW72: 0 | LX72: 0 | LY72: 0 | LZ72: 0 | MA72: 0 | MB72: 0 | MC72: 0 | MD72: 0 | ME72: 0 | MF72: 0 | MG72: 0 | MH72: 0 | MI72: 0 | MJ72: 0 | MK72: 0 | ML72: 0 | MM72: 0 | MN72: 0 | MO72: 0 | MP72: 0 | MQ72: 0 | MR72: 0 | MS72: 0 | MT72: 0 | MU72: 0 | MV72: 0 | MW72: 0 | MX72: 0 | MY72: 0 | MZ72: 0 | NA72: 0 | NB72: 0 | NC72: 0 | ND72: 0 | NE72: 0 | NF72: 0 | NG72: 0 | NH72: 0 | NI72: 0 | NJ72: 0 | NK72: 0 | NL72: 0 | NM72: 0 | NN72: 0 | NO72: 0 | NP72: 0 | NQ72: 0 | NR72: 0 | NS72: 0 | NT72: 0 | NU72: 0 | NV72: 0 | NW72: 0 | NX72: 0 | NY72: 0 | NZ72: 0 | OA72: 0 | OB72: 0 | OC72: =OC71/$F$72 -> 0 | OD72: 0 | OE72: 0 | OF72: 0 | OG72: 0 | OH72: 0 | OI72: 0 | OJ72: 0 | OK72: 0 | OL72: 0 | OM72: 0 | ON72: 0 | OO72: 0 | OP72: 0 | OQ72: 0 | OR72: 0 | OS72: 0 | OT72: 0 | OU72: 0 | OV72: 0 | OW72: 0 | OX72: 0 | OY72: 0 | OZ72: 0 | PA72: 0 | PB72: 0 | PC72: 0 | PD72: 0 | PE72: 0 | PF72: 0 | PG72: 0 | PH72: 0 | PI72: 0 | PJ72: 0 | PK72: 0 | PL72: 0 | PM72: 0 | PN72: 0 | PO72: 0 | PP72: 0 | PQ72: 0 | PR72: 0 | PS72: 0 | PT72: 0 | PU72: 0 | PV72: 0 | PW72: 0 | PX72: 0 | PY72: 0 | PZ72: 0 | QA72: 0 | QB72: 0 | QC72: 0 | QD72: 0 | QE72: 0 | QF72: 0 | QG72: 0 | QH72: 0 | QI72: 0 | QJ72: 0 | QK72: 0 | QL72: 0 | QM72: 0 | QN72: 0 | QO72: =QO71/$F$72 -> 0 | QP72: 0 | QQ72: 0 | QR72: 0 | QS72: 0 | QT72: 0 | QU72: 0 | QV72: 0 | QW72: 0 | QX72: 0 | QY72: 0 | QZ72: 0 | RA72: 0 | RB72: 0 | RC72: 0 | RD72: 0 | RE72: 0 | RF72: 0 | RG72: 0 | RH72: 0 | RI72: 0 | RJ72: 0 | RK72: 0 | RL72: 0 | RM72: 0 | RN72: 0 | RO72: 0 | RP72: 0 | RQ72: 0 | RR72: 0 | RS72: 0 | RT72: 0 | RU72: 0 | RV72: 0 | RW72: 0 | RX72: 0 | RY72: 0 | RZ72: 0 | SA72: 0 | SB72: 0 | SC72: 0 | SD72: 0 | SE72: 0 | SF72: 0 | SG72: 0 | SH72: 0 | SI72: 0 | SJ72: 0 | SK72: 0 | SL72: 0 | SM72: 0 | SN72: 0 | SO72: 0 | SP72: 0 | SQ72: 0 | SR72: 0 | SS72: 0 | ST72: 0 | SU72: 0 | SV72: 0 | SW72: 0 | SX72: 0 | SY72: 0 | SZ72: 0 | TA72: =TA71/$F$72 -> 0 | TB72: 0 | TC72: 0 | TD72: 0 | TE72: 0 | TF72: 0 | TG72: 0 | TH72: 0 | TI72: 0 | TJ72: 0 | TK72: 0 | TL72: 0 | TM72: 0 | TN72: 0 | TO72: 0 | TP72: 0 | TQ72: 0 | TR72: 0 | TS72: 0 | TT72: 0 | TU72: 0 | TV72: 0 | TW72: 0 | TX72: 0 | TY72: 0 | TZ72: 0 | UA72: 0 | UB72: 0 | UC72: 0 | UD72: 0 | UE72: 0 | UF72: 0 | UG72: 0 | UH72: 0 | UI72: 0 | UJ72: 0 | UK72: 0 | UL72: 0 | UM72: 0 | UN72: 0 | UO72: 0 | UP72: 0 | UQ72: 0 | UR72: 0 | US72: 0 | UT72: 0 | UU72: 0 | UV72: 0 | UW72: 0 | UX72: 0 | UY72: 0 | UZ72: 0 | VA72: 0 | VB72: 0 | VC72: 0 | VD72: 0 | VE72: 0 | VF72: 0 | VG72: 0 | VH72: 0 | VI72: 0 | VJ72: 0 | VK72: 0 | VL72: 0 | VM72: =VM71/$F$72 -> 0 | VN72: 0 | VO72: 0 | VP72: 0 | VQ72: 0 | VR72: 0 | VS72: 0 | VT72: 0 | VU72: 0 | VV72: 0 | VW72: 0 | VX72: 0 | VY72: 0 | VZ72: 0 | WA72: 0 | WB72: 0 | WC72: 0 | WD72: 0 | WE72: 0 | WF72: 0 | WG72: 0 | WH72: 0 | WI72: 0 | WJ72: 0 | WK72: 0 | WL72: 0 | WM72: 0 | WN72: 0 | WO72: 0 | WP72: 0 | WQ72: 0 | WR72: 0 | WS72: 0 | WT72: 0 | WU72: 0 | WV72: 0 | WW72: 0 | WX72: 0 | WY72: 0 | WZ72: 0 | XA72: 0 | XB72: 0 | XC72: 0 | XD72: 0 | XE72: 0 | XF72: 0 | XG72: 0 | XH72: 0 | XI72: 0 | XJ72: 0 | XK72: 0 | XL72: 0 | XM72: 0 | XN72: 0 | XO72: 0 | XP72: 0 | XQ72: 0 | XR72: 0 | XS72: 0 | XT72: 0 | XU72: 0 | XV72: 0 | XW72: 0 | XX72: 0 | XY72: =XY71/$F$72 -> 0 | XZ72: 0 | YA72: 0 | YB72: 0 | YC72: 0 | YD72: 0 | YE72: 0 | YF72: 0 | YG72: 0 | YH72: 0 | YI72: 0 | YJ72: 0 | YK72: 0 | YL72: 0 | YM72: 0 | YN72: 0 | YO72: 0 | YP72: 0 | YQ72: 0 | YR72: 0 | YS72: 0 | YT72: 0 | YU72: 0 | YV72: 0 | YW72: 0 | YX72: 0 | YY72: 0 | YZ72: 0 | ZA72: 0 | ZB72: 0 | ZC72: 0 | ZD72: 0 | ZE72: 0 | ZF72: 0 | ZG72: 0 | ZH72: 0 | ZI72: 0 | ZJ72: 0 | ZK72: 0 | ZL72: 0 | ZM72: 0 | ZN72: 0 | ZO72: 0 | ZP72: 0 | ZQ72: 0 | ZR72: 0 | ZS72: 0 | ZT72: 0 | ZU72: 0 | ZV72: 0 | ZW72: 0 | ZX72: 0 | ZY72: 0 | ZZ72: 0 | AAA72: 0 | AAB72: 0 | AAC72: 0 | AAD72: 0 | AAE72: 0 | AAF72: 0 | AAG72: 0 | AAH72: 0 | AAI72: 0 | AAJ72: 0 | AAK72: =AAK71/$F$72 -> 0 | AAL72: 0 | AAM72: 0 | AAN72: 0 | AAO72: 0 | AAP72: 0 | AAQ72: 0 | AAR72: 0 | AAS72: 0 | AAT72: 0 | AAU72: 0 | AAV72: 0 | AAW72: 0 | AAX72: 0 | AAY72: 0 | AAZ72: 0 | ABA72: 0 | ABB72: 0 | ABC72: 0 | ABD72: 0 | ABE72: 0 | ABF72: 0 | ABG72: 0 | ABH72: 0 | ABI72: 0 | ABJ72: 0 | ABK72: 0 | ABL72: 0 | ABM72: 0 | ABN72: 0 | ABO72: 0 | ABP72: 0 | ABQ72: 0 | ABR72: 0 | ABS72: 0 | ABT72: 0 | ABU72: 0 | ABV72: 0 | ABW72: 0 | ABX72: 0 | ABY72: 0 | ABZ72: 0 | ACA72: 0 | ACB72: 0 | ACC72: 0 | ACD72: 0 | ACE72: 0 | ACF72: 0 | ACG72: 0 | ACH72: 0 | ACI72: 0 | ACJ72: 0 | ACK72: 0 | ACL72: 0 | ACM72: 0 | ACN72: 0 | ACO72: 0 | ACP72: 0 | ACQ72: 0 | ACR72: 0 | ACS72: 0 | ACT72: 0 | ACU72: 0 | ACV72: 0 | ACW72: =ACW71/$F$72 -> 0 | ACX72: 0 | ACY72: 0 | ACZ72: 0 | ADA72: 0 | ADB72: 0 | ADC72: 0 | ADD72: 0 | ADE72: 0 | ADF72: 0 | ADG72: 0 | ADH72: 0 | ADI72: 0 | ADJ72: 0 | ADK72: 0 | ADL72: 0 | ADM72: 0 | ADN72: 0 | ADO72: 0 | ADP72: 0 | ADQ72: 0 | ADR72: 0 | ADS72: 0 | ADT72: 0 | ADU72: 0 | ADV72: 0 | ADW72: 0 | ADX72: 0 | ADY72: 0 | ADZ72: 0 | AEA72: 0 | AEB72: 0 | AEC72: 0 | AED72: 0 | AEE72: 0 | AEF72: 0 | AEG72: 0 | AEH72: 0 | AEI72: 0 | AEJ72: 0 | AEK72: 0 | AEL72: 0 | AEM72: 0 | AEN72: 0 | AEO72: 0 | AEP72: 0 | AEQ72: 0 | AER72: 0 | AES72: 0 | AET72: 0 | AEU72: 0 | AEV72: 0 | AEW72: 0 | AEX72: 0 | AEY72: 0 | AEZ72: 0 | AFA72: 0 | AFB72: 0 | AFC72: 0 | AFD72: 0 | AFE72: 0 | AFF72: 0 | AFG72: 0 | AFH72: 0 | AFI72: =AFI71/$F$72 -> 0 | AFJ72: 0 | AFK72: 0 | AFL72: 0 | AFM72: 0 | AFN72: 0 | AFO72: 0 | AFP72: 0 | AFQ72: 0 | AFR72: 0 | AFS72: 0 | AFT72: 0 | AFU72: 0 | AFV72: 0 | AFW72: 0 | AFX72: 0 | AFY72: 0 | AFZ72: 0 | AGA72: 0 | AGB72: 0 | AGC72: 0 | AGD72: 0 | AGE72: 0 | AGF72: 0 | AGG72: 0 | AGH72: 0 | AGI72: 0 | AGJ72: 0 | AGK72: 0
B74: Inflation Rate | E74: % | F74: ='Solar Carrying Charge'!F21 -> 0 | G74: ='Solar Carrying Charge'!F22 -> 0.03 | I74: =IF(I4,$F$74,$G$74) -> 0 | J74: 0.03 | K74: 0.03 | L74: 0.03 | M74: 0.03 | N74: 0.03 | O74: 0.03 | P74: 0.03 | Q74: 0.03 | R74: 0.03 | S74: 0.03 | T74: 0.03 | U74: 0.03 | V74: 0.03 | W74: 0.03 | X74: 0.03 | Y74: 0.03 | Z74: 0.03 | AA74: 0.03 | AB74: 0.03 | AC74: 0.03 | AD74: 0.03 | AE74: 0.03 | AF74: 0.03 | AG74: 0.03 | AH74: 0.03 | AI74: 0.03 | AJ74: 0.03 | AK74: 0.03 | AL74: 0.03 | AM74: 0.03 | AN74: 0.03 | AO74: 0.03 | AP74: 0.03 | AQ74: 0.03 | AR74: 0.03 | AS74: 0.03 | AT74: 0.03 | AU74: 0.03 | AV74: 0.03 | AW74: 0.03 | AX74: 0.03 | AY74: 0.03 | AZ74: 0.03 | BA74: 0.03 | BB74: 0.03 | BC74: 0.03 | BD74: 0.03 | BE74: 0.03 | BF74: 0.03 | BG74: 0.03 | BH74: 0.03 | BI74: 0.03 | BJ74: 0.03 | BK74: 0.03 | BL74: 0.03 | BM74: 0.03 | BN74: 0.03 | BO74: 0.03 | BP74: 0.03 | BQ74: 0.03 | BR74: 0.03 | BS74: 0.03 | BT74: 0.03 | BU74: =IF(BU4,$F$74,$G$74) -> 0.03 | BV74: 0.03 | BW74: 0.03 | BX74: 0.03 | BY74: 0.03 | BZ74: 0.03 | CA74: 0.03 | CB74: 0.03 | CC74: 0.03 | CD74: 0.03 | CE74: 0.03 | CF74: 0.03 | CG74: 0.03 | CH74: 0.03 | CI74: 0.03 | CJ74: 0.03 | CK74: 0.03 | CL74: 0.03 | CM74: 0.03 | CN74: 0.03 | CO74: 0.03 | CP74: 0.03 | CQ74: 0.03 | CR74: 0.03 | CS74: 0.03 | CT74: 0.03 | CU74: 0.03 | CV74: 0.03 | CW74: 0.03 | CX74: 0.03 | CY74: 0.03 | CZ74: 0.03 | DA74: 0.03 | DB74: 0.03 | DC74: 0.03 | DD74: 0.03 | DE74: 0.03 | DF74: 0.03 | DG74: 0.03 | DH74: 0.03 | DI74: 0.03 | DJ74: 0.03 | DK74: 0.03 | DL74: 0.03 | DM74: 0.03 | DN74: 0.03 | DO74: 0.03 | DP74: 0.03 | DQ74: 0.03 | DR74: 0.03 | DS74: 0.03 | DT74: 0.03 | DU74: 0.03 | DV74: 0.03 | DW74: 0.03 | DX74: 0.03 | DY74: 0.03 | DZ74: 0.03 | EA74: 0.03 | EB74: 0.03 | EC74: 0.03 | ED74: 0.03 | EE74: 0.03 | EF74: 0.03 | EG74: =IF(EG4,$F$74,$G$74) -> 0.03 | EH74: 0.03 | EI74: 0.03 | EJ74: 0.03 | EK74: 0.03 | EL74: 0.03 | EM74: 0.03 | EN74: 0.03 | EO74: 0.03 | EP74: 0.03 | EQ74: 0.03 | ER74: 0.03 | ES74: 0.03 | ET74: 0.03 | EU74: 0.03 | EV74: 0.03 | EW74: 0.03 | EX74: 0.03 | EY74: 0.03 | EZ74: 0.03 | FA74: 0.03 | FB74: 0.03 | FC74: 0.03 | FD74: 0.03 | FE74: 0.03 | FF74: 0.03 | FG74: 0.03 | FH74: 0.03 | FI74: 0.03 | FJ74: 0.03 | FK74: 0.03 | FL74: 0.03 | FM74: 0.03 | FN74: 0.03 | FO74: 0.03 | FP74: 0.03 | FQ74: 0.03 | FR74: 0.03 | FS74: 0.03 | FT74: 0.03 | FU74: 0.03 | FV74: 0.03 | FW74: 0.03 | FX74: 0.03 | FY74: 0.03 | FZ74: 0.03 | GA74: 0.03 | GB74: 0.03 | GC74: 0.03 | GD74: 0.03 | GE74: 0.03 | GF74: 0.03 | GG74: 0.03 | GH74: 0.03 | GI74: 0.03 | GJ74: 0.03 | GK74: 0.03 | GL74: 0.03 | GM74: 0.03 | GN74: 0.03 | GO74: 0.03 | GP74: 0.03 | GQ74: 0.03 | GR74: 0.03 | GS74: =IF(GS4,$F$74,$G$74) -> 0.03 | GT74: 0.03 | GU74: 0.03 | GV74: 0.03 | GW74: 0.03 | GX74: 0.03 | GY74: 0.03 | GZ74: 0.03 | HA74: 0.03 | HB74: 0.03 | HC74: 0.03 | HD74: 0.03 | HE74: 0.03 | HF74: 0.03 | HG74: 0.03 | HH74: 0.03 | HI74: 0.03 | HJ74: 0.03 | HK74: 0.03 | HL74: 0.03 | HM74: 0.03 | HN74: 0.03 | HO74: 0.03 | HP74: 0.03 | HQ74: 0.03 | HR74: 0.03 | HS74: 0.03 | HT74: 0.03 | HU74: 0.03 | HV74: 0.03 | HW74: 0.03 | HX74: 0.03 | HY74: 0.03 | HZ74: 0.03 | IA74: 0.03 | IB74: 0.03 | IC74: 0.03 | ID74: 0.03 | IE74: 0.03 | IF74: 0.03 | IG74: 0.03 | IH74: 0.03 | II74: 0.03 | IJ74: 0.03 | IK74: 0.03 | IL74: 0.03 | IM74: 0.03 | IN74: 0.03 | IO74: 0.03 | IP74: 0.03 | IQ74: 0.03 | IR74: 0.03 | IS74: 0.03 | IT74: 0.03 | IU74: 0.03 | IV74: 0.03 | IW74: 0.03 | IX74: 0.03 | IY74: 0.03 | IZ74: 0.03 | JA74: 0.03 | JB74: 0.03 | JC74: 0.03 | JD74: 0.03 | JE74: =IF(JE4,$F$74,$G$74) -> 0.03 | JF74: 0.03 | JG74: 0.03 | JH74: 0.03 | JI74: 0.03 | JJ74: 0.03 | JK74: 0.03 | JL74: 0.03 | JM74: 0.03 | JN74: 0.03 | JO74: 0.03 | JP74: 0.03 | JQ74: 0.03 | JR74: 0.03 | JS74: 0.03 | JT74: 0.03 | JU74: 0.03 | JV74: 0.03 | JW74: 0.03 | JX74: 0.03 | JY74: 0.03 | JZ74: 0.03 | KA74: 0.03 | KB74: 0.03 | KC74: 0.03 | KD74: 0.03 | KE74: 0.03 | KF74: 0.03 | KG74: 0.03 | KH74: 0.03 | KI74: 0.03 | KJ74: 0.03 | KK74: 0.03 | KL74: 0.03 | KM74: 0.03 | KN74: 0.03 | KO74: 0.03 | KP74: 0.03 | KQ74: 0.03 | KR74: 0.03 | KS74: 0.03 | KT74: 0.03 | KU74: 0.03 | KV74: 0.03 | KW74: 0.03 | KX74: 0.03 | KY74: 0.03 | KZ74: 0.03 | LA74: 0.03 | LB74: 0.03 | LC74: 0.03 | LD74: 0.03 | LE74: 0.03 | LF74: 0.03 | LG74: 0.03 | LH74: 0.03 | LI74: 0.03 | LJ74: 0.03 | LK74: 0.03 | LL74: 0.03 | LM74: 0.03 | LN74: 0.03 | LO74: 0.03 | LP74: 0.03 | LQ74: =IF(LQ4,$F$74,$G$74) -> 0.03 | LR74: 0.03 | LS74: 0.03 | LT74: 0.03 | LU74: 0.03 | LV74: 0.03 | LW74: 0.03 | LX74: 0.03 | LY74: 0.03 | LZ74: 0.03 | MA74: 0.03 | MB74: 0.03 | MC74: 0.03 | MD74: 0.03 | ME74: 0.03 | MF74: 0.03 | MG74: 0.03 | MH74: 0.03 | MI74: 0.03 | MJ74: 0.03 | MK74: 0.03 | ML74: 0.03 | MM74: 0.03 | MN74: 0.03 | MO74: 0.03 | MP74: 0.03 | MQ74: 0.03 | MR74: 0.03 | MS74: 0.03 | MT74: 0.03 | MU74: 0.03 | MV74: 0.03 | MW74: 0.03 | MX74: 0.03 | MY74: 0.03 | MZ74: 0.03 | NA74: 0.03 | NB74: 0.03 | NC74: 0.03 | ND74: 0.03 | NE74: 0.03 | NF74: 0.03 | NG74: 0.03 | NH74: 0.03 | NI74: 0.03 | NJ74: 0.03 | NK74: 0.03 | NL74: 0.03 | NM74: 0.03 | NN74: 0.03 | NO74: 0.03 | NP74: 0.03 | NQ74: 0.03 | NR74: 0.03 | NS74: 0.03 | NT74: 0.03 | NU74: 0.03 | NV74: 0.03 | NW74: 0.03 | NX74: 0.03 | NY74: 0.03 | NZ74: 0.03 | OA74: 0.03 | OB74: 0.03 | OC74: =IF(OC4,$F$74,$G$74) -> 0.03 | OD74: 0.03 | OE74: 0.03 | OF74: 0.03 | OG74: 0.03 | OH74: 0.03 | OI74: 0.03 | OJ74: 0.03 | OK74: 0.03 | OL74: 0.03 | OM74: 0.03 | ON74: 0.03 | OO74: 0.03 | OP74: 0.03 | OQ74: 0.03 | OR74: 0.03 | OS74: 0.03 | OT74: 0.03 | OU74: 0.03 | OV74: 0.03 | OW74: 0.03 | OX74: 0.03 | OY74: 0.03 | OZ74: 0.03 | PA74: 0.03 | PB74: 0.03 | PC74: 0.03 | PD74: 0.03 | PE74: 0.03 | PF74: 0.03 | PG74: 0.03 | PH74: 0.03 | PI74: 0.03 | PJ74: 0.03 | PK74: 0.03 | PL74: 0.03 | PM74: 0.03 | PN74: 0.03 | PO74: 0.03 | PP74: 0.03 | PQ74: 0.03 | PR74: 0.03 | PS74: 0.03 | PT74: 0.03 | PU74: 0.03 | PV74: 0.03 | PW74: 0.03 | PX74: 0.03 | PY74: 0.03 | PZ74: 0.03 | QA74: 0.03 | QB74: 0.03 | QC74: 0.03 | QD74: 0.03 | QE74: 0.03 | QF74: 0.03 | QG74: 0.03 | QH74: 0.03 | QI74: 0.03 | QJ74: 0.03 | QK74: 0.03 | QL74: 0.03 | QM74: 0.03 | QN74: 0.03 | QO74: =IF(QO4,$F$74,$G$74) -> 0.03 | QP74: 0.03 | QQ74: 0.03 | QR74: 0.03 | QS74: 0.03 | QT74: 0.03 | QU74: 0.03 | QV74: 0.03 | QW74: 0.03 | QX74: 0.03 | QY74: 0.03 | QZ74: 0.03 | RA74: 0.03 | RB74: 0.03 | RC74: 0.03 | RD74: 0.03 | RE74: 0.03 | RF74: 0.03 | RG74: 0.03 | RH74: 0.03 | RI74: 0.03 | RJ74: 0.03 | RK74: 0.03 | RL74: 0.03 | RM74: 0.03 | RN74: 0.03 | RO74: 0.03 | RP74: 0.03 | RQ74: 0.03 | RR74: 0.03 | RS74: 0.03 | RT74: 0.03 | RU74: 0.03 | RV74: 0.03 | RW74: 0.03 | RX74: 0.03 | RY74: 0.03 | RZ74: 0.03 | SA74: 0.03 | SB74: 0.03 | SC74: 0.03 | SD74: 0.03 | SE74: 0.03 | SF74: 0.03 | SG74: 0.03 | SH74: 0.03 | SI74: 0.03 | SJ74: 0.03 | SK74: 0.03 | SL74: 0.03 | SM74: 0.03 | SN74: 0.03 | SO74: 0.03 | SP74: 0.03 | SQ74: 0.03 | SR74: 0.03 | SS74: 0.03 | ST74: 0.03 | SU74: 0.03 | SV74: 0.03 | SW74: 0.03 | SX74: 0.03 | SY74: 0.03 | SZ74: 0.03 | TA74: =IF(TA4,$F$74,$G$74) -> 0.03 | TB74: 0.03 | TC74: 0.03 | TD74: 0.03 | TE74: 0.03 | TF74: 0.03 | TG74: 0.03 | TH74: 0.03 | TI74: 0.03 | TJ74: 0.03 | TK74: 0.03 | TL74: 0.03 | TM74: 0.03 | TN74: 0.03 | TO74: 0.03 | TP74: 0.03 | TQ74: 0.03 | TR74: 0.03 | TS74: 0.03 | TT74: 0.03 | TU74: 0.03 | TV74: 0.03 | TW74: 0.03 | TX74: 0.03 | TY74: 0.03 | TZ74: 0.03 | UA74: 0.03 | UB74: 0.03 | UC74: 0.03 | UD74: 0.03 | UE74: 0.03 | UF74: 0.03 | UG74: 0.03 | UH74: 0.03 | UI74: 0.03 | UJ74: 0.03 | UK74: 0.03 | UL74: 0.03 | UM74: 0.03 | UN74: 0.03 | UO74: 0.03 | UP74: 0.03 | UQ74: 0.03 | UR74: 0.03 | US74: 0.03 | UT74: 0.03 | UU74: 0.03 | UV74: 0.03 | UW74: 0.03 | UX74: 0.03 | UY74: 0.03 | UZ74: 0.03 | VA74: 0.03 | VB74: 0.03 | VC74: 0.03 | VD74: 0.03 | VE74: 0.03 | VF74: 0.03 | VG74: 0.03 | VH74: 0.03 | VI74: 0.03 | VJ74: 0.03 | VK74: 0.03 | VL74: 0.03 | VM74: =IF(VM4,$F$74,$G$74) -> 0.03 | VN74: 0.03 | VO74: 0.03 | VP74: 0.03 | VQ74: 0.03 | VR74: 0.03 | VS74: 0.03 | VT74: 0.03 | VU74: 0.03 | VV74: 0.03 | VW74: 0.03 | VX74: 0.03 | VY74: 0.03 | VZ74: 0.03 | WA74: 0.03 | WB74: 0.03 | WC74: 0.03 | WD74: 0.03 | WE74: 0.03 | WF74: 0.03 | WG74: 0.03 | WH74: 0.03 | WI74: 0.03 | WJ74: 0.03 | WK74: 0.03 | WL74: 0.03 | WM74: 0.03 | WN74: 0.03 | WO74: 0.03 | WP74: 0.03 | WQ74: 0.03 | WR74: 0.03 | WS74: 0.03 | WT74: 0.03 | WU74: 0.03 | WV74: 0.03 | WW74: 0.03 | WX74: 0.03 | WY74: 0.03 | WZ74: 0.03 | XA74: 0.03 | XB74: 0.03 | XC74: 0.03 | XD74: 0.03 | XE74: 0.03 | XF74: 0.03 | XG74: 0.03 | XH74: 0.03 | XI74: 0.03 | XJ74: 0.03 | XK74: 0.03 | XL74: 0.03 | XM74: 0.03 | XN74: 0.03 | XO74: 0.03 | XP74: 0.03 | XQ74: 0.03 | XR74: 0.03 | XS74: 0.03 | XT74: 0.03 | XU74: 0.03 | XV74: 0.03 | XW74: 0.03 | XX74: 0.03 | XY74: =IF(XY4,$F$74,$G$74) -> 0.03 | XZ74: 0.03 | YA74: 0.03 | YB74: 0.03 | YC74: 0.03 | YD74: 0.03 | YE74: 0.03 | YF74: 0.03 | YG74: 0.03 | YH74: 0.03 | YI74: 0.03 | YJ74: 0.03 | YK74: 0.03 | YL74: 0.03 | YM74: 0.03 | YN74: 0.03 | YO74: 0.03 | YP74: 0.03 | YQ74: 0.03 | YR74: 0.03 | YS74: 0.03 | YT74: 0.03 | YU74: 0.03 | YV74: 0.03 | YW74: 0.03 | YX74: 0.03 | YY74: 0.03 | YZ74: 0.03 | ZA74: 0.03 | ZB74: 0.03 | ZC74: 0.03 | ZD74: 0.03 | ZE74: 0.03 | ZF74: 0.03 | ZG74: 0.03 | ZH74: 0.03 | ZI74: 0.03 | ZJ74: 0.03 | ZK74: 0.03 | ZL74: 0.03 | ZM74: 0.03 | ZN74: 0.03 | ZO74: 0.03 | ZP74: 0.03 | ZQ74: 0.03 | ZR74: 0.03 | ZS74: 0.03 | ZT74: 0.03 | ZU74: 0.03 | ZV74: 0.03 | ZW74: 0.03 | ZX74: 0.03 | ZY74: 0.03 | ZZ74: 0.03 | AAA74: 0.03 | AAB74: 0.03 | AAC74: 0.03 | AAD74: 0.03 | AAE74: 0.03 | AAF74: 0.03 | AAG74: 0.03 | AAH74: 0.03 | AAI74: 0.03 | AAJ74: 0.03 | AAK74: =IF(AAK4,$F$74,$G$74) -> 0.03 | AAL74: 0.03 | AAM74: 0.03 | AAN74: 0.03 | AAO74: 0.03 | AAP74: 0.03 | AAQ74: 0.03 | AAR74: 0.03 | AAS74: 0.03 | AAT74: 0.03 | AAU74: 0.03 | AAV74: 0.03 | AAW74: 0.03 | AAX74: 0.03 | AAY74: 0.03 | AAZ74: 0.03 | ABA74: 0.03 | ABB74: 0.03 | ABC74: 0.03 | ABD74: 0.03 | ABE74: 0.03 | ABF74: 0.03 | ABG74: 0.03 | ABH74: 0.03 | ABI74: 0.03 | ABJ74: 0.03 | ABK74: 0.03 | ABL74: 0.03 | ABM74: 0.03 | ABN74: 0.03 | ABO74: 0.03 | ABP74: 0.03 | ABQ74: 0.03 | ABR74: 0.03 | ABS74: 0.03 | ABT74: 0.03 | ABU74: 0.03 | ABV74: 0.03 | ABW74: 0.03 | ABX74: 0.03 | ABY74: 0.03 | ABZ74: 0.03 | ACA74: 0.03 | ACB74: 0.03 | ACC74: 0.03 | ACD74: 0.03 | ACE74: 0.03 | ACF74: 0.03 | ACG74: 0.03 | ACH74: 0.03 | ACI74: 0.03 | ACJ74: 0.03 | ACK74: 0.03 | ACL74: 0.03 | ACM74: 0.03 | ACN74: 0.03 | ACO74: 0.03 | ACP74: 0.03 | ACQ74: 0.03 | ACR74: 0.03 | ACS74: 0.03 | ACT74: 0.03 | ACU74: 0.03 | ACV74: 0.03 | ACW74: =IF(ACW4,$F$74,$G$74) -> 0.03 | ACX74: 0.03 | ACY74: 0.03 | ACZ74: 0.03 | ADA74: 0.03 | ADB74: 0.03 | ADC74: 0.03 | ADD74: 0.03 | ADE74: 0.03 | ADF74: 0.03 | ADG74: 0.03 | ADH74: 0.03 | ADI74: 0.03 | ADJ74: 0.03 | ADK74: 0.03 | ADL74: 0.03 | ADM74: 0.03 | ADN74: 0.03 | ADO74: 0.03 | ADP74: 0.03 | ADQ74: 0.03 | ADR74: 0.03 | ADS74: 0.03 | ADT74: 0.03 | ADU74: 0.03 | ADV74: 0.03 | ADW74: 0.03 | ADX74: 0.03 | ADY74: 0.03 | ADZ74: 0.03 | AEA74: 0.03 | AEB74: 0.03 | AEC74: 0.03 | AED74: 0.03 | AEE74: 0.03 | AEF74: 0.03 | AEG74: 0.03 | AEH74: 0.03 | AEI74: 0.03 | AEJ74: 0.03 | AEK74: 0.03 | AEL74: 0.03 | AEM74: 0.03 | AEN74: 0.03 | AEO74: 0.03 | AEP74: 0.03 | AEQ74: 0.03 | AER74: 0.03 | AES74: 0.03 | AET74: 0.03 | AEU74: 0.03 | AEV74: 0.03 | AEW74: 0.03 | AEX74: 0.03 | AEY74: 0.03 | AEZ74: 0.03 | AFA74: 0.03 | AFB74: 0.03 | AFC74: 0.03 | AFD74: 0.03 | AFE74: 0.03 | AFF74: 0.03 | AFG74: 0.03 | AFH74: 0.03 | AFI74: =IF(AFI4,$F$74,$G$74) -> 0.03 | AFJ74: 0.03 | AFK74: 0.03 | AFL74: 0.03 | AFM74: 0.03 | AFN74: 0.03 | AFO74: 0.03 | AFP74: 0.03 | AFQ74: 0.03 | AFR74: 0.03 | AFS74: 0.03 | AFT74: 0.03 | AFU74: 0.03 | AFV74: 0.03 | AFW74: 0.03 | AFX74: 0.03 | AFY74: 0.03 | AFZ74: 0.03 | AGA74: 0.03 | AGB74: 0.03 | AGC74: 0.03 | AGD74: 0.03 | AGE74: 0.03 | AGF74: 0.03 | AGG74: 0.03 | AGH74: 0.03 | AGI74: 0.03 | AGJ74: 0.03 | AGK74: 0.03
B75: Combined Inflation Index | E75: Index | H75: 1 | I75: =H75*(1+I74) -> 1 | J75: =I75*(1+J74) -> 1.03 | K75: 1.0609 | L75: 1.092727 | M75: 1.12550881 | N75: 1.159274074 | O75: 1.194052297 | P75: 1.229873865 | Q75: 1.266770081 | R75: 1.304773184 | S75: 1.343916379 | T75: 1.384233871 | U75: 1.425760887 | V75: 1.468533713 | W75: 1.512589725 | X75: 1.557967417 | Y75: 1.604706439 | Z75: 1.652847632 | AA75: 1.702433061 | AB75: 1.753506053 | AC75: 1.806111235 | AD75: 1.860294572 | AE75: 1.916103409 | AF75: 1.973586511 | AG75: 2.032794106 | AH75: 2.09377793 | AI75: 2.156591268 | AJ75: 2.221289006 | AK75: 2.287927676 | AL75: 2.356565506 | AM75: 2.427262471 | AN75: 2.500080345 | AO75: 2.575082756 | AP75: 2.652335238 | AQ75: 2.731905296 | AR75: 2.813862454 | AS75: 2.898278328 | AT75: 2.985226678 | AU75: 3.074783478 | AV75: 3.167026983 | AW75: 3.262037792 | AX75: 3.359898926 | AY75: 3.460695894 | AZ75: 3.56451677 | BA75: 3.671452273 | BB75: 3.781595842 | BC75: 3.895043717 | BD75: 4.011895028 | BE75: 4.132251879 | BF75: 4.256219436 | BG75: 4.383906019 | BH75: 4.515423199 | BI75: 4.650885895 | BJ75: 4.790412472 | BK75: 4.934124846 | BL75: 5.082148592 | BM75: 5.234613049 | BN75: 5.391651441 | BO75: 5.553400984 | BP75: 5.720003014 | BQ75: 5.891603104 | BR75: 6.068351197 | BS75: 6.250401733 | BT75: 6.437913785 | BU75: 6.631051199 | BV75: =BU75*(1+BV74) -> 6.829982735 | BW75: 7.034882217 | BX75: 7.245928683 | BY75: 7.463306544 | BZ75: 7.68720574 | CA75: 7.917821912 | CB75: 8.155356569 | CC75: 8.400017267 | CD75: 8.652017785 | CE75: 8.911578318 | CF75: 9.178925668 | CG75: 9.454293438 | CH75: 9.737922241 | CI75: 10.03005991 | CJ75: 10.33096171 | CK75: 10.64089056 | CL75: 10.96011727 | CM75: 11.28892079 | CN75: 11.62758842 | CO75: 11.97641607 | CP75: 12.33570855 | CQ75: 12.70577981 | CR75: 13.0869532 | CS75: 13.4795618 | CT75: 13.88394865 | CU75: 14.30046711 | CV75: 14.72948112 | CW75: 15.17136556 | CX75: 15.62650652 | CY75: 16.09530172 | CZ75: 16.57816077 | DA75: 17.07550559 | DB75: 17.58777076 | DC75: 18.11540388 | DD75: 18.658866 | DE75: 19.21863198 | DF75: 19.79519094 | DG75: 20.38904667 | DH75: 21.00071807 | DI75: 21.63073961 | DJ75: 22.2796618 | DK75: 22.94805165 | DL75: 23.6364932 | DM75: 24.345588 | DN75: 25.07595564 | DO75: 25.82823431 | DP75: 26.60308134 | DQ75: 27.40117378 | DR75: 28.22320899 | DS75: 29.06990526 | DT75: 29.94200242 | DU75: 30.84026249 | DV75: 31.76547037 | DW75: 32.71843448 | DX75: 33.69998751 | DY75: 34.71098714 | DZ75: 35.75231675 | EA75: 36.82488625 | EB75: 37.92963284 | EC75: 39.06752182 | ED75: 40.23954748 | EE75: 41.4467339 | EF75: 42.69013592 | EG75: 43.97084 | EH75: =EG75*(1+EH74) -> 45.2899652 | EI75: 46.64866415 | EJ75: 48.04812408 | EK75: 49.4895678 | EL75: 50.97425484 | EM75: 52.50348248 | EN75: 54.07858696 | EO75: 55.70094456 | EP75: 57.3719729 | EQ75: 59.09313209 | ER75: 60.86592605 | ES75: 62.69190383 | ET75: 64.57266095 | EU75: 66.50984078 | EV75: 68.505136 | EW75: 70.56029008 | EX75: 72.67709878 | EY75: 74.85741174 | EZ75: 77.1031341 | FA75: 79.41622812 | FB75: 81.79871496 | FC75: 84.25267641 | FD75: 86.7802567 | FE75: 89.38366441 | FF75: 92.06517434 | FG75: 94.82712957 | FH75: 97.67194346 | FI75: 100.6021018 | FJ75: 103.6201648 | FK75: 106.7287698 | FL75: 109.9306328 | FM75: 113.2285518 | FN75: 116.6254084 | FO75: 120.1241706 | FP75: 123.7278958 | FQ75: 127.4397326 | FR75: 131.2629246 | FS75: 135.2008123 | FT75: 139.2568367 | FU75: 143.4345418 | FV75: 147.7375781 | FW75: 152.1697054 | FX75: 156.7347966 | FY75: 161.4368405 | FZ75: 166.2799457 | GA75: 171.2683441 | GB75: 176.4063944 | GC75: 181.6985862 | GD75: 187.1495438 | GE75: 192.7640301 | GF75: 198.546951 | GG75: 204.5033596 | GH75: 210.6384603 | GI75: 216.9576141 | GJ75: 223.4663426 | GK75: 230.1703329 | GL75: 237.0754428 | GM75: 244.1877061 | GN75: 251.5133373 | GO75: 259.0587374 | GP75: 266.8304995 | GQ75: 274.8354145 | GR75: 283.080477 | GS75: 291.5728913 | GT75: =GS75*(1+GT74) -> 300.320078 | GU75: 309.3296804 | GV75: 318.6095708 | GW75: 328.1678579 | GX75: 338.0128936 | GY75: 348.1532804 | GZ75: 358.5978789 | HA75: 369.3558152 | HB75: 380.4364897 | HC75: 391.8495844 | HD75: 403.6050719 | HE75: 415.713224 | HF75: 428.1846208 | HG75: 441.0301594 | HH75: 454.2610642 | HI75: 467.8888961 | HJ75: 481.925563 | HK75: 496.3833299 | HL75: 511.2748298 | HM75: 526.6130747 | HN75: 542.4114669 | HO75: 558.6838109 | HP75: 575.4443252 | HQ75: 592.707655 | HR75: 610.4888846 | HS75: 628.8035512 | HT75: 647.6676577 | HU75: 667.0976875 | HV75: 687.1106181 | HW75: 707.7239366 | HX75: 728.9556547 | HY75: 750.8243244 | HZ75: 773.3490541 | IA75: 796.5495257 | IB75: 820.4460115 | IC75: 845.0593918 | ID75: 870.4111736 | IE75: 896.5235088 | IF75: 923.4192141 | IG75: 951.1217905 | IH75: 979.6554442 | II75: 1009.045108 | IJ75: 1039.316461 | IK75: 1070.495955 | IL75: 1102.610833 | IM75: 1135.689158 | IN75: 1169.759833 | IO75: 1204.852628 | IP75: 1240.998207 | IQ75: 1278.228153 | IR75: 1316.574998 | IS75: 1356.072247 | IT75: 1396.754415 | IU75: 1438.657047 | IV75: 1481.816759 | IW75: 1526.271262 | IX75: 1572.059399 | IY75: 1619.221181 | IZ75: 1667.797817 | JA75: 1717.831751 | JB75: 1769.366704 | JC75: 1822.447705 | JD75: 1877.121136 | JE75: 1933.43477 | JF75: =JE75*(1+JF74) -> 1991.437813 | JG75: 2051.180948 | JH75: 2112.716376 | JI75: 2176.097867 | JJ75: 2241.380803 | JK75: 2308.622228 | JL75: 2377.880894 | JM75: 2449.217321 | JN75: 2522.693841 | JO75: 2598.374656 | JP75: 2676.325896 | JQ75: 2756.615673 | JR75: 2839.314143 | JS75: 2924.493567 | JT75: 3012.228374 | JU75: 3102.595225 | JV75: 3195.673082 | JW75: 3291.543275 | JX75: 3390.289573 | JY75: 3491.99826 | JZ75: 3596.758208 | KA75: 3704.660954 | KB75: 3815.800783 | KC75: 3930.274806 | KD75: 4048.18305 | KE75: 4169.628542 | KF75: 4294.717398 | KG75: 4423.55892 | KH75: 4556.265688 | KI75: 4692.953658 | KJ75: 4833.742268 | KK75: 4978.754536 | KL75: 5128.117172 | KM75: 5281.960687 | KN75: 5440.419508 | KO75: 5603.632093 | KP75: 5771.741056 | KQ75: 5944.893288 | KR75: 6123.240086 | KS75: 6306.937289 | KT75: 6496.145407 | KU75: 6691.02977 | KV75: 6891.760663 | KW75: 7098.513483 | KX75: 7311.468887 | KY75: 7530.812954 | KZ75: 7756.737342 | LA75: 7989.439463 | LB75: 8229.122646 | LC75: 8475.996326 | LD75: 8730.276216 | LE75: 8992.184502 | LF75: 9261.950037 | LG75: 9539.808538 | LH75: 9826.002794 | LI75: 10120.78288 | LJ75: 10424.40636 | LK75: 10737.13856 | LL75: 11059.25271 | LM75: 11391.03029 | LN75: 11732.7612 | LO75: 12084.74404 | LP75: 12447.28636 | LQ75: 12820.70495 | LR75: =LQ75*(1+LR74) -> 13205.3261 | LS75: 13601.48588 | LT75: 14009.53046 | LU75: 14429.81637 | LV75: 14862.71086 | LW75: 15308.59219 | LX75: 15767.84995 | LY75: 16240.88545 | LZ75: 16728.11202 | MA75: 17229.95538 | MB75: 17746.85404 | MC75: 18279.25966 | MD75: 18827.63745 | ME75: 19392.46657 | MF75: 19974.24057 | MG75: 20573.46779 | MH75: 21190.67182 | MI75: 21826.39198 | MJ75: 22481.18374 | MK75: 23155.61925 | ML75: 23850.28782 | MM75: 24565.79646 | MN75: 25302.77035 | MO75: 26061.85346 | MP75: 26843.70907 | MQ75: 27649.02034 | MR75: 28478.49095 | MS75: 29332.84568 | MT75: 30212.83105 | MU75: 31119.21598 | MV75: 32052.79246 | MW75: 33014.37623 | MX75: 34004.80752 | MY75: 35024.95175 | MZ75: 36075.7003 | NA75: 37157.97131 | NB75: 38272.71045 | NC75: 39420.89176 | ND75: 40603.51851 | NE75: 41821.62407 | NF75: 43076.27279 | NG75: 44368.56097 | NH75: 45699.6178 | NI75: 47070.60634 | NJ75: 48482.72453 | NK75: 49937.20626 | NL75: 51435.32245 | NM75: 52978.38212 | NN75: 54567.73359 | NO75: 56204.7656 | NP75: 57890.90856 | NQ75: 59627.63582 | NR75: 61416.4649 | NS75: 63258.95884 | NT75: 65156.72761 | NU75: 67111.42944 | NV75: 69124.77232 | NW75: 71198.51549 | NX75: 73334.47095 | NY75: 75534.50508 | NZ75: 77800.54023 | OA75: 80134.55644 | OB75: 82538.59313 | OC75: 85014.75093 | OD75: =OC75*(1+OD74) -> 87565.19346 | OE75: 90192.14926 | OF75: 92897.91374 | OG75: 95684.85115 | OH75: 98555.39668 | OI75: 101512.0586 | OJ75: 104557.4203 | OK75: 107694.143 | OL75: 110924.9672 | OM75: 114252.7163 | ON75: 117680.2977 | OO75: 121210.7067 | OP75: 124847.0279 | OQ75: 128592.4387 | OR75: 132450.2119 | OS75: 136423.7182 | OT75: 140516.4298 | OU75: 144731.9227 | OV75: 149073.8804 | OW75: 153546.0968 | OX75: 158152.4797 | OY75: 162897.0541 | OZ75: 167783.9657 | PA75: 172817.4846 | PB75: 178002.0092 | PC75: 183342.0695 | PD75: 188842.3315 | PE75: 194507.6015 | PF75: 200342.8295 | PG75: 206353.1144 | PH75: 212543.7079 | PI75: 218920.0191 | PJ75: 225487.6197 | PK75: 232252.2483 | PL75: 239219.8157 | PM75: 246396.4102 | PN75: 253788.3025 | PO75: 261401.9516 | PP75: 269244.0101 | PQ75: 277321.3304 | PR75: 285640.9703 | PS75: 294210.1994 | PT75: 303036.5054 | PU75: 312127.6006 | PV75: 321491.4286 | PW75: 331136.1714 | PX75: 341070.2566 | PY75: 351302.3643 | PZ75: 361841.4352 | QA75: 372696.6783 | QB75: 383877.5786 | QC75: 395393.906 | QD75: 407255.7232 | QE75: 419473.3949 | QF75: 432057.5967 | QG75: 445019.3246 | QH75: 458369.9043 | QI75: 472121.0015 | QJ75: 486284.6315 | QK75: 500873.1705 | QL75: 515899.3656 | QM75: 531376.3465 | QN75: 547317.6369 | QO75: 563737.166 | QP75: =QO75*(1+QP74) -> 580649.281 | QQ75: 598068.7595 | QR75: 616010.8222 | QS75: 634491.1469 | QT75: 653525.8813 | QU75: 673131.6578 | QV75: 693325.6075 | QW75: 714125.3757 | QX75: 735549.137 | QY75: 757615.6111 | QZ75: 780344.0794 | RA75: 803754.4018 | RB75: 827867.0339 | RC75: 852703.0449 | RD75: 878284.1362 | RE75: 904632.6603 | RF75: 931771.6401 | RG75: 959724.7893 | RH75: 988516.533 | RI75: 1018172.029 | RJ75: 1048717.19 | RK75: 1080178.706 | RL75: 1112584.067 | RM75: 1145961.589 | RN75: 1180340.436 | RO75: 1215750.649 | RP75: 1252223.169 | RQ75: 1289789.864 | RR75: 1328483.56 | RS75: 1368338.067 | RT75: 1409388.209 | RU75: 1451669.855 | RV75: 1495219.951 | RW75: 1540076.549 | RX75: 1586278.846 | RY75: 1633867.211 | RZ75: 1682883.227 | SA75: 1733369.724 | SB75: 1785370.816 | SC75: 1838931.94 | SD75: 1894099.899 | SE75: 1950922.896 | SF75: 2009450.582 | SG75: 2069734.1 | SH75: 2131826.123 | SI75: 2195780.907 | SJ75: 2261654.334 | SK75: 2329503.964 | SL75: 2399389.083 | SM75: 2471370.755 | SN75: 2545511.878 | SO75: 2621877.234 | SP75: 2700533.551 | SQ75: 2781549.558 | SR75: 2864996.044 | SS75: 2950945.926 | ST75: 3039474.304 | SU75: 3130658.533 | SV75: 3224578.289 | SW75: 3321315.637 | SX75: 3420955.106 | SY75: 3523583.76 | SZ75: 3629291.272 | TA75: 3738170.011 | TB75: =TA75*(1+TB74) -> 3850315.111 | TC75: 3965824.564 | TD75: 4084799.301 | TE75: 4207343.28 | TF75: 4333563.579 | TG75: 4463570.486 | TH75: 4597477.601 | TI75: 4735401.929 | TJ75: 4877463.986 | TK75: 5023787.906 | TL75: 5174501.543 | TM75: 5329736.59 | TN75: 5489628.687 | TO75: 5654317.548 | TP75: 5823947.074 | TQ75: 5998665.486 | TR75: 6178625.451 | TS75: 6363984.215 | TT75: 6554903.741 | TU75: 6751550.853 | TV75: 6954097.379 | TW75: 7162720.3 | TX75: 7377601.909 | TY75: 7598929.967 | TZ75: 7826897.866 | UA75: 8061704.802 | UB75: 8303555.946 | UC75: 8552662.624 | UD75: 8809242.503 | UE75: 9073519.778 | UF75: 9345725.371 | UG75: 9626097.132 | UH75: 9914880.046 | UI75: 10212326.45 | UJ75: 10518696.24 | UK75: 10834257.13 | UL75: 11159284.84 | UM75: 11494063.39 | UN75: 11838885.29 | UO75: 12194051.85 | UP75: 12559873.4 | UQ75: 12936669.61 | UR75: 13324769.69 | US75: 13724512.78 | UT75: 14136248.17 | UU75: 14560335.61 | UV75: 14997145.68 | UW75: 15447060.05 | UX75: 15910471.85 | UY75: 16387786.01 | UZ75: 16879419.59 | VA75: 17385802.18 | VB75: 17907376.24 | VC75: 18444597.53 | VD75: 18997935.45 | VE75: 19567873.52 | VF75: 20154909.72 | VG75: 20759557.02 | VH75: 21382343.73 | VI75: 22023814.04 | VJ75: 22684528.46 | VK75: 23365064.31 | VL75: 24066016.24 | VM75: 24787996.73 | VN75: =VM75*(1+VN74) -> 25531636.63 | VO75: 26297585.73 | VP75: 27086513.3 | VQ75: 27899108.7 | VR75: 28736081.96 | VS75: 29598164.42 | VT75: 30486109.35 | VU75: 31400692.63 | VV75: 32342713.41 | VW75: 33312994.82 | VX75: 34312384.66 | VY75: 35341756.2 | VZ75: 36402008.89 | WA75: 37494069.15 | WB75: 38618891.23 | WC75: 39777457.96 | WD75: 40970781.7 | WE75: 42199905.15 | WF75: 43465902.31 | WG75: 44769879.38 | WH75: 46112975.76 | WI75: 47496365.03 | WJ75: 48921255.98 | WK75: 50388893.66 | WL75: 51900560.47 | WM75: 53457577.29 | WN75: 55061304.61 | WO75: 56713143.74 | WP75: 58414538.06 | WQ75: 60166974.2 | WR75: 61971983.42 | WS75: 63831142.93 | WT75: 65746077.21 | WU75: 67718459.53 | WV75: 69750013.32 | WW75: 71842513.72 | WX75: 73997789.13 | WY75: 76217722.8 | WZ75: 78504254.49 | XA75: 80859382.12 | XB75: 83285163.58 | XC75: 85783718.49 | XD75: 88357230.05 | XE75: 91007946.95 | XF75: 93738185.36 | XG75: 96550330.92 | XH75: 99446840.84 | XI75: 102430246.1 | XJ75: 105503153.5 | XK75: 108668248.1 | XL75: 111928295.5 | XM75: 115286144.4 | XN75: 118744728.7 | XO75: 122307070.6 | XP75: 125976282.7 | XQ75: 129755571.1 | XR75: 133648238.3 | XS75: 137657685.4 | XT75: 141787416 | XU75: 146041038.5 | XV75: 150422269.6 | XW75: 154934937.7 | XX75: 159582985.8 | XY75: 164370475.4 | XZ75: =XY75*(1+XZ74) -> 169301589.7 | YA75: 174380637.4 | YB75: 179612056.5 | YC75: 185000418.2 | YD75: 190550430.7 | YE75: 196266943.7 | YF75: 202154952 | YG75: 208219600.5 | YH75: 214466188.5 | YI75: 220900174.2 | YJ75: 227527179.4 | YK75: 234352994.8 | YL75: 241383584.7 | YM75: 248625092.2 | YN75: 256083845 | YO75: 263766360.3 | YP75: 271679351.1 | YQ75: 279829731.7 | YR75: 288224623.6 | YS75: 296871362.3 | YT75: 305777503.2 | YU75: 314950828.3 | YV75: 324399353.1 | YW75: 334131333.7 | YX75: 344155273.7 | YY75: 354479931.9 | YZ75: 365114329.9 | ZA75: 376067759.8 | ZB75: 387349792.6 | ZC75: 398970286.4 | ZD75: 410939395 | ZE75: 423267576.8 | ZF75: 435965604.1 | ZG75: 449044572.2 | ZH75: 462515909.4 | ZI75: 476391386.7 | ZJ75: 490683128.3 | ZK75: 505403622.1 | ZL75: 520565730.8 | ZM75: 536182702.7 | ZN75: 552268183.8 | ZO75: 568836229.3 | ZP75: 585901316.2 | ZQ75: 603478355.7 | ZR75: 621582706.4 | ZS75: 640230187.5 | ZT75: 659437093.2 | ZU75: 679220206 | ZV75: 699596812.2 | ZW75: 720584716.5 | ZX75: 742202258 | ZY75: 764468325.8 | ZZ75: 787402375.5 | AAA75: 811024446.8 | AAB75: 835355180.2 | AAC75: 860415835.6 | AAD75: 886228310.7 | AAE75: 912815160 | AAF75: 940199614.8 | AAG75: 968405603.2 | AAH75: 997457771.3 | AAI75: 1027381504 | AAJ75: 1058202950 | AAK75: 1089949038 | AAL75: =AAK75*(1+AAL74) -> 1122647509 | AAM75: 1156326935 | AAN75: 1191016743 | AAO75: 1226747245 | AAP75: 1263549662 | AAQ75: 1301456152 | AAR75: 1340499837 | AAS75: 1380714832 | AAT75: 1422136277 | AAU75: 1464800365 | AAV75: 1508744376 | AAW75: 1554006707 | AAX75: 1600626908 | AAY75: 1648645716 | AAZ75: 1698105087 | ABA75: 1749048240 | ABB75: 1801519687 | ABC75: 1855565278 | ABD75: 1911232236 | ABE75: 1968569203 | ABF75: 2027626279 | ABG75: 2088455067 | ABH75: 2151108719 | ABI75: 2215641981 | ABJ75: 2282111240 | ABK75: 2350574578 | ABL75: 2421091815 | ABM75: 2493724569 | ABN75: 2568536306 | ABO75: 2645592396 | ABP75: 2724960168 | ABQ75: 2806708973 | ABR75: 2890910242 | ABS75: 2977637549 | ABT75: 3066966675 | ABU75: 3158975676 | ABV75: 3253744946 | ABW75: 3351357294 | ABX75: 3451898013 | ABY75: 3555454954 | ABZ75: 3662118602 | ACA75: 3771982160 | ACB75: 3885141625 | ACC75: 4001695874 | ACD75: 4121746750 | ACE75: 4245399153 | ACF75: 4372761127 | ACG75: 4503943961 | ACH75: 4639062280 | ACI75: 4778234148 | ACJ75: 4921581173 | ACK75: 5069228608 | ACL75: 5221305466 | ACM75: 5377944630 | ACN75: 5539282969 | ACO75: 5705461458 | ACP75: 5876625302 | ACQ75: 6052924061 | ACR75: 6234511783 | ACS75: 6421547136 | ACT75: 6614193550 | ACU75: 6812619357 | ACV75: 7016997937 | ACW75: 7227507875 | ACX75: =ACW75*(1+ACX74) -> 7444333112 | ACY75: 7667663105 | ACZ75: 7897692998 | ADA75: 8134623788 | ADB75: 8378662502 | ADC75: 8630022377 | ADD75: 8888923048 | ADE75: 9155590740 | ADF75: 9430258462 | ADG75: 9713166216 | ADH75: 1.00045612e+10 | ADI75: 1.030469804e+10 | ADJ75: 1.061383898e+10 | ADK75: 1.093225415e+10 | ADL75: 1.126022177e+10 | ADM75: 1.159802843e+10 | ADN75: 1.194596928e+10 | ADO75: 1.230434836e+10 | ADP75: 1.267347881e+10 | ADQ75: 1.305368317e+10 | ADR75: 1.344529367e+10 | ADS75: 1.384865248e+10 | ADT75: 1.426411205e+10 | ADU75: 1.469203541e+10 | ADV75: 1.513279648e+10 | ADW75: 1.558678037e+10 | ADX75: 1.605438378e+10 | ADY75: 1.653601529e+10 | ADZ75: 1.703209575e+10 | AEA75: 1.754305863e+10 | AEB75: 1.806935039e+10 | AEC75: 1.86114309e+10 | AED75: 1.916977382e+10 | AEE75: 1.974486704e+10 | AEF75: 2.033721305e+10 | AEG75: 2.094732944e+10 | AEH75: 2.157574932e+10 | AEI75: 2.22230218e+10 | AEJ75: 2.288971246e+10 | AEK75: 2.357640383e+10 | AEL75: 2.428369595e+10 | AEM75: 2.501220683e+10 | AEN75: 2.576257303e+10 | AEO75: 2.653545022e+10 | AEP75: 2.733151373e+10 | AEQ75: 2.815145914e+10 | AER75: 2.899600291e+10 | AES75: 2.9865883e+10 | AET75: 3.076185949e+10 | AEU75: 3.168471528e+10 | AEV75: 3.263525673e+10 | AEW75: 3.361431444e+10 | AEX75: 3.462274387e+10 | AEY75: 3.566142618e+10 | AEZ75: 3.673126897e+10 | AFA75: 3.783320704e+10 | AFB75: 3.896820325e+10 | AFC75: 4.013724935e+10 | AFD75: 4.134136683e+10 | AFE75: 4.258160783e+10 | AFF75: 4.385905607e+10 | AFG75: 4.517482775e+10 | AFH75: 4.653007258e+10 | AFI75: 4.792597476e+10 | AFJ75: =AFI75*(1+AFJ74) -> 4.9363754e+10 | AFK75: 5.084466662e+10 | AFL75: 5.237000662e+10 | AFM75: 5.394110682e+10 | AFN75: 5.555934003e+10 | AFO75: 5.722612023e+10 | AFP75: 5.894290383e+10 | AFQ75: 6.071119095e+10 | AFR75: 6.253252668e+10 | AFS75: 6.440850248e+10 | AFT75: 6.634075755e+10 | AFU75: 6.833098028e+10 | AFV75: 7.038090969e+10 | AFW75: 7.249233698e+10 | AFX75: 7.466710709e+10 | AFY75: 7.69071203e+10 | AFZ75: 7.921433391e+10 | AGA75: 8.159076392e+10 | AGB75: 8.403848684e+10 | AGC75: 8.655964145e+10 | AGD75: 8.915643069e+10 | AGE75: 9.183112361e+10 | AGF75: 9.458605732e+10 | AGG75: 9.742363904e+10 | AGH75: 1.003463482e+11 | AGI75: 1.033567387e+11 | AGJ75: 1.064574408e+11 | AGK75: 1.09651164e+11
B76: Inflation Index from COD | E76: Index
B78: Initial Construction without Inflation and Return | E78: Currency | F78: ='Solar Carrying Charge'!F32 -> 1000 | I78: =$F$78*I72 -> 1000 | J78: 0 | K78: 0 | L78: 0 | M78: 0 | N78: 0 | O78: 0 | P78: 0 | Q78: 0 | R78: 0 | S78: 0 | T78: 0 | U78: 0 | V78: 0 | W78: 0 | X78: 0 | Y78: 0 | Z78: 0 | AA78: 0 | AB78: 0 | AC78: 0 | AD78: 0 | AE78: 0 | AF78: 0 | AG78: 0 | AH78: 0 | AI78: 0 | AJ78: 0 | AK78: 0 | AL78: 0 | AM78: 0 | AN78: 0 | AO78: 0 | AP78: 0 | AQ78: 0 | AR78: 0 | AS78: 0 | AT78: 0 | AU78: 0 | AV78: 0 | AW78: 0 | AX78: 0 | AY78: 0 | AZ78: 0 | BA78: 0 | BB78: 0 | BC78: 0 | BD78: 0 | BE78: 0 | BF78: 0 | BG78: 0 | BH78: 0 | BI78: 0 | BJ78: 0 | BK78: 0 | BL78: 0 | BM78: 0 | BN78: 0 | BO78: 0 | BP78: 0 | BQ78: 0 | BR78: 0 | BS78: 0 | BT78: 0 | BU78: =$F$78*BU72 -> 0 | BV78: 0 | BW78: 0 | BX78: 0 | BY78: 0 | BZ78: 0 | CA78: 0 | CB78: 0 | CC78: 0 | CD78: 0 | CE78: 0 | CF78: 0 | CG78: 0 | CH78: 0 | CI78: 0 | CJ78: 0 | CK78: 0 | CL78: 0 | CM78: 0 | CN78: 0 | CO78: 0 | CP78: 0 | CQ78: 0 | CR78: 0 | CS78: 0 | CT78: 0 | CU78: 0 | CV78: 0 | CW78: 0 | CX78: 0 | CY78: 0 | CZ78: 0 | DA78: 0 | DB78: 0 | DC78: 0 | DD78: 0 | DE78: 0 | DF78: 0 | DG78: 0 | DH78: 0 | DI78: 0 | DJ78: 0 | DK78: 0 | DL78: 0 | DM78: 0 | DN78: 0 | DO78: 0 | DP78: 0 | DQ78: 0 | DR78: 0 | DS78: 0 | DT78: 0 | DU78: 0 | DV78: 0 | DW78: 0 | DX78: 0 | DY78: 0 | DZ78: 0 | EA78: 0 | EB78: 0 | EC78: 0 | ED78: 0 | EE78: 0 | EF78: 0 | EG78: =$F$78*EG72 -> 0 | EH78: 0 | EI78: 0 | EJ78: 0 | EK78: 0 | EL78: 0 | EM78: 0 | EN78: 0 | EO78: 0 | EP78: 0 | EQ78: 0 | ER78: 0 | ES78: 0 | ET78: 0 | EU78: 0 | EV78: 0 | EW78: 0 | EX78: 0 | EY78: 0 | EZ78: 0 | FA78: 0 | FB78: 0 | FC78: 0 | FD78: 0 | FE78: 0 | FF78: 0 | FG78: 0 | FH78: 0 | FI78: 0 | FJ78: 0 | FK78: 0 | FL78: 0 | FM78: 0 | FN78: 0 | FO78: 0 | FP78: 0 | FQ78: 0 | FR78: 0 | FS78: 0 | FT78: 0 | FU78: 0 | FV78: 0 | FW78: 0 | FX78: 0 | FY78: 0 | FZ78: 0 | GA78: 0 | GB78: 0 | GC78: 0 | GD78: 0 | GE78: 0 | GF78: 0 | GG78: 0 | GH78: 0 | GI78: 0 | GJ78: 0 | GK78: 0 | GL78: 0 | GM78: 0 | GN78: 0 | GO78: 0 | GP78: 0 | GQ78: 0 | GR78: 0 | GS78: =$F$78*GS72 -> 0 | GT78: 0 | GU78: 0 | GV78: 0 | GW78: 0 | GX78: 0 | GY78: 0 | GZ78: 0 | HA78: 0 | HB78: 0 | HC78: 0 | HD78: 0 | HE78: 0 | HF78: 0 | HG78: 0 | HH78: 0 | HI78: 0 | HJ78: 0 | HK78: 0 | HL78: 0 | HM78: 0 | HN78: 0 | HO78: 0 | HP78: 0 | HQ78: 0 | HR78: 0 | HS78: 0 | HT78: 0 | HU78: 0 | HV78: 0 | HW78: 0 | HX78: 0 | HY78: 0 | HZ78: 0 | IA78: 0 | IB78: 0 | IC78: 0 | ID78: 0 | IE78: 0 | IF78: 0 | IG78: 0 | IH78: 0 | II78: 0 | IJ78: 0 | IK78: 0 | IL78: 0 | IM78: 0 | IN78: 0 | IO78: 0 | IP78: 0 | IQ78: 0 | IR78: 0 | IS78: 0 | IT78: 0 | IU78: 0 | IV78: 0 | IW78: 0 | IX78: 0 | IY78: 0 | IZ78: 0 | JA78: 0 | JB78: 0 | JC78: 0 | JD78: 0 | JE78: =$F$78*JE72 -> 0 | JF78: 0 | JG78: 0 | JH78: 0 | JI78: 0 | JJ78: 0 | JK78: 0 | JL78: 0 | JM78: 0 | JN78: 0 | JO78: 0 | JP78: 0 | JQ78: 0 | JR78: 0 | JS78: 0 | JT78: 0 | JU78: 0 | JV78: 0 | JW78: 0 | JX78: 0 | JY78: 0 | JZ78: 0 | KA78: 0 | KB78: 0 | KC78: 0 | KD78: 0 | KE78: 0 | KF78: 0 | KG78: 0 | KH78: 0 | KI78: 0 | KJ78: 0 | KK78: 0 | KL78: 0 | KM78: 0 | KN78: 0 | KO78: 0 | KP78: 0 | KQ78: 0 | KR78: 0 | KS78: 0 | KT78: 0 | KU78: 0 | KV78: 0 | KW78: 0 | KX78: 0 | KY78: 0 | KZ78: 0 | LA78: 0 | LB78: 0 | LC78: 0 | LD78: 0 | LE78: 0 | LF78: 0 | LG78: 0 | LH78: 0 | LI78: 0 | LJ78: 0 | LK78: 0 | LL78: 0 | LM78: 0 | LN78: 0 | LO78: 0 | LP78: 0 | LQ78: =$F$78*LQ72 -> 0 | LR78: 0 | LS78: 0 | LT78: 0 | LU78: 0 | LV78: 0 | LW78: 0 | LX78: 0 | LY78: 0 | LZ78: 0 | MA78: 0 | MB78: 0 | MC78: 0 | MD78: 0 | ME78: 0 | MF78: 0 | MG78: 0 | MH78: 0 | MI78: 0 | MJ78: 0 | MK78: 0 | ML78: 0 | MM78: 0 | MN78: 0 | MO78: 0 | MP78: 0 | MQ78: 0 | MR78: 0 | MS78: 0 | MT78: 0 | MU78: 0 | MV78: 0 | MW78: 0 | MX78: 0 | MY78: 0 | MZ78: 0 | NA78: 0 | NB78: 0 | NC78: 0 | ND78: 0 | NE78: 0 | NF78: 0 | NG78: 0 | NH78: 0 | NI78: 0 | NJ78: 0 | NK78: 0 | NL78: 0 | NM78: 0 | NN78: 0 | NO78: 0 | NP78: 0 | NQ78: 0 | NR78: 0 | NS78: 0 | NT78: 0 | NU78: 0 | NV78: 0 | NW78: 0 | NX78: 0 | NY78: 0 | NZ78: 0 | OA78: 0 | OB78: 0 | OC78: =$F$78*OC72 -> 0 | OD78: 0 | OE78: 0 | OF78: 0 | OG78: 0 | OH78: 0 | OI78: 0 | OJ78: 0 | OK78: 0 | OL78: 0 | OM78: 0 | ON78: 0 | OO78: 0 | OP78: 0 | OQ78: 0 | OR78: 0 | OS78: 0 | OT78: 0 | OU78: 0 | OV78: 0 | OW78: 0 | OX78: 0 | OY78: 0 | OZ78: 0 | PA78: 0 | PB78: 0 | PC78: 0 | PD78: 0 | PE78: 0 | PF78: 0 | PG78: 0 | PH78: 0 | PI78: 0 | PJ78: 0 | PK78: 0 | PL78: 0 | PM78: 0 | PN78: 0 | PO78: 0 | PP78: 0 | PQ78: 0 | PR78: 0 | PS78: 0 | PT78: 0 | PU78: 0 | PV78: 0 | PW78: 0 | PX78: 0 | PY78: 0 | PZ78: 0 | QA78: 0 | QB78: 0 | QC78: 0 | QD78: 0 | QE78: 0 | QF78: 0 | QG78: 0 | QH78: 0 | QI78: 0 | QJ78: 0 | QK78: 0 | QL78: 0 | QM78: 0 | QN78: 0 | QO78: =$F$78*QO72 -> 0 | QP78: 0 | QQ78: 0 | QR78: 0 | QS78: 0 | QT78: 0 | QU78: 0 | QV78: 0 | QW78: 0 | QX78: 0 | QY78: 0 | QZ78: 0 | RA78: 0 | RB78: 0 | RC78: 0 | RD78: 0 | RE78: 0 | RF78: 0 | RG78: 0 | RH78: 0 | RI78: 0 | RJ78: 0 | RK78: 0 | RL78: 0 | RM78: 0 | RN78: 0 | RO78: 0 | RP78: 0 | RQ78: 0 | RR78: 0 | RS78: 0 | RT78: 0 | RU78: 0 | RV78: 0 | RW78: 0 | RX78: 0 | RY78: 0 | RZ78: 0 | SA78: 0 | SB78: 0 | SC78: 0 | SD78: 0 | SE78: 0 | SF78: 0 | SG78: 0 | SH78: 0 | SI78: 0 | SJ78: 0 | SK78: 0 | SL78: 0 | SM78: 0 | SN78: 0 | SO78: 0 | SP78: 0 | SQ78: 0 | SR78: 0 | SS78: 0 | ST78: 0 | SU78: 0 | SV78: 0 | SW78: 0 | SX78: 0 | SY78: 0 | SZ78: 0 | TA78: =$F$78*TA72 -> 0 | TB78: 0 | TC78: 0 | TD78: 0 | TE78: 0 | TF78: 0 | TG78: 0 | TH78: 0 | TI78: 0 | TJ78: 0 | TK78: 0 | TL78: 0 | TM78: 0 | TN78: 0 | TO78: 0 | TP78: 0 | TQ78: 0 | TR78: 0 | TS78: 0 | TT78: 0 | TU78: 0 | TV78: 0 | TW78: 0 | TX78: 0 | TY78: 0 | TZ78: 0 | UA78: 0 | UB78: 0 | UC78: 0 | UD78: 0 | UE78: 0 | UF78: 0 | UG78: 0 | UH78: 0 | UI78: 0 | UJ78: 0 | UK78: 0 | UL78: 0 | UM78: 0 | UN78: 0 | UO78: 0 | UP78: 0 | UQ78: 0 | UR78: 0 | US78: 0 | UT78: 0 | UU78: 0 | UV78: 0 | UW78: 0 | UX78: 0 | UY78: 0 | UZ78: 0 | VA78: 0 | VB78: 0 | VC78: 0 | VD78: 0 | VE78: 0 | VF78: 0 | VG78: 0 | VH78: 0 | VI78: 0 | VJ78: 0 | VK78: 0 | VL78: 0 | VM78: =$F$78*VM72 -> 0 | VN78: 0 | VO78: 0 | VP78: 0 | VQ78: 0 | VR78: 0 | VS78: 0 | VT78: 0 | VU78: 0 | VV78: 0 | VW78: 0 | VX78: 0 | VY78: 0 | VZ78: 0 | WA78: 0 | WB78: 0 | WC78: 0 | WD78: 0 | WE78: 0 | WF78: 0 | WG78: 0 | WH78: 0 | WI78: 0 | WJ78: 0 | WK78: 0 | WL78: 0 | WM78: 0 | WN78: 0 | WO78: 0 | WP78: 0 | WQ78: 0 | WR78: 0 | WS78: 0 | WT78: 0 | WU78: 0 | WV78: 0 | WW78: 0 | WX78: 0 | WY78: 0 | WZ78: 0 | XA78: 0 | XB78: 0 | XC78: 0 | XD78: 0 | XE78: 0 | XF78: 0 | XG78: 0 | XH78: 0 | XI78: 0 | XJ78: 0 | XK78: 0 | XL78: 0 | XM78: 0 | XN78: 0 | XO78: 0 | XP78: 0 | XQ78: 0 | XR78: 0 | XS78: 0 | XT78: 0 | XU78: 0 | XV78: 0 | XW78: 0 | XX78: 0 | XY78: =$F$78*XY72 -> 0 | XZ78: 0 | YA78: 0 | YB78: 0 | YC78: 0 | YD78: 0 | YE78: 0 | YF78: 0 | YG78: 0 | YH78: 0 | YI78: 0 | YJ78: 0 | YK78: 0 | YL78: 0 | YM78: 0 | YN78: 0 | YO78: 0 | YP78: 0 | YQ78: 0 | YR78: 0 | YS78: 0 | YT78: 0 | YU78: 0 | YV78: 0 | YW78: 0 | YX78: 0 | YY78: 0 | YZ78: 0 | ZA78: 0 | ZB78: 0 | ZC78: 0 | ZD78: 0 | ZE78: 0 | ZF78: 0 | ZG78: 0 | ZH78: 0 | ZI78: 0 | ZJ78: 0 | ZK78: 0 | ZL78: 0 | ZM78: 0 | ZN78: 0 | ZO78: 0 | ZP78: 0 | ZQ78: 0 | ZR78: 0 | ZS78: 0 | ZT78: 0 | ZU78: 0 | ZV78: 0 | ZW78: 0 | ZX78: 0 | ZY78: 0 | ZZ78: 0 | AAA78: 0 | AAB78: 0 | AAC78: 0 | AAD78: 0 | AAE78: 0 | AAF78: 0 | AAG78: 0 | AAH78: 0 | AAI78: 0 | AAJ78: 0 | AAK78: =$F$78*AAK72 -> 0 | AAL78: 0 | AAM78: 0 | AAN78: 0 | AAO78: 0 | AAP78: 0 | AAQ78: 0 | AAR78: 0 | AAS78: 0 | AAT78: 0 | AAU78: 0 | AAV78: 0 | AAW78: 0 | AAX78: 0 | AAY78: 0 | AAZ78: 0 | ABA78: 0 | ABB78: 0 | ABC78: 0 | ABD78: 0 | ABE78: 0 | ABF78: 0 | ABG78: 0 | ABH78: 0 | ABI78: 0 | ABJ78: 0 | ABK78: 0 | ABL78: 0 | ABM78: 0 | ABN78: 0 | ABO78: 0 | ABP78: 0 | ABQ78: 0 | ABR78: 0 | ABS78: 0 | ABT78: 0 | ABU78: 0 | ABV78: 0 | ABW78: 0 | ABX78: 0 | ABY78: 0 | ABZ78: 0 | ACA78: 0 | ACB78: 0 | ACC78: 0 | ACD78: 0 | ACE78: 0 | ACF78: 0 | ACG78: 0 | ACH78: 0 | ACI78: 0 | ACJ78: 0 | ACK78: 0 | ACL78: 0 | ACM78: 0 | ACN78: 0 | ACO78: 0 | ACP78: 0 | ACQ78: 0 | ACR78: 0 | ACS78: 0 | ACT78: 0 | ACU78: 0 | ACV78: 0 | ACW78: =$F$78*ACW72 -> 0 | ACX78: 0 | ACY78: 0 | ACZ78: 0 | ADA78: 0 | ADB78: 0 | ADC78: 0 | ADD78: 0 | ADE78: 0 | ADF78: 0 | ADG78: 0 | ADH78: 0 | ADI78: 0 | ADJ78: 0 | ADK78: 0 | ADL78: 0 | ADM78: 0 | ADN78: 0 | ADO78: 0 | ADP78: 0 | ADQ78: 0 | ADR78: 0 | ADS78: 0 | ADT78: 0 | ADU78: 0 | ADV78: 0 | ADW78: 0 | ADX78: 0 | ADY78: 0 | ADZ78: 0 | AEA78: 0 | AEB78: 0 | AEC78: 0 | AED78: 0 | AEE78: 0 | AEF78: 0 | AEG78: 0 | AEH78: 0 | AEI78: 0 | AEJ78: 0 | AEK78: 0 | AEL78: 0 | AEM78: 0 | AEN78: 0 | AEO78: 0 | AEP78: 0 | AEQ78: 0 | AER78: 0 | AES78: 0 | AET78: 0 | AEU78: 0 | AEV78: 0 | AEW78: 0 | AEX78: 0 | AEY78: 0 | AEZ78: 0 | AFA78: 0 | AFB78: 0 | AFC78: 0 | AFD78: 0 | AFE78: 0 | AFF78: 0 | AFG78: 0 | AFH78: 0 | AFI78: =$F$78*AFI72 -> 0 | AFJ78: 0 | AFK78: 0 | AFL78: 0 | AFM78: 0 | AFN78: 0 | AFO78: 0 | AFP78: 0 | AFQ78: 0 | AFR78: 0 | AFS78: 0 | AFT78: 0 | AFU78: 0 | AFV78: 0 | AFW78: 0 | AFX78: 0 | AFY78: 0 | AFZ78: 0 | AGA78: 0 | AGB78: 0 | AGC78: 0 | AGD78: 0 | AGE78: 0 | AGF78: 0 | AGG78: 0 | AGH78: 0 | AGI78: 0 | AGJ78: 0 | AGK78: 0
B79: Construction with Inflation - Conversion of Overnight Cost | I79: =I78*I75 -> 1000 | J79: 0 | K79: 0 | L79: 0 | M79: 0 | N79: 0 | O79: 0 | P79: 0 | Q79: 0 | R79: 0 | S79: 0 | T79: 0 | U79: 0 | V79: 0 | W79: 0 | X79: 0 | Y79: 0 | Z79: 0 | AA79: 0 | AB79: 0 | AC79: 0 | AD79: 0 | AE79: 0 | AF79: 0 | AG79: 0 | AH79: 0 | AI79: 0 | AJ79: 0 | AK79: 0 | AL79: 0 | AM79: 0 | AN79: 0 | AO79: 0 | AP79: 0 | AQ79: 0 | AR79: 0 | AS79: 0 | AT79: 0 | AU79: 0 | AV79: 0 | AW79: 0 | AX79: 0 | AY79: 0 | AZ79: 0 | BA79: 0 | BB79: 0 | BC79: 0 | BD79: 0 | BE79: 0 | BF79: 0 | BG79: 0 | BH79: 0 | BI79: 0 | BJ79: 0 | BK79: 0 | BL79: 0 | BM79: 0 | BN79: 0 | BO79: 0 | BP79: 0 | BQ79: 0 | BR79: 0 | BS79: 0 | BT79: 0 | BU79: =BU78*BU75 -> 0 | BV79: 0 | BW79: 0 | BX79: 0 | BY79: 0 | BZ79: 0 | CA79: 0 | CB79: 0 | CC79: 0 | CD79: 0 | CE79: 0 | CF79: 0 | CG79: 0 | CH79: 0 | CI79: 0 | CJ79: 0 | CK79: 0 | CL79: 0 | CM79: 0 | CN79: 0 | CO79: 0 | CP79: 0 | CQ79: 0 | CR79: 0 | CS79: 0 | CT79: 0 | CU79: 0 | CV79: 0 | CW79: 0 | CX79: 0 | CY79: 0 | CZ79: 0 | DA79: 0 | DB79: 0 | DC79: 0 | DD79: 0 | DE79: 0 | DF79: 0 | DG79: 0 | DH79: 0 | DI79: 0 | DJ79: 0 | DK79: 0 | DL79: 0 | DM79: 0 | DN79: 0 | DO79: 0 | DP79: 0 | DQ79: 0 | DR79: 0 | DS79: 0 | DT79: 0 | DU79: 0 | DV79: 0 | DW79: 0 | DX79: 0 | DY79: 0 | DZ79: 0 | EA79: 0 | EB79: 0 | EC79: 0 | ED79: 0 | EE79: 0 | EF79: 0 | EG79: =EG78*EG75 -> 0 | EH79: 0 | EI79: 0 | EJ79: 0 | EK79: 0 | EL79: 0 | EM79: 0 | EN79: 0 | EO79: 0 | EP79: 0 | EQ79: 0 | ER79: 0 | ES79: 0 | ET79: 0 | EU79: 0 | EV79: 0 | EW79: 0 | EX79: 0 | EY79: 0 | EZ79: 0 | FA79: 0 | FB79: 0 | FC79: 0 | FD79: 0 | FE79: 0 | FF79: 0 | FG79: 0 | FH79: 0 | FI79: 0 | FJ79: 0 | FK79: 0 | FL79: 0 | FM79: 0 | FN79: 0 | FO79: 0 | FP79: 0 | FQ79: 0 | FR79: 0 | FS79: 0 | FT79: 0 | FU79: 0 | FV79: 0 | FW79: 0 | FX79: 0 | FY79: 0 | FZ79: 0 | GA79: 0 | GB79: 0 | GC79: 0 | GD79: 0 | GE79: 0 | GF79: 0 | GG79: 0 | GH79: 0 | GI79: 0 | GJ79: 0 | GK79: 0 | GL79: 0 | GM79: 0 | GN79: 0 | GO79: 0 | GP79: 0 | GQ79: 0 | GR79: 0 | GS79: =GS78*GS75 -> 0 | GT79: 0 | GU79: 0 | GV79: 0 | GW79: 0 | GX79: 0 | GY79: 0 | GZ79: 0 | HA79: 0 | HB79: 0 | HC79: 0 | HD79: 0 | HE79: 0 | HF79: 0 | HG79: 0 | HH79: 0 | HI79: 0 | HJ79: 0 | HK79: 0 | HL79: 0 | HM79: 0 | HN79: 0 | HO79: 0 | HP79: 0 | HQ79: 0 | HR79: 0 | HS79: 0 | HT79: 0 | HU79: 0 | HV79: 0 | HW79: 0 | HX79: 0 | HY79: 0 | HZ79: 0 | IA79: 0 | IB79: 0 | IC79: 0 | ID79: 0 | IE79: 0 | IF79: 0 | IG79: 0 | IH79: 0 | II79: 0 | IJ79: 0 | IK79: 0 | IL79: 0 | IM79: 0 | IN79: 0 | IO79: 0 | IP79: 0 | IQ79: 0 | IR79: 0 | IS79: 0 | IT79: 0 | IU79: 0 | IV79: 0 | IW79: 0 | IX79: 0 | IY79: 0 | IZ79: 0 | JA79: 0 | JB79: 0 | JC79: 0 | JD79: 0 | JE79: =JE78*JE75 -> 0 | JF79: 0 | JG79: 0 | JH79: 0 | JI79: 0 | JJ79: 0 | JK79: 0 | JL79: 0 | JM79: 0 | JN79: 0 | JO79: 0 | JP79: 0 | JQ79: 0 | JR79: 0 | JS79: 0 | JT79: 0 | JU79: 0 | JV79: 0 | JW79: 0 | JX79: 0 | JY79: 0 | JZ79: 0 | KA79: 0 | KB79: 0 | KC79: 0 | KD79: 0 | KE79: 0 | KF79: 0 | KG79: 0 | KH79: 0 | KI79: 0 | KJ79: 0 | KK79: 0 | KL79: 0 | KM79: 0 | KN79: 0 | KO79: 0 | KP79: 0 | KQ79: 0 | KR79: 0 | KS79: 0 | KT79: 0 | KU79: 0 | KV79: 0 | KW79: 0 | KX79: 0 | KY79: 0 | KZ79: 0 | LA79: 0 | LB79: 0 | LC79: 0 | LD79: 0 | LE79: 0 | LF79: 0 | LG79: 0 | LH79: 0 | LI79: 0 | LJ79: 0 | LK79: 0 | LL79: 0 | LM79: 0 | LN79: 0 | LO79: 0 | LP79: 0 | LQ79: =LQ78*LQ75 -> 0 | LR79: 0 | LS79: 0 | LT79: 0 | LU79: 0 | LV79: 0 | LW79: 0 | LX79: 0 | LY79: 0 | LZ79: 0 | MA79: 0 | MB79: 0 | MC79: 0 | MD79: 0 | ME79: 0 | MF79: 0 | MG79: 0 | MH79: 0 | MI79: 0 | MJ79: 0 | MK79: 0 | ML79: 0 | MM79: 0 | MN79: 0 | MO79: 0 | MP79: 0 | MQ79: 0 | MR79: 0 | MS79: 0 | MT79: 0 | MU79: 0 | MV79: 0 | MW79: 0 | MX79: 0 | MY79: 0 | MZ79: 0 | NA79: 0 | NB79: 0 | NC79: 0 | ND79: 0 | NE79: 0 | NF79: 0 | NG79: 0 | NH79: 0 | NI79: 0 | NJ79: 0 | NK79: 0 | NL79: 0 | NM79: 0 | NN79: 0 | NO79: 0 | NP79: 0 | NQ79: 0 | NR79: 0 | NS79: 0 | NT79: 0 | NU79: 0 | NV79: 0 | NW79: 0 | NX79: 0 | NY79: 0 | NZ79: 0 | OA79: 0 | OB79: 0 | OC79: =OC78*OC75 -> 0 | OD79: 0 | OE79: 0 | OF79: 0 | OG79: 0 | OH79: 0 | OI79: 0 | OJ79: 0 | OK79: 0 | OL79: 0 | OM79: 0 | ON79: 0 | OO79: 0 | OP79: 0 | OQ79: 0 | OR79: 0 | OS79: 0 | OT79: 0 | OU79: 0 | OV79: 0 | OW79: 0 | OX79: 0 | OY79: 0 | OZ79: 0 | PA79: 0 | PB79: 0 | PC79: 0 | PD79: 0 | PE79: 0 | PF79: 0 | PG79: 0 | PH79: 0 | PI79: 0 | PJ79: 0 | PK79: 0 | PL79: 0 | PM79: 0 | PN79: 0 | PO79: 0 | PP79: 0 | PQ79: 0 | PR79: 0 | PS79: 0 | PT79: 0 | PU79: 0 | PV79: 0 | PW79: 0 | PX79: 0 | PY79: 0 | PZ79: 0 | QA79: 0 | QB79: 0 | QC79: 0 | QD79: 0 | QE79: 0 | QF79: 0 | QG79: 0 | QH79: 0 | QI79: 0 | QJ79: 0 | QK79: 0 | QL79: 0 | QM79: 0 | QN79: 0 | QO79: =QO78*QO75 -> 0 | QP79: 0 | QQ79: 0 | QR79: 0 | QS79: 0 | QT79: 0 | QU79: 0 | QV79: 0 | QW79: 0 | QX79: 0 | QY79: 0 | QZ79: 0 | RA79: 0 | RB79: 0 | RC79: 0 | RD79: 0 | RE79: 0 | RF79: 0 | RG79: 0 | RH79: 0 | RI79: 0 | RJ79: 0 | RK79: 0 | RL79: 0 | RM79: 0 | RN79: 0 | RO79: 0 | RP79: 0 | RQ79: 0 | RR79: 0 | RS79: 0 | RT79: 0 | RU79: 0 | RV79: 0 | RW79: 0 | RX79: 0 | RY79: 0 | RZ79: 0 | SA79: 0 | SB79: 0 | SC79: 0 | SD79: 0 | SE79: 0 | SF79: 0 | SG79: 0 | SH79: 0 | SI79: 0 | SJ79: 0 | SK79: 0 | SL79: 0 | SM79: 0 | SN79: 0 | SO79: 0 | SP79: 0 | SQ79: 0 | SR79: 0 | SS79: 0 | ST79: 0 | SU79: 0 | SV79: 0 | SW79: 0 | SX79: 0 | SY79: 0 | SZ79: 0 | TA79: =TA78*TA75 -> 0 | TB79: 0 | TC79: 0 | TD79: 0 | TE79: 0 | TF79: 0 | TG79: 0 | TH79: 0 | TI79: 0 | TJ79: 0 | TK79: 0 | TL79: 0 | TM79: 0 | TN79: 0 | TO79: 0 | TP79: 0 | TQ79: 0 | TR79: 0 | TS79: 0 | TT79: 0 | TU79: 0 | TV79: 0 | TW79: 0 | TX79: 0 | TY79: 0 | TZ79: 0 | UA79: 0 | UB79: 0 | UC79: 0 | UD79: 0 | UE79: 0 | UF79: 0 | UG79: 0 | UH79: 0 | UI79: 0 | UJ79: 0 | UK79: 0 | UL79: 0 | UM79: 0 | UN79: 0 | UO79: 0 | UP79: 0 | UQ79: 0 | UR79: 0 | US79: 0 | UT79: 0 | UU79: 0 | UV79: 0 | UW79: 0 | UX79: 0 | UY79: 0 | UZ79: 0 | VA79: 0 | VB79: 0 | VC79: 0 | VD79: 0 | VE79: 0 | VF79: 0 | VG79: 0 | VH79: 0 | VI79: 0 | VJ79: 0 | VK79: 0 | VL79: 0 | VM79: =VM78*VM75 -> 0 | VN79: 0 | VO79: 0 | VP79: 0 | VQ79: 0 | VR79: 0 | VS79: 0 | VT79: 0 | VU79: 0 | VV79: 0 | VW79: 0 | VX79: 0 | VY79: 0 | VZ79: 0 | WA79: 0 | WB79: 0 | WC79: 0 | WD79: 0 | WE79: 0 | WF79: 0 | WG79: 0 | WH79: 0 | WI79: 0 | WJ79: 0 | WK79: 0 | WL79: 0 | WM79: 0 | WN79: 0 | WO79: 0 | WP79: 0 | WQ79: 0 | WR79: 0 | WS79: 0 | WT79: 0 | WU79: 0 | WV79: 0 | WW79: 0 | WX79: 0 | WY79: 0 | WZ79: 0 | XA79: 0 | XB79: 0 | XC79: 0 | XD79: 0 | XE79: 0 | XF79: 0 | XG79: 0 | XH79: 0 | XI79: 0 | XJ79: 0 | XK79: 0 | XL79: 0 | XM79: 0 | XN79: 0 | XO79: 0 | XP79: 0 | XQ79: 0 | XR79: 0 | XS79: 0 | XT79: 0 | XU79: 0 | XV79: 0 | XW79: 0 | XX79: 0 | XY79: =XY78*XY75 -> 0 | XZ79: 0 | YA79: 0 | YB79: 0 | YC79: 0 | YD79: 0 | YE79: 0 | YF79: 0 | YG79: 0 | YH79: 0 | YI79: 0 | YJ79: 0 | YK79: 0 | YL79: 0 | YM79: 0 | YN79: 0 | YO79: 0 | YP79: 0 | YQ79: 0 | YR79: 0 | YS79: 0 | YT79: 0 | YU79: 0 | YV79: 0 | YW79: 0 | YX79: 0 | YY79: 0 | YZ79: 0 | ZA79: 0 | ZB79: 0 | ZC79: 0 | ZD79: 0 | ZE79: 0 | ZF79: 0 | ZG79: 0 | ZH79: 0 | ZI79: 0 | ZJ79: 0 | ZK79: 0 | ZL79: 0 | ZM79: 0 | ZN79: 0 | ZO79: 0 | ZP79: 0 | ZQ79: 0 | ZR79: 0 | ZS79: 0 | ZT79: 0 | ZU79: 0 | ZV79: 0 | ZW79: 0 | ZX79: 0 | ZY79: 0 | ZZ79: 0 | AAA79: 0 | AAB79: 0 | AAC79: 0 | AAD79: 0 | AAE79: 0 | AAF79: 0 | AAG79: 0 | AAH79: 0 | AAI79: 0 | AAJ79: 0 | AAK79: =AAK78*AAK75 -> 0 | AAL79: 0 | AAM79: 0 | AAN79: 0 | AAO79: 0 | AAP79: 0 | AAQ79: 0 | AAR79: 0 | AAS79: 0 | AAT79: 0 | AAU79: 0 | AAV79: 0 | AAW79: 0 | AAX79: 0 | AAY79: 0 | AAZ79: 0 | ABA79: 0 | ABB79: 0 | ABC79: 0 | ABD79: 0 | ABE79: 0 | ABF79: 0 | ABG79: 0 | ABH79: 0 | ABI79: 0 | ABJ79: 0 | ABK79: 0 | ABL79: 0 | ABM79: 0 | ABN79: 0 | ABO79: 0 | ABP79: 0 | ABQ79: 0 | ABR79: 0 | ABS79: 0 | ABT79: 0 | ABU79: 0 | ABV79: 0 | ABW79: 0 | ABX79: 0 | ABY79: 0 | ABZ79: 0 | ACA79: 0 | ACB79: 0 | ACC79: 0 | ACD79: 0 | ACE79: 0 | ACF79: 0 | ACG79: 0 | ACH79: 0 | ACI79: 0 | ACJ79: 0 | ACK79: 0 | ACL79: 0 | ACM79: 0 | ACN79: 0 | ACO79: 0 | ACP79: 0 | ACQ79: 0 | ACR79: 0 | ACS79: 0 | ACT79: 0 | ACU79: 0 | ACV79: 0 | ACW79: =ACW78*ACW75 -> 0 | ACX79: 0 | ACY79: 0 | ACZ79: 0 | ADA79: 0 | ADB79: 0 | ADC79: 0 | ADD79: 0 | ADE79: 0 | ADF79: 0 | ADG79: 0 | ADH79: 0 | ADI79: 0 | ADJ79: 0 | ADK79: 0 | ADL79: 0 | ADM79: 0 | ADN79: 0 | ADO79: 0 | ADP79: 0 | ADQ79: 0 | ADR79: 0 | ADS79: 0 | ADT79: 0 | ADU79: 0 | ADV79: 0 | ADW79: 0 | ADX79: 0 | ADY79: 0 | ADZ79: 0 | AEA79: 0 | AEB79: 0 | AEC79: 0 | AED79: 0 | AEE79: 0 | AEF79: 0 | AEG79: 0 | AEH79: 0 | AEI79: 0 | AEJ79: 0 | AEK79: 0 | AEL79: 0 | AEM79: 0 | AEN79: 0 | AEO79: 0 | AEP79: 0 | AEQ79: 0 | AER79: 0 | AES79: 0 | AET79: 0 | AEU79: 0 | AEV79: 0 | AEW79: 0 | AEX79: 0 | AEY79: 0 | AEZ79: 0 | AFA79: 0 | AFB79: 0 | AFC79: 0 | AFD79: 0 | AFE79: 0 | AFF79: 0 | AFG79: 0 | AFH79: 0 | AFI79: =AFI78*AFI75 -> 0 | AFJ79: 0 | AFK79: 0 | AFL79: 0 | AFM79: 0 | AFN79: 0 | AFO79: 0 | AFP79: 0 | AFQ79: 0 | AFR79: 0 | AFS79: 0 | AFT79: 0 | AFU79: 0 | AFV79: 0 | AFW79: 0 | AFX79: 0 | AFY79: 0 | AFZ79: 0 | AGA79: 0 | AGB79: 0 | AGC79: 0 | AGD79: 0 | AGE79: 0 | AGF79: 0 | AGG79: 0 | AGH79: 0 | AGI79: 0 | AGJ79: 0 | AGK79: 0
B80: Final Period of Construction | E80: Switch | F80: =EDATE(E6,E4) -> 2001-02-01 | I80: =$F$80=I6 -> TRUE | J80: FALSE | K80: FALSE | L80: FALSE | M80: FALSE | N80: FALSE | O80: FALSE | P80: FALSE | Q80: FALSE | R80: FALSE | S80: FALSE | T80: FALSE | U80: FALSE | V80: FALSE | W80: FALSE | X80: FALSE | Y80: FALSE | Z80: FALSE | AA80: FALSE | AB80: FALSE | AC80: FALSE | AD80: FALSE | AE80: FALSE | AF80: FALSE | AG80: FALSE | AH80: FALSE | AI80: FALSE | AJ80: FALSE | AK80: FALSE | AL80: FALSE | AM80: FALSE | AN80: FALSE | AO80: FALSE | AP80: FALSE | AQ80: FALSE | AR80: FALSE | AS80: FALSE | AT80: FALSE | AU80: FALSE | AV80: FALSE | AW80: FALSE | AX80: FALSE | AY80: FALSE | AZ80: FALSE | BA80: FALSE | BB80: FALSE | BC80: FALSE | BD80: FALSE | BE80: FALSE | BF80: FALSE | BG80: FALSE | BH80: FALSE | BI80: FALSE | BJ80: FALSE | BK80: FALSE | BL80: FALSE | BM80: FALSE | BN80: FALSE | BO80: FALSE | BP80: FALSE | BQ80: FALSE | BR80: FALSE | BS80: FALSE | BT80: FALSE | BU80: =$F$80=BU6 -> FALSE | BV80: FALSE | BW80: FALSE | BX80: FALSE | BY80: FALSE | BZ80: FALSE | CA80: FALSE | CB80: FALSE | CC80: FALSE | CD80: FALSE | CE80: FALSE | CF80: FALSE | CG80: FALSE | CH80: FALSE | CI80: FALSE | CJ80: FALSE | CK80: FALSE | CL80: FALSE | CM80: FALSE | CN80: FALSE | CO80: FALSE | CP80: FALSE | CQ80: FALSE | CR80: FALSE | CS80: FALSE | CT80: FALSE | CU80: FALSE | CV80: FALSE | CW80: FALSE | CX80: FALSE | CY80: FALSE | CZ80: FALSE | DA80: FALSE | DB80: FALSE | DC80: FALSE | DD80: FALSE | DE80: FALSE | DF80: FALSE | DG80: FALSE | DH80: FALSE | DI80: FALSE | DJ80: FALSE | DK80: FALSE | DL80: FALSE | DM80: FALSE | DN80: FALSE | DO80: FALSE | DP80: FALSE | DQ80: FALSE | DR80: FALSE | DS80: FALSE | DT80: FALSE | DU80: FALSE | DV80: FALSE | DW80: FALSE | DX80: FALSE | DY80: FALSE | DZ80: FALSE | EA80: FALSE | EB80: FALSE | EC80: FALSE | ED80: FALSE | EE80: FALSE | EF80: FALSE | EG80: =$F$80=EG6 -> FALSE | EH80: FALSE | EI80: FALSE | EJ80: FALSE | EK80: FALSE | EL80: FALSE | EM80: FALSE | EN80: FALSE | EO80: FALSE | EP80: FALSE | EQ80: FALSE | ER80: FALSE | ES80: FALSE | ET80: FALSE | EU80: FALSE | EV80: FALSE | EW80: FALSE | EX80: FALSE | EY80: FALSE | EZ80: FALSE | FA80: FALSE | FB80: FALSE | FC80: FALSE | FD80: FALSE | FE80: FALSE | FF80: FALSE | FG80: FALSE | FH80: FALSE | FI80: FALSE | FJ80: FALSE | FK80: FALSE | FL80: FALSE | FM80: FALSE | FN80: FALSE | FO80: FALSE | FP80: FALSE | FQ80: FALSE | FR80: FALSE | FS80: FALSE | FT80: FALSE | FU80: FALSE | FV80: FALSE | FW80: FALSE | FX80: FALSE | FY80: FALSE | FZ80: FALSE | GA80: FALSE | GB80: FALSE | GC80: FALSE | GD80: FALSE | GE80: FALSE | GF80: FALSE | GG80: FALSE | GH80: FALSE | GI80: FALSE | GJ80: FALSE | GK80: FALSE | GL80: FALSE | GM80: FALSE | GN80: FALSE | GO80: FALSE | GP80: FALSE | GQ80: FALSE | GR80: FALSE | GS80: =$F$80=GS6 -> FALSE | GT80: FALSE | GU80: FALSE | GV80: FALSE | GW80: FALSE | GX80: FALSE | GY80: FALSE | GZ80: FALSE | HA80: FALSE | HB80: FALSE | HC80: FALSE | HD80: FALSE | HE80: FALSE | HF80: FALSE | HG80: FALSE | HH80: FALSE | HI80: FALSE | HJ80: FALSE | HK80: FALSE | HL80: FALSE | HM80: FALSE | HN80: FALSE | HO80: FALSE | HP80: FALSE | HQ80: FALSE | HR80: FALSE | HS80: FALSE | HT80: FALSE | HU80: FALSE | HV80: FALSE | HW80: FALSE | HX80: FALSE | HY80: FALSE | HZ80: FALSE | IA80: FALSE | IB80: FALSE | IC80: FALSE | ID80: FALSE | IE80: FALSE | IF80: FALSE | IG80: FALSE | IH80: FALSE | II80: FALSE | IJ80: FALSE | IK80: FALSE | IL80: FALSE | IM80: FALSE | IN80: FALSE | IO80: FALSE | IP80: FALSE | IQ80: FALSE | IR80: FALSE | IS80: FALSE | IT80: FALSE | IU80: FALSE | IV80: FALSE | IW80: FALSE | IX80: FALSE | IY80: FALSE | IZ80: FALSE | JA80: FALSE | JB80: FALSE | JC80: FALSE | JD80: FALSE | JE80: =$F$80=JE6 -> FALSE | JF80: FALSE | JG80: FALSE | JH80: FALSE | JI80: FALSE | JJ80: FALSE | JK80: FALSE | JL80: FALSE | JM80: FALSE | JN80: FALSE | JO80: FALSE | JP80: FALSE | JQ80: FALSE | JR80: FALSE | JS80: FALSE | JT80: FALSE | JU80: FALSE | JV80: FALSE | JW80: FALSE | JX80: FALSE | JY80: FALSE | JZ80: FALSE | KA80: FALSE | KB80: FALSE | KC80: FALSE | KD80: FALSE | KE80: FALSE | KF80: FALSE | KG80: FALSE | KH80: FALSE | KI80: FALSE | KJ80: FALSE | KK80: FALSE | KL80: FALSE | KM80: FALSE | KN80: FALSE | KO80: FALSE | KP80: FALSE | KQ80: FALSE | KR80: FALSE | KS80: FALSE | KT80: FALSE | KU80: FALSE | KV80: FALSE | KW80: FALSE | KX80: FALSE | KY80: FALSE | KZ80: FALSE | LA80: FALSE | LB80: FALSE | LC80: FALSE | LD80: FALSE | LE80: FALSE | LF80: FALSE | LG80: FALSE | LH80: FALSE | LI80: FALSE | LJ80: FALSE | LK80: FALSE | LL80: FALSE | LM80: FALSE | LN80: FALSE | LO80: FALSE | LP80: FALSE | LQ80: =$F$80=LQ6 -> FALSE | LR80: FALSE | LS80: FALSE | LT80: FALSE | LU80: FALSE | LV80: FALSE | LW80: FALSE | LX80: FALSE | LY80: FALSE | LZ80: FALSE | MA80: FALSE | MB80: FALSE | MC80: FALSE | MD80: FALSE | ME80: FALSE | MF80: FALSE | MG80: FALSE | MH80: FALSE | MI80: FALSE | MJ80: FALSE | MK80: FALSE | ML80: FALSE | MM80: FALSE | MN80: FALSE | MO80: FALSE | MP80: FALSE | MQ80: FALSE | MR80: FALSE | MS80: FALSE | MT80: FALSE | MU80: FALSE | MV80: FALSE | MW80: FALSE | MX80: FALSE | MY80: FALSE | MZ80: FALSE | NA80: FALSE | NB80: FALSE | NC80: FALSE | ND80: FALSE | NE80: FALSE | NF80: FALSE | NG80: FALSE | NH80: FALSE | NI80: FALSE | NJ80: FALSE | NK80: FALSE | NL80: FALSE | NM80: FALSE | NN80: FALSE | NO80: FALSE | NP80: FALSE | NQ80: FALSE | NR80: FALSE | NS80: FALSE | NT80: FALSE | NU80: FALSE | NV80: FALSE | NW80: FALSE | NX80: FALSE | NY80: FALSE | NZ80: FALSE | OA80: FALSE | OB80: FALSE | OC80: =$F$80=OC6 -> FALSE | OD80: FALSE | OE80: FALSE | OF80: FALSE | OG80: FALSE | OH80: FALSE | OI80: FALSE | OJ80: FALSE | OK80: FALSE | OL80: FALSE | OM80: FALSE | ON80: FALSE | OO80: FALSE | OP80: FALSE | OQ80: FALSE | OR80: FALSE | OS80: FALSE | OT80: FALSE | OU80: FALSE | OV80: FALSE | OW80: FALSE | OX80: FALSE | OY80: FALSE | OZ80: FALSE | PA80: FALSE | PB80: FALSE | PC80: FALSE | PD80: FALSE | PE80: FALSE | PF80: FALSE | PG80: FALSE | PH80: FALSE | PI80: FALSE | PJ80: FALSE | PK80: FALSE | PL80: FALSE | PM80: FALSE | PN80: FALSE | PO80: FALSE | PP80: FALSE | PQ80: FALSE | PR80: FALSE | PS80: FALSE | PT80: FALSE | PU80: FALSE | PV80: FALSE | PW80: FALSE | PX80: FALSE | PY80: FALSE | PZ80: FALSE | QA80: FALSE | QB80: FALSE | QC80: FALSE | QD80: FALSE | QE80: FALSE | QF80: FALSE | QG80: FALSE | QH80: FALSE | QI80: FALSE | QJ80: FALSE | QK80: FALSE | QL80: FALSE | QM80: FALSE | QN80: FALSE | QO80: =$F$80=QO6 -> FALSE | QP80: FALSE | QQ80: FALSE | QR80: FALSE | QS80: FALSE | QT80: FALSE | QU80: FALSE | QV80: FALSE | QW80: FALSE | QX80: FALSE | QY80: FALSE | QZ80: FALSE | RA80: FALSE | RB80: FALSE | RC80: FALSE | RD80: FALSE | RE80: FALSE | RF80: FALSE | RG80: FALSE | RH80: FALSE | RI80: FALSE | RJ80: FALSE | RK80: FALSE | RL80: FALSE | RM80: FALSE | RN80: FALSE | RO80: FALSE | RP80: FALSE | RQ80: FALSE | RR80: FALSE | RS80: FALSE | RT80: FALSE | RU80: FALSE | RV80: FALSE | RW80: FALSE | RX80: FALSE | RY80: FALSE | RZ80: FALSE | SA80: FALSE | SB80: FALSE | SC80: FALSE | SD80: FALSE | SE80: FALSE | SF80: FALSE | SG80: FALSE | SH80: FALSE | SI80: FALSE | SJ80: FALSE | SK80: FALSE | SL80: FALSE | SM80: FALSE | SN80: FALSE | SO80: FALSE | SP80: FALSE | SQ80: FALSE | SR80: FALSE | SS80: FALSE | ST80: FALSE | SU80: FALSE | SV80: FALSE | SW80: FALSE | SX80: FALSE | SY80: FALSE | SZ80: FALSE | TA80: =$F$80=TA6 -> FALSE | TB80: FALSE | TC80: FALSE | TD80: FALSE | TE80: FALSE | TF80: FALSE | TG80: FALSE | TH80: FALSE | TI80: FALSE | TJ80: FALSE | TK80: FALSE | TL80: FALSE | TM80: FALSE | TN80: FALSE | TO80: FALSE | TP80: FALSE | TQ80: FALSE | TR80: FALSE | TS80: FALSE | TT80: FALSE | TU80: FALSE | TV80: FALSE | TW80: FALSE | TX80: FALSE | TY80: FALSE | TZ80: FALSE | UA80: FALSE | UB80: FALSE | UC80: FALSE | UD80: FALSE | UE80: FALSE | UF80: FALSE | UG80: FALSE | UH80: FALSE | UI80: FALSE | UJ80: FALSE | UK80: FALSE | UL80: FALSE | UM80: FALSE | UN80: FALSE | UO80: FALSE | UP80: FALSE | UQ80: FALSE | UR80: FALSE | US80: FALSE | UT80: FALSE | UU80: FALSE | UV80: FALSE | UW80: FALSE | UX80: FALSE | UY80: FALSE | UZ80: FALSE | VA80: FALSE | VB80: FALSE | VC80: FALSE | VD80: FALSE | VE80: FALSE | VF80: FALSE | VG80: FALSE | VH80: FALSE | VI80: FALSE | VJ80: FALSE | VK80: FALSE | VL80: FALSE | VM80: =$F$80=VM6 -> FALSE | VN80: FALSE | VO80: FALSE | VP80: FALSE | VQ80: FALSE | VR80: FALSE | VS80: FALSE | VT80: FALSE | VU80: FALSE | VV80: FALSE | VW80: FALSE | VX80: FALSE | VY80: FALSE | VZ80: FALSE | WA80: FALSE | WB80: FALSE | WC80: FALSE | WD80: FALSE | WE80: FALSE | WF80: FALSE | WG80: FALSE | WH80: FALSE | WI80: FALSE | WJ80: FALSE | WK80: FALSE | WL80: FALSE | WM80: FALSE | WN80: FALSE | WO80: FALSE | WP80: FALSE | WQ80: FALSE | WR80: FALSE | WS80: FALSE | WT80: FALSE | WU80: FALSE | WV80: FALSE | WW80: FALSE | WX80: FALSE | WY80: FALSE | WZ80: FALSE | XA80: FALSE | XB80: FALSE | XC80: FALSE | XD80: FALSE | XE80: FALSE | XF80: FALSE | XG80: FALSE | XH80: FALSE | XI80: FALSE | XJ80: FALSE | XK80: FALSE | XL80: FALSE | XM80: FALSE | XN80: FALSE | XO80: FALSE | XP80: FALSE | XQ80: FALSE | XR80: FALSE | XS80: FALSE | XT80: FALSE | XU80: FALSE | XV80: FALSE | XW80: FALSE | XX80: FALSE | XY80: =$F$80=XY6 -> FALSE | XZ80: FALSE | YA80: FALSE | YB80: FALSE | YC80: FALSE | YD80: FALSE | YE80: FALSE | YF80: FALSE | YG80: FALSE | YH80: FALSE | YI80: FALSE | YJ80: FALSE | YK80: FALSE | YL80: FALSE | YM80: FALSE | YN80: FALSE | YO80: FALSE | YP80: FALSE | YQ80: FALSE | YR80: FALSE | YS80: FALSE | YT80: FALSE | YU80: FALSE | YV80: FALSE | YW80: FALSE | YX80: FALSE | YY80: FALSE | YZ80: FALSE | ZA80: FALSE | ZB80: FALSE | ZC80: FALSE | ZD80: FALSE | ZE80: FALSE | ZF80: FALSE | ZG80: FALSE | ZH80: FALSE | ZI80: FALSE | ZJ80: FALSE | ZK80: FALSE | ZL80: FALSE | ZM80: FALSE | ZN80: FALSE | ZO80: FALSE | ZP80: FALSE | ZQ80: FALSE | ZR80: FALSE | ZS80: FALSE | ZT80: FALSE | ZU80: FALSE | ZV80: FALSE | ZW80: FALSE | ZX80: FALSE | ZY80: FALSE | ZZ80: FALSE | AAA80: FALSE | AAB80: FALSE | AAC80: FALSE | AAD80: FALSE | AAE80: FALSE | AAF80: FALSE | AAG80: FALSE | AAH80: FALSE | AAI80: FALSE | AAJ80: FALSE | AAK80: =$F$80=AAK6 -> FALSE | AAL80: FALSE | AAM80: FALSE | AAN80: FALSE | AAO80: FALSE | AAP80: FALSE | AAQ80: FALSE | AAR80: FALSE | AAS80: FALSE | AAT80: FALSE | AAU80: FALSE | AAV80: FALSE | AAW80: FALSE | AAX80: FALSE | AAY80: FALSE | AAZ80: FALSE | ABA80: FALSE | ABB80: FALSE | ABC80: FALSE | ABD80: FALSE | ABE80: FALSE | ABF80: FALSE | ABG80: FALSE | ABH80: FALSE | ABI80: FALSE | ABJ80: FALSE | ABK80: FALSE | ABL80: FALSE | ABM80: FALSE | ABN80: FALSE | ABO80: FALSE | ABP80: FALSE | ABQ80: FALSE | ABR80: FALSE | ABS80: FALSE | ABT80: FALSE | ABU80: FALSE | ABV80: FALSE | ABW80: FALSE | ABX80: FALSE | ABY80: FALSE | ABZ80: FALSE | ACA80: FALSE | ACB80: FALSE | ACC80: FALSE | ACD80: FALSE | ACE80: FALSE | ACF80: FALSE | ACG80: FALSE | ACH80: FALSE | ACI80: FALSE | ACJ80: FALSE | ACK80: FALSE | ACL80: FALSE | ACM80: FALSE | ACN80: FALSE | ACO80: FALSE | ACP80: FALSE | ACQ80: FALSE | ACR80: FALSE | ACS80: FALSE | ACT80: FALSE | ACU80: FALSE | ACV80: FALSE | ACW80: =$F$80=ACW6 -> FALSE | ACX80: FALSE | ACY80: FALSE | ACZ80: FALSE | ADA80: FALSE | ADB80: FALSE | ADC80: FALSE | ADD80: FALSE | ADE80: FALSE | ADF80: FALSE | ADG80: FALSE | ADH80: FALSE | ADI80: FALSE | ADJ80: FALSE | ADK80: FALSE | ADL80: FALSE | ADM80: FALSE | ADN80: FALSE | ADO80: FALSE | ADP80: FALSE | ADQ80: FALSE | ADR80: FALSE | ADS80: FALSE | ADT80: FALSE | ADU80: FALSE | ADV80: FALSE | ADW80: FALSE | ADX80: FALSE | ADY80: FALSE | ADZ80: FALSE | AEA80: FALSE | AEB80: FALSE | AEC80: FALSE | AED80: FALSE | AEE80: FALSE | AEF80: FALSE | AEG80: FALSE | AEH80: FALSE | AEI80: FALSE | AEJ80: FALSE | AEK80: FALSE | AEL80: FALSE | AEM80: FALSE | AEN80: FALSE | AEO80: FALSE | AEP80: FALSE | AEQ80: FALSE | AER80: FALSE | AES80: FALSE | AET80: FALSE | AEU80: FALSE | AEV80: FALSE | AEW80: FALSE | AEX80: FALSE | AEY80: FALSE | AEZ80: FALSE | AFA80: FALSE | AFB80: FALSE | AFC80: FALSE | AFD80: FALSE | AFE80: FALSE | AFF80: FALSE | AFG80: FALSE | AFH80: FALSE | AFI80: =$F$80=AFI6 -> FALSE | AFJ80: FALSE | AFK80: FALSE | AFL80: FALSE | AFM80: FALSE | AFN80: FALSE | AFO80: FALSE | AFP80: FALSE | AFQ80: FALSE | AFR80: FALSE | AFS80: FALSE | AFT80: FALSE | AFU80: FALSE | AFV80: FALSE | AFW80: FALSE | AFX80: FALSE | AFY80: FALSE | AFZ80: FALSE | AGA80: FALSE | AGB80: FALSE | AGC80: FALSE | AGD80: FALSE | AGE80: FALSE | AGF80: FALSE | AGG80: FALSE | AGH80: FALSE | AGI80: FALSE | AGJ80: FALSE | AGK80: FALSE
B82: Construction Work Balance Including Equity and Debt Return
C83: Open Balance | E83: Currency | I83: =H87 -> 0 | J83: 0 | K83: 0 | L83: 0 | M83: 0 | N83: 0 | O83: 0 | P83: 0 | Q83: 0 | R83: 0 | S83: 0 | T83: 0 | U83: 0 | V83: 0 | W83: 0 | X83: 0 | Y83: 0 | Z83: 0 | AA83: 0 | AB83: 0 | AC83: 0 | AD83: 0 | AE83: 0 | AF83: 0 | AG83: 0 | AH83: 0 | AI83: 0 | AJ83: 0 | AK83: 0 | AL83: 0 | AM83: 0 | AN83: 0 | AO83: 0 | AP83: 0 | AQ83: 0 | AR83: 0 | AS83: 0 | AT83: 0 | AU83: 0 | AV83: 0 | AW83: 0 | AX83: 0 | AY83: 0 | AZ83: 0 | BA83: 0 | BB83: 0 | BC83: 0 | BD83: 0 | BE83: 0 | BF83: 0 | BG83: 0 | BH83: 0 | BI83: 0 | BJ83: 0 | BK83: 0 | BL83: 0 | BM83: 0 | BN83: 0 | BO83: 0 | BP83: 0 | BQ83: 0 | BR83: 0 | BS83: 0 | BT83: 0 | BU83: =BT87 -> 0 | BV83: 0 | BW83: 0 | BX83: 0 | BY83: 0 | BZ83: 0 | CA83: 0 | CB83: 0 | CC83: 0 | CD83: 0 | CE83: 0 | CF83: 0 | CG83: 0 | CH83: 0 | CI83: 0 | CJ83: 0 | CK83: 0 | CL83: 0 | CM83: 0 | CN83: 0 | CO83: 0 | CP83: 0 | CQ83: 0 | CR83: 0 | CS83: 0 | CT83: 0 | CU83: 0 | CV83: 0 | CW83: 0 | CX83: 0 | CY83: 0 | CZ83: 0 | DA83: 0 | DB83: 0 | DC83: 0 | DD83: 0 | DE83: 0 | DF83: 0 | DG83: 0 | DH83: 0 | DI83: 0 | DJ83: 0 | DK83: 0 | DL83: 0 | DM83: 0 | DN83: 0 | DO83: 0 | DP83: 0 | DQ83: 0 | DR83: 0 | DS83: 0 | DT83: 0 | DU83: 0 | DV83: 0 | DW83: 0 | DX83: 0 | DY83: 0 | DZ83: 0 | EA83: 0 | EB83: 0 | EC83: 0 | ED83: 0 | EE83: 0 | EF83: 0 | EG83: =EF87 -> 0 | EH83: 0 | EI83: 0 | EJ83: 0 | EK83: 0 | EL83: 0 | EM83: 0 | EN83: 0 | EO83: 0 | EP83: 0 | EQ83: 0 | ER83: 0 | ES83: 0 | ET83: 0 | EU83: 0 | EV83: 0 | EW83: 0 | EX83: 0 | EY83: 0 | EZ83: 0 | FA83: 0 | FB83: 0 | FC83: 0 | FD83: 0 | FE83: 0 | FF83: 0 | FG83: 0 | FH83: 0 | FI83: 0 | FJ83: 0 | FK83: 0 | FL83: 0 | FM83: 0 | FN83: 0 | FO83: 0 | FP83: 0 | FQ83: 0 | FR83: 0 | FS83: 0 | FT83: 0 | FU83: 0 | FV83: 0 | FW83: 0 | FX83: 0 | FY83: 0 | FZ83: 0 | GA83: 0 | GB83: 0 | GC83: 0 | GD83: 0 | GE83: 0 | GF83: 0 | GG83: 0 | GH83: 0 | GI83: 0 | GJ83: 0 | GK83: 0 | GL83: 0 | GM83: 0 | GN83: 0 | GO83: 0 | GP83: 0 | GQ83: 0 | GR83: 0 | GS83: =GR87 -> 0 | GT83: 0 | GU83: 0 | GV83: 0 | GW83: 0 | GX83: 0 | GY83: 0 | GZ83: 0 | HA83: 0 | HB83: 0 | HC83: 0 | HD83: 0 | HE83: 0 | HF83: 0 | HG83: 0 | HH83: 0 | HI83: 0 | HJ83: 0 | HK83: 0 | HL83: 0 | HM83: 0 | HN83: 0 | HO83: 0 | HP83: 0 | HQ83: 0 | HR83: 0 | HS83: 0 | HT83: 0 | HU83: 0 | HV83: 0 | HW83: 0 | HX83: 0 | HY83: 0 | HZ83: 0 | IA83: 0 | IB83: 0 | IC83: 0 | ID83: 0 | IE83: 0 | IF83: 0 | IG83: 0 | IH83: 0 | II83: 0 | IJ83: 0 | IK83: 0 | IL83: 0 | IM83: 0 | IN83: 0 | IO83: 0 | IP83: 0 | IQ83: 0 | IR83: 0 | IS83: 0 | IT83: 0 | IU83: 0 | IV83: 0 | IW83: 0 | IX83: 0 | IY83: 0 | IZ83: 0 | JA83: 0 | JB83: 0 | JC83: 0 | JD83: 0 | JE83: =JD87 -> 0 | JF83: 0 | JG83: 0 | JH83: 0 | JI83: 0 | JJ83: 0 | JK83: 0 | JL83: 0 | JM83: 0 | JN83: 0 | JO83: 0 | JP83: 0 | JQ83: 0 | JR83: 0 | JS83: 0 | JT83: 0 | JU83: 0 | JV83: 0 | JW83: 0 | JX83: 0 | JY83: 0 | JZ83: 0 | KA83: 0 | KB83: 0 | KC83: 0 | KD83: 0 | KE83: 0 | KF83: 0 | KG83: 0 | KH83: 0 | KI83: 0 | KJ83: 0 | KK83: 0 | KL83: 0 | KM83: 0 | KN83: 0 | KO83: 0 | KP83: 0 | KQ83: 0 | KR83: 0 | KS83: 0 | KT83: 0 | KU83: 0 | KV83: 0 | KW83: 0 | KX83: 0 | KY83: 0 | KZ83: 0 | LA83: 0 | LB83: 0 | LC83: 0 | LD83: 0 | LE83: 0 | LF83: 0 | LG83: 0 | LH83: 0 | LI83: 0 | LJ83: 0 | LK83: 0 | LL83: 0 | LM83: 0 | LN83: 0 | LO83: 0 | LP83: 0 | LQ83: =LP87 -> 0 | LR83: 0 | LS83: 0 | LT83: 0 | LU83: 0 | LV83: 0 | LW83: 0 | LX83: 0 | LY83: 0 | LZ83: 0 | MA83: 0 | MB83: 0 | MC83: 0 | MD83: 0 | ME83: 0 | MF83: 0 | MG83: 0 | MH83: 0 | MI83: 0 | MJ83: 0 | MK83: 0 | ML83: 0 | MM83: 0 | MN83: 0 | MO83: 0 | MP83: 0 | MQ83: 0 | MR83: 0 | MS83: 0 | MT83: 0 | MU83: 0 | MV83: 0 | MW83: 0 | MX83: 0 | MY83: 0 | MZ83: 0 | NA83: 0 | NB83: 0 | NC83: 0 | ND83: 0 | NE83: 0 | NF83: 0 | NG83: 0 | NH83: 0 | NI83: 0 | NJ83: 0 | NK83: 0 | NL83: 0 | NM83: 0 | NN83: 0 | NO83: 0 | NP83: 0 | NQ83: 0 | NR83: 0 | NS83: 0 | NT83: 0 | NU83: 0 | NV83: 0 | NW83: 0 | NX83: 0 | NY83: 0 | NZ83: 0 | OA83: 0 | OB83: 0 | OC83: =OB87 -> 0 | OD83: 0 | OE83: 0 | OF83: 0 | OG83: 0 | OH83: 0 | OI83: 0 | OJ83: 0 | OK83: 0 | OL83: 0 | OM83: 0 | ON83: 0 | OO83: 0 | OP83: 0 | OQ83: 0 | OR83: 0 | OS83: 0 | OT83: 0 | OU83: 0 | OV83: 0 | OW83: 0 | OX83: 0 | OY83: 0 | OZ83: 0 | PA83: 0 | PB83: 0 | PC83: 0 | PD83: 0 | PE83: 0 | PF83: 0 | PG83: 0 | PH83: 0 | PI83: 0 | PJ83: 0 | PK83: 0 | PL83: 0 | PM83: 0 | PN83: 0 | PO83: 0 | PP83: 0 | PQ83: 0 | PR83: 0 | PS83: 0 | PT83: 0 | PU83: 0 | PV83: 0 | PW83: 0 | PX83: 0 | PY83: 0 | PZ83: 0 | QA83: 0 | QB83: 0 | QC83: 0 | QD83: 0 | QE83: 0 | QF83: 0 | QG83: 0 | QH83: 0 | QI83: 0 | QJ83: 0 | QK83: 0 | QL83: 0 | QM83: 0 | QN83: 0 | QO83: =QN87 -> 0 | QP83: 0 | QQ83: 0 | QR83: 0 | QS83: 0 | QT83: 0 | QU83: 0 | QV83: 0 | QW83: 0 | QX83: 0 | QY83: 0 | QZ83: 0 | RA83: 0 | RB83: 0 | RC83: 0 | RD83: 0 | RE83: 0 | RF83: 0 | RG83: 0 | RH83: 0 | RI83: 0 | RJ83: 0 | RK83: 0 | RL83: 0 | RM83: 0 | RN83: 0 | RO83: 0 | RP83: 0 | RQ83: 0 | RR83: 0 | RS83: 0 | RT83: 0 | RU83: 0 | RV83: 0 | RW83: 0 | RX83: 0 | RY83: 0 | RZ83: 0 | SA83: 0 | SB83: 0 | SC83: 0 | SD83: 0 | SE83: 0 | SF83: 0 | SG83: 0 | SH83: 0 | SI83: 0 | SJ83: 0 | SK83: 0 | SL83: 0 | SM83: 0 | SN83: 0 | SO83: 0 | SP83: 0 | SQ83: 0 | SR83: 0 | SS83: 0 | ST83: 0 | SU83: 0 | SV83: 0 | SW83: 0 | SX83: 0 | SY83: 0 | SZ83: 0 | TA83: =SZ87 -> 0 | TB83: 0 | TC83: 0 | TD83: 0 | TE83: 0 | TF83: 0 | TG83: 0 | TH83: 0 | TI83: 0 | TJ83: 0 | TK83: 0 | TL83: 0 | TM83: 0 | TN83: 0 | TO83: 0 | TP83: 0 | TQ83: 0 | TR83: 0 | TS83: 0 | TT83: 0 | TU83: 0 | TV83: 0 | TW83: 0 | TX83: 0 | TY83: 0 | TZ83: 0 | UA83: 0 | UB83: 0 | UC83: 0 | UD83: 0 | UE83: 0 | UF83: 0 | UG83: 0 | UH83: 0 | UI83: 0 | UJ83: 0 | UK83: 0 | UL83: 0 | UM83: 0 | UN83: 0 | UO83: 0 | UP83: 0 | UQ83: 0 | UR83: 0 | US83: =UR87 -> 0 | UT83: =US87 -> 0 | UU83: =UT87 -> 0 | UV83: =UU87 -> 0 | UW83: 0 | UX83: 0 | UY83: 0 | UZ83: 0 | VA83: 0 | VB83: 0 | VC83: 0 | VD83: 0 | VE83: 0 | VF83: 0 | VG83: 0 | VH83: 0 | VI83: 0 | VJ83: 0 | VK83: 0 | VL83: 0 | VM83: 0 | VN83: 0 | VO83: 0 | VP83: 0 | VQ83: 0 | VR83: 0 | VS83: 0 | VT83: 0 | VU83: 0 | VV83: 0 | VW83: 0 | VX83: 0 | VY83: 0 | VZ83: 0 | WA83: 0 | WB83: 0 | WC83: 0 | WD83: 0 | WE83: 0 | WF83: 0 | WG83: 0 | WH83: 0 | WI83: 0 | WJ83: 0 | WK83: 0 | WL83: 0 | WM83: 0 | WN83: 0 | WO83: 0 | WP83: 0 | WQ83: 0 | WR83: 0 | WS83: 0 | WT83: 0 | WU83: 0 | WV83: 0 | WW83: 0 | WX83: 0 | WY83: 0 | WZ83: 0 | XA83: 0 | XB83: 0 | XC83: 0 | XD83: 0 | XE83: 0 | XF83: 0 | XG83: 0 | XH83: =XG87 -> 0 | XI83: 0 | XJ83: 0 | XK83: 0 | XL83: 0 | XM83: 0 | XN83: 0 | XO83: 0 | XP83: 0 | XQ83: 0 | XR83: 0 | XS83: 0 | XT83: 0 | XU83: 0 | XV83: 0 | XW83: 0 | XX83: 0 | XY83: 0 | XZ83: 0 | YA83: 0 | YB83: 0 | YC83: 0 | YD83: 0 | YE83: 0 | YF83: 0 | YG83: 0 | YH83: 0 | YI83: 0 | YJ83: 0 | YK83: 0 | YL83: 0 | YM83: 0 | YN83: 0 | YO83: 0 | YP83: 0 | YQ83: 0 | YR83: 0 | YS83: 0 | YT83: 0 | YU83: 0 | YV83: 0 | YW83: 0 | YX83: 0 | YY83: 0 | YZ83: 0 | ZA83: 0 | ZB83: 0 | ZC83: 0 | ZD83: 0 | ZE83: 0 | ZF83: 0 | ZG83: 0 | ZH83: 0 | ZI83: 0 | ZJ83: 0 | ZK83: 0 | ZL83: 0 | ZM83: 0 | ZN83: 0 | ZO83: 0 | ZP83: 0 | ZQ83: 0 | ZR83: 0 | ZS83: 0 | ZT83: =ZS87 -> 0 | ZU83: =ZT87 -> 0 | ZV83: =ZU87 -> 0 | ZW83: =ZV87 -> 0 | ZX83: =ZW87 -> 0 | ZY83: 0 | ZZ83: 0 | AAA83: 0 | AAB83: 0 | AAC83: 0 | AAD83: 0 | AAE83: 0 | AAF83: 0 | AAG83: 0 | AAH83: 0 | AAI83: 0 | AAJ83: 0 | AAK83: 0 | AAL83: 0 | AAM83: 0 | AAN83: 0 | AAO83: 0 | AAP83: 0 | AAQ83: 0 | AAR83: 0 | AAS83: 0 | AAT83: 0 | AAU83: 0 | AAV83: 0 | AAW83: 0 | AAX83: 0 | AAY83: 0 | AAZ83: 0 | ABA83: 0 | ABB83: 0 | ABC83: 0 | ABD83: 0 | ABE83: 0 | ABF83: 0 | ABG83: 0 | ABH83: 0 | ABI83: 0 | ABJ83: 0 | ABK83: 0 | ABL83: 0 | ABM83: 0 | ABN83: 0 | ABO83: 0 | ABP83: 0 | ABQ83: 0 | ABR83: 0 | ABS83: 0 | ABT83: 0 | ABU83: 0 | ABV83: 0 | ABW83: 0 | ABX83: 0 | ABY83: 0 | ABZ83: 0 | ACA83: 0 | ACB83: 0 | ACC83: 0 | ACD83: 0 | ACE83: 0 | ACF83: 0 | ACG83: 0 | ACH83: 0 | ACI83: 0 | ACJ83: =ACI87 -> 0 | ACK83: 0 | ACL83: 0 | ACM83: 0 | ACN83: 0 | ACO83: 0 | ACP83: 0 | ACQ83: 0 | ACR83: 0 | ACS83: 0 | ACT83: 0 | ACU83: 0 | ACV83: 0 | ACW83: 0 | ACX83: 0 | ACY83: 0 | ACZ83: 0 | ADA83: 0 | ADB83: 0 | ADC83: 0 | ADD83: 0 | ADE83: 0 | ADF83: 0 | ADG83: 0 | ADH83: 0 | ADI83: 0 | ADJ83: 0 | ADK83: 0 | ADL83: 0 | ADM83: 0 | ADN83: 0 | ADO83: 0 | ADP83: 0 | ADQ83: 0 | ADR83: 0 | ADS83: 0 | ADT83: 0 | ADU83: 0 | ADV83: 0 | ADW83: 0 | ADX83: 0 | ADY83: 0 | ADZ83: 0 | AEA83: 0 | AEB83: 0 | AEC83: 0 | AED83: 0 | AEE83: 0 | AEF83: 0 | AEG83: 0 | AEH83: 0 | AEI83: 0 | AEJ83: 0 | AEK83: 0 | AEL83: 0 | AEM83: 0 | AEN83: 0 | AEO83: 0 | AEP83: 0 | AEQ83: 0 | AER83: 0 | AES83: 0 | AET83: 0 | AEU83: 0 | AEV83: =AEU87 -> 0 | AEW83: 0 | AEX83: 0 | AEY83: 0 | AEZ83: 0 | AFA83: 0 | AFB83: 0 | AFC83: 0 | AFD83: 0 | AFE83: 0 | AFF83: 0 | AFG83: 0 | AFH83: 0 | AFI83: 0 | AFJ83: 0 | AFK83: 0 | AFL83: 0 | AFM83: 0 | AFN83: 0 | AFO83: 0 | AFP83: 0 | AFQ83: 0 | AFR83: 0 | AFS83: 0 | AFT83: 0 | AFU83: 0 | AFV83: 0 | AFW83: 0 | AFX83: 0 | AFY83: 0 | AFZ83: 0 | AGA83: 0 | AGB83: 0 | AGC83: 0 | AGD83: 0 | AGE83: 0 | AGF83: 0 | AGG83: 0 | AGH83: 0 | AGI83: 0 | AGJ83: 0 | AGK83: 0
C84: Add: Accrued Return (Annual and Periodic @ WACC) | E84: Currency | F84: ='Solar Carrying Charge'!M56 -> 0.005654145387 | I84: =I83*$F$84 -> 0 | J84: =J83*$F$84 -> 0 | K84: 0 | L84: 0 | M84: 0 | N84: 0 | O84: 0 | P84: 0 | Q84: 0 | R84: 0 | S84: 0 | T84: 0 | U84: 0 | V84: 0 | W84: 0 | X84: 0 | Y84: 0 | Z84: 0 | AA84: 0 | AB84: 0 | AC84: 0 | AD84: 0 | AE84: 0 | AF84: 0 | AG84: 0 | AH84: 0 | AI84: 0 | AJ84: 0 | AK84: 0 | AL84: 0 | AM84: 0 | AN84: 0 | AO84: 0 | AP84: 0 | AQ84: 0 | AR84: 0 | AS84: 0 | AT84: 0 | AU84: 0 | AV84: 0 | AW84: 0 | AX84: 0 | AY84: 0 | AZ84: 0 | BA84: 0 | BB84: 0 | BC84: 0 | BD84: 0 | BE84: 0 | BF84: 0 | BG84: 0 | BH84: 0 | BI84: 0 | BJ84: 0 | BK84: 0 | BL84: 0 | BM84: 0 | BN84: 0 | BO84: 0 | BP84: 0 | BQ84: 0 | BR84: 0 | BS84: 0 | BT84: 0 | BU84: 0 | BV84: =BV83*$F$84 -> 0 | BW84: 0 | BX84: 0 | BY84: 0 | BZ84: 0 | CA84: 0 | CB84: 0 | CC84: 0 | CD84: 0 | CE84: 0 | CF84: 0 | CG84: 0 | CH84: 0 | CI84: 0 | CJ84: 0 | CK84: 0 | CL84: 0 | CM84: 0 | CN84: 0 | CO84: 0 | CP84: 0 | CQ84: 0 | CR84: 0 | CS84: 0 | CT84: 0 | CU84: 0 | CV84: 0 | CW84: 0 | CX84: 0 | CY84: 0 | CZ84: 0 | DA84: 0 | DB84: 0 | DC84: 0 | DD84: 0 | DE84: 0 | DF84: 0 | DG84: 0 | DH84: 0 | DI84: 0 | DJ84: 0 | DK84: 0 | DL84: 0 | DM84: 0 | DN84: 0 | DO84: 0 | DP84: 0 | DQ84: 0 | DR84: 0 | DS84: 0 | DT84: 0 | DU84: 0 | DV84: 0 | DW84: 0 | DX84: 0 | DY84: 0 | DZ84: 0 | EA84: 0 | EB84: 0 | EC84: 0 | ED84: 0 | EE84: 0 | EF84: 0 | EG84: 0 | EH84: =EH83*$F$84 -> 0 | EI84: 0 | EJ84: 0 | EK84: 0 | EL84: 0 | EM84: 0 | EN84: 0 | EO84: 0 | EP84: 0 | EQ84: 0 | ER84: 0 | ES84: 0 | ET84: 0 | EU84: 0 | EV84: 0 | EW84: 0 | EX84: 0 | EY84: 0 | EZ84: 0 | FA84: 0 | FB84: 0 | FC84: 0 | FD84: 0 | FE84: 0 | FF84: 0 | FG84: 0 | FH84: 0 | FI84: 0 | FJ84: 0 | FK84: 0 | FL84: 0 | FM84: 0 | FN84: 0 | FO84: 0 | FP84: 0 | FQ84: 0 | FR84: 0 | FS84: 0 | FT84: 0 | FU84: 0 | FV84: 0 | FW84: 0 | FX84: 0 | FY84: 0 | FZ84: 0 | GA84: 0 | GB84: 0 | GC84: 0 | GD84: 0 | GE84: 0 | GF84: 0 | GG84: 0 | GH84: 0 | GI84: 0 | GJ84: 0 | GK84: 0 | GL84: 0 | GM84: 0 | GN84: 0 | GO84: 0 | GP84: 0 | GQ84: 0 | GR84: 0 | GS84: 0 | GT84: =GT83*$F$84 -> 0 | GU84: 0 | GV84: 0 | GW84: 0 | GX84: 0 | GY84: 0 | GZ84: 0 | HA84: 0 | HB84: 0 | HC84: 0 | HD84: 0 | HE84: 0 | HF84: 0 | HG84: 0 | HH84: 0 | HI84: 0 | HJ84: 0 | HK84: 0 | HL84: 0 | HM84: 0 | HN84: 0 | HO84: 0 | HP84: 0 | HQ84: 0 | HR84: 0 | HS84: 0 | HT84: 0 | HU84: 0 | HV84: 0 | HW84: 0 | HX84: 0 | HY84: 0 | HZ84: 0 | IA84: 0 | IB84: 0 | IC84: 0 | ID84: 0 | IE84: 0 | IF84: 0 | IG84: 0 | IH84: 0 | II84: 0 | IJ84: 0 | IK84: 0 | IL84: 0 | IM84: 0 | IN84: 0 | IO84: 0 | IP84: 0 | IQ84: 0 | IR84: 0 | IS84: 0 | IT84: 0 | IU84: 0 | IV84: 0 | IW84: 0 | IX84: 0 | IY84: 0 | IZ84: 0 | JA84: 0 | JB84: 0 | JC84: 0 | JD84: 0 | JE84: 0 | JF84: =JF83*$F$84 -> 0 | JG84: 0 | JH84: 0 | JI84: 0 | JJ84: 0 | JK84: 0 | JL84: 0 | JM84: 0 | JN84: 0 | JO84: 0 | JP84: 0 | JQ84: 0 | JR84: 0 | JS84: 0 | JT84: 0 | JU84: 0 | JV84: 0 | JW84: 0 | JX84: 0 | JY84: 0 | JZ84: 0 | KA84: 0 | KB84: 0 | KC84: 0 | KD84: 0 | KE84: 0 | KF84: 0 | KG84: 0 | KH84: 0 | KI84: 0 | KJ84: 0 | KK84: 0 | KL84: 0 | KM84: 0 | KN84: 0 | KO84: 0 | KP84: 0 | KQ84: 0 | KR84: 0 | KS84: 0 | KT84: 0 | KU84: 0 | KV84: 0 | KW84: 0 | KX84: 0 | KY84: 0 | KZ84: 0 | LA84: 0 | LB84: 0 | LC84: 0 | LD84: 0 | LE84: 0 | LF84: 0 | LG84: 0 | LH84: 0 | LI84: 0 | LJ84: 0 | LK84: 0 | LL84: 0 | LM84: 0 | LN84: 0 | LO84: 0 | LP84: 0 | LQ84: 0 | LR84: =LR83*$F$84 -> 0 | LS84: 0 | LT84: 0 | LU84: 0 | LV84: 0 | LW84: 0 | LX84: 0 | LY84: 0 | LZ84: 0 | MA84: 0 | MB84: 0 | MC84: 0 | MD84: 0 | ME84: 0 | MF84: 0 | MG84: 0 | MH84: 0 | MI84: 0 | MJ84: 0 | MK84: 0 | ML84: 0 | MM84: 0 | MN84: 0 | MO84: 0 | MP84: 0 | MQ84: 0 | MR84: 0 | MS84: 0 | MT84: 0 | MU84: 0 | MV84: 0 | MW84: 0 | MX84: 0 | MY84: 0 | MZ84: 0 | NA84: 0 | NB84: 0 | NC84: 0 | ND84: 0 | NE84: 0 | NF84: 0 | NG84: 0 | NH84: 0 | NI84: 0 | NJ84: 0 | NK84: 0 | NL84: 0 | NM84: 0 | NN84: 0 | NO84: 0 | NP84: 0 | NQ84: 0 | NR84: 0 | NS84: 0 | NT84: 0 | NU84: 0 | NV84: 0 | NW84: 0 | NX84: 0 | NY84: 0 | NZ84: 0 | OA84: 0 | OB84: 0 | OC84: 0 | OD84: =OD83*$F$84 -> 0 | OE84: 0 | OF84: 0 | OG84: 0 | OH84: 0 | OI84: 0 | OJ84: 0 | OK84: 0 | OL84: 0 | OM84: 0 | ON84: 0 | OO84: 0 | OP84: 0 | OQ84: 0 | OR84: 0 | OS84: 0 | OT84: 0 | OU84: 0 | OV84: 0 | OW84: 0 | OX84: 0 | OY84: 0 | OZ84: 0 | PA84: 0 | PB84: 0 | PC84: 0 | PD84: 0 | PE84: 0 | PF84: 0 | PG84: 0 | PH84: 0 | PI84: 0 | PJ84: 0 | PK84: 0 | PL84: 0 | PM84: 0 | PN84: 0 | PO84: 0 | PP84: 0 | PQ84: 0 | PR84: 0 | PS84: 0 | PT84: 0 | PU84: 0 | PV84: 0 | PW84: 0 | PX84: 0 | PY84: 0 | PZ84: 0 | QA84: 0 | QB84: 0 | QC84: 0 | QD84: 0 | QE84: 0 | QF84: 0 | QG84: 0 | QH84: 0 | QI84: 0 | QJ84: 0 | QK84: 0 | QL84: 0 | QM84: 0 | QN84: 0 | QO84: 0 | QP84: =QP83*$F$84 -> 0 | QQ84: 0 | QR84: 0 | QS84: 0 | QT84: 0 | QU84: 0 | QV84: 0 | QW84: 0 | QX84: 0 | QY84: 0 | QZ84: 0 | RA84: 0 | RB84: 0 | RC84: 0 | RD84: 0 | RE84: 0 | RF84: 0 | RG84: 0 | RH84: 0 | RI84: 0 | RJ84: 0 | RK84: 0 | RL84: 0 | RM84: 0 | RN84: 0 | RO84: 0 | RP84: 0 | RQ84: 0 | RR84: 0 | RS84: 0 | RT84: 0 | RU84: 0 | RV84: 0 | RW84: 0 | RX84: 0 | RY84: 0 | RZ84: 0 | SA84: 0 | SB84: 0 | SC84: 0 | SD84: 0 | SE84: 0 | SF84: 0 | SG84: 0 | SH84: 0 | SI84: 0 | SJ84: 0 | SK84: 0 | SL84: 0 | SM84: 0 | SN84: 0 | SO84: 0 | SP84: 0 | SQ84: 0 | SR84: 0 | SS84: 0 | ST84: 0 | SU84: 0 | SV84: 0 | SW84: 0 | SX84: 0 | SY84: 0 | SZ84: 0 | TA84: 0 | TB84: =TB83*$F$84 -> 0 | TC84: 0 | TD84: 0 | TE84: 0 | TF84: 0 | TG84: 0 | TH84: 0 | TI84: 0 | TJ84: 0 | TK84: 0 | TL84: 0 | TM84: 0 | TN84: 0 | TO84: 0 | TP84: 0 | TQ84: 0 | TR84: 0 | TS84: 0 | TT84: 0 | TU84: 0 | TV84: 0 | TW84: 0 | TX84: 0 | TY84: 0 | TZ84: 0 | UA84: 0 | UB84: 0 | UC84: 0 | UD84: 0 | UE84: 0 | UF84: 0 | UG84: 0 | UH84: 0 | UI84: 0 | UJ84: 0 | UK84: 0 | UL84: 0 | UM84: 0 | UN84: 0 | UO84: 0 | UP84: 0 | UQ84: 0 | UR84: 0 | US84: 0 | UT84: 0 | UU84: 0 | UV84: 0 | UW84: 0 | UX84: 0 | UY84: 0 | UZ84: 0 | VA84: 0 | VB84: 0 | VC84: 0 | VD84: 0 | VE84: 0 | VF84: 0 | VG84: 0 | VH84: 0 | VI84: 0 | VJ84: 0 | VK84: 0 | VL84: 0 | VM84: 0 | VN84: =VN83*$F$84 -> 0 | VO84: 0 | VP84: 0 | VQ84: 0 | VR84: 0 | VS84: 0 | VT84: 0 | VU84: 0 | VV84: 0 | VW84: 0 | VX84: 0 | VY84: 0 | VZ84: 0 | WA84: 0 | WB84: 0 | WC84: 0 | WD84: 0 | WE84: 0 | WF84: 0 | WG84: 0 | WH84: 0 | WI84: 0 | WJ84: 0 | WK84: 0 | WL84: 0 | WM84: 0 | WN84: 0 | WO84: 0 | WP84: 0 | WQ84: 0 | WR84: 0 | WS84: 0 | WT84: 0 | WU84: 0 | WV84: 0 | WW84: 0 | WX84: 0 | WY84: 0 | WZ84: 0 | XA84: 0 | XB84: 0 | XC84: 0 | XD84: 0 | XE84: 0 | XF84: 0 | XG84: 0 | XH84: 0 | XI84: 0 | XJ84: 0 | XK84: 0 | XL84: 0 | XM84: 0 | XN84: 0 | XO84: 0 | XP84: 0 | XQ84: 0 | XR84: 0 | XS84: 0 | XT84: 0 | XU84: 0 | XV84: 0 | XW84: 0 | XX84: 0 | XY84: 0 | XZ84: =XZ83*$F$84 -> 0 | YA84: 0 | YB84: 0 | YC84: 0 | YD84: 0 | YE84: 0 | YF84: 0 | YG84: 0 | YH84: 0 | YI84: 0 | YJ84: 0 | YK84: 0 | YL84: 0 | YM84: 0 | YN84: 0 | YO84: 0 | YP84: 0 | YQ84: 0 | YR84: 0 | YS84: 0 | YT84: 0 | YU84: 0 | YV84: 0 | YW84: 0 | YX84: 0 | YY84: 0 | YZ84: 0 | ZA84: 0 | ZB84: 0 | ZC84: 0 | ZD84: 0 | ZE84: 0 | ZF84: 0 | ZG84: 0 | ZH84: 0 | ZI84: 0 | ZJ84: 0 | ZK84: 0 | ZL84: 0 | ZM84: 0 | ZN84: 0 | ZO84: 0 | ZP84: 0 | ZQ84: 0 | ZR84: 0 | ZS84: 0 | ZT84: 0 | ZU84: 0 | ZV84: 0 | ZW84: 0 | ZX84: 0 | ZY84: 0 | ZZ84: 0 | AAA84: 0 | AAB84: 0 | AAC84: 0 | AAD84: 0 | AAE84: 0 | AAF84: 0 | AAG84: 0 | AAH84: 0 | AAI84: 0 | AAJ84: 0 | AAK84: 0 | AAL84: =AAL83*$F$84 -> 0 | AAM84: 0 | AAN84: 0 | AAO84: 0 | AAP84: 0 | AAQ84: 0 | AAR84: 0 | AAS84: 0 | AAT84: 0 | AAU84: 0 | AAV84: 0 | AAW84: 0 | AAX84: 0 | AAY84: 0 | AAZ84: 0 | ABA84: 0 | ABB84: 0 | ABC84: 0 | ABD84: 0 | ABE84: 0 | ABF84: 0 | ABG84: 0 | ABH84: 0 | ABI84: 0 | ABJ84: 0 | ABK84: 0 | ABL84: 0 | ABM84: 0 | ABN84: 0 | ABO84: 0 | ABP84: 0 | ABQ84: 0 | ABR84: 0 | ABS84: 0 | ABT84: 0 | ABU84: 0 | ABV84: 0 | ABW84: 0 | ABX84: 0 | ABY84: 0 | ABZ84: 0 | ACA84: 0 | ACB84: 0 | ACC84: 0 | ACD84: 0 | ACE84: 0 | ACF84: 0 | ACG84: 0 | ACH84: 0 | ACI84: 0 | ACJ84: 0 | ACK84: 0 | ACL84: 0 | ACM84: 0 | ACN84: 0 | ACO84: 0 | ACP84: 0 | ACQ84: 0 | ACR84: 0 | ACS84: 0 | ACT84: 0 | ACU84: 0 | ACV84: 0 | ACW84: 0 | ACX84: =ACX83*$F$84 -> 0 | ACY84: 0 | ACZ84: 0 | ADA84: 0 | ADB84: 0 | ADC84: 0 | ADD84: 0 | ADE84: 0 | ADF84: 0 | ADG84: 0 | ADH84: 0 | ADI84: 0 | ADJ84: 0 | ADK84: 0 | ADL84: 0 | ADM84: 0 | ADN84: 0 | ADO84: 0 | ADP84: 0 | ADQ84: 0 | ADR84: 0 | ADS84: 0 | ADT84: 0 | ADU84: 0 | ADV84: 0 | ADW84: 0 | ADX84: 0 | ADY84: 0 | ADZ84: 0 | AEA84: 0 | AEB84: 0 | AEC84: 0 | AED84: 0 | AEE84: 0 | AEF84: 0 | AEG84: 0 | AEH84: 0 | AEI84: 0 | AEJ84: 0 | AEK84: 0 | AEL84: 0 | AEM84: 0 | AEN84: 0 | AEO84: 0 | AEP84: 0 | AEQ84: 0 | AER84: 0 | AES84: 0 | AET84: 0 | AEU84: 0 | AEV84: 0 | AEW84: 0 | AEX84: 0 | AEY84: 0 | AEZ84: 0 | AFA84: 0 | AFB84: 0 | AFC84: 0 | AFD84: 0 | AFE84: 0 | AFF84: 0 | AFG84: 0 | AFH84: 0 | AFI84: 0 | AFJ84: =AFJ83*$F$84 -> 0 | AFK84: 0 | AFL84: 0 | AFM84: 0 | AFN84: 0 | AFO84: 0 | AFP84: 0 | AFQ84: 0 | AFR84: 0 | AFS84: 0 | AFT84: 0 | AFU84: 0 | AFV84: 0 | AFW84: 0 | AFX84: 0 | AFY84: 0 | AFZ84: 0 | AGA84: 0 | AGB84: 0 | AGC84: 0 | AGD84: 0 | AGE84: 0 | AGF84: 0 | AGG84: 0 | AGH84: 0 | AGI84: 0 | AGJ84: 0 | AGK84: 0
C85: Add: Construction with Inflation from Above | E85: Currency | I85: =I79 -> 1000 | J85: =J79 -> 0 | K85: 0 | L85: 0 | M85: 0 | N85: 0 | O85: 0 | P85: 0 | Q85: 0 | R85: 0 | S85: 0 | T85: 0 | U85: 0 | V85: 0 | W85: 0 | X85: 0 | Y85: 0 | Z85: 0 | AA85: 0 | AB85: 0 | AC85: 0 | AD85: 0 | AE85: 0 | AF85: 0 | AG85: 0 | AH85: 0 | AI85: 0 | AJ85: 0 | AK85: 0 | AL85: 0 | AM85: 0 | AN85: 0 | AO85: 0 | AP85: 0 | AQ85: 0 | AR85: 0 | AS85: 0 | AT85: 0 | AU85: 0 | AV85: 0 | AW85: 0 | AX85: 0 | AY85: 0 | AZ85: 0 | BA85: 0 | BB85: 0 | BC85: 0 | BD85: 0 | BE85: 0 | BF85: 0 | BG85: 0 | BH85: 0 | BI85: 0 | BJ85: 0 | BK85: 0 | BL85: 0 | BM85: 0 | BN85: 0 | BO85: 0 | BP85: 0 | BQ85: 0 | BR85: 0 | BS85: 0 | BT85: 0 | BU85: 0 | BV85: =BV79 -> 0 | BW85: 0 | BX85: 0 | BY85: 0 | BZ85: 0 | CA85: 0 | CB85: 0 | CC85: 0 | CD85: 0 | CE85: 0 | CF85: 0 | CG85: 0 | CH85: 0 | CI85: 0 | CJ85: 0 | CK85: 0 | CL85: 0 | CM85: 0 | CN85: 0 | CO85: 0 | CP85: 0 | CQ85: 0 | CR85: 0 | CS85: 0 | CT85: 0 | CU85: 0 | CV85: 0 | CW85: 0 | CX85: 0 | CY85: 0 | CZ85: 0 | DA85: 0 | DB85: 0 | DC85: 0 | DD85: 0 | DE85: 0 | DF85: 0 | DG85: 0 | DH85: 0 | DI85: 0 | DJ85: 0 | DK85: 0 | DL85: 0 | DM85: 0 | DN85: 0 | DO85: 0 | DP85: 0 | DQ85: 0 | DR85: 0 | DS85: 0 | DT85: 0 | DU85: 0 | DV85: 0 | DW85: 0 | DX85: 0 | DY85: 0 | DZ85: 0 | EA85: 0 | EB85: 0 | EC85: 0 | ED85: 0 | EE85: 0 | EF85: 0 | EG85: 0 | EH85: =EH79 -> 0 | EI85: 0 | EJ85: 0 | EK85: 0 | EL85: 0 | EM85: 0 | EN85: 0 | EO85: 0 | EP85: 0 | EQ85: 0 | ER85: 0 | ES85: 0 | ET85: 0 | EU85: 0 | EV85: 0 | EW85: 0 | EX85: 0 | EY85: 0 | EZ85: 0 | FA85: 0 | FB85: 0 | FC85: 0 | FD85: 0 | FE85: 0 | FF85: 0 | FG85: 0 | FH85: 0 | FI85: 0 | FJ85: 0 | FK85: 0 | FL85: 0 | FM85: 0 | FN85: 0 | FO85: 0 | FP85: 0 | FQ85: 0 | FR85: 0 | FS85: 0 | FT85: 0 | FU85: 0 | FV85: 0 | FW85: 0 | FX85: 0 | FY85: 0 | FZ85: 0 | GA85: 0 | GB85: 0 | GC85: 0 | GD85: 0 | GE85: 0 | GF85: 0 | GG85: 0 | GH85: 0 | GI85: 0 | GJ85: 0 | GK85: 0 | GL85: 0 | GM85: 0 | GN85: 0 | GO85: 0 | GP85: 0 | GQ85: 0 | GR85: 0 | GS85: 0 | GT85: =GT79 -> 0 | GU85: 0 | GV85: 0 | GW85: 0 | GX85: 0 | GY85: 0 | GZ85: 0 | HA85: 0 | HB85: 0 | HC85: 0 | HD85: 0 | HE85: 0 | HF85: 0 | HG85: 0 | HH85: 0 | HI85: 0 | HJ85: 0 | HK85: 0 | HL85: 0 | HM85: 0 | HN85: 0 | HO85: 0 | HP85: 0 | HQ85: 0 | HR85: 0 | HS85: 0 | HT85: 0 | HU85: 0 | HV85: 0 | HW85: 0 | HX85: 0 | HY85: 0 | HZ85: 0 | IA85: 0 | IB85: 0 | IC85: 0 | ID85: 0 | IE85: 0 | IF85: 0 | IG85: 0 | IH85: 0 | II85: 0 | IJ85: 0 | IK85: 0 | IL85: 0 | IM85: 0 | IN85: 0 | IO85: 0 | IP85: 0 | IQ85: 0 | IR85: 0 | IS85: 0 | IT85: 0 | IU85: 0 | IV85: 0 | IW85: 0 | IX85: 0 | IY85: 0 | IZ85: 0 | JA85: 0 | JB85: 0 | JC85: 0 | JD85: 0 | JE85: 0 | JF85: =JF79 -> 0 | JG85: 0 | JH85: 0 | JI85: 0 | JJ85: 0 | JK85: 0 | JL85: 0 | JM85: 0 | JN85: 0 | JO85: 0 | JP85: 0 | JQ85: 0 | JR85: 0 | JS85: 0 | JT85: 0 | JU85: 0 | JV85: 0 | JW85: 0 | JX85: 0 | JY85: 0 | JZ85: 0 | KA85: 0 | KB85: 0 | KC85: 0 | KD85: 0 | KE85: 0 | KF85: 0 | KG85: 0 | KH85: 0 | KI85: 0 | KJ85: 0 | KK85: 0 | KL85: 0 | KM85: 0 | KN85: 0 | KO85: 0 | KP85: 0 | KQ85: 0 | KR85: 0 | KS85: 0 | KT85: 0 | KU85: 0 | KV85: 0 | KW85: 0 | KX85: 0 | KY85: 0 | KZ85: 0 | LA85: 0 | LB85: 0 | LC85: 0 | LD85: 0 | LE85: 0 | LF85: 0 | LG85: 0 | LH85: 0 | LI85: 0 | LJ85: 0 | LK85: 0 | LL85: 0 | LM85: 0 | LN85: 0 | LO85: 0 | LP85: 0 | LQ85: 0 | LR85: =LR79 -> 0 | LS85: 0 | LT85: 0 | LU85: 0 | LV85: 0 | LW85: 0 | LX85: 0 | LY85: 0 | LZ85: 0 | MA85: 0 | MB85: 0 | MC85: 0 | MD85: 0 | ME85: 0 | MF85: 0 | MG85: 0 | MH85: 0 | MI85: 0 | MJ85: 0 | MK85: 0 | ML85: 0 | MM85: 0 | MN85: 0 | MO85: 0 | MP85: 0 | MQ85: 0 | MR85: 0 | MS85: 0 | MT85: 0 | MU85: 0 | MV85: 0 | MW85: 0 | MX85: 0 | MY85: 0 | MZ85: 0 | NA85: 0 | NB85: 0 | NC85: 0 | ND85: 0 | NE85: 0 | NF85: 0 | NG85: 0 | NH85: 0 | NI85: 0 | NJ85: 0 | NK85: 0 | NL85: 0 | NM85: 0 | NN85: 0 | NO85: 0 | NP85: 0 | NQ85: 0 | NR85: 0 | NS85: 0 | NT85: 0 | NU85: 0 | NV85: 0 | NW85: 0 | NX85: 0 | NY85: 0 | NZ85: 0 | OA85: 0 | OB85: 0 | OC85: 0 | OD85: =OD79 -> 0 | OE85: 0 | OF85: 0 | OG85: 0 | OH85: 0 | OI85: 0 | OJ85: 0 | OK85: 0 | OL85: 0 | OM85: 0 | ON85: 0 | OO85: 0 | OP85: 0 | OQ85: 0 | OR85: 0 | OS85: 0 | OT85: 0 | OU85: 0 | OV85: 0 | OW85: 0 | OX85: 0 | OY85: 0 | OZ85: 0 | PA85: 0 | PB85: 0 | PC85: 0 | PD85: 0 | PE85: 0 | PF85: 0 | PG85: 0 | PH85: 0 | PI85: 0 | PJ85: 0 | PK85: 0 | PL85: 0 | PM85: 0 | PN85: 0 | PO85: 0 | PP85: 0 | PQ85: 0 | PR85: 0 | PS85: 0 | PT85: 0 | PU85: 0 | PV85: 0 | PW85: 0 | PX85: 0 | PY85: 0 | PZ85: 0 | QA85: 0 | QB85: 0 | QC85: 0 | QD85: 0 | QE85: 0 | QF85: 0 | QG85: 0 | QH85: 0 | QI85: 0 | QJ85: 0 | QK85: 0 | QL85: 0 | QM85: 0 | QN85: 0 | QO85: 0 | QP85: =QP79 -> 0 | QQ85: 0 | QR85: 0 | QS85: 0 | QT85: 0 | QU85: 0 | QV85: 0 | QW85: 0 | QX85: 0 | QY85: 0 | QZ85: 0 | RA85: 0 | RB85: 0 | RC85: 0 | RD85: 0 | RE85: 0 | RF85: 0 | RG85: 0 | RH85: 0 | RI85: 0 | RJ85: 0 | RK85: 0 | RL85: 0 | RM85: 0 | RN85: 0 | RO85: 0 | RP85: 0 | RQ85: 0 | RR85: 0 | RS85: 0 | RT85: 0 | RU85: 0 | RV85: 0 | RW85: 0 | RX85: 0 | RY85: 0 | RZ85: 0 | SA85: 0 | SB85: 0 | SC85: 0 | SD85: 0 | SE85: 0 | SF85: 0 | SG85: 0 | SH85: 0 | SI85: 0 | SJ85: 0 | SK85: 0 | SL85: 0 | SM85: 0 | SN85: 0 | SO85: 0 | SP85: 0 | SQ85: 0 | SR85: 0 | SS85: 0 | ST85: 0 | SU85: 0 | SV85: 0 | SW85: 0 | SX85: 0 | SY85: 0 | SZ85: 0 | TA85: 0 | TB85: =TB79 -> 0 | TC85: 0 | TD85: 0 | TE85: 0 | TF85: 0 | TG85: 0 | TH85: 0 | TI85: 0 | TJ85: 0 | TK85: 0 | TL85: 0 | TM85: 0 | TN85: 0 | TO85: 0 | TP85: 0 | TQ85: 0 | TR85: 0 | TS85: 0 | TT85: 0 | TU85: 0 | TV85: 0 | TW85: 0 | TX85: 0 | TY85: 0 | TZ85: 0 | UA85: 0 | UB85: 0 | UC85: 0 | UD85: 0 | UE85: 0 | UF85: 0 | UG85: 0 | UH85: 0 | UI85: 0 | UJ85: 0 | UK85: 0 | UL85: 0 | UM85: 0 | UN85: 0 | UO85: 0 | UP85: 0 | UQ85: 0 | UR85: 0 | US85: 0 | UT85: 0 | UU85: 0 | UV85: 0 | UW85: 0 | UX85: 0 | UY85: 0 | UZ85: 0 | VA85: 0 | VB85: 0 | VC85: 0 | VD85: 0 | VE85: 0 | VF85: 0 | VG85: 0 | VH85: 0 | VI85: 0 | VJ85: 0 | VK85: 0 | VL85: 0 | VM85: 0 | VN85: =VN79 -> 0 | VO85: 0 | VP85: 0 | VQ85: 0 | VR85: 0 | VS85: 0 | VT85: 0 | VU85: 0 | VV85: 0 | VW85: 0 | VX85: 0 | VY85: 0 | VZ85: 0 | WA85: 0 | WB85: 0 | WC85: 0 | WD85: 0 | WE85: 0 | WF85: 0 | WG85: 0 | WH85: 0 | WI85: 0 | WJ85: 0 | WK85: 0 | WL85: 0 | WM85: 0 | WN85: 0 | WO85: 0 | WP85: 0 | WQ85: 0 | WR85: 0 | WS85: 0 | WT85: 0 | WU85: 0 | WV85: 0 | WW85: 0 | WX85: 0 | WY85: 0 | WZ85: 0 | XA85: 0 | XB85: 0 | XC85: 0 | XD85: 0 | XE85: 0 | XF85: 0 | XG85: 0 | XH85: 0 | XI85: 0 | XJ85: 0 | XK85: 0 | XL85: 0 | XM85: 0 | XN85: 0 | XO85: 0 | XP85: 0 | XQ85: 0 | XR85: 0 | XS85: 0 | XT85: 0 | XU85: 0 | XV85: 0 | XW85: 0 | XX85: 0 | XY85: 0 | XZ85: =XZ79 -> 0 | YA85: 0 | YB85: 0 | YC85: 0 | YD85: 0 | YE85: 0 | YF85: 0 | YG85: 0 | YH85: 0 | YI85: 0 | YJ85: 0 | YK85: 0 | YL85: 0 | YM85: 0 | YN85: 0 | YO85: 0 | YP85: 0 | YQ85: 0 | YR85: 0 | YS85: 0 | YT85: 0 | YU85: 0 | YV85: 0 | YW85: 0 | YX85: 0 | YY85: 0 | YZ85: 0 | ZA85: 0 | ZB85: 0 | ZC85: 0 | ZD85: 0 | ZE85: 0 | ZF85: 0 | ZG85: 0 | ZH85: 0 | ZI85: 0 | ZJ85: 0 | ZK85: 0 | ZL85: 0 | ZM85: 0 | ZN85: 0 | ZO85: 0 | ZP85: 0 | ZQ85: 0 | ZR85: 0 | ZS85: 0 | ZT85: 0 | ZU85: 0 | ZV85: 0 | ZW85: 0 | ZX85: 0 | ZY85: 0 | ZZ85: 0 | AAA85: 0 | AAB85: 0 | AAC85: 0 | AAD85: 0 | AAE85: 0 | AAF85: 0 | AAG85: 0 | AAH85: 0 | AAI85: 0 | AAJ85: 0 | AAK85: 0 | AAL85: =AAL79 -> 0 | AAM85: 0 | AAN85: 0 | AAO85: 0 | AAP85: 0 | AAQ85: 0 | AAR85: 0 | AAS85: 0 | AAT85: 0 | AAU85: 0 | AAV85: 0 | AAW85: 0 | AAX85: 0 | AAY85: 0 | AAZ85: 0 | ABA85: 0 | ABB85: 0 | ABC85: 0 | ABD85: 0 | ABE85: 0 | ABF85: 0 | ABG85: 0 | ABH85: 0 | ABI85: 0 | ABJ85: 0 | ABK85: 0 | ABL85: 0 | ABM85: 0 | ABN85: 0 | ABO85: 0 | ABP85: 0 | ABQ85: 0 | ABR85: 0 | ABS85: 0 | ABT85: 0 | ABU85: 0 | ABV85: 0 | ABW85: 0 | ABX85: 0 | ABY85: 0 | ABZ85: 0 | ACA85: 0 | ACB85: 0 | ACC85: 0 | ACD85: 0 | ACE85: 0 | ACF85: 0 | ACG85: 0 | ACH85: 0 | ACI85: 0 | ACJ85: 0 | ACK85: 0 | ACL85: 0 | ACM85: 0 | ACN85: 0 | ACO85: 0 | ACP85: 0 | ACQ85: 0 | ACR85: 0 | ACS85: 0 | ACT85: 0 | ACU85: 0 | ACV85: 0 | ACW85: 0 | ACX85: =ACX79 -> 0 | ACY85: 0 | ACZ85: 0 | ADA85: 0 | ADB85: 0 | ADC85: 0 | ADD85: 0 | ADE85: 0 | ADF85: 0 | ADG85: 0 | ADH85: 0 | ADI85: 0 | ADJ85: 0 | ADK85: 0 | ADL85: 0 | ADM85: 0 | ADN85: 0 | ADO85: 0 | ADP85: 0 | ADQ85: 0 | ADR85: 0 | ADS85: 0 | ADT85: 0 | ADU85: 0 | ADV85: 0 | ADW85: 0 | ADX85: 0 | ADY85: 0 | ADZ85: 0 | AEA85: 0 | AEB85: 0 | AEC85: 0 | AED85: 0 | AEE85: 0 | AEF85: 0 | AEG85: 0 | AEH85: 0 | AEI85: 0 | AEJ85: 0 | AEK85: 0 | AEL85: 0 | AEM85: 0 | AEN85: 0 | AEO85: 0 | AEP85: 0 | AEQ85: 0 | AER85: 0 | AES85: 0 | AET85: 0 | AEU85: 0 | AEV85: 0 | AEW85: 0 | AEX85: 0 | AEY85: 0 | AEZ85: 0 | AFA85: 0 | AFB85: 0 | AFC85: 0 | AFD85: 0 | AFE85: 0 | AFF85: 0 | AFG85: 0 | AFH85: 0 | AFI85: 0 | AFJ85: =AFJ79 -> 0 | AFK85: 0 | AFL85: 0 | AFM85: 0 | AFN85: 0 | AFO85: 0 | AFP85: 0 | AFQ85: 0 | AFR85: 0 | AFS85: 0 | AFT85: 0 | AFU85: 0 | AFV85: 0 | AFW85: 0 | AFX85: 0 | AFY85: 0 | AFZ85: 0 | AGA85: 0 | AGB85: 0 | AGC85: 0 | AGD85: 0 | AGE85: 0 | AGF85: 0 | AGG85: 0 | AGH85: 0 | AGI85: 0 | AGJ85: 0 | AGK85: 0
C86: Less: Transferred to Plant (last month of Construction) | E86: Currency | I86: =(I83+I85+I84)*I80 -> 1000 | J86: 0 | K86: 0 | L86: 0 | M86: 0 | N86: 0 | O86: 0 | P86: 0 | Q86: 0 | R86: 0 | S86: 0 | T86: 0 | U86: 0 | V86: 0 | W86: 0 | X86: 0 | Y86: 0 | Z86: 0 | AA86: 0 | AB86: 0 | AC86: 0 | AD86: 0 | AE86: 0 | AF86: 0 | AG86: 0 | AH86: 0 | AI86: 0 | AJ86: 0 | AK86: 0 | AL86: 0 | AM86: 0 | AN86: 0 | AO86: 0 | AP86: 0 | AQ86: 0 | AR86: 0 | AS86: 0 | AT86: 0 | AU86: 0 | AV86: 0 | AW86: 0 | AX86: 0 | AY86: 0 | AZ86: 0 | BA86: 0 | BB86: 0 | BC86: 0 | BD86: 0 | BE86: 0 | BF86: 0 | BG86: 0 | BH86: 0 | BI86: 0 | BJ86: 0 | BK86: 0 | BL86: 0 | BM86: 0 | BN86: 0 | BO86: 0 | BP86: 0 | BQ86: 0 | BR86: 0 | BS86: 0 | BT86: 0 | BU86: =(BU83+BU85+BU84)*BU80 -> 0 | BV86: 0 | BW86: 0 | BX86: 0 | BY86: 0 | BZ86: 0 | CA86: 0 | CB86: 0 | CC86: 0 | CD86: 0 | CE86: 0 | CF86: 0 | CG86: 0 | CH86: 0 | CI86: 0 | CJ86: 0 | CK86: 0 | CL86: 0 | CM86: 0 | CN86: 0 | CO86: 0 | CP86: 0 | CQ86: 0 | CR86: 0 | CS86: 0 | CT86: 0 | CU86: 0 | CV86: 0 | CW86: 0 | CX86: 0 | CY86: 0 | CZ86: 0 | DA86: 0 | DB86: 0 | DC86: 0 | DD86: 0 | DE86: 0 | DF86: 0 | DG86: 0 | DH86: 0 | DI86: 0 | DJ86: 0 | DK86: 0 | DL86: 0 | DM86: 0 | DN86: 0 | DO86: 0 | DP86: 0 | DQ86: 0 | DR86: 0 | DS86: 0 | DT86: 0 | DU86: 0 | DV86: 0 | DW86: 0 | DX86: 0 | DY86: 0 | DZ86: 0 | EA86: 0 | EB86: 0 | EC86: 0 | ED86: 0 | EE86: 0 | EF86: 0 | EG86: =(EG83+EG85+EG84)*EG80 -> 0 | EH86: 0 | EI86: 0 | EJ86: 0 | EK86: 0 | EL86: 0 | EM86: 0 | EN86: 0 | EO86: 0 | EP86: 0 | EQ86: 0 | ER86: 0 | ES86: 0 | ET86: 0 | EU86: 0 | EV86: 0 | EW86: 0 | EX86: 0 | EY86: 0 | EZ86: 0 | FA86: 0 | FB86: 0 | FC86: 0 | FD86: 0 | FE86: 0 | FF86: 0 | FG86: 0 | FH86: 0 | FI86: 0 | FJ86: 0 | FK86: 0 | FL86: 0 | FM86: 0 | FN86: 0 | FO86: 0 | FP86: 0 | FQ86: 0 | FR86: 0 | FS86: 0 | FT86: 0 | FU86: 0 | FV86: 0 | FW86: 0 | FX86: 0 | FY86: 0 | FZ86: 0 | GA86: 0 | GB86: 0 | GC86: 0 | GD86: 0 | GE86: 0 | GF86: 0 | GG86: 0 | GH86: 0 | GI86: 0 | GJ86: 0 | GK86: 0 | GL86: 0 | GM86: 0 | GN86: 0 | GO86: 0 | GP86: 0 | GQ86: 0 | GR86: 0 | GS86: =(GS83+GS85+GS84)*GS80 -> 0 | GT86: 0 | GU86: 0 | GV86: 0 | GW86: 0 | GX86: 0 | GY86: 0 | GZ86: 0 | HA86: 0 | HB86: 0 | HC86: 0 | HD86: 0 | HE86: 0 | HF86: 0 | HG86: 0 | HH86: 0 | HI86: 0 | HJ86: 0 | HK86: 0 | HL86: 0 | HM86: 0 | HN86: 0 | HO86: 0 | HP86: 0 | HQ86: 0 | HR86: 0 | HS86: 0 | HT86: 0 | HU86: 0 | HV86: 0 | HW86: 0 | HX86: 0 | HY86: 0 | HZ86: 0 | IA86: 0 | IB86: 0 | IC86: 0 | ID86: 0 | IE86: 0 | IF86: 0 | IG86: 0 | IH86: 0 | II86: 0 | IJ86: 0 | IK86: 0 | IL86: 0 | IM86: 0 | IN86: 0 | IO86: 0 | IP86: 0 | IQ86: 0 | IR86: 0 | IS86: 0 | IT86: 0 | IU86: 0 | IV86: 0 | IW86: 0 | IX86: 0 | IY86: 0 | IZ86: 0 | JA86: 0 | JB86: 0 | JC86: 0 | JD86: 0 | JE86: =(JE83+JE85+JE84)*JE80 -> 0 | JF86: 0 | JG86: 0 | JH86: 0 | JI86: 0 | JJ86: 0 | JK86: 0 | JL86: 0 | JM86: 0 | JN86: 0 | JO86: 0 | JP86: 0 | JQ86: 0 | JR86: 0 | JS86: 0 | JT86: 0 | JU86: 0 | JV86: 0 | JW86: 0 | JX86: 0 | JY86: 0 | JZ86: 0 | KA86: 0 | KB86: 0 | KC86: 0 | KD86: 0 | KE86: 0 | KF86: 0 | KG86: 0 | KH86: 0 | KI86: 0 | KJ86: 0 | KK86: 0 | KL86: 0 | KM86: 0 | KN86: 0 | KO86: 0 | KP86: 0 | KQ86: 0 | KR86: 0 | KS86: 0 | KT86: 0 | KU86: 0 | KV86: 0 | KW86: 0 | KX86: 0 | KY86: 0 | KZ86: 0 | LA86: 0 | LB86: 0 | LC86: 0 | LD86: 0 | LE86: 0 | LF86: 0 | LG86: 0 | LH86: 0 | LI86: 0 | LJ86: 0 | LK86: 0 | LL86: 0 | LM86: 0 | LN86: 0 | LO86: 0 | LP86: 0 | LQ86: =(LQ83+LQ85+LQ84)*LQ80 -> 0 | LR86: 0 | LS86: 0 | LT86: 0 | LU86: 0 | LV86: 0 | LW86: 0 | LX86: 0 | LY86: 0 | LZ86: 0 | MA86: 0 | MB86: 0 | MC86: 0 | MD86: 0 | ME86: 0 | MF86: 0 | MG86: 0 | MH86: 0 | MI86: 0 | MJ86: 0 | MK86: 0 | ML86: 0 | MM86: 0 | MN86: 0 | MO86: 0 | MP86: 0 | MQ86: 0 | MR86: 0 | MS86: 0 | MT86: 0 | MU86: 0 | MV86: 0 | MW86: 0 | MX86: 0 | MY86: 0 | MZ86: 0 | NA86: 0 | NB86: 0 | NC86: 0 | ND86: 0 | NE86: 0 | NF86: 0 | NG86: 0 | NH86: 0 | NI86: 0 | NJ86: 0 | NK86: 0 | NL86: 0 | NM86: 0 | NN86: 0 | NO86: 0 | NP86: 0 | NQ86: 0 | NR86: 0 | NS86: 0 | NT86: 0 | NU86: 0 | NV86: 0 | NW86: 0 | NX86: 0 | NY86: 0 | NZ86: 0 | OA86: 0 | OB86: 0 | OC86: =(OC83+OC85+OC84)*OC80 -> 0 | OD86: 0 | OE86: 0 | OF86: 0 | OG86: 0 | OH86: 0 | OI86: 0 | OJ86: 0 | OK86: 0 | OL86: 0 | OM86: 0 | ON86: 0 | OO86: 0 | OP86: 0 | OQ86: 0 | OR86: 0 | OS86: 0 | OT86: 0 | OU86: 0 | OV86: 0 | OW86: 0 | OX86: 0 | OY86: 0 | OZ86: 0 | PA86: 0 | PB86: 0 | PC86: 0 | PD86: 0 | PE86: 0 | PF86: 0 | PG86: 0 | PH86: 0 | PI86: 0 | PJ86: 0 | PK86: 0 | PL86: 0 | PM86: 0 | PN86: 0 | PO86: 0 | PP86: 0 | PQ86: 0 | PR86: 0 | PS86: 0 | PT86: 0 | PU86: 0 | PV86: 0 | PW86: 0 | PX86: 0 | PY86: 0 | PZ86: 0 | QA86: 0 | QB86: 0 | QC86: 0 | QD86: 0 | QE86: 0 | QF86: 0 | QG86: 0 | QH86: 0 | QI86: 0 | QJ86: 0 | QK86: 0 | QL86: 0 | QM86: 0 | QN86: 0 | QO86: =(QO83+QO85+QO84)*QO80 -> 0 | QP86: 0 | QQ86: 0 | QR86: 0 | QS86: 0 | QT86: 0 | QU86: 0 | QV86: 0 | QW86: 0 | QX86: 0 | QY86: 0 | QZ86: 0 | RA86: 0 | RB86: 0 | RC86: 0 | RD86: 0 | RE86: 0 | RF86: 0 | RG86: 0 | RH86: 0 | RI86: 0 | RJ86: 0 | RK86: 0 | RL86: 0 | RM86: 0 | RN86: 0 | RO86: 0 | RP86: 0 | RQ86: 0 | RR86: 0 | RS86: 0 | RT86: 0 | RU86: 0 | RV86: 0 | RW86: 0 | RX86: 0 | RY86: 0 | RZ86: 0 | SA86: 0 | SB86: 0 | SC86: 0 | SD86: 0 | SE86: 0 | SF86: 0 | SG86: 0 | SH86: 0 | SI86: 0 | SJ86: 0 | SK86: 0 | SL86: 0 | SM86: 0 | SN86: 0 | SO86: 0 | SP86: 0 | SQ86: 0 | SR86: 0 | SS86: 0 | ST86: 0 | SU86: 0 | SV86: 0 | SW86: 0 | SX86: 0 | SY86: 0 | SZ86: 0 | TA86: =(TA83+TA85+TA84)*TA80 -> 0 | TB86: 0 | TC86: 0 | TD86: 0 | TE86: 0 | TF86: 0 | TG86: 0 | TH86: 0 | TI86: 0 | TJ86: 0 | TK86: 0 | TL86: 0 | TM86: 0 | TN86: 0 | TO86: 0 | TP86: 0 | TQ86: 0 | TR86: 0 | TS86: 0 | TT86: 0 | TU86: 0 | TV86: 0 | TW86: 0 | TX86: 0 | TY86: 0 | TZ86: 0 | UA86: 0 | UB86: 0 | UC86: 0 | UD86: 0 | UE86: 0 | UF86: 0 | UG86: 0 | UH86: 0 | UI86: 0 | UJ86: 0 | UK86: 0 | UL86: 0 | UM86: 0 | UN86: 0 | UO86: 0 | UP86: 0 | UQ86: 0 | UR86: 0 | US86: 0 | UT86: 0 | UU86: 0 | UV86: 0 | UW86: 0 | UX86: 0 | UY86: 0 | UZ86: 0 | VA86: 0 | VB86: 0 | VC86: 0 | VD86: 0 | VE86: 0 | VF86: 0 | VG86: 0 | VH86: 0 | VI86: 0 | VJ86: 0 | VK86: 0 | VL86: 0 | VM86: =(VM83+VM85+VM84)*VM80 -> 0 | VN86: 0 | VO86: 0 | VP86: 0 | VQ86: 0 | VR86: 0 | VS86: 0 | VT86: 0 | VU86: 0 | VV86: 0 | VW86: 0 | VX86: 0 | VY86: 0 | VZ86: 0 | WA86: 0 | WB86: 0 | WC86: 0 | WD86: 0 | WE86: 0 | WF86: 0 | WG86: 0 | WH86: 0 | WI86: 0 | WJ86: 0 | WK86: 0 | WL86: 0 | WM86: 0 | WN86: 0 | WO86: 0 | WP86: 0 | WQ86: 0 | WR86: 0 | WS86: 0 | WT86: 0 | WU86: 0 | WV86: 0 | WW86: 0 | WX86: 0 | WY86: 0 | WZ86: 0 | XA86: 0 | XB86: 0 | XC86: 0 | XD86: 0 | XE86: 0 | XF86: 0 | XG86: 0 | XH86: 0 | XI86: 0 | XJ86: 0 | XK86: 0 | XL86: 0 | XM86: 0 | XN86: 0 | XO86: 0 | XP86: 0 | XQ86: 0 | XR86: 0 | XS86: 0 | XT86: 0 | XU86: 0 | XV86: 0 | XW86: 0 | XX86: 0 | XY86: =(XY83+XY85+XY84)*XY80 -> 0 | XZ86: 0 | YA86: 0 | YB86: 0 | YC86: 0 | YD86: 0 | YE86: 0 | YF86: 0 | YG86: 0 | YH86: 0 | YI86: 0 | YJ86: 0 | YK86: 0 | YL86: 0 | YM86: 0 | YN86: 0 | YO86: 0 | YP86: 0 | YQ86: 0 | YR86: 0 | YS86: 0 | YT86: 0 | YU86: 0 | YV86: 0 | YW86: 0 | YX86: 0 | YY86: 0 | YZ86: 0 | ZA86: 0 | ZB86: 0 | ZC86: 0 | ZD86: 0 | ZE86: 0 | ZF86: 0 | ZG86: 0 | ZH86: 0 | ZI86: 0 | ZJ86: 0 | ZK86: 0 | ZL86: 0 | ZM86: 0 | ZN86: 0 | ZO86: 0 | ZP86: 0 | ZQ86: 0 | ZR86: 0 | ZS86: 0 | ZT86: 0 | ZU86: 0 | ZV86: 0 | ZW86: 0 | ZX86: 0 | ZY86: 0 | ZZ86: 0 | AAA86: 0 | AAB86: 0 | AAC86: 0 | AAD86: 0 | AAE86: 0 | AAF86: 0 | AAG86: 0 | AAH86: 0 | AAI86: 0 | AAJ86: 0 | AAK86: =(AAK83+AAK85+AAK84)*AAK80 -> 0 | AAL86: 0 | AAM86: 0 | AAN86: 0 | AAO86: 0 | AAP86: 0 | AAQ86: 0 | AAR86: 0 | AAS86: 0 | AAT86: 0 | AAU86: 0 | AAV86: 0 | AAW86: 0 | AAX86: 0 | AAY86: 0 | AAZ86: 0 | ABA86: 0 | ABB86: 0 | ABC86: 0 | ABD86: 0 | ABE86: 0 | ABF86: 0 | ABG86: 0 | ABH86: 0 | ABI86: 0 | ABJ86: 0 | ABK86: 0 | ABL86: 0 | ABM86: 0 | ABN86: 0 | ABO86: 0 | ABP86: 0 | ABQ86: 0 | ABR86: 0 | ABS86: 0 | ABT86: 0 | ABU86: 0 | ABV86: 0 | ABW86: 0 | ABX86: 0 | ABY86: 0 | ABZ86: 0 | ACA86: 0 | ACB86: 0 | ACC86: 0 | ACD86: 0 | ACE86: 0 | ACF86: 0 | ACG86: 0 | ACH86: 0 | ACI86: 0 | ACJ86: 0 | ACK86: 0 | ACL86: 0 | ACM86: 0 | ACN86: 0 | ACO86: 0 | ACP86: 0 | ACQ86: 0 | ACR86: 0 | ACS86: 0 | ACT86: 0 | ACU86: 0 | ACV86: 0 | ACW86: =(ACW83+ACW85+ACW84)*ACW80 -> 0 | ACX86: 0 | ACY86: 0 | ACZ86: 0 | ADA86: 0 | ADB86: 0 | ADC86: 0 | ADD86: 0 | ADE86: 0 | ADF86: 0 | ADG86: 0 | ADH86: 0 | ADI86: 0 | ADJ86: 0 | ADK86: 0 | ADL86: 0 | ADM86: 0 | ADN86: 0 | ADO86: 0 | ADP86: 0 | ADQ86: 0 | ADR86: 0 | ADS86: 0 | ADT86: 0 | ADU86: 0 | ADV86: 0 | ADW86: 0 | ADX86: 0 | ADY86: 0 | ADZ86: 0 | AEA86: 0 | AEB86: 0 | AEC86: 0 | AED86: 0 | AEE86: 0 | AEF86: 0 | AEG86: 0 | AEH86: 0 | AEI86: 0 | AEJ86: 0 | AEK86: 0 | AEL86: 0 | AEM86: 0 | AEN86: 0 | AEO86: 0 | AEP86: 0 | AEQ86: 0 | AER86: 0 | AES86: 0 | AET86: 0 | AEU86: 0 | AEV86: 0 | AEW86: 0 | AEX86: 0 | AEY86: 0 | AEZ86: 0 | AFA86: 0 | AFB86: 0 | AFC86: 0 | AFD86: 0 | AFE86: 0 | AFF86: 0 | AFG86: 0 | AFH86: 0 | AFI86: =(AFI83+AFI85+AFI84)*AFI80 -> 0 | AFJ86: 0 | AFK86: 0 | AFL86: 0 | AFM86: 0 | AFN86: 0 | AFO86: 0 | AFP86: 0 | AFQ86: 0 | AFR86: 0 | AFS86: 0 | AFT86: 0 | AFU86: 0 | AFV86: 0 | AFW86: 0 | AFX86: 0 | AFY86: 0 | AFZ86: 0 | AGA86: 0 | AGB86: 0 | AGC86: 0 | AGD86: 0 | AGE86: 0 | AGF86: 0 | AGG86: 0 | AGH86: 0 | AGI86: 0 | AGJ86: 0 | AGK86: 0
C87: Closing Balance | E87: Currency | I87: =I83+I85+I84-I86 -> 0 | J87: 0 | K87: 0 | L87: 0 | M87: 0 | N87: 0 | O87: 0 | P87: 0 | Q87: 0 | R87: 0 | S87: 0 | T87: 0 | U87: 0 | V87: 0 | W87: 0 | X87: 0 | Y87: 0 | Z87: 0 | AA87: 0 | AB87: 0 | AC87: 0 | AD87: 0 | AE87: 0 | AF87: 0 | AG87: 0 | AH87: 0 | AI87: 0 | AJ87: 0 | AK87: 0 | AL87: 0 | AM87: 0 | AN87: 0 | AO87: 0 | AP87: 0 | AQ87: 0 | AR87: 0 | AS87: 0 | AT87: 0 | AU87: 0 | AV87: 0 | AW87: 0 | AX87: 0 | AY87: 0 | AZ87: 0 | BA87: 0 | BB87: 0 | BC87: 0 | BD87: 0 | BE87: 0 | BF87: 0 | BG87: 0 | BH87: 0 | BI87: 0 | BJ87: 0 | BK87: 0 | BL87: 0 | BM87: 0 | BN87: 0 | BO87: 0 | BP87: 0 | BQ87: 0 | BR87: 0 | BS87: 0 | BT87: 0 | BU87: =BU83+BU85+BU84-BU86 -> 0 | BV87: 0 | BW87: 0 | BX87: 0 | BY87: 0 | BZ87: 0 | CA87: 0 | CB87: 0 | CC87: 0 | CD87: 0 | CE87: 0 | CF87: 0 | CG87: 0 | CH87: 0 | CI87: 0 | CJ87: 0 | CK87: 0 | CL87: 0 | CM87: 0 | CN87: 0 | CO87: 0 | CP87: 0 | CQ87: 0 | CR87: 0 | CS87: 0 | CT87: 0 | CU87: 0 | CV87: 0 | CW87: 0 | CX87: 0 | CY87: 0 | CZ87: 0 | DA87: 0 | DB87: 0 | DC87: 0 | DD87: 0 | DE87: 0 | DF87: 0 | DG87: 0 | DH87: 0 | DI87: 0 | DJ87: 0 | DK87: 0 | DL87: 0 | DM87: 0 | DN87: 0 | DO87: 0 | DP87: 0 | DQ87: 0 | DR87: 0 | DS87: 0 | DT87: 0 | DU87: 0 | DV87: 0 | DW87: 0 | DX87: 0 | DY87: 0 | DZ87: 0 | EA87: 0 | EB87: 0 | EC87: 0 | ED87: 0 | EE87: 0 | EF87: 0 | EG87: =EG83+EG85+EG84-EG86 -> 0 | EH87: 0 | EI87: 0 | EJ87: 0 | EK87: 0 | EL87: 0 | EM87: 0 | EN87: 0 | EO87: 0 | EP87: 0 | EQ87: 0 | ER87: 0 | ES87: 0 | ET87: 0 | EU87: 0 | EV87: 0 | EW87: 0 | EX87: 0 | EY87: 0 | EZ87: 0 | FA87: 0 | FB87: 0 | FC87: 0 | FD87: 0 | FE87: 0 | FF87: 0 | FG87: 0 | FH87: 0 | FI87: 0 | FJ87: 0 | FK87: 0 | FL87: 0 | FM87: 0 | FN87: 0 | FO87: 0 | FP87: 0 | FQ87: 0 | FR87: 0 | FS87: 0 | FT87: 0 | FU87: 0 | FV87: 0 | FW87: 0 | FX87: 0 | FY87: 0 | FZ87: 0 | GA87: 0 | GB87: 0 | GC87: 0 | GD87: 0 | GE87: 0 | GF87: 0 | GG87: 0 | GH87: 0 | GI87: 0 | GJ87: 0 | GK87: 0 | GL87: 0 | GM87: 0 | GN87: 0 | GO87: 0 | GP87: 0 | GQ87: 0 | GR87: 0 | GS87: =GS83+GS85+GS84-GS86 -> 0 | GT87: 0 | GU87: 0 | GV87: 0 | GW87: 0 | GX87: 0 | GY87: 0 | GZ87: 0 | HA87: 0 | HB87: 0 | HC87: 0 | HD87: 0 | HE87: 0 | HF87: 0 | HG87: 0 | HH87: 0 | HI87: 0 | HJ87: 0 | HK87: 0 | HL87: 0 | HM87: 0 | HN87: 0 | HO87: 0 | HP87: 0 | HQ87: 0 | HR87: 0 | HS87: 0 | HT87: 0 | HU87: 0 | HV87: 0 | HW87: 0 | HX87: 0 | HY87: 0 | HZ87: 0 | IA87: 0 | IB87: 0 | IC87: 0 | ID87: 0 | IE87: 0 | IF87: 0 | IG87: 0 | IH87: 0 | II87: 0 | IJ87: 0 | IK87: 0 | IL87: 0 | IM87: 0 | IN87: 0 | IO87: 0 | IP87: 0 | IQ87: 0 | IR87: 0 | IS87: 0 | IT87: 0 | IU87: 0 | IV87: 0 | IW87: 0 | IX87: 0 | IY87: 0 | IZ87: 0 | JA87: 0 | JB87: 0 | JC87: 0 | JD87: 0 | JE87: =JE83+JE85+JE84-JE86 -> 0 | JF87: 0 | JG87: 0 | JH87: 0 | JI87: 0 | JJ87: 0 | JK87: 0 | JL87: 0 | JM87: 0 | JN87: 0 | JO87: 0 | JP87: 0 | JQ87: 0 | JR87: 0 | JS87: 0 | JT87: 0 | JU87: 0 | JV87: 0 | JW87: 0 | JX87: 0 | JY87: 0 | JZ87: 0 | KA87: 0 | KB87: 0 | KC87: 0 | KD87: 0 | KE87: 0 | KF87: 0 | KG87: 0 | KH87: 0 | KI87: 0 | KJ87: 0 | KK87: 0 | KL87: 0 | KM87: 0 | KN87: 0 | KO87: 0 | KP87: 0 | KQ87: 0 | KR87: 0 | KS87: 0 | KT87: 0 | KU87: 0 | KV87: 0 | KW87: 0 | KX87: 0 | KY87: 0 | KZ87: 0 | LA87: 0 | LB87: 0 | LC87: 0 | LD87: 0 | LE87: 0 | LF87: 0 | LG87: 0 | LH87: 0 | LI87: 0 | LJ87: 0 | LK87: 0 | LL87: 0 | LM87: 0 | LN87: 0 | LO87: 0 | LP87: 0 | LQ87: =LQ83+LQ85+LQ84-LQ86 -> 0 | LR87: 0 | LS87: 0 | LT87: 0 | LU87: 0 | LV87: 0 | LW87: 0 | LX87: 0 | LY87: 0 | LZ87: 0 | MA87: 0 | MB87: 0 | MC87: 0 | MD87: 0 | ME87: 0 | MF87: 0 | MG87: 0 | MH87: 0 | MI87: 0 | MJ87: 0 | MK87: 0 | ML87: 0 | MM87: 0 | MN87: 0 | MO87: 0 | MP87: 0 | MQ87: 0 | MR87: 0 | MS87: 0 | MT87: 0 | MU87: 0 | MV87: 0 | MW87: 0 | MX87: 0 | MY87: 0 | MZ87: 0 | NA87: 0 | NB87: 0 | NC87: 0 | ND87: 0 | NE87: 0 | NF87: 0 | NG87: 0 | NH87: 0 | NI87: 0 | NJ87: 0 | NK87: 0 | NL87: 0 | NM87: 0 | NN87: 0 | NO87: 0 | NP87: 0 | NQ87: 0 | NR87: 0 | NS87: 0 | NT87: 0 | NU87: 0 | NV87: 0 | NW87: 0 | NX87: 0 | NY87: 0 | NZ87: 0 | OA87: 0 | OB87: 0 | OC87: =OC83+OC85+OC84-OC86 -> 0 | OD87: 0 | OE87: 0 | OF87: 0 | OG87: 0 | OH87: 0 | OI87: 0 | OJ87: 0 | OK87: 0 | OL87: 0 | OM87: 0 | ON87: 0 | OO87: 0 | OP87: 0 | OQ87: 0 | OR87: 0 | OS87: 0 | OT87: 0 | OU87: 0 | OV87: 0 | OW87: 0 | OX87: 0 | OY87: 0 | OZ87: 0 | PA87: 0 | PB87: 0 | PC87: 0 | PD87: 0 | PE87: 0 | PF87: 0 | PG87: 0 | PH87: 0 | PI87: 0 | PJ87: 0 | PK87: 0 | PL87: 0 | PM87: 0 | PN87: 0 | PO87: 0 | PP87: 0 | PQ87: 0 | PR87: 0 | PS87: 0 | PT87: 0 | PU87: 0 | PV87: 0 | PW87: 0 | PX87: 0 | PY87: 0 | PZ87: 0 | QA87: 0 | QB87: 0 | QC87: 0 | QD87: 0 | QE87: 0 | QF87: 0 | QG87: 0 | QH87: 0 | QI87: 0 | QJ87: 0 | QK87: 0 | QL87: 0 | QM87: 0 | QN87: 0 | QO87: =QO83+QO85+QO84-QO86 -> 0 | QP87: 0 | QQ87: 0 | QR87: 0 | QS87: 0 | QT87: 0 | QU87: 0 | QV87: 0 | QW87: 0 | QX87: 0 | QY87: 0 | QZ87: 0 | RA87: 0 | RB87: 0 | RC87: 0 | RD87: 0 | RE87: 0 | RF87: 0 | RG87: 0 | RH87: 0 | RI87: 0 | RJ87: 0 | RK87: 0 | RL87: 0 | RM87: 0 | RN87: 0 | RO87: 0 | RP87: 0 | RQ87: 0 | RR87: 0 | RS87: 0 | RT87: 0 | RU87: 0 | RV87: 0 | RW87: 0 | RX87: 0 | RY87: 0 | RZ87: 0 | SA87: 0 | SB87: 0 | SC87: 0 | SD87: 0 | SE87: 0 | SF87: 0 | SG87: 0 | SH87: 0 | SI87: 0 | SJ87: 0 | SK87: 0 | SL87: 0 | SM87: 0 | SN87: 0 | SO87: 0 | SP87: 0 | SQ87: 0 | SR87: 0 | SS87: 0 | ST87: 0 | SU87: 0 | SV87: 0 | SW87: 0 | SX87: 0 | SY87: 0 | SZ87: 0 | TA87: =TA83+TA85+TA84-TA86 -> 0 | TB87: 0 | TC87: 0 | TD87: 0 | TE87: 0 | TF87: 0 | TG87: 0 | TH87: 0 | TI87: 0 | TJ87: 0 | TK87: 0 | TL87: 0 | TM87: 0 | TN87: 0 | TO87: 0 | TP87: 0 | TQ87: 0 | TR87: 0 | TS87: 0 | TT87: 0 | TU87: 0 | TV87: 0 | TW87: 0 | TX87: 0 | TY87: 0 | TZ87: 0 | UA87: 0 | UB87: 0 | UC87: 0 | UD87: 0 | UE87: 0 | UF87: 0 | UG87: 0 | UH87: 0 | UI87: 0 | UJ87: 0 | UK87: 0 | UL87: 0 | UM87: 0 | UN87: 0 | UO87: 0 | UP87: 0 | UQ87: 0 | UR87: 0 | US87: 0 | UT87: 0 | UU87: 0 | UV87: 0 | UW87: 0 | UX87: 0 | UY87: 0 | UZ87: 0 | VA87: 0 | VB87: 0 | VC87: 0 | VD87: 0 | VE87: 0 | VF87: 0 | VG87: 0 | VH87: 0 | VI87: 0 | VJ87: 0 | VK87: 0 | VL87: 0 | VM87: =VM83+VM85+VM84-VM86 -> 0 | VN87: 0 | VO87: 0 | VP87: 0 | VQ87: 0 | VR87: 0 | VS87: 0 | VT87: 0 | VU87: 0 | VV87: 0 | VW87: 0 | VX87: 0 | VY87: 0 | VZ87: 0 | WA87: 0 | WB87: 0 | WC87: 0 | WD87: 0 | WE87: 0 | WF87: 0 | WG87: 0 | WH87: 0 | WI87: 0 | WJ87: 0 | WK87: 0 | WL87: 0 | WM87: 0 | WN87: 0 | WO87: 0 | WP87: 0 | WQ87: 0 | WR87: 0 | WS87: 0 | WT87: 0 | WU87: 0 | WV87: 0 | WW87: 0 | WX87: 0 | WY87: 0 | WZ87: 0 | XA87: 0 | XB87: 0 | XC87: 0 | XD87: 0 | XE87: 0 | XF87: 0 | XG87: 0 | XH87: 0 | XI87: 0 | XJ87: 0 | XK87: 0 | XL87: 0 | XM87: 0 | XN87: 0 | XO87: 0 | XP87: 0 | XQ87: 0 | XR87: 0 | XS87: 0 | XT87: 0 | XU87: 0 | XV87: 0 | XW87: 0 | XX87: 0 | XY87: =XY83+XY85+XY84-XY86 -> 0 | XZ87: 0 | YA87: 0 | YB87: 0 | YC87: 0 | YD87: 0 | YE87: 0 | YF87: 0 | YG87: 0 | YH87: 0 | YI87: 0 | YJ87: 0 | YK87: 0 | YL87: 0 | YM87: 0 | YN87: 0 | YO87: 0 | YP87: 0 | YQ87: 0 | YR87: 0 | YS87: 0 | YT87: 0 | YU87: 0 | YV87: 0 | YW87: 0 | YX87: 0 | YY87: 0 | YZ87: 0 | ZA87: 0 | ZB87: 0 | ZC87: 0 | ZD87: 0 | ZE87: 0 | ZF87: 0 | ZG87: 0 | ZH87: 0 | ZI87: 0 | ZJ87: 0 | ZK87: 0 | ZL87: 0 | ZM87: 0 | ZN87: 0 | ZO87: 0 | ZP87: 0 | ZQ87: 0 | ZR87: 0 | ZS87: 0 | ZT87: 0 | ZU87: 0 | ZV87: 0 | ZW87: 0 | ZX87: 0 | ZY87: 0 | ZZ87: 0 | AAA87: 0 | AAB87: 0 | AAC87: 0 | AAD87: 0 | AAE87: 0 | AAF87: 0 | AAG87: 0 | AAH87: 0 | AAI87: 0 | AAJ87: 0 | AAK87: =AAK83+AAK85+AAK84-AAK86 -> 0 | AAL87: 0 | AAM87: 0 | AAN87: 0 | AAO87: 0 | AAP87: 0 | AAQ87: 0 | AAR87: 0 | AAS87: 0 | AAT87: 0 | AAU87: 0 | AAV87: 0 | AAW87: 0 | AAX87: 0 | AAY87: 0 | AAZ87: 0 | ABA87: 0 | ABB87: 0 | ABC87: 0 | ABD87: 0 | ABE87: 0 | ABF87: 0 | ABG87: 0 | ABH87: 0 | ABI87: 0 | ABJ87: 0 | ABK87: 0 | ABL87: 0 | ABM87: 0 | ABN87: 0 | ABO87: 0 | ABP87: 0 | ABQ87: 0 | ABR87: 0 | ABS87: 0 | ABT87: 0 | ABU87: 0 | ABV87: 0 | ABW87: 0 | ABX87: 0 | ABY87: 0 | ABZ87: 0 | ACA87: 0 | ACB87: 0 | ACC87: 0 | ACD87: 0 | ACE87: 0 | ACF87: 0 | ACG87: 0 | ACH87: 0 | ACI87: 0 | ACJ87: 0 | ACK87: 0 | ACL87: 0 | ACM87: 0 | ACN87: 0 | ACO87: 0 | ACP87: 0 | ACQ87: 0 | ACR87: 0 | ACS87: 0 | ACT87: 0 | ACU87: 0 | ACV87: 0 | ACW87: =ACW83+ACW85+ACW84-ACW86 -> 0 | ACX87: 0 | ACY87: 0 | ACZ87: 0 | ADA87: 0 | ADB87: 0 | ADC87: 0 | ADD87: 0 | ADE87: 0 | ADF87: 0 | ADG87: 0 | ADH87: 0 | ADI87: 0 | ADJ87: 0 | ADK87: 0 | ADL87: 0 | ADM87: 0 | ADN87: 0 | ADO87: 0 | ADP87: 0 | ADQ87: 0 | ADR87: 0 | ADS87: 0 | ADT87: 0 | ADU87: 0 | ADV87: 0 | ADW87: 0 | ADX87: 0 | ADY87: 0 | ADZ87: 0 | AEA87: 0 | AEB87: 0 | AEC87: 0 | AED87: 0 | AEE87: 0 | AEF87: 0 | AEG87: 0 | AEH87: 0 | AEI87: 0 | AEJ87: 0 | AEK87: 0 | AEL87: 0 | AEM87: 0 | AEN87: 0 | AEO87: 0 | AEP87: 0 | AEQ87: 0 | AER87: 0 | AES87: 0 | AET87: 0 | AEU87: 0 | AEV87: 0 | AEW87: 0 | AEX87: 0 | AEY87: 0 | AEZ87: 0 | AFA87: 0 | AFB87: 0 | AFC87: 0 | AFD87: 0 | AFE87: 0 | AFF87: 0 | AFG87: 0 | AFH87: 0 | AFI87: =AFI83+AFI85+AFI84-AFI86 -> 0 | AFJ87: 0 | AFK87: 0 | AFL87: 0 | AFM87: 0 | AFN87: 0 | AFO87: 0 | AFP87: 0 | AFQ87: 0 | AFR87: 0 | AFS87: 0 | AFT87: 0 | AFU87: 0 | AFV87: 0 | AFW87: 0 | AFX87: 0 | AFY87: 0 | AFZ87: 0 | AGA87: 0 | AGB87: 0 | AGC87: 0 | AGD87: 0 | AGE87: 0 | AGF87: 0 | AGG87: 0 | AGH87: 0 | AGI87: 0 | AGJ87: 0 | AGK87: 0
B89: Total Nominal Cost | E89: Currency | F89: =SUM(86:86) -> 1000
B90: PV of Construction Nominal Construction | E90: Currency | F90: =XNPV(G90,I86:AGK86,I7:AGK7) -> 1000 | G90: ='Solar Carrying Charge'!M55 -> 0.07
A92: Replacement and Decommissioning -- Costs that are Spread over the Operating Project Life by Moving to Current Values
B93: Replacement Period (Date/Check) | E93: Switch | F93: ='Solar Carrying Charge'!F52 -> 2016-03-01 | G93: =COUNTIF(I93:AGK93,TRUE) -> 1 | I93: =$F$93=I6 -> FALSE | J93: FALSE | K93: FALSE | L93: FALSE | M93: FALSE | N93: FALSE | O93: FALSE | P93: FALSE | Q93: FALSE | R93: FALSE | S93: FALSE | T93: FALSE | U93: FALSE | V93: FALSE | W93: FALSE | X93: FALSE | Y93: TRUE | Z93: FALSE | AA93: FALSE | AB93: FALSE | AC93: FALSE | AD93: FALSE | AE93: FALSE | AF93: FALSE | AG93: FALSE | AH93: FALSE | AI93: FALSE | AJ93: FALSE | AK93: FALSE | AL93: FALSE | AM93: FALSE | AN93: FALSE | AO93: FALSE | AP93: FALSE | AQ93: FALSE | AR93: FALSE | AS93: FALSE | AT93: FALSE | AU93: FALSE | AV93: FALSE | AW93: FALSE | AX93: FALSE | AY93: FALSE | AZ93: FALSE | BA93: FALSE | BB93: FALSE | BC93: FALSE | BD93: FALSE | BE93: FALSE | BF93: FALSE | BG93: FALSE | BH93: FALSE | BI93: FALSE | BJ93: FALSE | BK93: FALSE | BL93: FALSE | BM93: FALSE | BN93: FALSE | BO93: FALSE | BP93: FALSE | BQ93: FALSE | BR93: FALSE | BS93: FALSE | BT93: FALSE | BU93: =$F$93=BU6 -> FALSE | BV93: FALSE | BW93: FALSE | BX93: FALSE | BY93: FALSE | BZ93: FALSE | CA93: FALSE | CB93: FALSE | CC93: FALSE | CD93: FALSE | CE93: FALSE | CF93: FALSE | CG93: FALSE | CH93: FALSE | CI93: FALSE | CJ93: FALSE | CK93: FALSE | CL93: FALSE | CM93: FALSE | CN93: FALSE | CO93: FALSE | CP93: FALSE | CQ93: FALSE | CR93: FALSE | CS93: FALSE | CT93: FALSE | CU93: FALSE | CV93: FALSE | CW93: FALSE | CX93: FALSE | CY93: FALSE | CZ93: FALSE | DA93: FALSE | DB93: FALSE | DC93: FALSE | DD93: FALSE | DE93: FALSE | DF93: FALSE | DG93: FALSE | DH93: FALSE | DI93: FALSE | DJ93: FALSE | DK93: FALSE | DL93: FALSE | DM93: FALSE | DN93: FALSE | DO93: FALSE | DP93: FALSE | DQ93: FALSE | DR93: FALSE | DS93: FALSE | DT93: FALSE | DU93: FALSE | DV93: FALSE | DW93: FALSE | DX93: FALSE | DY93: FALSE | DZ93: FALSE | EA93: FALSE | EB93: FALSE | EC93: FALSE | ED93: FALSE | EE93: FALSE | EF93: FALSE | EG93: =$F$93=EG6 -> FALSE | EH93: FALSE | EI93: FALSE | EJ93: FALSE | EK93: FALSE | EL93: FALSE | EM93: FALSE | EN93: FALSE | EO93: FALSE | EP93: FALSE | EQ93: FALSE | ER93: FALSE | ES93: FALSE | ET93: FALSE | EU93: FALSE | EV93: FALSE | EW93: FALSE | EX93: FALSE | EY93: FALSE | EZ93: FALSE | FA93: FALSE | FB93: FALSE | FC93: FALSE | FD93: FALSE | FE93: FALSE | FF93: FALSE | FG93: FALSE | FH93: FALSE | FI93: FALSE | FJ93: FALSE | FK93: FALSE | FL93: FALSE | FM93: FALSE | FN93: FALSE | FO93: FALSE | FP93: FALSE | FQ93: FALSE | FR93: FALSE | FS93: FALSE | FT93: FALSE | FU93: FALSE | FV93: FALSE | FW93: FALSE | FX93: FALSE | FY93: FALSE | FZ93: FALSE | GA93: FALSE | GB93: FALSE | GC93: FALSE | GD93: FALSE | GE93: FALSE | GF93: FALSE | GG93: FALSE | GH93: FALSE | GI93: FALSE | GJ93: FALSE | GK93: FALSE | GL93: FALSE | GM93: FALSE | GN93: FALSE | GO93: FALSE | GP93: FALSE | GQ93: FALSE | GR93: FALSE | GS93: =$F$93=GS6 -> FALSE | GT93: FALSE | GU93: FALSE | GV93: FALSE | GW93: FALSE | GX93: FALSE | GY93: FALSE | GZ93: FALSE | HA93: FALSE | HB93: FALSE | HC93: FALSE | HD93: FALSE | HE93: FALSE | HF93: FALSE | HG93: FALSE | HH93: FALSE | HI93: FALSE | HJ93: FALSE | HK93: FALSE | HL93: FALSE | HM93: FALSE | HN93: FALSE | HO93: FALSE | HP93: FALSE | HQ93: FALSE | HR93: FALSE | HS93: FALSE | HT93: FALSE | HU93: FALSE | HV93: FALSE | HW93: FALSE | HX93: FALSE | HY93: FALSE | HZ93: FALSE | IA93: FALSE | IB93: FALSE | IC93: FALSE | ID93: FALSE | IE93: FALSE | IF93: FALSE | IG93: FALSE | IH93: FALSE | II93: FALSE | IJ93: FALSE | IK93: FALSE | IL93: FALSE | IM93: FALSE | IN93: FALSE | IO93: FALSE | IP93: FALSE | IQ93: FALSE | IR93: FALSE | IS93: FALSE | IT93: FALSE | IU93: FALSE | IV93: FALSE | IW93: FALSE | IX93: FALSE | IY93: FALSE | IZ93: FALSE | JA93: FALSE | JB93: FALSE | JC93: FALSE | JD93: FALSE | JE93: =$F$93=JE6 -> FALSE | JF93: FALSE | JG93: FALSE | JH93: FALSE | JI93: FALSE | JJ93: FALSE | JK93: FALSE | JL93: FALSE | JM93: FALSE | JN93: FALSE | JO93: FALSE | JP93: FALSE | JQ93: FALSE | JR93: FALSE | JS93: FALSE | JT93: FALSE | JU93: FALSE | JV93: FALSE | JW93: FALSE | JX93: FALSE | JY93: FALSE | JZ93: FALSE | KA93: FALSE | KB93: FALSE | KC93: FALSE | KD93: FALSE | KE93: FALSE | KF93: FALSE | KG93: FALSE | KH93: FALSE | KI93: FALSE | KJ93: FALSE | KK93: FALSE | KL93: FALSE | KM93: FALSE | KN93: FALSE | KO93: FALSE | KP93: FALSE | KQ93: FALSE | KR93: FALSE | KS93: FALSE | KT93: FALSE | KU93: FALSE | KV93: FALSE | KW93: FALSE | KX93: FALSE | KY93: FALSE | KZ93: FALSE | LA93: FALSE | LB93: FALSE | LC93: FALSE | LD93: FALSE | LE93: FALSE | LF93: FALSE | LG93: FALSE | LH93: FALSE | LI93: FALSE | LJ93: FALSE | LK93: FALSE | LL93: FALSE | LM93: FALSE | LN93: FALSE | LO93: FALSE | LP93: FALSE | LQ93: =$F$93=LQ6 -> FALSE | LR93: FALSE | LS93: FALSE | LT93: FALSE | LU93: FALSE | LV93: FALSE | LW93: FALSE | LX93: FALSE | LY93: FALSE | LZ93: FALSE | MA93: FALSE | MB93: FALSE | MC93: FALSE | MD93: FALSE | ME93: FALSE | MF93: FALSE | MG93: FALSE | MH93: FALSE | MI93: FALSE | MJ93: FALSE | MK93: FALSE | ML93: FALSE | MM93: FALSE | MN93: FALSE | MO93: FALSE | MP93: FALSE | MQ93: FALSE | MR93: FALSE | MS93: FALSE | MT93: FALSE | MU93: FALSE | MV93: FALSE | MW93: FALSE | MX93: FALSE | MY93: FALSE | MZ93: FALSE | NA93: FALSE | NB93: FALSE | NC93: FALSE | ND93: FALSE | NE93: FALSE | NF93: FALSE | NG93: FALSE | NH93: FALSE | NI93: FALSE | NJ93: FALSE | NK93: FALSE | NL93: FALSE | NM93: FALSE | NN93: FALSE | NO93: FALSE | NP93: FALSE | NQ93: FALSE | NR93: FALSE | NS93: FALSE | NT93: FALSE | NU93: FALSE | NV93: FALSE | NW93: FALSE | NX93: FALSE | NY93: FALSE | NZ93: FALSE | OA93: FALSE | OB93: FALSE | OC93: =$F$93=OC6 -> FALSE | OD93: FALSE | OE93: FALSE | OF93: FALSE | OG93: FALSE | OH93: FALSE | OI93: FALSE | OJ93: FALSE | OK93: FALSE | OL93: FALSE | OM93: FALSE | ON93: FALSE | OO93: FALSE | OP93: FALSE | OQ93: FALSE | OR93: FALSE | OS93: FALSE | OT93: FALSE | OU93: FALSE | OV93: FALSE | OW93: FALSE | OX93: FALSE | OY93: FALSE | OZ93: FALSE | PA93: FALSE | PB93: FALSE | PC93: FALSE | PD93: FALSE | PE93: FALSE | PF93: FALSE | PG93: FALSE | PH93: FALSE | PI93: FALSE | PJ93: FALSE | PK93: FALSE | PL93: FALSE | PM93: FALSE | PN93: FALSE | PO93: FALSE | PP93: FALSE | PQ93: FALSE | PR93: FALSE | PS93: FALSE | PT93: FALSE | PU93: FALSE | PV93: FALSE | PW93: FALSE | PX93: FALSE | PY93: FALSE | PZ93: FALSE | QA93: FALSE | QB93: FALSE | QC93: FALSE | QD93: FALSE | QE93: FALSE | QF93: FALSE | QG93: FALSE | QH93: FALSE | QI93: FALSE | QJ93: FALSE | QK93: FALSE | QL93: FALSE | QM93: FALSE | QN93: FALSE | QO93: =$F$93=QO6 -> FALSE | QP93: FALSE | QQ93: FALSE | QR93: FALSE | QS93: FALSE | QT93: FALSE | QU93: FALSE | QV93: FALSE | QW93: FALSE | QX93: FALSE | QY93: FALSE | QZ93: FALSE | RA93: FALSE | RB93: FALSE | RC93: FALSE | RD93: FALSE | RE93: FALSE | RF93: FALSE | RG93: FALSE | RH93: FALSE | RI93: FALSE | RJ93: FALSE | RK93: FALSE | RL93: FALSE | RM93: FALSE | RN93: FALSE | RO93: FALSE | RP93: FALSE | RQ93: FALSE | RR93: FALSE | RS93: FALSE | RT93: FALSE | RU93: FALSE | RV93: FALSE | RW93: FALSE | RX93: FALSE | RY93: FALSE | RZ93: FALSE | SA93: FALSE | SB93: FALSE | SC93: FALSE | SD93: FALSE | SE93: FALSE | SF93: FALSE | SG93: FALSE | SH93: FALSE | SI93: FALSE | SJ93: FALSE | SK93: FALSE | SL93: FALSE | SM93: FALSE | SN93: FALSE | SO93: FALSE | SP93: FALSE | SQ93: FALSE | SR93: FALSE | SS93: FALSE | ST93: FALSE | SU93: FALSE | SV93: FALSE | SW93: FALSE | SX93: FALSE | SY93: FALSE | SZ93: FALSE | TA93: =$F$93=TA6 -> FALSE | TB93: FALSE | TC93: FALSE | TD93: FALSE | TE93: FALSE | TF93: FALSE | TG93: FALSE | TH93: FALSE | TI93: FALSE | TJ93: FALSE | TK93: FALSE | TL93: FALSE | TM93: FALSE | TN93: FALSE | TO93: FALSE | TP93: FALSE | TQ93: FALSE | TR93: FALSE | TS93: FALSE | TT93: FALSE | TU93: FALSE | TV93: FALSE | TW93: FALSE | TX93: FALSE | TY93: FALSE | TZ93: FALSE | UA93: FALSE | UB93: FALSE | UC93: FALSE | UD93: FALSE | UE93: FALSE | UF93: FALSE | UG93: FALSE | UH93: FALSE | UI93: FALSE | UJ93: FALSE | UK93: FALSE | UL93: FALSE | UM93: FALSE | UN93: FALSE | UO93: FALSE | UP93: FALSE | UQ93: FALSE | UR93: FALSE | US93: FALSE | UT93: FALSE | UU93: FALSE | UV93: FALSE | UW93: FALSE | UX93: FALSE | UY93: FALSE | UZ93: FALSE | VA93: FALSE | VB93: FALSE | VC93: FALSE | VD93: FALSE | VE93: FALSE | VF93: FALSE | VG93: FALSE | VH93: FALSE | VI93: FALSE | VJ93: FALSE | VK93: FALSE | VL93: FALSE | VM93: =$F$93=VM6 -> FALSE | VN93: FALSE | VO93: FALSE | VP93: FALSE | VQ93: FALSE | VR93: FALSE | VS93: FALSE | VT93: FALSE | VU93: FALSE | VV93: FALSE | VW93: FALSE | VX93: FALSE | VY93: FALSE | VZ93: FALSE | WA93: FALSE | WB93: FALSE | WC93: FALSE | WD93: FALSE | WE93: FALSE | WF93: FALSE | WG93: FALSE | WH93: FALSE | WI93: FALSE | WJ93: FALSE | WK93: FALSE | WL93: FALSE | WM93: FALSE | WN93: FALSE | WO93: FALSE | WP93: FALSE | WQ93: FALSE | WR93: FALSE | WS93: FALSE | WT93: FALSE | WU93: FALSE | WV93: FALSE | WW93: FALSE | WX93: FALSE | WY93: FALSE | WZ93: FALSE | XA93: FALSE | XB93: FALSE | XC93: FALSE | XD93: FALSE | XE93: FALSE | XF93: FALSE | XG93: FALSE | XH93: FALSE | XI93: FALSE | XJ93: FALSE | XK93: FALSE | XL93: FALSE | XM93: FALSE | XN93: FALSE | XO93: FALSE | XP93: FALSE | XQ93: FALSE | XR93: FALSE | XS93: FALSE | XT93: FALSE | XU93: FALSE | XV93: FALSE | XW93: FALSE | XX93: FALSE | XY93: =$F$93=XY6 -> FALSE | XZ93: FALSE | YA93: FALSE | YB93: FALSE | YC93: FALSE | YD93: FALSE | YE93: FALSE | YF93: FALSE | YG93: FALSE | YH93: FALSE | YI93: FALSE | YJ93: FALSE | YK93: FALSE | YL93: FALSE | YM93: FALSE | YN93: FALSE | YO93: FALSE | YP93: FALSE | YQ93: FALSE | YR93: FALSE | YS93: FALSE | YT93: FALSE | YU93: FALSE | YV93: FALSE | YW93: FALSE | YX93: FALSE | YY93: FALSE | YZ93: FALSE | ZA93: FALSE | ZB93: FALSE | ZC93: FALSE | ZD93: FALSE | ZE93: FALSE | ZF93: FALSE | ZG93: FALSE | ZH93: FALSE | ZI93: FALSE | ZJ93: FALSE | ZK93: FALSE | ZL93: FALSE | ZM93: FALSE | ZN93: FALSE | ZO93: FALSE | ZP93: FALSE | ZQ93: FALSE | ZR93: FALSE | ZS93: FALSE | ZT93: FALSE | ZU93: FALSE | ZV93: FALSE | ZW93: FALSE | ZX93: FALSE | ZY93: FALSE | ZZ93: FALSE | AAA93: FALSE | AAB93: FALSE | AAC93: FALSE | AAD93: FALSE | AAE93: FALSE | AAF93: FALSE | AAG93: FALSE | AAH93: FALSE | AAI93: FALSE | AAJ93: FALSE | AAK93: =$F$93=AAK6 -> FALSE | AAL93: FALSE | AAM93: FALSE | AAN93: FALSE | AAO93: FALSE | AAP93: FALSE | AAQ93: FALSE | AAR93: FALSE | AAS93: FALSE | AAT93: FALSE | AAU93: FALSE | AAV93: FALSE | AAW93: FALSE | AAX93: FALSE | AAY93: FALSE | AAZ93: FALSE | ABA93: FALSE | ABB93: FALSE | ABC93: FALSE | ABD93: FALSE | ABE93: FALSE | ABF93: FALSE | ABG93: FALSE | ABH93: FALSE | ABI93: FALSE | ABJ93: FALSE | ABK93: FALSE | ABL93: FALSE | ABM93: FALSE | ABN93: FALSE | ABO93: FALSE | ABP93: FALSE | ABQ93: FALSE | ABR93: FALSE | ABS93: FALSE | ABT93: FALSE | ABU93: FALSE | ABV93: FALSE | ABW93: FALSE | ABX93: FALSE | ABY93: FALSE | ABZ93: FALSE | ACA93: FALSE | ACB93: FALSE | ACC93: FALSE | ACD93: FALSE | ACE93: FALSE | ACF93: FALSE | ACG93: FALSE | ACH93: FALSE | ACI93: FALSE | ACJ93: FALSE | ACK93: FALSE | ACL93: FALSE | ACM93: FALSE | ACN93: FALSE | ACO93: FALSE | ACP93: FALSE | ACQ93: FALSE | ACR93: FALSE | ACS93: FALSE | ACT93: FALSE | ACU93: FALSE | ACV93: FALSE | ACW93: =$F$93=ACW6 -> FALSE | ACX93: FALSE | ACY93: FALSE | ACZ93: FALSE | ADA93: FALSE | ADB93: FALSE | ADC93: FALSE | ADD93: FALSE | ADE93: FALSE | ADF93: FALSE | ADG93: FALSE | ADH93: FALSE | ADI93: FALSE | ADJ93: FALSE | ADK93: FALSE | ADL93: FALSE | ADM93: FALSE | ADN93: FALSE | ADO93: FALSE | ADP93: FALSE | ADQ93: FALSE | ADR93: FALSE | ADS93: FALSE | ADT93: FALSE | ADU93: FALSE | ADV93: FALSE | ADW93: FALSE | ADX93: FALSE | ADY93: FALSE | ADZ93: FALSE | AEA93: FALSE | AEB93: FALSE | AEC93: FALSE | AED93: FALSE | AEE93: FALSE | AEF93: FALSE | AEG93: FALSE | AEH93: FALSE | AEI93: FALSE | AEJ93: FALSE | AEK93: FALSE | AEL93: FALSE | AEM93: FALSE | AEN93: FALSE | AEO93: FALSE | AEP93: FALSE | AEQ93: FALSE | AER93: FALSE | AES93: FALSE | AET93: FALSE | AEU93: FALSE | AEV93: FALSE | AEW93: FALSE | AEX93: FALSE | AEY93: FALSE | AEZ93: FALSE | AFA93: FALSE | AFB93: FALSE | AFC93: FALSE | AFD93: FALSE | AFE93: FALSE | AFF93: FALSE | AFG93: FALSE | AFH93: FALSE | AFI93: =$F$93=AFI6 -> FALSE | AFJ93: FALSE | AFK93: FALSE | AFL93: FALSE | AFM93: FALSE | AFN93: FALSE | AFO93: FALSE | AFP93: FALSE | AFQ93: FALSE | AFR93: FALSE | AFS93: FALSE | AFT93: FALSE | AFU93: FALSE | AFV93: FALSE | AFW93: FALSE | AFX93: FALSE | AFY93: FALSE | AFZ93: FALSE | AGA93: FALSE | AGB93: FALSE | AGC93: FALSE | AGD93: FALSE | AGE93: FALSE | AGF93: FALSE | AGG93: FALSE | AGH93: FALSE | AGI93: FALSE | AGJ93: FALSE | AGK93: FALSE
B94: Replacement without Inflation | E94: Currency | F94: ='Solar Carrying Charge'!F48 -> 0 | I94: =I93*$F$94 -> 0 | J94: =J93*$F$94 -> 0 | K94: 0 | L94: 0 | M94: 0 | N94: 0 | O94: 0 | P94: 0 | Q94: 0 | R94: 0 | S94: 0 | T94: 0 | U94: 0 | V94: 0 | W94: 0 | X94: 0 | Y94: 0 | Z94: 0 | AA94: 0 | AB94: 0 | AC94: 0 | AD94: 0 | AE94: 0 | AF94: 0 | AG94: 0 | AH94: 0 | AI94: 0 | AJ94: 0 | AK94: 0 | AL94: 0 | AM94: 0 | AN94: 0 | AO94: 0 | AP94: 0 | AQ94: 0 | AR94: 0 | AS94: 0 | AT94: 0 | AU94: 0 | AV94: 0 | AW94: 0 | AX94: 0 | AY94: 0 | AZ94: 0 | BA94: 0 | BB94: 0 | BC94: 0 | BD94: 0 | BE94: 0 | BF94: 0 | BG94: 0 | BH94: 0 | BI94: 0 | BJ94: 0 | BK94: 0 | BL94: 0 | BM94: 0 | BN94: 0 | BO94: 0 | BP94: 0 | BQ94: 0 | BR94: 0 | BS94: 0 | BT94: 0 | BU94: 0 | BV94: =BV93*$F$94 -> 0 | BW94: 0 | BX94: 0 | BY94: 0 | BZ94: 0 | CA94: 0 | CB94: 0 | CC94: 0 | CD94: 0 | CE94: 0 | CF94: 0 | CG94: 0 | CH94: 0 | CI94: 0 | CJ94: 0 | CK94: 0 | CL94: 0 | CM94: 0 | CN94: 0 | CO94: 0 | CP94: 0 | CQ94: 0 | CR94: 0 | CS94: 0 | CT94: 0 | CU94: 0 | CV94: 0 | CW94: 0 | CX94: 0 | CY94: 0 | CZ94: 0 | DA94: 0 | DB94: 0 | DC94: 0 | DD94: 0 | DE94: 0 | DF94: 0 | DG94: 0 | DH94: 0 | DI94: 0 | DJ94: 0 | DK94: 0 | DL94: 0 | DM94: 0 | DN94: 0 | DO94: 0 | DP94: 0 | DQ94: 0 | DR94: 0 | DS94: 0 | DT94: 0 | DU94: 0 | DV94: 0 | DW94: 0 | DX94: 0 | DY94: 0 | DZ94: 0 | EA94: 0 | EB94: 0 | EC94: 0 | ED94: 0 | EE94: 0 | EF94: 0 | EG94: 0 | EH94: =EH93*$F$94 -> 0 | EI94: 0 | EJ94: 0 | EK94: 0 | EL94: 0 | EM94: 0 | EN94: 0 | EO94: 0 | EP94: 0 | EQ94: 0 | ER94: 0 | ES94: 0 | ET94: 0 | EU94: 0 | EV94: 0 | EW94: 0 | EX94: 0 | EY94: 0 | EZ94: 0 | FA94: 0 | FB94: 0 | FC94: 0 | FD94: 0 | FE94: 0 | FF94: 0 | FG94: 0 | FH94: 0 | FI94: 0 | FJ94: 0 | FK94: 0 | FL94: 0 | FM94: 0 | FN94: 0 | FO94: 0 | FP94: 0 | FQ94: 0 | FR94: 0 | FS94: 0 | FT94: 0 | FU94: 0 | FV94: 0 | FW94: 0 | FX94: 0 | FY94: 0 | FZ94: 0 | GA94: 0 | GB94: 0 | GC94: 0 | GD94: 0 | GE94: 0 | GF94: 0 | GG94: 0 | GH94: 0 | GI94: 0 | GJ94: 0 | GK94: 0 | GL94: 0 | GM94: 0 | GN94: 0 | GO94: 0 | GP94: 0 | GQ94: 0 | GR94: 0 | GS94: 0 | GT94: =GT93*$F$94 -> 0 | GU94: 0 | GV94: 0 | GW94: 0 | GX94: 0 | GY94: 0 | GZ94: 0 | HA94: 0 | HB94: 0 | HC94: 0 | HD94: 0 | HE94: 0 | HF94: 0 | HG94: 0 | HH94: 0 | HI94: 0 | HJ94: 0 | HK94: 0 | HL94: 0 | HM94: 0 | HN94: 0 | HO94: 0 | HP94: 0 | HQ94: 0 | HR94: 0 | HS94: 0 | HT94: 0 | HU94: 0 | HV94: 0 | HW94: 0 | HX94: 0 | HY94: 0 | HZ94: 0 | IA94: 0 | IB94: 0 | IC94: 0 | ID94: 0 | IE94: 0 | IF94: 0 | IG94: 0 | IH94: 0 | II94: 0 | IJ94: 0 | IK94: 0 | IL94: 0 | IM94: 0 | IN94: 0 | IO94: 0 | IP94: 0 | IQ94: 0 | IR94: 0 | IS94: 0 | IT94: 0 | IU94: 0 | IV94: 0 | IW94: 0 | IX94: 0 | IY94: 0 | IZ94: 0 | JA94: 0 | JB94: 0 | JC94: 0 | JD94: 0 | JE94: 0 | JF94: =JF93*$F$94 -> 0 | JG94: 0 | JH94: 0 | JI94: 0 | JJ94: 0 | JK94: 0 | JL94: 0 | JM94: 0 | JN94: 0 | JO94: 0 | JP94: 0 | JQ94: 0 | JR94: 0 | JS94: 0 | JT94: 0 | JU94: 0 | JV94: 0 | JW94: 0 | JX94: 0 | JY94: 0 | JZ94: 0 | KA94: 0 | KB94: 0 | KC94: 0 | KD94: 0 | KE94: 0 | KF94: 0 | KG94: 0 | KH94: 0 | KI94: 0 | KJ94: 0 | KK94: 0 | KL94: 0 | KM94: 0 | KN94: 0 | KO94: 0 | KP94: 0 | KQ94: 0 | KR94: 0 | KS94: 0 | KT94: 0 | KU94: 0 | KV94: 0 | KW94: 0 | KX94: 0 | KY94: 0 | KZ94: 0 | LA94: 0 | LB94: 0 | LC94: 0 | LD94: 0 | LE94: 0 | LF94: 0 | LG94: 0 | LH94: 0 | LI94: 0 | LJ94: 0 | LK94: 0 | LL94: 0 | LM94: 0 | LN94: 0 | LO94: 0 | LP94: 0 | LQ94: 0 | LR94: =LR93*$F$94 -> 0 | LS94: 0 | LT94: 0 | LU94: 0 | LV94: 0 | LW94: 0 | LX94: 0 | LY94: 0 | LZ94: 0 | MA94: 0 | MB94: 0 | MC94: 0 | MD94: 0 | ME94: 0 | MF94: 0 | MG94: 0 | MH94: 0 | MI94: 0 | MJ94: 0 | MK94: 0 | ML94: 0 | MM94: 0 | MN94: 0 | MO94: 0 | MP94: 0 | MQ94: 0 | MR94: 0 | MS94: 0 | MT94: 0 | MU94: 0 | MV94: 0 | MW94: 0 | MX94: 0 | MY94: 0 | MZ94: 0 | NA94: 0 | NB94: 0 | NC94: 0 | ND94: 0 | NE94: 0 | NF94: 0 | NG94: 0 | NH94: 0 | NI94: 0 | NJ94: 0 | NK94: 0 | NL94: 0 | NM94: 0 | NN94: 0 | NO94: 0 | NP94: 0 | NQ94: 0 | NR94: 0 | NS94: 0 | NT94: 0 | NU94: 0 | NV94: 0 | NW94: 0 | NX94: 0 | NY94: 0 | NZ94: 0 | OA94: 0 | OB94: 0 | OC94: 0 | OD94: =OD93*$F$94 -> 0 | OE94: 0 | OF94: 0 | OG94: 0 | OH94: 0 | OI94: 0 | OJ94: 0 | OK94: 0 | OL94: 0 | OM94: 0 | ON94: 0 | OO94: 0 | OP94: 0 | OQ94: 0 | OR94: 0 | OS94: 0 | OT94: 0 | OU94: 0 | OV94: 0 | OW94: 0 | OX94: 0 | OY94: 0 | OZ94: 0 | PA94: 0 | PB94: 0 | PC94: 0 | PD94: 0 | PE94: 0 | PF94: 0 | PG94: 0 | PH94: 0 | PI94: 0 | PJ94: 0 | PK94: 0 | PL94: 0 | PM94: 0 | PN94: 0 | PO94: 0 | PP94: 0 | PQ94: 0 | PR94: 0 | PS94: 0 | PT94: 0 | PU94: 0 | PV94: 0 | PW94: 0 | PX94: 0 | PY94: 0 | PZ94: 0 | QA94: 0 | QB94: 0 | QC94: 0 | QD94: 0 | QE94: 0 | QF94: 0 | QG94: 0 | QH94: 0 | QI94: 0 | QJ94: 0 | QK94: 0 | QL94: 0 | QM94: 0 | QN94: 0 | QO94: 0 | QP94: =QP93*$F$94 -> 0 | QQ94: 0 | QR94: 0 | QS94: 0 | QT94: 0 | QU94: 0 | QV94: 0 | QW94: 0 | QX94: 0 | QY94: 0 | QZ94: 0 | RA94: 0 | RB94: 0 | RC94: 0 | RD94: 0 | RE94: 0 | RF94: 0 | RG94: 0 | RH94: 0 | RI94: 0 | RJ94: 0 | RK94: 0 | RL94: 0 | RM94: 0 | RN94: 0 | RO94: 0 | RP94: 0 | RQ94: 0 | RR94: 0 | RS94: 0 | RT94: 0 | RU94: 0 | RV94: 0 | RW94: 0 | RX94: 0 | RY94: 0 | RZ94: 0 | SA94: 0 | SB94: 0 | SC94: 0 | SD94: 0 | SE94: 0 | SF94: 0 | SG94: 0 | SH94: 0 | SI94: 0 | SJ94: 0 | SK94: 0 | SL94: 0 | SM94: 0 | SN94: 0 | SO94: 0 | SP94: 0 | SQ94: 0 | SR94: 0 | SS94: 0 | ST94: 0 | SU94: 0 | SV94: 0 | SW94: 0 | SX94: 0 | SY94: 0 | SZ94: 0 | TA94: 0 | TB94: =TB93*$F$94 -> 0 | TC94: 0 | TD94: 0 | TE94: 0 | TF94: 0 | TG94: 0 | TH94: 0 | TI94: 0 | TJ94: 0 | TK94: 0 | TL94: 0 | TM94: 0 | TN94: 0 | TO94: 0 | TP94: 0 | TQ94: 0 | TR94: 0 | TS94: 0 | TT94: 0 | TU94: 0 | TV94: 0 | TW94: 0 | TX94: 0 | TY94: 0 | TZ94: 0 | UA94: 0 | UB94: 0 | UC94: 0 | UD94: 0 | UE94: 0 | UF94: 0 | UG94: 0 | UH94: 0 | UI94: 0 | UJ94: 0 | UK94: 0 | UL94: 0 | UM94: 0 | UN94: 0 | UO94: 0 | UP94: 0 | UQ94: 0 | UR94: 0 | US94: 0 | UT94: 0 | UU94: 0 | UV94: 0 | UW94: 0 | UX94: 0 | UY94: 0 | UZ94: 0 | VA94: 0 | VB94: 0 | VC94: 0 | VD94: 0 | VE94: 0 | VF94: 0 | VG94: 0 | VH94: 0 | VI94: 0 | VJ94: 0 | VK94: 0 | VL94: 0 | VM94: 0 | VN94: =VN93*$F$94 -> 0 | VO94: 0 | VP94: 0 | VQ94: 0 | VR94: 0 | VS94: 0 | VT94: 0 | VU94: 0 | VV94: 0 | VW94: 0 | VX94: 0 | VY94: 0 | VZ94: 0 | WA94: 0 | WB94: 0 | WC94: 0 | WD94: 0 | WE94: 0 | WF94: 0 | WG94: 0 | WH94: 0 | WI94: 0 | WJ94: 0 | WK94: 0 | WL94: 0 | WM94: 0 | WN94: 0 | WO94: 0 | WP94: 0 | WQ94: 0 | WR94: 0 | WS94: 0 | WT94: 0 | WU94: 0 | WV94: 0 | WW94: 0 | WX94: 0 | WY94: 0 | WZ94: 0 | XA94: 0 | XB94: 0 | XC94: 0 | XD94: 0 | XE94: 0 | XF94: 0 | XG94: 0 | XH94: 0 | XI94: 0 | XJ94: 0 | XK94: 0 | XL94: 0 | XM94: 0 | XN94: 0 | XO94: 0 | XP94: 0 | XQ94: 0 | XR94: 0 | XS94: 0 | XT94: 0 | XU94: 0 | XV94: 0 | XW94: 0 | XX94: 0 | XY94: 0 | XZ94: =XZ93*$F$94 -> 0 | YA94: 0 | YB94: 0 | YC94: 0 | YD94: 0 | YE94: 0 | YF94: 0 | YG94: 0 | YH94: 0 | YI94: 0 | YJ94: 0 | YK94: 0 | YL94: 0 | YM94: 0 | YN94: 0 | YO94: 0 | YP94: 0 | YQ94: 0 | YR94: 0 | YS94: 0 | YT94: 0 | YU94: 0 | YV94: 0 | YW94: 0 | YX94: 0 | YY94: 0 | YZ94: 0 | ZA94: 0 | ZB94: 0 | ZC94: 0 | ZD94: 0 | ZE94: 0 | ZF94: 0 | ZG94: 0 | ZH94: 0 | ZI94: 0 | ZJ94: 0 | ZK94: 0 | ZL94: 0 | ZM94: 0 | ZN94: 0 | ZO94: 0 | ZP94: 0 | ZQ94: 0 | ZR94: 0 | ZS94: 0 | ZT94: 0 | ZU94: 0 | ZV94: 0 | ZW94: 0 | ZX94: 0 | ZY94: 0 | ZZ94: 0 | AAA94: 0 | AAB94: 0 | AAC94: 0 | AAD94: 0 | AAE94: 0 | AAF94: 0 | AAG94: 0 | AAH94: 0 | AAI94: 0 | AAJ94: 0 | AAK94: 0 | AAL94: =AAL93*$F$94 -> 0 | AAM94: 0 | AAN94: 0 | AAO94: 0 | AAP94: 0 | AAQ94: 0 | AAR94: 0 | AAS94: 0 | AAT94: 0 | AAU94: 0 | AAV94: 0 | AAW94: 0 | AAX94: 0 | AAY94: 0 | AAZ94: 0 | ABA94: 0 | ABB94: 0 | ABC94: 0 | ABD94: 0 | ABE94: 0 | ABF94: 0 | ABG94: 0 | ABH94: 0 | ABI94: 0 | ABJ94: 0 | ABK94: 0 | ABL94: 0 | ABM94: 0 | ABN94: 0 | ABO94: 0 | ABP94: 0 | ABQ94: 0 | ABR94: 0 | ABS94: 0 | ABT94: 0 | ABU94: 0 | ABV94: 0 | ABW94: 0 | ABX94: 0 | ABY94: 0 | ABZ94: 0 | ACA94: 0 | ACB94: 0 | ACC94: 0 | ACD94: 0 | ACE94: 0 | ACF94: 0 | ACG94: 0 | ACH94: 0 | ACI94: 0 | ACJ94: 0 | ACK94: 0 | ACL94: 0 | ACM94: 0 | ACN94: 0 | ACO94: 0 | ACP94: 0 | ACQ94: 0 | ACR94: 0 | ACS94: 0 | ACT94: 0 | ACU94: 0 | ACV94: 0 | ACW94: 0 | ACX94: =ACX93*$F$94 -> 0 | ACY94: 0 | ACZ94: 0 | ADA94: 0 | ADB94: 0 | ADC94: 0 | ADD94: 0 | ADE94: 0 | ADF94: 0 | ADG94: 0 | ADH94: 0 | ADI94: 0 | ADJ94: 0 | ADK94: 0 | ADL94: 0 | ADM94: 0 | ADN94: 0 | ADO94: 0 | ADP94: 0 | ADQ94: 0 | ADR94: 0 | ADS94: 0 | ADT94: 0 | ADU94: 0 | ADV94: 0 | ADW94: 0 | ADX94: 0 | ADY94: 0 | ADZ94: 0 | AEA94: 0 | AEB94: 0 | AEC94: 0 | AED94: 0 | AEE94: 0 | AEF94: 0 | AEG94: 0 | AEH94: 0 | AEI94: 0 | AEJ94: 0 | AEK94: 0 | AEL94: 0 | AEM94: 0 | AEN94: 0 | AEO94: 0 | AEP94: 0 | AEQ94: 0 | AER94: 0 | AES94: 0 | AET94: 0 | AEU94: 0 | AEV94: 0 | AEW94: 0 | AEX94: 0 | AEY94: 0 | AEZ94: 0 | AFA94: 0 | AFB94: 0 | AFC94: 0 | AFD94: 0 | AFE94: 0 | AFF94: 0 | AFG94: 0 | AFH94: 0 | AFI94: 0 | AFJ94: =AFJ93*$F$94 -> 0 | AFK94: 0 | AFL94: 0 | AFM94: 0 | AFN94: 0 | AFO94: 0 | AFP94: 0 | AFQ94: 0 | AFR94: 0 | AFS94: 0 | AFT94: 0 | AFU94: 0 | AFV94: 0 | AFW94: 0 | AFX94: 0 | AFY94: 0 | AFZ94: 0 | AGA94: 0 | AGB94: 0 | AGC94: 0 | AGD94: 0 | AGE94: 0 | AGF94: 0 | AGG94: 0 | AGH94: 0 | AGI94: 0 | AGJ94: 0 | AGK94: 0
B95: Replacement with Inflation | E95: Currency | F95: =SUM(I95:AGK95) -> 0 | I95: =I94*I75 -> 0 | J95: =J94*J75 -> 0 | K95: 0 | L95: 0 | M95: 0 | N95: 0 | O95: 0 | P95: 0 | Q95: 0 | R95: 0 | S95: 0 | T95: 0 | U95: 0 | V95: 0 | W95: 0 | X95: 0 | Y95: 0 | Z95: 0 | AA95: 0 | AB95: 0 | AC95: 0 | AD95: 0 | AE95: 0 | AF95: 0 | AG95: 0 | AH95: 0 | AI95: 0 | AJ95: 0 | AK95: 0 | AL95: 0 | AM95: 0 | AN95: 0 | AO95: 0 | AP95: 0 | AQ95: 0 | AR95: 0 | AS95: 0 | AT95: 0 | AU95: 0 | AV95: 0 | AW95: 0 | AX95: 0 | AY95: 0 | AZ95: 0 | BA95: 0 | BB95: 0 | BC95: 0 | BD95: 0 | BE95: 0 | BF95: 0 | BG95: 0 | BH95: 0 | BI95: 0 | BJ95: 0 | BK95: 0 | BL95: 0 | BM95: 0 | BN95: 0 | BO95: 0 | BP95: 0 | BQ95: 0 | BR95: 0 | BS95: 0 | BT95: 0 | BU95: 0 | BV95: =BV94*BV75 -> 0 | BW95: 0 | BX95: 0 | BY95: 0 | BZ95: 0 | CA95: 0 | CB95: 0 | CC95: 0 | CD95: 0 | CE95: 0 | CF95: 0 | CG95: 0 | CH95: 0 | CI95: 0 | CJ95: 0 | CK95: 0 | CL95: 0 | CM95: 0 | CN95: 0 | CO95: 0 | CP95: 0 | CQ95: 0 | CR95: 0 | CS95: 0 | CT95: 0 | CU95: 0 | CV95: 0 | CW95: 0 | CX95: 0 | CY95: 0 | CZ95: 0 | DA95: 0 | DB95: 0 | DC95: 0 | DD95: 0 | DE95: 0 | DF95: 0 | DG95: 0 | DH95: 0 | DI95: 0 | DJ95: 0 | DK95: 0 | DL95: 0 | DM95: 0 | DN95: 0 | DO95: 0 | DP95: 0 | DQ95: 0 | DR95: 0 | DS95: 0 | DT95: 0 | DU95: 0 | DV95: 0 | DW95: 0 | DX95: 0 | DY95: 0 | DZ95: 0 | EA95: 0 | EB95: 0 | EC95: 0 | ED95: 0 | EE95: 0 | EF95: 0 | EG95: 0 | EH95: =EH94*EH75 -> 0 | EI95: 0 | EJ95: 0 | EK95: 0 | EL95: 0 | EM95: 0 | EN95: 0 | EO95: 0 | EP95: 0 | EQ95: 0 | ER95: 0 | ES95: 0 | ET95: 0 | EU95: 0 | EV95: 0 | EW95: 0 | EX95: 0 | EY95: 0 | EZ95: 0 | FA95: 0 | FB95: 0 | FC95: 0 | FD95: 0 | FE95: 0 | FF95: 0 | FG95: 0 | FH95: 0 | FI95: 0 | FJ95: 0 | FK95: 0 | FL95: 0 | FM95: 0 | FN95: 0 | FO95: 0 | FP95: 0 | FQ95: 0 | FR95: 0 | FS95: 0 | FT95: 0 | FU95: 0 | FV95: 0 | FW95: 0 | FX95: 0 | FY95: 0 | FZ95: 0 | GA95: 0 | GB95: 0 | GC95: 0 | GD95: 0 | GE95: 0 | GF95: 0 | GG95: 0 | GH95: 0 | GI95: 0 | GJ95: 0 | GK95: 0 | GL95: 0 | GM95: 0 | GN95: 0 | GO95: 0 | GP95: 0 | GQ95: 0 | GR95: 0 | GS95: 0 | GT95: =GT94*GT75 -> 0 | GU95: 0 | GV95: 0 | GW95: 0 | GX95: 0 | GY95: 0 | GZ95: 0 | HA95: 0 | HB95: 0 | HC95: 0 | HD95: 0 | HE95: 0 | HF95: 0 | HG95: 0 | HH95: 0 | HI95: 0 | HJ95: 0 | HK95: 0 | HL95: 0 | HM95: 0 | HN95: 0 | HO95: 0 | HP95: 0 | HQ95: 0 | HR95: 0 | HS95: 0 | HT95: 0 | HU95: 0 | HV95: 0 | HW95: 0 | HX95: 0 | HY95: 0 | HZ95: 0 | IA95: 0 | IB95: 0 | IC95: 0 | ID95: 0 | IE95: 0 | IF95: 0 | IG95: 0 | IH95: 0 | II95: 0 | IJ95: 0 | IK95: 0 | IL95: 0 | IM95: 0 | IN95: 0 | IO95: 0 | IP95: 0 | IQ95: 0 | IR95: 0 | IS95: 0 | IT95: 0 | IU95: 0 | IV95: 0 | IW95: 0 | IX95: 0 | IY95: 0 | IZ95: 0 | JA95: 0 | JB95: 0 | JC95: 0 | JD95: 0 | JE95: 0 | JF95: =JF94*JF75 -> 0 | JG95: 0 | JH95: 0 | JI95: 0 | JJ95: 0 | JK95: 0 | JL95: 0 | JM95: 0 | JN95: 0 | JO95: 0 | JP95: 0 | JQ95: 0 | JR95: 0 | JS95: 0 | JT95: 0 | JU95: 0 | JV95: 0 | JW95: 0 | JX95: 0 | JY95: 0 | JZ95: 0 | KA95: 0 | KB95: 0 | KC95: 0 | KD95: 0 | KE95: 0 | KF95: 0 | KG95: 0 | KH95: 0 | KI95: 0 | KJ95: 0 | KK95: 0 | KL95: 0 | KM95: 0 | KN95: 0 | KO95: 0 | KP95: 0 | KQ95: 0 | KR95: 0 | KS95: 0 | KT95: 0 | KU95: 0 | KV95: 0 | KW95: 0 | KX95: 0 | KY95: 0 | KZ95: 0 | LA95: 0 | LB95: 0 | LC95: 0 | LD95: 0 | LE95: 0 | LF95: 0 | LG95: 0 | LH95: 0 | LI95: 0 | LJ95: 0 | LK95: 0 | LL95: 0 | LM95: 0 | LN95: 0 | LO95: 0 | LP95: 0 | LQ95: 0 | LR95: =LR94*LR75 -> 0 | LS95: 0 | LT95: 0 | LU95: 0 | LV95: 0 | LW95: 0 | LX95: 0 | LY95: 0 | LZ95: 0 | MA95: 0 | MB95: 0 | MC95: 0 | MD95: 0 | ME95: 0 | MF95: 0 | MG95: 0 | MH95: 0 | MI95: 0 | MJ95: 0 | MK95: 0 | ML95: 0 | MM95: 0 | MN95: 0 | MO95: 0 | MP95: 0 | MQ95: 0 | MR95: 0 | MS95: 0 | MT95: 0 | MU95: 0 | MV95: 0 | MW95: 0 | MX95: 0 | MY95: 0 | MZ95: 0 | NA95: 0 | NB95: 0 | NC95: 0 | ND95: 0 | NE95: 0 | NF95: 0 | NG95: 0 | NH95: 0 | NI95: 0 | NJ95: 0 | NK95: 0 | NL95: 0 | NM95: 0 | NN95: 0 | NO95: 0 | NP95: 0 | NQ95: 0 | NR95: 0 | NS95: 0 | NT95: 0 | NU95: 0 | NV95: 0 | NW95: 0 | NX95: 0 | NY95: 0 | NZ95: 0 | OA95: 0 | OB95: 0 | OC95: 0 | OD95: =OD94*OD75 -> 0 | OE95: 0 | OF95: 0 | OG95: 0 | OH95: 0 | OI95: 0 | OJ95: 0 | OK95: 0 | OL95: 0 | OM95: 0 | ON95: 0 | OO95: 0 | OP95: 0 | OQ95: 0 | OR95: 0 | OS95: 0 | OT95: 0 | OU95: 0 | OV95: 0 | OW95: 0 | OX95: 0 | OY95: 0 | OZ95: 0 | PA95: 0 | PB95: 0 | PC95: 0 | PD95: 0 | PE95: 0 | PF95: 0 | PG95: 0 | PH95: 0 | PI95: 0 | PJ95: 0 | PK95: 0 | PL95: 0 | PM95: 0 | PN95: 0 | PO95: 0 | PP95: 0 | PQ95: 0 | PR95: 0 | PS95: 0 | PT95: 0 | PU95: 0 | PV95: 0 | PW95: 0 | PX95: 0 | PY95: 0 | PZ95: 0 | QA95: 0 | QB95: 0 | QC95: 0 | QD95: 0 | QE95: 0 | QF95: 0 | QG95: 0 | QH95: 0 | QI95: 0 | QJ95: 0 | QK95: 0 | QL95: 0 | QM95: 0 | QN95: 0 | QO95: 0 | QP95: =QP94*QP75 -> 0 | QQ95: 0 | QR95: 0 | QS95: 0 | QT95: 0 | QU95: 0 | QV95: 0 | QW95: 0 | QX95: 0 | QY95: 0 | QZ95: 0 | RA95: 0 | RB95: 0 | RC95: 0 | RD95: 0 | RE95: 0 | RF95: 0 | RG95: 0 | RH95: 0 | RI95: 0 | RJ95: 0 | RK95: 0 | RL95: 0 | RM95: 0 | RN95: 0 | RO95: 0 | RP95: 0 | RQ95: 0 | RR95: 0 | RS95: 0 | RT95: 0 | RU95: 0 | RV95: 0 | RW95: 0 | RX95: 0 | RY95: 0 | RZ95: 0 | SA95: 0 | SB95: 0 | SC95: 0 | SD95: 0 | SE95: 0 | SF95: 0 | SG95: 0 | SH95: 0 | SI95: 0 | SJ95: 0 | SK95: 0 | SL95: 0 | SM95: 0 | SN95: 0 | SO95: 0 | SP95: 0 | SQ95: 0 | SR95: 0 | SS95: 0 | ST95: 0 | SU95: 0 | SV95: 0 | SW95: 0 | SX95: 0 | SY95: 0 | SZ95: 0 | TA95: 0 | TB95: =TB94*TB75 -> 0 | TC95: 0 | TD95: 0 | TE95: 0 | TF95: 0 | TG95: 0 | TH95: 0 | TI95: 0 | TJ95: 0 | TK95: 0 | TL95: 0 | TM95: 0 | TN95: 0 | TO95: 0 | TP95: 0 | TQ95: 0 | TR95: 0 | TS95: 0 | TT95: 0 | TU95: 0 | TV95: 0 | TW95: 0 | TX95: 0 | TY95: 0 | TZ95: 0 | UA95: 0 | UB95: 0 | UC95: 0 | UD95: 0 | UE95: 0 | UF95: 0 | UG95: 0 | UH95: 0 | UI95: 0 | UJ95: 0 | UK95: 0 | UL95: 0 | UM95: 0 | UN95: 0 | UO95: 0 | UP95: 0 | UQ95: 0 | UR95: 0 | US95: 0 | UT95: 0 | UU95: 0 | UV95: 0 | UW95: 0 | UX95: 0 | UY95: 0 | UZ95: 0 | VA95: 0 | VB95: 0 | VC95: 0 | VD95: 0 | VE95: 0 | VF95: 0 | VG95: 0 | VH95: 0 | VI95: 0 | VJ95: 0 | VK95: 0 | VL95: 0 | VM95: 0 | VN95: =VN94*VN75 -> 0 | VO95: 0 | VP95: 0 | VQ95: 0 | VR95: 0 | VS95: 0 | VT95: 0 | VU95: 0 | VV95: 0 | VW95: 0 | VX95: 0 | VY95: 0 | VZ95: 0 | WA95: 0 | WB95: 0 | WC95: 0 | WD95: 0 | WE95: 0 | WF95: 0 | WG95: 0 | WH95: 0 | WI95: 0 | WJ95: 0 | WK95: 0 | WL95: 0 | WM95: 0 | WN95: 0 | WO95: 0 | WP95: 0 | WQ95: 0 | WR95: 0 | WS95: 0 | WT95: 0 | WU95: 0 | WV95: 0 | WW95: 0 | WX95: 0 | WY95: 0 | WZ95: 0 | XA95: 0 | XB95: 0 | XC95: 0 | XD95: 0 | XE95: 0 | XF95: 0 | XG95: 0 | XH95: 0 | XI95: 0 | XJ95: 0 | XK95: 0 | XL95: 0 | XM95: 0 | XN95: 0 | XO95: 0 | XP95: 0 | XQ95: 0 | XR95: 0 | XS95: 0 | XT95: 0 | XU95: 0 | XV95: 0 | XW95: 0 | XX95: 0 | XY95: 0 | XZ95: =XZ94*XZ75 -> 0 | YA95: 0 | YB95: 0 | YC95: 0 | YD95: 0 | YE95: 0 | YF95: 0 | YG95: 0 | YH95: 0 | YI95: 0 | YJ95: 0 | YK95: 0 | YL95: 0 | YM95: 0 | YN95: 0 | YO95: 0 | YP95: 0 | YQ95: 0 | YR95: 0 | YS95: 0 | YT95: 0 | YU95: 0 | YV95: 0 | YW95: 0 | YX95: 0 | YY95: 0 | YZ95: 0 | ZA95: 0 | ZB95: 0 | ZC95: 0 | ZD95: 0 | ZE95: 0 | ZF95: 0 | ZG95: 0 | ZH95: 0 | ZI95: 0 | ZJ95: 0 | ZK95: 0 | ZL95: 0 | ZM95: 0 | ZN95: 0 | ZO95: 0 | ZP95: 0 | ZQ95: 0 | ZR95: 0 | ZS95: 0 | ZT95: 0 | ZU95: 0 | ZV95: 0 | ZW95: 0 | ZX95: 0 | ZY95: 0 | ZZ95: 0 | AAA95: 0 | AAB95: 0 | AAC95: 0 | AAD95: 0 | AAE95: 0 | AAF95: 0 | AAG95: 0 | AAH95: 0 | AAI95: 0 | AAJ95: 0 | AAK95: 0 | AAL95: =AAL94*AAL75 -> 0 | AAM95: 0 | AAN95: 0 | AAO95: 0 | AAP95: 0 | AAQ95: 0 | AAR95: 0 | AAS95: 0 | AAT95: 0 | AAU95: 0 | AAV95: 0 | AAW95: 0 | AAX95: 0 | AAY95: 0 | AAZ95: 0 | ABA95: 0 | ABB95: 0 | ABC95: 0 | ABD95: 0 | ABE95: 0 | ABF95: 0 | ABG95: 0 | ABH95: 0 | ABI95: 0 | ABJ95: 0 | ABK95: 0 | ABL95: 0 | ABM95: 0 | ABN95: 0 | ABO95: 0 | ABP95: 0 | ABQ95: 0 | ABR95: 0 | ABS95: 0 | ABT95: 0 | ABU95: 0 | ABV95: 0 | ABW95: 0 | ABX95: 0 | ABY95: 0 | ABZ95: 0 | ACA95: 0 | ACB95: 0 | ACC95: 0 | ACD95: 0 | ACE95: 0 | ACF95: 0 | ACG95: 0 | ACH95: 0 | ACI95: 0 | ACJ95: 0 | ACK95: 0 | ACL95: 0 | ACM95: 0 | ACN95: 0 | ACO95: 0 | ACP95: 0 | ACQ95: 0 | ACR95: 0 | ACS95: 0 | ACT95: 0 | ACU95: 0 | ACV95: 0 | ACW95: 0 | ACX95: =ACX94*ACX75 -> 0 | ACY95: 0 | ACZ95: 0 | ADA95: 0 | ADB95: 0 | ADC95: 0 | ADD95: 0 | ADE95: 0 | ADF95: 0 | ADG95: 0 | ADH95: 0 | ADI95: 0 | ADJ95: 0 | ADK95: 0 | ADL95: 0 | ADM95: 0 | ADN95: 0 | ADO95: 0 | ADP95: 0 | ADQ95: 0 | ADR95: 0 | ADS95: 0 | ADT95: 0 | ADU95: 0 | ADV95: 0 | ADW95: 0 | ADX95: 0 | ADY95: 0 | ADZ95: 0 | AEA95: 0 | AEB95: 0 | AEC95: 0 | AED95: 0 | AEE95: 0 | AEF95: 0 | AEG95: 0 | AEH95: 0 | AEI95: 0 | AEJ95: 0 | AEK95: 0 | AEL95: 0 | AEM95: 0 | AEN95: 0 | AEO95: 0 | AEP95: 0 | AEQ95: 0 | AER95: 0 | AES95: 0 | AET95: 0 | AEU95: 0 | AEV95: 0 | AEW95: 0 | AEX95: 0 | AEY95: 0 | AEZ95: 0 | AFA95: 0 | AFB95: 0 | AFC95: 0 | AFD95: 0 | AFE95: 0 | AFF95: 0 | AFG95: 0 | AFH95: 0 | AFI95: 0 | AFJ95: =AFJ94*AFJ75 -> 0 | AFK95: 0 | AFL95: 0 | AFM95: 0 | AFN95: 0 | AFO95: 0 | AFP95: 0 | AFQ95: 0 | AFR95: 0 | AFS95: 0 | AFT95: 0 | AFU95: 0 | AFV95: 0 | AFW95: 0 | AFX95: 0 | AFY95: 0 | AFZ95: 0 | AGA95: 0 | AGB95: 0 | AGC95: 0 | AGD95: 0 | AGE95: 0 | AGF95: 0 | AGG95: 0 | AGH95: 0 | AGI95: 0 | AGJ95: 0 | AGK95: 0
B96: Decomissioning Date | E96: Switch | F96: =EDATE(F45,-F5) -> 2025-03-01 | I96: =$F$96=I6 -> FALSE | J96: FALSE | K96: FALSE | L96: FALSE | M96: FALSE | N96: FALSE | O96: FALSE | P96: FALSE | Q96: FALSE | R96: FALSE | S96: FALSE | T96: FALSE | U96: FALSE | V96: FALSE | W96: FALSE | X96: FALSE | Y96: FALSE | Z96: FALSE | AA96: FALSE | AB96: FALSE | AC96: FALSE | AD96: FALSE | AE96: FALSE | AF96: FALSE | AG96: FALSE | AH96: TRUE | AI96: FALSE | AJ96: FALSE | AK96: FALSE | AL96: FALSE | AM96: FALSE | AN96: FALSE | AO96: FALSE | AP96: FALSE | AQ96: FALSE | AR96: FALSE | AS96: FALSE | AT96: FALSE | AU96: FALSE | AV96: FALSE | AW96: FALSE | AX96: FALSE | AY96: FALSE | AZ96: FALSE | BA96: FALSE | BB96: FALSE | BC96: FALSE | BD96: FALSE | BE96: FALSE | BF96: FALSE | BG96: FALSE | BH96: FALSE | BI96: FALSE | BJ96: FALSE | BK96: FALSE | BL96: FALSE | BM96: FALSE | BN96: FALSE | BO96: FALSE | BP96: FALSE | BQ96: FALSE | BR96: FALSE | BS96: FALSE | BT96: FALSE | BU96: =$F$96=BU6 -> FALSE | BV96: FALSE | BW96: FALSE | BX96: FALSE | BY96: FALSE | BZ96: FALSE | CA96: FALSE | CB96: FALSE | CC96: FALSE | CD96: FALSE | CE96: FALSE | CF96: FALSE | CG96: FALSE | CH96: FALSE | CI96: FALSE | CJ96: FALSE | CK96: FALSE | CL96: FALSE | CM96: FALSE | CN96: FALSE | CO96: FALSE | CP96: FALSE | CQ96: FALSE | CR96: FALSE | CS96: FALSE | CT96: FALSE | CU96: FALSE | CV96: FALSE | CW96: FALSE | CX96: FALSE | CY96: FALSE | CZ96: FALSE | DA96: FALSE | DB96: FALSE | DC96: FALSE | DD96: FALSE | DE96: FALSE | DF96: FALSE | DG96: FALSE | DH96: FALSE | DI96: FALSE | DJ96: FALSE | DK96: FALSE | DL96: FALSE | DM96: FALSE | DN96: FALSE | DO96: FALSE | DP96: FALSE | DQ96: FALSE | DR96: FALSE | DS96: FALSE | DT96: FALSE | DU96: FALSE | DV96: FALSE | DW96: FALSE | DX96: FALSE | DY96: FALSE | DZ96: FALSE | EA96: FALSE | EB96: FALSE | EC96: FALSE | ED96: FALSE | EE96: FALSE | EF96: FALSE | EG96: =$F$96=EG6 -> FALSE | EH96: FALSE | EI96: FALSE | EJ96: FALSE | EK96: FALSE | EL96: FALSE | EM96: FALSE | EN96: FALSE | EO96: FALSE | EP96: FALSE | EQ96: FALSE | ER96: FALSE | ES96: FALSE | ET96: FALSE | EU96: FALSE | EV96: FALSE | EW96: FALSE | EX96: FALSE | EY96: FALSE | EZ96: FALSE | FA96: FALSE | FB96: FALSE | FC96: FALSE | FD96: FALSE | FE96: FALSE | FF96: FALSE | FG96: FALSE | FH96: FALSE | FI96: FALSE | FJ96: FALSE | FK96: FALSE | FL96: FALSE | FM96: FALSE | FN96: FALSE | FO96: FALSE | FP96: FALSE | FQ96: FALSE | FR96: FALSE | FS96: FALSE | FT96: FALSE | FU96: FALSE | FV96: FALSE | FW96: FALSE | FX96: FALSE | FY96: FALSE | FZ96: FALSE | GA96: FALSE | GB96: FALSE | GC96: FALSE | GD96: FALSE | GE96: FALSE | GF96: FALSE | GG96: FALSE | GH96: FALSE | GI96: FALSE | GJ96: FALSE | GK96: FALSE | GL96: FALSE | GM96: FALSE | GN96: FALSE | GO96: FALSE | GP96: FALSE | GQ96: FALSE | GR96: FALSE | GS96: =$F$96=GS6 -> FALSE | GT96: FALSE | GU96: FALSE | GV96: FALSE | GW96: FALSE | GX96: FALSE | GY96: FALSE | GZ96: FALSE | HA96: FALSE | HB96: FALSE | HC96: FALSE | HD96: FALSE | HE96: FALSE | HF96: FALSE | HG96: FALSE | HH96: FALSE | HI96: FALSE | HJ96: FALSE | HK96: FALSE | HL96: FALSE | HM96: FALSE | HN96: FALSE | HO96: FALSE | HP96: FALSE | HQ96: FALSE | HR96: FALSE | HS96: FALSE | HT96: FALSE | HU96: FALSE | HV96: FALSE | HW96: FALSE | HX96: FALSE | HY96: FALSE | HZ96: FALSE | IA96: FALSE | IB96: FALSE | IC96: FALSE | ID96: FALSE | IE96: FALSE | IF96: FALSE | IG96: FALSE | IH96: FALSE | II96: FALSE | IJ96: FALSE | IK96: FALSE | IL96: FALSE | IM96: FALSE | IN96: FALSE | IO96: FALSE | IP96: FALSE | IQ96: FALSE | IR96: FALSE | IS96: FALSE | IT96: FALSE | IU96: FALSE | IV96: FALSE | IW96: FALSE | IX96: FALSE | IY96: FALSE | IZ96: FALSE | JA96: FALSE | JB96: FALSE | JC96: FALSE | JD96: FALSE | JE96: =$F$96=JE6 -> FALSE | JF96: FALSE | JG96: FALSE | JH96: FALSE | JI96: FALSE | JJ96: FALSE | JK96: FALSE | JL96: FALSE | JM96: FALSE | JN96: FALSE | JO96: FALSE | JP96: FALSE | JQ96: FALSE | JR96: FALSE | JS96: FALSE | JT96: FALSE | JU96: FALSE | JV96: FALSE | JW96: FALSE | JX96: FALSE | JY96: FALSE | JZ96: FALSE | KA96: FALSE | KB96: FALSE | KC96: FALSE | KD96: FALSE | KE96: FALSE | KF96: FALSE | KG96: FALSE | KH96: FALSE | KI96: FALSE | KJ96: FALSE | KK96: FALSE | KL96: FALSE | KM96: FALSE | KN96: FALSE | KO96: FALSE | KP96: FALSE | KQ96: FALSE | KR96: FALSE | KS96: FALSE | KT96: FALSE | KU96: FALSE | KV96: FALSE | KW96: FALSE | KX96: FALSE | KY96: FALSE | KZ96: FALSE | LA96: FALSE | LB96: FALSE | LC96: FALSE | LD96: FALSE | LE96: FALSE | LF96: FALSE | LG96: FALSE | LH96: FALSE | LI96: FALSE | LJ96: FALSE | LK96: FALSE | LL96: FALSE | LM96: FALSE | LN96: FALSE | LO96: FALSE | LP96: FALSE | LQ96: =$F$96=LQ6 -> FALSE | LR96: FALSE | LS96: FALSE | LT96: FALSE | LU96: FALSE | LV96: FALSE | LW96: FALSE | LX96: FALSE | LY96: FALSE | LZ96: FALSE | MA96: FALSE | MB96: FALSE | MC96: FALSE | MD96: FALSE | ME96: FALSE | MF96: FALSE | MG96: FALSE | MH96: FALSE | MI96: FALSE | MJ96: FALSE | MK96: FALSE | ML96: FALSE | MM96: FALSE | MN96: FALSE | MO96: FALSE | MP96: FALSE | MQ96: FALSE | MR96: FALSE | MS96: FALSE | MT96: FALSE | MU96: FALSE | MV96: FALSE | MW96: FALSE | MX96: FALSE | MY96: FALSE | MZ96: FALSE | NA96: FALSE | NB96: FALSE | NC96: FALSE | ND96: FALSE | NE96: FALSE | NF96: FALSE | NG96: FALSE | NH96: FALSE | NI96: FALSE | NJ96: FALSE | NK96: FALSE | NL96: FALSE | NM96: FALSE | NN96: FALSE | NO96: FALSE | NP96: FALSE | NQ96: FALSE | NR96: FALSE | NS96: FALSE | NT96: FALSE | NU96: FALSE | NV96: FALSE | NW96: FALSE | NX96: FALSE | NY96: FALSE | NZ96: FALSE | OA96: FALSE | OB96: FALSE | OC96: =$F$96=OC6 -> FALSE | OD96: FALSE | OE96: FALSE | OF96: FALSE | OG96: FALSE | OH96: FALSE | OI96: FALSE | OJ96: FALSE | OK96: FALSE | OL96: FALSE | OM96: FALSE | ON96: FALSE | OO96: FALSE | OP96: FALSE | OQ96: FALSE | OR96: FALSE | OS96: FALSE | OT96: FALSE | OU96: FALSE | OV96: FALSE | OW96: FALSE | OX96: FALSE | OY96: FALSE | OZ96: FALSE | PA96: FALSE | PB96: FALSE | PC96: FALSE | PD96: FALSE | PE96: FALSE | PF96: FALSE | PG96: FALSE | PH96: FALSE | PI96: FALSE | PJ96: FALSE | PK96: FALSE | PL96: FALSE | PM96: FALSE | PN96: FALSE | PO96: FALSE | PP96: FALSE | PQ96: FALSE | PR96: FALSE | PS96: FALSE | PT96: FALSE | PU96: FALSE | PV96: FALSE | PW96: FALSE | PX96: FALSE | PY96: FALSE | PZ96: FALSE | QA96: FALSE | QB96: FALSE | QC96: FALSE | QD96: FALSE | QE96: FALSE | QF96: FALSE | QG96: FALSE | QH96: FALSE | QI96: FALSE | QJ96: FALSE | QK96: FALSE | QL96: FALSE | QM96: FALSE | QN96: FALSE | QO96: =$F$96=QO6 -> FALSE | QP96: FALSE | QQ96: FALSE | QR96: FALSE | QS96: FALSE | QT96: FALSE | QU96: FALSE | QV96: FALSE | QW96: FALSE | QX96: FALSE | QY96: FALSE | QZ96: FALSE | RA96: FALSE | RB96: FALSE | RC96: FALSE | RD96: FALSE | RE96: FALSE | RF96: FALSE | RG96: FALSE | RH96: FALSE | RI96: FALSE | RJ96: FALSE | RK96: FALSE | RL96: FALSE | RM96: FALSE | RN96: FALSE | RO96: FALSE | RP96: FALSE | RQ96: FALSE | RR96: FALSE | RS96: FALSE | RT96: FALSE | RU96: FALSE | RV96: FALSE | RW96: FALSE | RX96: FALSE | RY96: FALSE | RZ96: FALSE | SA96: FALSE | SB96: FALSE | SC96: FALSE | SD96: FALSE | SE96: FALSE | SF96: FALSE | SG96: FALSE | SH96: FALSE | SI96: FALSE | SJ96: FALSE | SK96: FALSE | SL96: FALSE | SM96: FALSE | SN96: FALSE | SO96: FALSE | SP96: FALSE | SQ96: FALSE | SR96: FALSE | SS96: FALSE | ST96: FALSE | SU96: FALSE | SV96: FALSE | SW96: FALSE | SX96: FALSE | SY96: FALSE | SZ96: FALSE | TA96: =$F$96=TA6 -> FALSE | TB96: FALSE | TC96: FALSE | TD96: FALSE | TE96: FALSE | TF96: FALSE | TG96: FALSE | TH96: FALSE | TI96: FALSE | TJ96: FALSE | TK96: FALSE | TL96: FALSE | TM96: FALSE | TN96: FALSE | TO96: FALSE | TP96: FALSE | TQ96: FALSE | TR96: FALSE | TS96: FALSE | TT96: FALSE | TU96: FALSE | TV96: FALSE | TW96: FALSE | TX96: FALSE | TY96: FALSE | TZ96: FALSE | UA96: FALSE | UB96: FALSE | UC96: FALSE | UD96: FALSE | UE96: FALSE | UF96: FALSE | UG96: FALSE | UH96: FALSE | UI96: FALSE | UJ96: FALSE | UK96: FALSE | UL96: FALSE | UM96: FALSE | UN96: FALSE | UO96: FALSE | UP96: FALSE | UQ96: FALSE | UR96: FALSE | US96: FALSE | UT96: FALSE | UU96: FALSE | UV96: FALSE | UW96: FALSE | UX96: FALSE | UY96: FALSE | UZ96: FALSE | VA96: FALSE | VB96: FALSE | VC96: FALSE | VD96: FALSE | VE96: FALSE | VF96: FALSE | VG96: FALSE | VH96: FALSE | VI96: FALSE | VJ96: FALSE | VK96: FALSE | VL96: FALSE | VM96: =$F$96=VM6 -> FALSE | VN96: FALSE | VO96: FALSE | VP96: FALSE | VQ96: FALSE | VR96: FALSE | VS96: FALSE | VT96: FALSE | VU96: FALSE | VV96: FALSE | VW96: FALSE | VX96: FALSE | VY96: FALSE | VZ96: FALSE | WA96: FALSE | WB96: FALSE | WC96: FALSE | WD96: FALSE | WE96: FALSE | WF96: FALSE | WG96: FALSE | WH96: FALSE | WI96: FALSE | WJ96: FALSE | WK96: FALSE | WL96: FALSE | WM96: FALSE | WN96: FALSE | WO96: FALSE | WP96: FALSE | WQ96: FALSE | WR96: FALSE | WS96: FALSE | WT96: FALSE | WU96: FALSE | WV96: FALSE | WW96: FALSE | WX96: FALSE | WY96: FALSE | WZ96: FALSE | XA96: FALSE | XB96: FALSE | XC96: FALSE | XD96: FALSE | XE96: FALSE | XF96: FALSE | XG96: FALSE | XH96: FALSE | XI96: FALSE | XJ96: FALSE | XK96: FALSE | XL96: FALSE | XM96: FALSE | XN96: FALSE | XO96: FALSE | XP96: FALSE | XQ96: FALSE | XR96: FALSE | XS96: FALSE | XT96: FALSE | XU96: FALSE | XV96: FALSE | XW96: FALSE | XX96: FALSE | XY96: =$F$96=XY6 -> FALSE | XZ96: FALSE | YA96: FALSE | YB96: FALSE | YC96: FALSE | YD96: FALSE | YE96: FALSE | YF96: FALSE | YG96: FALSE | YH96: FALSE | YI96: FALSE | YJ96: FALSE | YK96: FALSE | YL96: FALSE | YM96: FALSE | YN96: FALSE | YO96: FALSE | YP96: FALSE | YQ96: FALSE | YR96: FALSE | YS96: FALSE | YT96: FALSE | YU96: FALSE | YV96: FALSE | YW96: FALSE | YX96: FALSE | YY96: FALSE | YZ96: FALSE | ZA96: FALSE | ZB96: FALSE | ZC96: FALSE | ZD96: FALSE | ZE96: FALSE | ZF96: FALSE | ZG96: FALSE | ZH96: FALSE | ZI96: FALSE | ZJ96: FALSE | ZK96: FALSE | ZL96: FALSE | ZM96: FALSE | ZN96: FALSE | ZO96: FALSE | ZP96: FALSE | ZQ96: FALSE | ZR96: FALSE | ZS96: FALSE | ZT96: FALSE | ZU96: FALSE | ZV96: FALSE | ZW96: FALSE | ZX96: FALSE | ZY96: FALSE | ZZ96: FALSE | AAA96: FALSE | AAB96: FALSE | AAC96: FALSE | AAD96: FALSE | AAE96: FALSE | AAF96: FALSE | AAG96: FALSE | AAH96: FALSE | AAI96: FALSE | AAJ96: FALSE | AAK96: =$F$96=AAK6 -> FALSE | AAL96: FALSE | AAM96: FALSE | AAN96: FALSE | AAO96: FALSE | AAP96: FALSE | AAQ96: FALSE | AAR96: FALSE | AAS96: FALSE | AAT96: FALSE | AAU96: FALSE | AAV96: FALSE | AAW96: FALSE | AAX96: FALSE | AAY96: FALSE | AAZ96: FALSE | ABA96: FALSE | ABB96: FALSE | ABC96: FALSE | ABD96: FALSE | ABE96: FALSE | ABF96: FALSE | ABG96: FALSE | ABH96: FALSE | ABI96: FALSE | ABJ96: FALSE | ABK96: FALSE | ABL96: FALSE | ABM96: FALSE | ABN96: FALSE | ABO96: FALSE | ABP96: FALSE | ABQ96: FALSE | ABR96: FALSE | ABS96: FALSE | ABT96: FALSE | ABU96: FALSE | ABV96: FALSE | ABW96: FALSE | ABX96: FALSE | ABY96: FALSE | ABZ96: FALSE | ACA96: FALSE | ACB96: FALSE | ACC96: FALSE | ACD96: FALSE | ACE96: FALSE | ACF96: FALSE | ACG96: FALSE | ACH96: FALSE | ACI96: FALSE | ACJ96: FALSE | ACK96: FALSE | ACL96: FALSE | ACM96: FALSE | ACN96: FALSE | ACO96: FALSE | ACP96: FALSE | ACQ96: FALSE | ACR96: FALSE | ACS96: FALSE | ACT96: FALSE | ACU96: FALSE | ACV96: FALSE | ACW96: =$F$96=ACW6 -> FALSE | ACX96: FALSE | ACY96: FALSE | ACZ96: FALSE | ADA96: FALSE | ADB96: FALSE | ADC96: FALSE | ADD96: FALSE | ADE96: FALSE | ADF96: FALSE | ADG96: FALSE | ADH96: FALSE | ADI96: FALSE | ADJ96: FALSE | ADK96: FALSE | ADL96: FALSE | ADM96: FALSE | ADN96: FALSE | ADO96: FALSE | ADP96: FALSE | ADQ96: FALSE | ADR96: FALSE | ADS96: FALSE | ADT96: FALSE | ADU96: FALSE | ADV96: FALSE | ADW96: FALSE | ADX96: FALSE | ADY96: FALSE | ADZ96: FALSE | AEA96: FALSE | AEB96: FALSE | AEC96: FALSE | AED96: FALSE | AEE96: FALSE | AEF96: FALSE | AEG96: FALSE | AEH96: FALSE | AEI96: FALSE | AEJ96: FALSE | AEK96: FALSE | AEL96: FALSE | AEM96: FALSE | AEN96: FALSE | AEO96: FALSE | AEP96: FALSE | AEQ96: FALSE | AER96: FALSE | AES96: FALSE | AET96: FALSE | AEU96: FALSE | AEV96: FALSE | AEW96: FALSE | AEX96: FALSE | AEY96: FALSE | AEZ96: FALSE | AFA96: FALSE | AFB96: FALSE | AFC96: FALSE | AFD96: FALSE | AFE96: FALSE | AFF96: FALSE | AFG96: FALSE | AFH96: FALSE | AFI96: =$F$96=AFI6 -> FALSE | AFJ96: FALSE | AFK96: FALSE | AFL96: FALSE | AFM96: FALSE | AFN96: FALSE | AFO96: FALSE | AFP96: FALSE | AFQ96: FALSE | AFR96: FALSE | AFS96: FALSE | AFT96: FALSE | AFU96: FALSE | AFV96: FALSE | AFW96: FALSE | AFX96: FALSE | AFY96: FALSE | AFZ96: FALSE | AGA96: FALSE | AGB96: FALSE | AGC96: FALSE | AGD96: FALSE | AGE96: FALSE | AGF96: FALSE | AGG96: FALSE | AGH96: FALSE | AGI96: FALSE | AGJ96: FALSE | AGK96: FALSE
B97: Real Decomissioning | E97: Currency | F97: ='Solar Carrying Charge'!F54 -> 0 | I97: =$F$97*I96 -> 0 | J97: =$F$97*J96 -> 0 | K97: 0 | L97: 0 | M97: 0 | N97: 0 | O97: 0 | P97: 0 | Q97: 0 | R97: 0 | S97: 0 | T97: 0 | U97: 0 | V97: 0 | W97: 0 | X97: 0 | Y97: 0 | Z97: 0 | AA97: 0 | AB97: 0 | AC97: 0 | AD97: 0 | AE97: 0 | AF97: 0 | AG97: 0 | AH97: 0 | AI97: 0 | AJ97: 0 | AK97: 0 | AL97: 0 | AM97: 0 | AN97: 0 | AO97: 0 | AP97: 0 | AQ97: 0 | AR97: 0 | AS97: 0 | AT97: 0 | AU97: 0 | AV97: 0 | AW97: 0 | AX97: 0 | AY97: 0 | AZ97: 0 | BA97: 0 | BB97: 0 | BC97: 0 | BD97: 0 | BE97: 0 | BF97: 0 | BG97: 0 | BH97: 0 | BI97: 0 | BJ97: 0 | BK97: 0 | BL97: 0 | BM97: 0 | BN97: 0 | BO97: 0 | BP97: 0 | BQ97: 0 | BR97: 0 | BS97: 0 | BT97: 0 | BU97: 0 | BV97: =$F$97*BV96 -> 0 | BW97: 0 | BX97: 0 | BY97: 0 | BZ97: 0 | CA97: 0 | CB97: 0 | CC97: 0 | CD97: 0 | CE97: 0 | CF97: 0 | CG97: 0 | CH97: 0 | CI97: 0 | CJ97: 0 | CK97: 0 | CL97: 0 | CM97: 0 | CN97: 0 | CO97: 0 | CP97: 0 | CQ97: 0 | CR97: 0 | CS97: 0 | CT97: 0 | CU97: 0 | CV97: 0 | CW97: 0 | CX97: 0 | CY97: 0 | CZ97: 0 | DA97: 0 | DB97: 0 | DC97: 0 | DD97: 0 | DE97: 0 | DF97: 0 | DG97: 0 | DH97: 0 | DI97: 0 | DJ97: 0 | DK97: 0 | DL97: 0 | DM97: 0 | DN97: 0 | DO97: 0 | DP97: 0 | DQ97: 0 | DR97: 0 | DS97: 0 | DT97: 0 | DU97: 0 | DV97: 0 | DW97: 0 | DX97: 0 | DY97: 0 | DZ97: 0 | EA97: 0 | EB97: 0 | EC97: 0 | ED97: 0 | EE97: 0 | EF97: 0 | EG97: 0 | EH97: =$F$97*EH96 -> 0 | EI97: 0 | EJ97: 0 | EK97: 0 | EL97: 0 | EM97: 0 | EN97: 0 | EO97: 0 | EP97: 0 | EQ97: 0 | ER97: 0 | ES97: 0 | ET97: 0 | EU97: 0 | EV97: 0 | EW97: 0 | EX97: 0 | EY97: 0 | EZ97: 0 | FA97: 0 | FB97: 0 | FC97: 0 | FD97: 0 | FE97: 0 | FF97: 0 | FG97: 0 | FH97: 0 | FI97: 0 | FJ97: 0 | FK97: 0 | FL97: 0 | FM97: 0 | FN97: 0 | FO97: 0 | FP97: 0 | FQ97: 0 | FR97: 0 | FS97: 0 | FT97: 0 | FU97: 0 | FV97: 0 | FW97: 0 | FX97: 0 | FY97: 0 | FZ97: 0 | GA97: 0 | GB97: 0 | GC97: 0 | GD97: 0 | GE97: 0 | GF97: 0 | GG97: 0 | GH97: 0 | GI97: 0 | GJ97: 0 | GK97: 0 | GL97: 0 | GM97: 0 | GN97: 0 | GO97: 0 | GP97: 0 | GQ97: 0 | GR97: 0 | GS97: 0 | GT97: =$F$97*GT96 -> 0 | GU97: 0 | GV97: 0 | GW97: 0 | GX97: 0 | GY97: 0 | GZ97: 0 | HA97: 0 | HB97: 0 | HC97: 0 | HD97: 0 | HE97: 0 | HF97: 0 | HG97: 0 | HH97: 0 | HI97: 0 | HJ97: 0 | HK97: 0 | HL97: 0 | HM97: 0 | HN97: 0 | HO97: 0 | HP97: 0 | HQ97: 0 | HR97: 0 | HS97: 0 | HT97: 0 | HU97: 0 | HV97: 0 | HW97: 0 | HX97: 0 | HY97: 0 | HZ97: 0 | IA97: 0 | IB97: 0 | IC97: 0 | ID97: 0 | IE97: 0 | IF97: 0 | IG97: 0 | IH97: 0 | II97: 0 | IJ97: 0 | IK97: 0 | IL97: 0 | IM97: 0 | IN97: 0 | IO97: 0 | IP97: 0 | IQ97: 0 | IR97: 0 | IS97: 0 | IT97: 0 | IU97: 0 | IV97: 0 | IW97: 0 | IX97: 0 | IY97: 0 | IZ97: 0 | JA97: 0 | JB97: 0 | JC97: 0 | JD97: 0 | JE97: 0 | JF97: =$F$97*JF96 -> 0 | JG97: 0 | JH97: 0 | JI97: 0 | JJ97: 0 | JK97: 0 | JL97: 0 | JM97: 0 | JN97: 0 | JO97: 0 | JP97: 0 | JQ97: 0 | JR97: 0 | JS97: 0 | JT97: 0 | JU97: 0 | JV97: 0 | JW97: 0 | JX97: 0 | JY97: 0 | JZ97: 0 | KA97: 0 | KB97: 0 | KC97: 0 | KD97: 0 | KE97: 0 | KF97: 0 | KG97: 0 | KH97: 0 | KI97: 0 | KJ97: 0 | KK97: 0 | KL97: 0 | KM97: 0 | KN97: 0 | KO97: 0 | KP97: 0 | KQ97: 0 | KR97: 0 | KS97: 0 | KT97: 0 | KU97: 0 | KV97: 0 | KW97: 0 | KX97: 0 | KY97: 0 | KZ97: 0 | LA97: 0 | LB97: 0 | LC97: 0 | LD97: 0 | LE97: 0 | LF97: 0 | LG97: 0 | LH97: 0 | LI97: 0 | LJ97: 0 | LK97: 0 | LL97: 0 | LM97: 0 | LN97: 0 | LO97: 0 | LP97: 0 | LQ97: 0 | LR97: =$F$97*LR96 -> 0 | LS97: 0 | LT97: 0 | LU97: 0 | LV97: 0 | LW97: 0 | LX97: 0 | LY97: 0 | LZ97: 0 | MA97: 0 | MB97: 0 | MC97: 0 | MD97: 0 | ME97: 0 | MF97: 0 | MG97: 0 | MH97: 0 | MI97: 0 | MJ97: 0 | MK97: 0 | ML97: 0 | MM97: 0 | MN97: 0 | MO97: 0 | MP97: 0 | MQ97: 0 | MR97: 0 | MS97: 0 | MT97: 0 | MU97: 0 | MV97: 0 | MW97: 0 | MX97: 0 | MY97: 0 | MZ97: 0 | NA97: 0 | NB97: 0 | NC97: 0 | ND97: 0 | NE97: 0 | NF97: 0 | NG97: 0 | NH97: 0 | NI97: 0 | NJ97: 0 | NK97: 0 | NL97: 0 | NM97: 0 | NN97: 0 | NO97: 0 | NP97: 0 | NQ97: 0 | NR97: 0 | NS97: 0 | NT97: 0 | NU97: 0 | NV97: 0 | NW97: 0 | NX97: 0 | NY97: 0 | NZ97: 0 | OA97: 0 | OB97: 0 | OC97: 0 | OD97: =$F$97*OD96 -> 0 | OE97: 0 | OF97: 0 | OG97: 0 | OH97: 0 | OI97: 0 | OJ97: 0 | OK97: 0 | OL97: 0 | OM97: 0 | ON97: 0 | OO97: 0 | OP97: 0 | OQ97: 0 | OR97: 0 | OS97: 0 | OT97: 0 | OU97: 0 | OV97: 0 | OW97: 0 | OX97: 0 | OY97: 0 | OZ97: 0 | PA97: 0 | PB97: 0 | PC97: 0 | PD97: 0 | PE97: 0 | PF97: 0 | PG97: 0 | PH97: 0 | PI97: 0 | PJ97: 0 | PK97: 0 | PL97: 0 | PM97: 0 | PN97: 0 | PO97: 0 | PP97: 0 | PQ97: 0 | PR97: 0 | PS97: 0 | PT97: 0 | PU97: 0 | PV97: 0 | PW97: 0 | PX97: 0 | PY97: 0 | PZ97: 0 | QA97: 0 | QB97: 0 | QC97: 0 | QD97: 0 | QE97: 0 | QF97: 0 | QG97: 0 | QH97: 0 | QI97: 0 | QJ97: 0 | QK97: 0 | QL97: 0 | QM97: 0 | QN97: 0 | QO97: 0 | QP97: =$F$97*QP96 -> 0 | QQ97: 0 | QR97: 0 | QS97: 0 | QT97: 0 | QU97: 0 | QV97: 0 | QW97: 0 | QX97: 0 | QY97: 0 | QZ97: 0 | RA97: 0 | RB97: 0 | RC97: 0 | RD97: 0 | RE97: 0 | RF97: 0 | RG97: 0 | RH97: 0 | RI97: 0 | RJ97: 0 | RK97: 0 | RL97: 0 | RM97: 0 | RN97: 0 | RO97: 0 | RP97: 0 | RQ97: 0 | RR97: 0 | RS97: 0 | RT97: 0 | RU97: 0 | RV97: 0 | RW97: 0 | RX97: 0 | RY97: 0 | RZ97: 0 | SA97: 0 | SB97: 0 | SC97: 0 | SD97: 0 | SE97: 0 | SF97: 0 | SG97: 0 | SH97: 0 | SI97: 0 | SJ97: 0 | SK97: 0 | SL97: 0 | SM97: 0 | SN97: 0 | SO97: 0 | SP97: 0 | SQ97: 0 | SR97: 0 | SS97: 0 | ST97: 0 | SU97: 0 | SV97: 0 | SW97: 0 | SX97: 0 | SY97: 0 | SZ97: 0 | TA97: 0 | TB97: =$F$97*TB96 -> 0 | TC97: 0 | TD97: 0 | TE97: 0 | TF97: 0 | TG97: 0 | TH97: 0 | TI97: 0 | TJ97: 0 | TK97: 0 | TL97: 0 | TM97: 0 | TN97: 0 | TO97: 0 | TP97: 0 | TQ97: 0 | TR97: 0 | TS97: 0 | TT97: 0 | TU97: 0 | TV97: 0 | TW97: 0 | TX97: 0 | TY97: 0 | TZ97: 0 | UA97: 0 | UB97: 0 | UC97: 0 | UD97: 0 | UE97: 0 | UF97: 0 | UG97: 0 | UH97: 0 | UI97: 0 | UJ97: 0 | UK97: 0 | UL97: 0 | UM97: 0 | UN97: 0 | UO97: 0 | UP97: 0 | UQ97: 0 | UR97: 0 | US97: 0 | UT97: 0 | UU97: 0 | UV97: 0 | UW97: 0 | UX97: 0 | UY97: 0 | UZ97: 0 | VA97: 0 | VB97: 0 | VC97: 0 | VD97: 0 | VE97: 0 | VF97: 0 | VG97: 0 | VH97: 0 | VI97: 0 | VJ97: 0 | VK97: 0 | VL97: 0 | VM97: 0 | VN97: =$F$97*VN96 -> 0 | VO97: 0 | VP97: 0 | VQ97: 0 | VR97: 0 | VS97: 0 | VT97: 0 | VU97: 0 | VV97: 0 | VW97: 0 | VX97: 0 | VY97: 0 | VZ97: 0 | WA97: 0 | WB97: 0 | WC97: 0 | WD97: 0 | WE97: 0 | WF97: 0 | WG97: 0 | WH97: 0 | WI97: 0 | WJ97: 0 | WK97: 0 | WL97: 0 | WM97: 0 | WN97: 0 | WO97: 0 | WP97: 0 | WQ97: 0 | WR97: 0 | WS97: 0 | WT97: 0 | WU97: 0 | WV97: 0 | WW97: 0 | WX97: 0 | WY97: 0 | WZ97: 0 | XA97: 0 | XB97: 0 | XC97: 0 | XD97: 0 | XE97: 0 | XF97: 0 | XG97: 0 | XH97: 0 | XI97: 0 | XJ97: 0 | XK97: 0 | XL97: 0 | XM97: 0 | XN97: 0 | XO97: 0 | XP97: 0 | XQ97: 0 | XR97: 0 | XS97: 0 | XT97: 0 | XU97: 0 | XV97: 0 | XW97: 0 | XX97: 0 | XY97: 0 | XZ97: =$F$97*XZ96 -> 0 | YA97: 0 | YB97: 0 | YC97: 0 | YD97: 0 | YE97: 0 | YF97: 0 | YG97: 0 | YH97: 0 | YI97: 0 | YJ97: 0 | YK97: 0 | YL97: 0 | YM97: 0 | YN97: 0 | YO97: 0 | YP97: 0 | YQ97: 0 | YR97: 0 | YS97: 0 | YT97: 0 | YU97: 0 | YV97: 0 | YW97: 0 | YX97: 0 | YY97: 0 | YZ97: 0 | ZA97: 0 | ZB97: 0 | ZC97: 0 | ZD97: 0 | ZE97: 0 | ZF97: 0 | ZG97: 0 | ZH97: 0 | ZI97: 0 | ZJ97: 0 | ZK97: 0 | ZL97: 0 | ZM97: 0 | ZN97: 0 | ZO97: 0 | ZP97: 0 | ZQ97: 0 | ZR97: 0 | ZS97: 0 | ZT97: 0 | ZU97: 0 | ZV97: 0 | ZW97: 0 | ZX97: 0 | ZY97: 0 | ZZ97: 0 | AAA97: 0 | AAB97: 0 | AAC97: 0 | AAD97: 0 | AAE97: 0 | AAF97: 0 | AAG97: 0 | AAH97: 0 | AAI97: 0 | AAJ97: 0 | AAK97: 0 | AAL97: =$F$97*AAL96 -> 0 | AAM97: 0 | AAN97: 0 | AAO97: 0 | AAP97: 0 | AAQ97: 0 | AAR97: 0 | AAS97: 0 | AAT97: 0 | AAU97: 0 | AAV97: 0 | AAW97: 0 | AAX97: 0 | AAY97: 0 | AAZ97: 0 | ABA97: 0 | ABB97: 0 | ABC97: 0 | ABD97: 0 | ABE97: 0 | ABF97: 0 | ABG97: 0 | ABH97: 0 | ABI97: 0 | ABJ97: 0 | ABK97: 0 | ABL97: 0 | ABM97: 0 | ABN97: 0 | ABO97: 0 | ABP97: 0 | ABQ97: 0 | ABR97: 0 | ABS97: 0 | ABT97: 0 | ABU97: 0 | ABV97: 0 | ABW97: 0 | ABX97: 0 | ABY97: 0 | ABZ97: 0 | ACA97: 0 | ACB97: 0 | ACC97: 0 | ACD97: 0 | ACE97: 0 | ACF97: 0 | ACG97: 0 | ACH97: 0 | ACI97: 0 | ACJ97: 0 | ACK97: 0 | ACL97: 0 | ACM97: 0 | ACN97: 0 | ACO97: 0 | ACP97: 0 | ACQ97: 0 | ACR97: 0 | ACS97: 0 | ACT97: 0 | ACU97: 0 | ACV97: 0 | ACW97: 0 | ACX97: =$F$97*ACX96 -> 0 | ACY97: 0 | ACZ97: 0 | ADA97: 0 | ADB97: 0 | ADC97: 0 | ADD97: 0 | ADE97: 0 | ADF97: 0 | ADG97: 0 | ADH97: 0 | ADI97: 0 | ADJ97: 0 | ADK97: 0 | ADL97: 0 | ADM97: 0 | ADN97: 0 | ADO97: 0 | ADP97: 0 | ADQ97: 0 | ADR97: 0 | ADS97: 0 | ADT97: 0 | ADU97: 0 | ADV97: 0 | ADW97: 0 | ADX97: 0 | ADY97: 0 | ADZ97: 0 | AEA97: 0 | AEB97: 0 | AEC97: 0 | AED97: 0 | AEE97: 0 | AEF97: 0 | AEG97: 0 | AEH97: 0 | AEI97: 0 | AEJ97: 0 | AEK97: 0 | AEL97: 0 | AEM97: 0 | AEN97: 0 | AEO97: 0 | AEP97: 0 | AEQ97: 0 | AER97: 0 | AES97: 0 | AET97: 0 | AEU97: 0 | AEV97: 0 | AEW97: 0 | AEX97: 0 | AEY97: 0 | AEZ97: 0 | AFA97: 0 | AFB97: 0 | AFC97: 0 | AFD97: 0 | AFE97: 0 | AFF97: 0 | AFG97: 0 | AFH97: 0 | AFI97: 0 | AFJ97: =$F$97*AFJ96 -> 0 | AFK97: 0 | AFL97: 0 | AFM97: 0 | AFN97: 0 | AFO97: 0 | AFP97: 0 | AFQ97: 0 | AFR97: 0 | AFS97: 0 | AFT97: 0 | AFU97: 0 | AFV97: 0 | AFW97: 0 | AFX97: 0 | AFY97: 0 | AFZ97: 0 | AGA97: 0 | AGB97: 0 | AGC97: 0 | AGD97: 0 | AGE97: 0 | AGF97: 0 | AGG97: 0 | AGH97: 0 | AGI97: 0 | AGJ97: 0 | AGK97: 0
B98: Nominal Decomissioning | E98: Currency | F98: =SUM(I98:AGK98) -> 0 | I98: =I97*I75 -> 0 | J98: =J97*J75 -> 0 | K98: 0 | L98: 0 | M98: 0 | N98: 0 | O98: 0 | P98: 0 | Q98: 0 | R98: 0 | S98: 0 | T98: 0 | U98: 0 | V98: 0 | W98: 0 | X98: 0 | Y98: 0 | Z98: 0 | AA98: 0 | AB98: 0 | AC98: 0 | AD98: 0 | AE98: 0 | AF98: 0 | AG98: 0 | AH98: 0 | AI98: 0 | AJ98: 0 | AK98: 0 | AL98: 0 | AM98: 0 | AN98: 0 | AO98: 0 | AP98: 0 | AQ98: 0 | AR98: 0 | AS98: 0 | AT98: 0 | AU98: 0 | AV98: 0 | AW98: 0 | AX98: 0 | AY98: 0 | AZ98: 0 | BA98: 0 | BB98: 0 | BC98: 0 | BD98: 0 | BE98: 0 | BF98: 0 | BG98: 0 | BH98: 0 | BI98: 0 | BJ98: 0 | BK98: 0 | BL98: 0 | BM98: 0 | BN98: 0 | BO98: 0 | BP98: 0 | BQ98: 0 | BR98: 0 | BS98: 0 | BT98: 0 | BU98: 0 | BV98: =BV97*BV75 -> 0 | BW98: 0 | BX98: 0 | BY98: 0 | BZ98: 0 | CA98: 0 | CB98: 0 | CC98: 0 | CD98: 0 | CE98: 0 | CF98: 0 | CG98: 0 | CH98: 0 | CI98: 0 | CJ98: 0 | CK98: 0 | CL98: 0 | CM98: 0 | CN98: 0 | CO98: 0 | CP98: 0 | CQ98: 0 | CR98: 0 | CS98: 0 | CT98: 0 | CU98: 0 | CV98: 0 | CW98: 0 | CX98: 0 | CY98: 0 | CZ98: 0 | DA98: 0 | DB98: 0 | DC98: 0 | DD98: 0 | DE98: 0 | DF98: 0 | DG98: 0 | DH98: 0 | DI98: 0 | DJ98: 0 | DK98: 0 | DL98: 0 | DM98: 0 | DN98: 0 | DO98: 0 | DP98: 0 | DQ98: 0 | DR98: 0 | DS98: 0 | DT98: 0 | DU98: 0 | DV98: 0 | DW98: 0 | DX98: 0 | DY98: 0 | DZ98: 0 | EA98: 0 | EB98: 0 | EC98: 0 | ED98: 0 | EE98: 0 | EF98: 0 | EG98: 0 | EH98: =EH97*EH75 -> 0 | EI98: 0 | EJ98: 0 | EK98: 0 | EL98: 0 | EM98: 0 | EN98: 0 | EO98: 0 | EP98: 0 | EQ98: 0 | ER98: 0 | ES98: 0 | ET98: 0 | EU98: 0 | EV98: 0 | EW98: 0 | EX98: 0 | EY98: 0 | EZ98: 0 | FA98: 0 | FB98: 0 | FC98: 0 | FD98: 0 | FE98: 0 | FF98: 0 | FG98: 0 | FH98: 0 | FI98: 0 | FJ98: 0 | FK98: 0 | FL98: 0 | FM98: 0 | FN98: 0 | FO98: 0 | FP98: 0 | FQ98: 0 | FR98: 0 | FS98: 0 | FT98: 0 | FU98: 0 | FV98: 0 | FW98: 0 | FX98: 0 | FY98: 0 | FZ98: 0 | GA98: 0 | GB98: 0 | GC98: 0 | GD98: 0 | GE98: 0 | GF98: 0 | GG98: 0 | GH98: 0 | GI98: 0 | GJ98: 0 | GK98: 0 | GL98: 0 | GM98: 0 | GN98: 0 | GO98: 0 | GP98: 0 | GQ98: 0 | GR98: 0 | GS98: 0 | GT98: =GT97*GT75 -> 0 | GU98: 0 | GV98: 0 | GW98: 0 | GX98: 0 | GY98: 0 | GZ98: 0 | HA98: 0 | HB98: 0 | HC98: 0 | HD98: 0 | HE98: 0 | HF98: 0 | HG98: 0 | HH98: 0 | HI98: 0 | HJ98: 0 | HK98: 0 | HL98: 0 | HM98: 0 | HN98: 0 | HO98: 0 | HP98: 0 | HQ98: 0 | HR98: 0 | HS98: 0 | HT98: 0 | HU98: 0 | HV98: 0 | HW98: 0 | HX98: 0 | HY98: 0 | HZ98: 0 | IA98: 0 | IB98: 0 | IC98: 0 | ID98: 0 | IE98: 0 | IF98: 0 | IG98: 0 | IH98: 0 | II98: 0 | IJ98: 0 | IK98: 0 | IL98: 0 | IM98: 0 | IN98: 0 | IO98: 0 | IP98: 0 | IQ98: 0 | IR98: 0 | IS98: 0 | IT98: 0 | IU98: 0 | IV98: 0 | IW98: 0 | IX98: 0 | IY98: 0 | IZ98: 0 | JA98: 0 | JB98: 0 | JC98: 0 | JD98: 0 | JE98: 0 | JF98: =JF97*JF75 -> 0 | JG98: 0 | JH98: 0 | JI98: 0 | JJ98: 0 | JK98: 0 | JL98: 0 | JM98: 0 | JN98: 0 | JO98: 0 | JP98: 0 | JQ98: 0 | JR98: 0 | JS98: 0 | JT98: 0 | JU98: 0 | JV98: 0 | JW98: 0 | JX98: 0 | JY98: 0 | JZ98: 0 | KA98: 0 | KB98: 0 | KC98: 0 | KD98: 0 | KE98: 0 | KF98: 0 | KG98: 0 | KH98: 0 | KI98: 0 | KJ98: 0 | KK98: 0 | KL98: 0 | KM98: 0 | KN98: 0 | KO98: 0 | KP98: 0 | KQ98: 0 | KR98: 0 | KS98: 0 | KT98: 0 | KU98: 0 | KV98: 0 | KW98: 0 | KX98: 0 | KY98: 0 | KZ98: 0 | LA98: 0 | LB98: 0 | LC98: 0 | LD98: 0 | LE98: 0 | LF98: 0 | LG98: 0 | LH98: 0 | LI98: 0 | LJ98: 0 | LK98: 0 | LL98: 0 | LM98: 0 | LN98: 0 | LO98: 0 | LP98: 0 | LQ98: 0 | LR98: =LR97*LR75 -> 0 | LS98: 0 | LT98: 0 | LU98: 0 | LV98: 0 | LW98: 0 | LX98: 0 | LY98: 0 | LZ98: 0 | MA98: 0 | MB98: 0 | MC98: 0 | MD98: 0 | ME98: 0 | MF98: 0 | MG98: 0 | MH98: 0 | MI98: 0 | MJ98: 0 | MK98: 0 | ML98: 0 | MM98: 0 | MN98: 0 | MO98: 0 | MP98: 0 | MQ98: 0 | MR98: 0 | MS98: 0 | MT98: 0 | MU98: 0 | MV98: 0 | MW98: 0 | MX98: 0 | MY98: 0 | MZ98: 0 | NA98: 0 | NB98: 0 | NC98: 0 | ND98: 0 | NE98: 0 | NF98: 0 | NG98: 0 | NH98: 0 | NI98: 0 | NJ98: 0 | NK98: 0 | NL98: 0 | NM98: 0 | NN98: 0 | NO98: 0 | NP98: 0 | NQ98: 0 | NR98: 0 | NS98: 0 | NT98: 0 | NU98: 0 | NV98: 0 | NW98: 0 | NX98: 0 | NY98: 0 | NZ98: 0 | OA98: 0 | OB98: 0 | OC98: 0 | OD98: =OD97*OD75 -> 0 | OE98: 0 | OF98: 0 | OG98: 0 | OH98: 0 | OI98: 0 | OJ98: 0 | OK98: 0 | OL98: 0 | OM98: 0 | ON98: 0 | OO98: 0 | OP98: 0 | OQ98: 0 | OR98: 0 | OS98: 0 | OT98: 0 | OU98: 0 | OV98: 0 | OW98: 0 | OX98: 0 | OY98: 0 | OZ98: 0 | PA98: 0 | PB98: 0 | PC98: 0 | PD98: 0 | PE98: 0 | PF98: 0 | PG98: 0 | PH98: 0 | PI98: 0 | PJ98: 0 | PK98: 0 | PL98: 0 | PM98: 0 | PN98: 0 | PO98: 0 | PP98: 0 | PQ98: 0 | PR98: 0 | PS98: 0 | PT98: 0 | PU98: 0 | PV98: 0 | PW98: 0 | PX98: 0 | PY98: 0 | PZ98: 0 | QA98: 0 | QB98: 0 | QC98: 0 | QD98: 0 | QE98: 0 | QF98: 0 | QG98: 0 | QH98: 0 | QI98: 0 | QJ98: 0 | QK98: 0 | QL98: 0 | QM98: 0 | QN98: 0 | QO98: 0 | QP98: =QP97*QP75 -> 0 | QQ98: 0 | QR98: 0 | QS98: 0 | QT98: 0 | QU98: 0 | QV98: 0 | QW98: 0 | QX98: 0 | QY98: 0 | QZ98: 0 | RA98: 0 | RB98: 0 | RC98: 0 | RD98: 0 | RE98: 0 | RF98: 0 | RG98: 0 | RH98: 0 | RI98: 0 | RJ98: 0 | RK98: 0 | RL98: 0 | RM98: 0 | RN98: 0 | RO98: 0 | RP98: 0 | RQ98: 0 | RR98: 0 | RS98: 0 | RT98: 0 | RU98: 0 | RV98: 0 | RW98: 0 | RX98: 0 | RY98: 0 | RZ98: 0 | SA98: 0 | SB98: 0 | SC98: 0 | SD98: 0 | SE98: 0 | SF98: 0 | SG98: 0 | SH98: 0 | SI98: 0 | SJ98: 0 | SK98: 0 | SL98: 0 | SM98: 0 | SN98: 0 | SO98: 0 | SP98: 0 | SQ98: 0 | SR98: 0 | SS98: 0 | ST98: 0 | SU98: 0 | SV98: 0 | SW98: 0 | SX98: 0 | SY98: 0 | SZ98: 0 | TA98: 0 | TB98: =TB97*TB75 -> 0 | TC98: 0 | TD98: 0 | TE98: 0 | TF98: 0 | TG98: 0 | TH98: 0 | TI98: 0 | TJ98: 0 | TK98: 0 | TL98: 0 | TM98: 0 | TN98: 0 | TO98: 0 | TP98: 0 | TQ98: 0 | TR98: 0 | TS98: 0 | TT98: 0 | TU98: 0 | TV98: 0 | TW98: 0 | TX98: 0 | TY98: 0 | TZ98: 0 | UA98: 0 | UB98: 0 | UC98: 0 | UD98: 0 | UE98: 0 | UF98: 0 | UG98: 0 | UH98: 0 | UI98: 0 | UJ98: 0 | UK98: 0 | UL98: 0 | UM98: 0 | UN98: 0 | UO98: 0 | UP98: 0 | UQ98: 0 | UR98: 0 | US98: 0 | UT98: 0 | UU98: 0 | UV98: 0 | UW98: 0 | UX98: 0 | UY98: 0 | UZ98: 0 | VA98: 0 | VB98: 0 | VC98: 0 | VD98: 0 | VE98: 0 | VF98: 0 | VG98: 0 | VH98: 0 | VI98: 0 | VJ98: 0 | VK98: 0 | VL98: 0 | VM98: 0 | VN98: =VN97*VN75 -> 0 | VO98: 0 | VP98: 0 | VQ98: 0 | VR98: 0 | VS98: 0 | VT98: 0 | VU98: 0 | VV98: 0 | VW98: 0 | VX98: 0 | VY98: 0 | VZ98: 0 | WA98: 0 | WB98: 0 | WC98: 0 | WD98: 0 | WE98: 0 | WF98: 0 | WG98: 0 | WH98: 0 | WI98: 0 | WJ98: 0 | WK98: 0 | WL98: 0 | WM98: 0 | WN98: 0 | WO98: 0 | WP98: 0 | WQ98: 0 | WR98: 0 | WS98: 0 | WT98: 0 | WU98: 0 | WV98: 0 | WW98: 0 | WX98: 0 | WY98: 0 | WZ98: 0 | XA98: 0 | XB98: 0 | XC98: 0 | XD98: 0 | XE98: 0 | XF98: 0 | XG98: 0 | XH98: 0 | XI98: 0 | XJ98: 0 | XK98: 0 | XL98: 0 | XM98: 0 | XN98: 0 | XO98: 0 | XP98: 0 | XQ98: 0 | XR98: 0 | XS98: 0 | XT98: 0 | XU98: 0 | XV98: 0 | XW98: 0 | XX98: 0 | XY98: 0 | XZ98: =XZ97*XZ75 -> 0 | YA98: 0 | YB98: 0 | YC98: 0 | YD98: 0 | YE98: 0 | YF98: 0 | YG98: 0 | YH98: 0 | YI98: 0 | YJ98: 0 | YK98: 0 | YL98: 0 | YM98: 0 | YN98: 0 | YO98: 0 | YP98: 0 | YQ98: 0 | YR98: 0 | YS98: 0 | YT98: 0 | YU98: 0 | YV98: 0 | YW98: 0 | YX98: 0 | YY98: 0 | YZ98: 0 | ZA98: 0 | ZB98: 0 | ZC98: 0 | ZD98: 0 | ZE98: 0 | ZF98: 0 | ZG98: 0 | ZH98: 0 | ZI98: 0 | ZJ98: 0 | ZK98: 0 | ZL98: 0 | ZM98: 0 | ZN98: 0 | ZO98: 0 | ZP98: 0 | ZQ98: 0 | ZR98: 0 | ZS98: 0 | ZT98: 0 | ZU98: 0 | ZV98: 0 | ZW98: 0 | ZX98: 0 | ZY98: 0 | ZZ98: 0 | AAA98: 0 | AAB98: 0 | AAC98: 0 | AAD98: 0 | AAE98: 0 | AAF98: 0 | AAG98: 0 | AAH98: 0 | AAI98: 0 | AAJ98: 0 | AAK98: 0 | AAL98: =AAL97*AAL75 -> 0 | AAM98: 0 | AAN98: 0 | AAO98: 0 | AAP98: 0 | AAQ98: 0 | AAR98: 0 | AAS98: 0 | AAT98: 0 | AAU98: 0 | AAV98: 0 | AAW98: 0 | AAX98: 0 | AAY98: 0 | AAZ98: 0 | ABA98: 0 | ABB98: 0 | ABC98: 0 | ABD98: 0 | ABE98: 0 | ABF98: 0 | ABG98: 0 | ABH98: 0 | ABI98: 0 | ABJ98: 0 | ABK98: 0 | ABL98: 0 | ABM98: 0 | ABN98: 0 | ABO98: 0 | ABP98: 0 | ABQ98: 0 | ABR98: 0 | ABS98: 0 | ABT98: 0 | ABU98: 0 | ABV98: 0 | ABW98: 0 | ABX98: 0 | ABY98: 0 | ABZ98: 0 | ACA98: 0 | ACB98: 0 | ACC98: 0 | ACD98: 0 | ACE98: 0 | ACF98: 0 | ACG98: 0 | ACH98: 0 | ACI98: 0 | ACJ98: 0 | ACK98: 0 | ACL98: 0 | ACM98: 0 | ACN98: 0 | ACO98: 0 | ACP98: 0 | ACQ98: 0 | ACR98: 0 | ACS98: 0 | ACT98: 0 | ACU98: 0 | ACV98: 0 | ACW98: 0 | ACX98: =ACX97*ACX75 -> 0 | ACY98: 0 | ACZ98: 0 | ADA98: 0 | ADB98: 0 | ADC98: 0 | ADD98: 0 | ADE98: 0 | ADF98: 0 | ADG98: 0 | ADH98: 0 | ADI98: 0 | ADJ98: 0 | ADK98: 0 | ADL98: 0 | ADM98: 0 | ADN98: 0 | ADO98: 0 | ADP98: 0 | ADQ98: 0 | ADR98: 0 | ADS98: 0 | ADT98: 0 | ADU98: 0 | ADV98: 0 | ADW98: 0 | ADX98: 0 | ADY98: 0 | ADZ98: 0 | AEA98: 0 | AEB98: 0 | AEC98: 0 | AED98: 0 | AEE98: 0 | AEF98: 0 | AEG98: 0 | AEH98: 0 | AEI98: 0 | AEJ98: 0 | AEK98: 0 | AEL98: 0 | AEM98: 0 | AEN98: 0 | AEO98: 0 | AEP98: 0 | AEQ98: 0 | AER98: 0 | AES98: 0 | AET98: 0 | AEU98: 0 | AEV98: 0 | AEW98: 0 | AEX98: 0 | AEY98: 0 | AEZ98: 0 | AFA98: 0 | AFB98: 0 | AFC98: 0 | AFD98: 0 | AFE98: 0 | AFF98: 0 | AFG98: 0 | AFH98: 0 | AFI98: 0 | AFJ98: =AFJ97*AFJ75 -> 0 | AFK98: 0 | AFL98: 0 | AFM98: 0 | AFN98: 0 | AFO98: 0 | AFP98: 0 | AFQ98: 0 | AFR98: 0 | AFS98: 0 | AFT98: 0 | AFU98: 0 | AFV98: 0 | AFW98: 0 | AFX98: 0 | AFY98: 0 | AFZ98: 0 | AGA98: 0 | AGB98: 0 | AGC98: 0 | AGD98: 0 | AGE98: 0 | AGF98: 0 | AGG98: 0 | AGH98: 0 | AGI98: 0 | AGJ98: 0 | AGK98: 0
